Workbook

Sheet Big Known List (hidden)
B2: Known Spells
C3: 0 | D3: 1 | E3: 2 | F3: 3 | G3: 4 | H3: 5 | I3: 6 | J3: 7 | K3: 8 | L3: 9 | N3: 0 | P3: 1 | R3: 4 | S3: 5 | T3: 6 | U3: 7 | V3: 8 | W3: 9
D4: 3 | E4: 5 | F4: 7 | G4: 9 | H4: 11 | I4: 13 | J4: 15 | K4: 17 | L4: 19
B5: 1 | C5: =IF(Engine!K$26="*",'Class List'!F4,IF(B5>36,"",INDEX('Class List'!F$3:F$1003,'Known Spells'!C4))) -> Create Water | D5: =IF(Engine!L$26="*",'Class List'!L4,IF(B5>42,"",INDEX('Class List'!L$3:L$1003,'Known Spells'!J4))) -> Calm Animals | E5: =IF(Engine!M$26="*",'Class List'!R4,IF(B5>42,"",INDEX('Class List'!R$3:R$1003,'Known Spells'!Q4))) ->  | F5: =IF(Engine!N$26="*",'Class List'!X4,IF(B5>42,"",INDEX('Class List'!X$3:X$1003,'Known Spells'!X4))) ->  | G5: =IF(Engine!O$26="*",'Class List'!AD4,IF(B5>42,"",INDEX('Class List'!AD$3:AD$1003,'Known Spells'!AE4))) ->  | H5: =IF(Engine!P$26="*",'Class List'!AJ4,IF(B5>24,"",INDEX('Class List'!AJ$3:AJ$1003,'Known Spells'!C48))) ->  | I5: =IF(Engine!Q$26="*",'Class List'!AP4,IF(B5>24,"",INDEX('Class List'!AP$3:AP$1003,'Known Spells'!J48))) ->  | J5: =IF(Engine!R$26="*",'Class List'!AV4,IF(B5>24,"",INDEX('Class List'!AV$3:AV$1003,'Known Spells'!Q48))) ->  | K5: =IF(Engine!S$26="*",'Class List'!BB4,IF(B5>24,"",INDEX('Class List'!BB$3:BB$1003,'Known Spells'!X48))) ->  | L5: =IF(Engine!T$26="*",'Class List'!BH4,IF(B5>24,"",INDEX('Class List'!BH$3:BH$1003,'Known Spells'!AE48))) ->  | N5: =IF(C5="",0,1) -> 1 | O5: =IF(C5="","",IF(SUM(N6:N55)>0,", ","")) -> , | P5: =IF(D5="",0,1) -> 1 | Q5: =IF(E5="","",IF(SUM(P6:P55)>0,", ","")) -> 
B6: 2 | C6: =IF(Engine!K$26="*",'Class List'!F5,IF(B6>36,"",INDEX('Class List'!F$3:F$1003,'Known Spells'!C5))) -> Detect Magic | D6: =IF(Engine!L$26="*",'Class List'!L5,IF(B6>42,"",INDEX('Class List'!L$3:L$1003,'Known Spells'!J5))) -> Charm Animal | E6: =IF(Engine!M$26="*",'Class List'!R5,IF(B6>42,"",INDEX('Class List'!R$3:R$1003,'Known Spells'!Q5))) ->  | F6: =IF(Engine!N$26="*",'Class List'!X5,IF(B6>42,"",INDEX('Class List'!X$3:X$1003,'Known Spells'!X5))) ->  | G6: =IF(Engine!O$26="*",'Class List'!AD5,IF(B6>42,"",INDEX('Class List'!AD$3:AD$1003,'Known Spells'!AE5))) ->  | H6: =IF(Engine!P$26="*",'Class List'!AJ5,IF(B6>24,"",INDEX('Class List'!AJ$3:AJ$1003,'Known Spells'!C49))) ->  | I6: =IF(Engine!Q$26="*",'Class List'!AP5,IF(B6>24,"",INDEX('Class List'!AP$3:AP$1003,'Known Spells'!J49))) ->  | J6: =IF(Engine!R$26="*",'Class List'!AV5,IF(B6>24,"",INDEX('Class List'!AV$3:AV$1003,'Known Spells'!Q49))) ->  | K6: =IF(Engine!S$26="*",'Class List'!BB5,IF(B6>24,"",INDEX('Class List'!BB$3:BB$1003,'Known Spells'!X49))) ->  | L6: =IF(Engine!T$26="*",'Class List'!BH5,IF(B6>24,"",INDEX('Class List'!BH$3:BH$1003,'Known Spells'!AE49))) ->  | N6: =IF(C6="",0,1) -> 1 | O6: , | P6: =IF(D6="",0,1) -> 1
B7: 3 | C7: =IF(Engine!K$26="*",'Class List'!F6,IF(B7>36,"",INDEX('Class List'!F$3:F$1003,'Known Spells'!C6))) -> Detect Poison | D7: =IF(Engine!L$26="*",'Class List'!L6,IF(B7>42,"",INDEX('Class List'!L$3:L$1003,'Known Spells'!J6))) -> Cure Light Wounds | E7: =IF(Engine!M$26="*",'Class List'!R6,IF(B7>42,"",INDEX('Class List'!R$3:R$1003,'Known Spells'!Q6))) ->  | F7: =IF(Engine!N$26="*",'Class List'!X6,IF(B7>42,"",INDEX('Class List'!X$3:X$1003,'Known Spells'!X6))) ->  | G7: =IF(Engine!O$26="*",'Class List'!AD6,IF(B7>42,"",INDEX('Class List'!AD$3:AD$1003,'Known Spells'!AE6))) ->  | H7: =IF(Engine!P$26="*",'Class List'!AJ6,IF(B7>24,"",INDEX('Class List'!AJ$3:AJ$1003,'Known Spells'!C50))) ->  | I7: =IF(Engine!Q$26="*",'Class List'!AP6,IF(B7>24,"",INDEX('Class List'!AP$3:AP$1003,'Known Spells'!J50))) ->  | J7: =IF(Engine!R$26="*",'Class List'!AV6,IF(B7>24,"",INDEX('Class List'!AV$3:AV$1003,'Known Spells'!Q50))) ->  | K7: =IF(Engine!S$26="*",'Class List'!BB6,IF(B7>24,"",INDEX('Class List'!BB$3:BB$1003,'Known Spells'!X50))) ->  | L7: =IF(Engine!T$26="*",'Class List'!BH6,IF(B7>24,"",INDEX('Class List'!BH$3:BH$1003,'Known Spells'!AE50))) ->  | N7: 1 | O7: , | P7: 1
B8: 4 | C8: =IF(Engine!K$26="*",'Class List'!F7,IF(B8>36,"",INDEX('Class List'!F$3:F$1003,'Known Spells'!C7))) -> Flare | D8: =IF(Engine!L$26="*",'Class List'!L7,IF(B8>42,"",INDEX('Class List'!L$3:L$1003,'Known Spells'!J7))) -> Detect Animals or Plants | E8: =IF(Engine!M$26="*",'Class List'!R7,IF(B8>42,"",INDEX('Class List'!R$3:R$1003,'Known Spells'!Q7))) ->  | F8: =IF(Engine!N$26="*",'Class List'!X7,IF(B8>42,"",INDEX('Class List'!X$3:X$1003,'Known Spells'!X7))) ->  | G8: =IF(Engine!O$26="*",'Class List'!AD7,IF(B8>42,"",INDEX('Class List'!AD$3:AD$1003,'Known Spells'!AE7))) ->  | H8: =IF(Engine!P$26="*",'Class List'!AJ7,IF(B8>24,"",INDEX('Class List'!AJ$3:AJ$1003,'Known Spells'!C51))) ->  | I8: =IF(Engine!Q$26="*",'Class List'!AP7,IF(B8>24,"",INDEX('Class List'!AP$3:AP$1003,'Known Spells'!J51))) ->  | J8: =IF(Engine!R$26="*",'Class List'!AV7,IF(B8>24,"",INDEX('Class List'!AV$3:AV$1003,'Known Spells'!Q51))) ->  | K8: =IF(Engine!S$26="*",'Class List'!BB7,IF(B8>24,"",INDEX('Class List'!BB$3:BB$1003,'Known Spells'!X51))) ->  | L8: =IF(Engine!T$26="*",'Class List'!BH7,IF(B8>24,"",INDEX('Class List'!BH$3:BH$1003,'Known Spells'!AE51))) ->  | N8: 1 | O8: , | P8: 1
B9: 5 | C9: =IF(Engine!K$26="*",'Class List'!F8,IF(B9>36,"",INDEX('Class List'!F$3:F$1003,'Known Spells'!C8))) -> Guidance | D9: =IF(Engine!L$26="*",'Class List'!L8,IF(B9>42,"",INDEX('Class List'!L$3:L$1003,'Known Spells'!J8))) -> Detect Snares and Pits | E9: =IF(Engine!M$26="*",'Class List'!R8,IF(B9>42,"",INDEX('Class List'!R$3:R$1003,'Known Spells'!Q8))) ->  | F9: =IF(Engine!N$26="*",'Class List'!X8,IF(B9>42,"",INDEX('Class List'!X$3:X$1003,'Known Spells'!X8))) ->  | G9: =IF(Engine!O$26="*",'Class List'!AD8,IF(B9>42,"",INDEX('Class List'!AD$3:AD$1003,'Known Spells'!AE8))) ->  | H9: =IF(Engine!P$26="*",'Class List'!AJ8,IF(B9>24,"",INDEX('Class List'!AJ$3:AJ$1003,'Known Spells'!C52))) ->  | I9: =IF(Engine!Q$26="*",'Class List'!AP8,IF(B9>24,"",INDEX('Class List'!AP$3:AP$1003,'Known Spells'!J52))) ->  | J9: =IF(Engine!R$26="*",'Class List'!AV8,IF(B9>24,"",INDEX('Class List'!AV$3:AV$1003,'Known Spells'!Q52))) ->  | K9: =IF(Engine!S$26="*",'Class List'!BB8,IF(B9>24,"",INDEX('Class List'!BB$3:BB$1003,'Known Spells'!X52))) ->  | L9: =IF(Engine!T$26="*",'Class List'!BH8,IF(B9>24,"",INDEX('Class List'!BH$3:BH$1003,'Known Spells'!AE52))) ->  | N9: 1 | O9: , | P9: 1
B10: 6 | C10: =IF(Engine!K$26="*",'Class List'!F9,IF(B10>36,"",INDEX('Class List'!F$3:F$1003,'Known Spells'!C9))) -> Know Direction | D10: =IF(Engine!L$26="*",'Class List'!L9,IF(B10>42,"",INDEX('Class List'!L$3:L$1003,'Known Spells'!J9))) -> Endure Elements | E10: =IF(Engine!M$26="*",'Class List'!R9,IF(B10>42,"",INDEX('Class List'!R$3:R$1003,'Known Spells'!Q9))) ->  | F10: =IF(Engine!N$26="*",'Class List'!X9,IF(B10>42,"",INDEX('Class List'!X$3:X$1003,'Known Spells'!X9))) ->  | G10: =IF(Engine!O$26="*",'Class List'!AD9,IF(B10>42,"",INDEX('Class List'!AD$3:AD$1003,'Known Spells'!AE9))) ->  | H10: =IF(Engine!P$26="*",'Class List'!AJ9,IF(B10>24,"",INDEX('Class List'!AJ$3:AJ$1003,'Known Spells'!C53))) ->  | I10: =IF(Engine!Q$26="*",'Class List'!AP9,IF(B10>24,"",INDEX('Class List'!AP$3:AP$1003,'Known Spells'!J53))) ->  | J10: =IF(Engine!R$26="*",'Class List'!AV9,IF(B10>24,"",INDEX('Class List'!AV$3:AV$1003,'Known Spells'!Q53))) ->  | K10: =IF(Engine!S$26="*",'Class List'!BB9,IF(B10>24,"",INDEX('Class List'!BB$3:BB$1003,'Known Spells'!X53))) ->  | L10: =IF(Engine!T$26="*",'Class List'!BH9,IF(B10>24,"",INDEX('Class List'!BH$3:BH$1003,'Known Spells'!AE53))) ->  | N10: 1 | O10: , | P10: 1
B11: 7 | C11: =IF(Engine!K$26="*",'Class List'!F10,IF(B11>36,"",INDEX('Class List'!F$3:F$1003,'Known Spells'!C10))) -> Light | D11: =IF(Engine!L$26="*",'Class List'!L10,IF(B11>42,"",INDEX('Class List'!L$3:L$1003,'Known Spells'!J10))) -> Entangle | E11: =IF(Engine!M$26="*",'Class List'!R10,IF(B11>42,"",INDEX('Class List'!R$3:R$1003,'Known Spells'!Q10))) ->  | F11: =IF(Engine!N$26="*",'Class List'!X10,IF(B11>42,"",INDEX('Class List'!X$3:X$1003,'Known Spells'!X10))) ->  | G11: =IF(Engine!O$26="*",'Class List'!AD10,IF(B11>42,"",INDEX('Class List'!AD$3:AD$1003,'Known Spells'!AE10))) ->  | H11: =IF(Engine!P$26="*",'Class List'!AJ10,IF(B11>24,"",INDEX('Class List'!AJ$3:AJ$1003,'Known Spells'!C54))) ->  | I11: =IF(Engine!Q$26="*",'Class List'!AP10,IF(B11>24,"",INDEX('Class List'!AP$3:AP$1003,'Known Spells'!J54))) ->  | J11: =IF(Engine!R$26="*",'Class List'!AV10,IF(B11>24,"",INDEX('Class List'!AV$3:AV$1003,'Known Spells'!Q54))) ->  | K11: =IF(Engine!S$26="*",'Class List'!BB10,IF(B11>24,"",INDEX('Class List'!BB$3:BB$1003,'Known Spells'!X54))) ->  | L11: =IF(Engine!T$26="*",'Class List'!BH10,IF(B11>24,"",INDEX('Class List'!BH$3:BH$1003,'Known Spells'!AE54))) ->  | N11: 1 | O11: , | P11: 1
B12: 8 | C12: =IF(Engine!K$26="*",'Class List'!F11,IF(B12>36,"",INDEX('Class List'!F$3:F$1003,'Known Spells'!C11))) -> Mending | D12: =IF(Engine!L$26="*",'Class List'!L11,IF(B12>42,"",INDEX('Class List'!L$3:L$1003,'Known Spells'!J11))) -> Faerie Fire | E12: =IF(Engine!M$26="*",'Class List'!R11,IF(B12>42,"",INDEX('Class List'!R$3:R$1003,'Known Spells'!Q11))) ->  | F12: =IF(Engine!N$26="*",'Class List'!X11,IF(B12>42,"",INDEX('Class List'!X$3:X$1003,'Known Spells'!X11))) ->  | G12: =IF(Engine!O$26="*",'Class List'!AD11,IF(B12>42,"",INDEX('Class List'!AD$3:AD$1003,'Known Spells'!AE11))) ->  | H12: =IF(Engine!P$26="*",'Class List'!AJ11,IF(B12>24,"",INDEX('Class List'!AJ$3:AJ$1003,'Known Spells'!C55))) ->  | I12: =IF(Engine!Q$26="*",'Class List'!AP11,IF(B12>24,"",INDEX('Class List'!AP$3:AP$1003,'Known Spells'!J55))) ->  | J12: =IF(Engine!R$26="*",'Class List'!AV11,IF(B12>24,"",INDEX('Class List'!AV$3:AV$1003,'Known Spells'!Q55))) ->  | K12: =IF(Engine!S$26="*",'Class List'!BB11,IF(B12>24,"",INDEX('Class List'!BB$3:BB$1003,'Known Spells'!X55))) ->  | L12: =IF(Engine!T$26="*",'Class List'!BH11,IF(B12>24,"",INDEX('Class List'!BH$3:BH$1003,'Known Spells'!AE55))) ->  | N12: 1 | O12: , | P12: 1
B13: 9 | C13: =IF(Engine!K$26="*",'Class List'!F12,IF(B13>36,"",INDEX('Class List'!F$3:F$1003,'Known Spells'!C12))) -> Purify Food and Drink | D13: =IF(Engine!L$26="*",'Class List'!L12,IF(B13>42,"",INDEX('Class List'!L$3:L$1003,'Known Spells'!J12))) -> Goodberry | E13: =IF(Engine!M$26="*",'Class List'!R12,IF(B13>42,"",INDEX('Class List'!R$3:R$1003,'Known Spells'!Q12))) ->  | F13: =IF(Engine!N$26="*",'Class List'!X12,IF(B13>42,"",INDEX('Class List'!X$3:X$1003,'Known Spells'!X12))) ->  | G13: =IF(Engine!O$26="*",'Class List'!AD12,IF(B13>42,"",INDEX('Class List'!AD$3:AD$1003,'Known Spells'!AE12))) ->  | H13: =IF(Engine!P$26="*",'Class List'!AJ12,IF(B13>24,"",INDEX('Class List'!AJ$3:AJ$1003,'Known Spells'!C56))) ->  | I13: =IF(Engine!Q$26="*",'Class List'!AP12,IF(B13>24,"",INDEX('Class List'!AP$3:AP$1003,'Known Spells'!J56))) ->  | J13: =IF(Engine!R$26="*",'Class List'!AV12,IF(B13>24,"",INDEX('Class List'!AV$3:AV$1003,'Known Spells'!Q56))) ->  | K13: =IF(Engine!S$26="*",'Class List'!BB12,IF(B13>24,"",INDEX('Class List'!BB$3:BB$1003,'Known Spells'!X56))) ->  | L13: =IF(Engine!T$26="*",'Class List'!BH12,IF(B13>24,"",INDEX('Class List'!BH$3:BH$1003,'Known Spells'!AE56))) ->  | N13: 1 | O13: , | P13: 1
B14: 10 | C14: =IF(Engine!K$26="*",'Class List'!F13,IF(B14>36,"",INDEX('Class List'!F$3:F$1003,'Known Spells'!C13))) -> Read Magic | D14: =IF(Engine!L$26="*",'Class List'!L13,IF(B14>42,"",INDEX('Class List'!L$3:L$1003,'Known Spells'!J13))) -> Hide from Animals | E14: =IF(Engine!M$26="*",'Class List'!R13,IF(B14>42,"",INDEX('Class List'!R$3:R$1003,'Known Spells'!Q13))) ->  | F14: =IF(Engine!N$26="*",'Class List'!X13,IF(B14>42,"",INDEX('Class List'!X$3:X$1003,'Known Spells'!X13))) ->  | G14: =IF(Engine!O$26="*",'Class List'!AD13,IF(B14>42,"",INDEX('Class List'!AD$3:AD$1003,'Known Spells'!AE13))) ->  | H14: =IF(Engine!P$26="*",'Class List'!AJ13,IF(B14>24,"",INDEX('Class List'!AJ$3:AJ$1003,'Known Spells'!C57))) ->  | I14: =IF(Engine!Q$26="*",'Class List'!AP13,IF(B14>24,"",INDEX('Class List'!AP$3:AP$1003,'Known Spells'!J57))) ->  | J14: =IF(Engine!R$26="*",'Class List'!AV13,IF(B14>24,"",INDEX('Class List'!AV$3:AV$1003,'Known Spells'!Q57))) ->  | K14: =IF(Engine!S$26="*",'Class List'!BB13,IF(B14>24,"",INDEX('Class List'!BB$3:BB$1003,'Known Spells'!X57))) ->  | L14: =IF(Engine!T$26="*",'Class List'!BH13,IF(B14>24,"",INDEX('Class List'!BH$3:BH$1003,'Known Spells'!AE57))) ->  | N14: 1 | O14: , | P14: 1
B15: 11 | C15: =IF(Engine!K$26="*",'Class List'!F14,IF(B15>36,"",INDEX('Class List'!F$3:F$1003,'Known Spells'!C14))) -> Resistance | D15: =IF(Engine!L$26="*",'Class List'!L14,IF(B15>42,"",INDEX('Class List'!L$3:L$1003,'Known Spells'!J14))) -> Jump | E15: =IF(Engine!M$26="*",'Class List'!R14,IF(B15>42,"",INDEX('Class List'!R$3:R$1003,'Known Spells'!Q14))) ->  | F15: =IF(Engine!N$26="*",'Class List'!X14,IF(B15>42,"",INDEX('Class List'!X$3:X$1003,'Known Spells'!X14))) ->  | G15: =IF(Engine!O$26="*",'Class List'!AD14,IF(B15>42,"",INDEX('Class List'!AD$3:AD$1003,'Known Spells'!AE14))) ->  | H15: =IF(Engine!P$26="*",'Class List'!AJ14,IF(B15>24,"",INDEX('Class List'!AJ$3:AJ$1003,'Known Spells'!C58))) ->  | I15: =IF(Engine!Q$26="*",'Class List'!AP14,IF(B15>24,"",INDEX('Class List'!AP$3:AP$1003,'Known Spells'!J58))) ->  | J15: =IF(Engine!R$26="*",'Class List'!AV14,IF(B15>24,"",INDEX('Class List'!AV$3:AV$1003,'Known Spells'!Q58))) ->  | K15: =IF(Engine!S$26="*",'Class List'!BB14,IF(B15>24,"",INDEX('Class List'!BB$3:BB$1003,'Known Spells'!X58))) ->  | L15: =IF(Engine!T$26="*",'Class List'!BH14,IF(B15>24,"",INDEX('Class List'!BH$3:BH$1003,'Known Spells'!AE58))) ->  | N15: 1 | O15: , | P15: 1
B16: 12 | C16: =IF(Engine!K$26="*",'Class List'!F15,IF(B16>36,"",INDEX('Class List'!F$3:F$1003,'Known Spells'!C15))) -> Stabilize | D16: =IF(Engine!L$26="*",'Class List'!L15,IF(B16>42,"",INDEX('Class List'!L$3:L$1003,'Known Spells'!J15))) -> Longstrider | E16: =IF(Engine!M$26="*",'Class List'!R15,IF(B16>42,"",INDEX('Class List'!R$3:R$1003,'Known Spells'!Q15))) ->  | F16: =IF(Engine!N$26="*",'Class List'!X15,IF(B16>42,"",INDEX('Class List'!X$3:X$1003,'Known Spells'!X15))) ->  | G16: =IF(Engine!O$26="*",'Class List'!AD15,IF(B16>42,"",INDEX('Class List'!AD$3:AD$1003,'Known Spells'!AE15))) ->  | H16: =IF(Engine!P$26="*",'Class List'!AJ15,IF(B16>24,"",INDEX('Class List'!AJ$3:AJ$1003,'Known Spells'!C59))) ->  | I16: =IF(Engine!Q$26="*",'Class List'!AP15,IF(B16>24,"",INDEX('Class List'!AP$3:AP$1003,'Known Spells'!J59))) ->  | J16: =IF(Engine!R$26="*",'Class List'!AV15,IF(B16>24,"",INDEX('Class List'!AV$3:AV$1003,'Known Spells'!Q59))) ->  | K16: =IF(Engine!S$26="*",'Class List'!BB15,IF(B16>24,"",INDEX('Class List'!BB$3:BB$1003,'Known Spells'!X59))) ->  | L16: =IF(Engine!T$26="*",'Class List'!BH15,IF(B16>24,"",INDEX('Class List'!BH$3:BH$1003,'Known Spells'!AE59))) ->  | N16: 1 | O16: , | P16: 1
B17: 13 | C17: =IF(Engine!K$26="*",'Class List'!F16,IF(B17>36,"",INDEX('Class List'!F$3:F$1003,'Known Spells'!C16))) -> Virtue | D17: =IF(Engine!L$26="*",'Class List'!L16,IF(B17>42,"",INDEX('Class List'!L$3:L$1003,'Known Spells'!J16))) -> Magic Fang | E17: =IF(Engine!M$26="*",'Class List'!R16,IF(B17>42,"",INDEX('Class List'!R$3:R$1003,'Known Spells'!Q16))) ->  | F17: =IF(Engine!N$26="*",'Class List'!X16,IF(B17>42,"",INDEX('Class List'!X$3:X$1003,'Known Spells'!X16))) ->  | G17: =IF(Engine!O$26="*",'Class List'!AD16,IF(B17>42,"",INDEX('Class List'!AD$3:AD$1003,'Known Spells'!AE16))) ->  | H17: =IF(Engine!P$26="*",'Class List'!AJ16,IF(B17>24,"",INDEX('Class List'!AJ$3:AJ$1003,'Known Spells'!C60))) ->  | I17: =IF(Engine!Q$26="*",'Class List'!AP16,IF(B17>24,"",INDEX('Class List'!AP$3:AP$1003,'Known Spells'!J60))) ->  | J17: =IF(Engine!R$26="*",'Class List'!AV16,IF(B17>24,"",INDEX('Class List'!AV$3:AV$1003,'Known Spells'!Q60))) ->  | K17: =IF(Engine!S$26="*",'Class List'!BB16,IF(B17>24,"",INDEX('Class List'!BB$3:BB$1003,'Known Spells'!X60))) ->  | L17: =IF(Engine!T$26="*",'Class List'!BH16,IF(B17>24,"",INDEX('Class List'!BH$3:BH$1003,'Known Spells'!AE60))) ->  | N17: 1 | P17: 1
B18: 14 | C18: =IF(Engine!K$26="*",'Class List'!F17,IF(B18>36,"",INDEX('Class List'!F$3:F$1003,'Known Spells'!C17))) ->  | D18: =IF(Engine!L$26="*",'Class List'!L17,IF(B18>42,"",INDEX('Class List'!L$3:L$1003,'Known Spells'!J17))) -> Magic Stone | E18: =IF(Engine!M$26="*",'Class List'!R17,IF(B18>42,"",INDEX('Class List'!R$3:R$1003,'Known Spells'!Q17))) ->  | F18: =IF(Engine!N$26="*",'Class List'!X17,IF(B18>42,"",INDEX('Class List'!X$3:X$1003,'Known Spells'!X17))) ->  | G18: =IF(Engine!O$26="*",'Class List'!AD17,IF(B18>42,"",INDEX('Class List'!AD$3:AD$1003,'Known Spells'!AE17))) ->  | H18: =IF(Engine!P$26="*",'Class List'!AJ17,IF(B18>24,"",INDEX('Class List'!AJ$3:AJ$1003,'Known Spells'!C61))) ->  | I18: =IF(Engine!Q$26="*",'Class List'!AP17,IF(B18>24,"",INDEX('Class List'!AP$3:AP$1003,'Known Spells'!J61))) ->  | J18: =IF(Engine!R$26="*",'Class List'!AV17,IF(B18>24,"",INDEX('Class List'!AV$3:AV$1003,'Known Spells'!Q61))) ->  | K18: =IF(Engine!S$26="*",'Class List'!BB17,IF(B18>24,"",INDEX('Class List'!BB$3:BB$1003,'Known Spells'!X61))) ->  | L18: =IF(Engine!T$26="*",'Class List'!BH17,IF(B18>24,"",INDEX('Class List'!BH$3:BH$1003,'Known Spells'!AE61))) ->  | N18: 0 | P18: 1
B19: 15 | C19: =IF(Engine!K$26="*",'Class List'!F18,IF(B19>36,"",INDEX('Class List'!F$3:F$1003,'Known Spells'!C18))) ->  | D19: =IF(Engine!L$26="*",'Class List'!L18,IF(B19>42,"",INDEX('Class List'!L$3:L$1003,'Known Spells'!J18))) -> Obscuring Mist | E19: =IF(Engine!M$26="*",'Class List'!R18,IF(B19>42,"",INDEX('Class List'!R$3:R$1003,'Known Spells'!Q18))) ->  | F19: =IF(Engine!N$26="*",'Class List'!X18,IF(B19>42,"",INDEX('Class List'!X$3:X$1003,'Known Spells'!X18))) ->  | G19: =IF(Engine!O$26="*",'Class List'!AD18,IF(B19>42,"",INDEX('Class List'!AD$3:AD$1003,'Known Spells'!AE18))) ->  | H19: =IF(Engine!P$26="*",'Class List'!AJ18,IF(B19>24,"",INDEX('Class List'!AJ$3:AJ$1003,'Known Spells'!C62))) ->  | I19: =IF(Engine!Q$26="*",'Class List'!AP18,IF(B19>24,"",INDEX('Class List'!AP$3:AP$1003,'Known Spells'!J62))) ->  | J19: =IF(Engine!R$26="*",'Class List'!AV18,IF(B19>24,"",INDEX('Class List'!AV$3:AV$1003,'Known Spells'!Q62))) ->  | K19: =IF(Engine!S$26="*",'Class List'!BB18,IF(B19>24,"",INDEX('Class List'!BB$3:BB$1003,'Known Spells'!X62))) ->  | L19: =IF(Engine!T$26="*",'Class List'!BH18,IF(B19>24,"",INDEX('Class List'!BH$3:BH$1003,'Known Spells'!AE62))) ->  | N19: 0 | P19: 1
B20: 16 | C20: =IF(Engine!K$26="*",'Class List'!F19,IF(B20>36,"",INDEX('Class List'!F$3:F$1003,'Known Spells'!C19))) ->  | D20: =IF(Engine!L$26="*",'Class List'!L19,IF(B20>42,"",INDEX('Class List'!L$3:L$1003,'Known Spells'!J19))) -> Pass without Trace | E20: =IF(Engine!M$26="*",'Class List'!R19,IF(B20>42,"",INDEX('Class List'!R$3:R$1003,'Known Spells'!Q19))) ->  | F20: =IF(Engine!N$26="*",'Class List'!X19,IF(B20>42,"",INDEX('Class List'!X$3:X$1003,'Known Spells'!X19))) ->  | G20: =IF(Engine!O$26="*",'Class List'!AD19,IF(B20>42,"",INDEX('Class List'!AD$3:AD$1003,'Known Spells'!AE19))) ->  | H20: =IF(Engine!P$26="*",'Class List'!AJ19,IF(B20>24,"",INDEX('Class List'!AJ$3:AJ$1003,'Known Spells'!C63))) ->  | I20: =IF(Engine!Q$26="*",'Class List'!AP19,IF(B20>24,"",INDEX('Class List'!AP$3:AP$1003,'Known Spells'!J63))) ->  | J20: =IF(Engine!R$26="*",'Class List'!AV19,IF(B20>24,"",INDEX('Class List'!AV$3:AV$1003,'Known Spells'!Q63))) ->  | K20: =IF(Engine!S$26="*",'Class List'!BB19,IF(B20>24,"",INDEX('Class List'!BB$3:BB$1003,'Known Spells'!X63))) ->  | L20: =IF(Engine!T$26="*",'Class List'!BH19,IF(B20>24,"",INDEX('Class List'!BH$3:BH$1003,'Known Spells'!AE63))) ->  | N20: 0 | P20: 1
B21: 17 | C21: =IF(Engine!K$26="*",'Class List'!F20,IF(B21>36,"",INDEX('Class List'!F$3:F$1003,'Known Spells'!C20))) ->  | D21: =IF(Engine!L$26="*",'Class List'!L20,IF(B21>42,"",INDEX('Class List'!L$3:L$1003,'Known Spells'!J20))) -> Produce Flame | E21: =IF(Engine!M$26="*",'Class List'!R20,IF(B21>42,"",INDEX('Class List'!R$3:R$1003,'Known Spells'!Q20))) ->  | F21: =IF(Engine!N$26="*",'Class List'!X20,IF(B21>42,"",INDEX('Class List'!X$3:X$1003,'Known Spells'!X20))) ->  | G21: =IF(Engine!O$26="*",'Class List'!AD20,IF(B21>42,"",INDEX('Class List'!AD$3:AD$1003,'Known Spells'!AE20))) ->  | H21: =IF(Engine!P$26="*",'Class List'!AJ20,IF(B21>24,"",INDEX('Class List'!AJ$3:AJ$1003,'Known Spells'!C64))) ->  | I21: =IF(Engine!Q$26="*",'Class List'!AP20,IF(B21>24,"",INDEX('Class List'!AP$3:AP$1003,'Known Spells'!J64))) ->  | J21: =IF(Engine!R$26="*",'Class List'!AV20,IF(B21>24,"",INDEX('Class List'!AV$3:AV$1003,'Known Spells'!Q64))) ->  | K21: =IF(Engine!S$26="*",'Class List'!BB20,IF(B21>24,"",INDEX('Class List'!BB$3:BB$1003,'Known Spells'!X64))) ->  | L21: =IF(Engine!T$26="*",'Class List'!BH20,IF(B21>24,"",INDEX('Class List'!BH$3:BH$1003,'Known Spells'!AE64))) ->  | N21: 0 | P21: 1
B22: 18 | C22: =IF(Engine!K$26="*",'Class List'!F21,IF(B22>36,"",INDEX('Class List'!F$3:F$1003,'Known Spells'!C21))) ->  | D22: =IF(Engine!L$26="*",'Class List'!L21,IF(B22>42,"",INDEX('Class List'!L$3:L$1003,'Known Spells'!J21))) -> Shillelagh | E22: =IF(Engine!M$26="*",'Class List'!R21,IF(B22>42,"",INDEX('Class List'!R$3:R$1003,'Known Spells'!Q21))) ->  | F22: =IF(Engine!N$26="*",'Class List'!X21,IF(B22>42,"",INDEX('Class List'!X$3:X$1003,'Known Spells'!X21))) ->  | G22: =IF(Engine!O$26="*",'Class List'!AD21,IF(B22>42,"",INDEX('Class List'!AD$3:AD$1003,'Known Spells'!AE21))) ->  | H22: =IF(Engine!P$26="*",'Class List'!AJ21,IF(B22>24,"",INDEX('Class List'!AJ$3:AJ$1003,'Known Spells'!C65))) ->  | I22: =IF(Engine!Q$26="*",'Class List'!AP21,IF(B22>24,"",INDEX('Class List'!AP$3:AP$1003,'Known Spells'!J65))) ->  | J22: =IF(Engine!R$26="*",'Class List'!AV21,IF(B22>24,"",INDEX('Class List'!AV$3:AV$1003,'Known Spells'!Q65))) ->  | K22: =IF(Engine!S$26="*",'Class List'!BB21,IF(B22>24,"",INDEX('Class List'!BB$3:BB$1003,'Known Spells'!X65))) ->  | L22: =IF(Engine!T$26="*",'Class List'!BH21,IF(B22>24,"",INDEX('Class List'!BH$3:BH$1003,'Known Spells'!AE65))) ->  | N22: 0 | P22: 1
B23: 19 | C23: =IF(Engine!K$26="*",'Class List'!F22,IF(B23>36,"",INDEX('Class List'!F$3:F$1003,'Known Spells'!C22))) ->  | D23: =IF(Engine!L$26="*",'Class List'!L22,IF(B23>42,"",INDEX('Class List'!L$3:L$1003,'Known Spells'!J22))) -> Speak with Animals | E23: =IF(Engine!M$26="*",'Class List'!R22,IF(B23>42,"",INDEX('Class List'!R$3:R$1003,'Known Spells'!Q22))) ->  | F23: =IF(Engine!N$26="*",'Class List'!X22,IF(B23>42,"",INDEX('Class List'!X$3:X$1003,'Known Spells'!X22))) ->  | G23: =IF(Engine!O$26="*",'Class List'!AD22,IF(B23>42,"",INDEX('Class List'!AD$3:AD$1003,'Known Spells'!AE22))) ->  | H23: =IF(Engine!P$26="*",'Class List'!AJ22,IF(B23>24,"",INDEX('Class List'!AJ$3:AJ$1003,'Known Spells'!C66))) ->  | I23: =IF(Engine!Q$26="*",'Class List'!AP22,IF(B23>24,"",INDEX('Class List'!AP$3:AP$1003,'Known Spells'!J66))) ->  | J23: =IF(Engine!R$26="*",'Class List'!AV22,IF(B23>24,"",INDEX('Class List'!AV$3:AV$1003,'Known Spells'!Q66))) ->  | K23: =IF(Engine!S$26="*",'Class List'!BB22,IF(B23>24,"",INDEX('Class List'!BB$3:BB$1003,'Known Spells'!X66))) ->  | L23: =IF(Engine!T$26="*",'Class List'!BH22,IF(B23>24,"",INDEX('Class List'!BH$3:BH$1003,'Known Spells'!AE66))) ->  | N23: 0 | P23: 1
B24: 20 | C24: =IF(Engine!K$26="*",'Class List'!F23,IF(B24>36,"",INDEX('Class List'!F$3:F$1003,'Known Spells'!C23))) ->  | D24: =IF(Engine!L$26="*",'Class List'!L23,IF(B24>42,"",INDEX('Class List'!L$3:L$1003,'Known Spells'!J23))) -> Summon Nature's Ally I | E24: =IF(Engine!M$26="*",'Class List'!R23,IF(B24>42,"",INDEX('Class List'!R$3:R$1003,'Known Spells'!Q23))) ->  | F24: =IF(Engine!N$26="*",'Class List'!X23,IF(B24>42,"",INDEX('Class List'!X$3:X$1003,'Known Spells'!X23))) ->  | G24: =IF(Engine!O$26="*",'Class List'!AD23,IF(B24>42,"",INDEX('Class List'!AD$3:AD$1003,'Known Spells'!AE23))) ->  | H24: =IF(Engine!P$26="*",'Class List'!AJ23,IF(B24>24,"",INDEX('Class List'!AJ$3:AJ$1003,'Known Spells'!C67))) ->  | I24: =IF(Engine!Q$26="*",'Class List'!AP23,IF(B24>24,"",INDEX('Class List'!AP$3:AP$1003,'Known Spells'!J67))) ->  | J24: =IF(Engine!R$26="*",'Class List'!AV23,IF(B24>24,"",INDEX('Class List'!AV$3:AV$1003,'Known Spells'!Q67))) ->  | K24: =IF(Engine!S$26="*",'Class List'!BB23,IF(B24>24,"",INDEX('Class List'!BB$3:BB$1003,'Known Spells'!X67))) ->  | L24: =IF(Engine!T$26="*",'Class List'!BH23,IF(B24>24,"",INDEX('Class List'!BH$3:BH$1003,'Known Spells'!AE67))) ->  | N24: 0 | P24: 1
B25: 21 | C25: =IF(Engine!K$26="*",'Class List'!F24,IF(B25>36,"",INDEX('Class List'!F$3:F$1003,'Known Spells'!C24))) ->  | D25: =IF(Engine!L$26="*",'Class List'!L24,IF(B25>42,"",INDEX('Class List'!L$3:L$1003,'Known Spells'!J24))) ->  | E25: =IF(Engine!M$26="*",'Class List'!R24,IF(B25>42,"",INDEX('Class List'!R$3:R$1003,'Known Spells'!Q24))) ->  | F25: =IF(Engine!N$26="*",'Class List'!X24,IF(B25>42,"",INDEX('Class List'!X$3:X$1003,'Known Spells'!X24))) ->  | G25: =IF(Engine!O$26="*",'Class List'!AD24,IF(B25>42,"",INDEX('Class List'!AD$3:AD$1003,'Known Spells'!AE24))) ->  | H25: =IF(Engine!P$26="*",'Class List'!AJ24,IF(B25>24,"",INDEX('Class List'!AJ$3:AJ$1003,'Known Spells'!C68))) ->  | I25: =IF(Engine!Q$26="*",'Class List'!AP24,IF(B25>24,"",INDEX('Class List'!AP$3:AP$1003,'Known Spells'!J68))) ->  | J25: =IF(Engine!R$26="*",'Class List'!AV24,IF(B25>24,"",INDEX('Class List'!AV$3:AV$1003,'Known Spells'!Q68))) ->  | K25: =IF(Engine!S$26="*",'Class List'!BB24,IF(B25>24,"",INDEX('Class List'!BB$3:BB$1003,'Known Spells'!X68))) ->  | L25: =IF(Engine!T$26="*",'Class List'!BH24,IF(B25>24,"",INDEX('Class List'!BH$3:BH$1003,'Known Spells'!AE68))) ->  | N25: 0 | P25: 0
B26: 22 | C26: =IF(Engine!K$26="*",'Class List'!F25,IF(B26>36,"",INDEX('Class List'!F$3:F$1003,'Known Spells'!C25))) ->  | D26: =IF(Engine!L$26="*",'Class List'!L25,IF(B26>42,"",INDEX('Class List'!L$3:L$1003,'Known Spells'!J25))) ->  | E26: =IF(Engine!M$26="*",'Class List'!R25,IF(B26>42,"",INDEX('Class List'!R$3:R$1003,'Known Spells'!Q25))) ->  | F26: =IF(Engine!N$26="*",'Class List'!X25,IF(B26>42,"",INDEX('Class List'!X$3:X$1003,'Known Spells'!X25))) ->  | G26: =IF(Engine!O$26="*",'Class List'!AD25,IF(B26>42,"",INDEX('Class List'!AD$3:AD$1003,'Known Spells'!AE25))) ->  | H26: =IF(Engine!P$26="*",'Class List'!AJ25,IF(B26>24,"",INDEX('Class List'!AJ$3:AJ$1003,'Known Spells'!C69))) ->  | I26: =IF(Engine!Q$26="*",'Class List'!AP25,IF(B26>24,"",INDEX('Class List'!AP$3:AP$1003,'Known Spells'!J69))) ->  | J26: =IF(Engine!R$26="*",'Class List'!AV25,IF(B26>24,"",INDEX('Class List'!AV$3:AV$1003,'Known Spells'!Q69))) ->  | K26: =IF(Engine!S$26="*",'Class List'!BB25,IF(B26>24,"",INDEX('Class List'!BB$3:BB$1003,'Known Spells'!X69))) ->  | L26: =IF(Engine!T$26="*",'Class List'!BH25,IF(B26>24,"",INDEX('Class List'!BH$3:BH$1003,'Known Spells'!AE69))) ->  | N26: 0 | P26: 0
B27: 23 | C27: =IF(Engine!K$26="*",'Class List'!F26,IF(B27>36,"",INDEX('Class List'!F$3:F$1003,'Known Spells'!C26))) ->  | D27: =IF(Engine!L$26="*",'Class List'!L26,IF(B27>42,"",INDEX('Class List'!L$3:L$1003,'Known Spells'!J26))) ->  | E27: =IF(Engine!M$26="*",'Class List'!R26,IF(B27>42,"",INDEX('Class List'!R$3:R$1003,'Known Spells'!Q26))) ->  | F27: =IF(Engine!N$26="*",'Class List'!X26,IF(B27>42,"",INDEX('Class List'!X$3:X$1003,'Known Spells'!X26))) ->  | G27: =IF(Engine!O$26="*",'Class List'!AD26,IF(B27>42,"",INDEX('Class List'!AD$3:AD$1003,'Known Spells'!AE26))) ->  | H27: =IF(Engine!P$26="*",'Class List'!AJ26,IF(B27>24,"",INDEX('Class List'!AJ$3:AJ$1003,'Known Spells'!C70))) ->  | I27: =IF(Engine!Q$26="*",'Class List'!AP26,IF(B27>24,"",INDEX('Class List'!AP$3:AP$1003,'Known Spells'!J70))) ->  | J27: =IF(Engine!R$26="*",'Class List'!AV26,IF(B27>24,"",INDEX('Class List'!AV$3:AV$1003,'Known Spells'!Q70))) ->  | K27: =IF(Engine!S$26="*",'Class List'!BB26,IF(B27>24,"",INDEX('Class List'!BB$3:BB$1003,'Known Spells'!X70))) ->  | L27: =IF(Engine!T$26="*",'Class List'!BH26,IF(B27>24,"",INDEX('Class List'!BH$3:BH$1003,'Known Spells'!AE70))) ->  | N27: 0 | P27: 0
B28: 24 | C28: =IF(Engine!K$26="*",'Class List'!F27,IF(B28>36,"",INDEX('Class List'!F$3:F$1003,'Known Spells'!C27))) ->  | D28: =IF(Engine!L$26="*",'Class List'!L27,IF(B28>42,"",INDEX('Class List'!L$3:L$1003,'Known Spells'!J27))) ->  | E28: =IF(Engine!M$26="*",'Class List'!R27,IF(B28>42,"",INDEX('Class List'!R$3:R$1003,'Known Spells'!Q27))) ->  | F28: =IF(Engine!N$26="*",'Class List'!X27,IF(B28>42,"",INDEX('Class List'!X$3:X$1003,'Known Spells'!X27))) ->  | G28: =IF(Engine!O$26="*",'Class List'!AD27,IF(B28>42,"",INDEX('Class List'!AD$3:AD$1003,'Known Spells'!AE27))) ->  | H28: =IF(Engine!P$26="*",'Class List'!AJ27,IF(B28>24,"",INDEX('Class List'!AJ$3:AJ$1003,'Known Spells'!C71))) ->  | I28: =IF(Engine!Q$26="*",'Class List'!AP27,IF(B28>24,"",INDEX('Class List'!AP$3:AP$1003,'Known Spells'!J71))) ->  | J28: =IF(Engine!R$26="*",'Class List'!AV27,IF(B28>24,"",INDEX('Class List'!AV$3:AV$1003,'Known Spells'!Q71))) ->  | K28: =IF(Engine!S$26="*",'Class List'!BB27,IF(B28>24,"",INDEX('Class List'!BB$3:BB$1003,'Known Spells'!X71))) ->  | L28: =IF(Engine!T$26="*",'Class List'!BH27,IF(B28>24,"",INDEX('Class List'!BH$3:BH$1003,'Known Spells'!AE71))) ->  | N28: 0 | P28: 0
B29: 25 | C29: =IF(Engine!K$26="*",'Class List'!F28,IF(B29>36,"",INDEX('Class List'!F$3:F$1003,'Known Spells'!C28))) ->  | D29: =IF(Engine!L$26="*",'Class List'!L28,IF(B29>42,"",INDEX('Class List'!L$3:L$1003,'Known Spells'!J28))) ->  | E29: =IF(Engine!M$26="*",'Class List'!R28,IF(B29>42,"",INDEX('Class List'!R$3:R$1003,'Known Spells'!Q28))) ->  | F29: =IF(Engine!N$26="*",'Class List'!X28,IF(B29>42,"",INDEX('Class List'!X$3:X$1003,'Known Spells'!X28))) ->  | G29: =IF(Engine!O$26="*",'Class List'!AD28,IF(B29>42,"",INDEX('Class List'!AD$3:AD$1003,'Known Spells'!AE28))) ->  | H29: =IF(Engine!P$26="*",'Class List'!AJ28,IF(B29>24,"",INDEX('Class List'!AJ$3:AJ$1003,'Known Spells'!C72))) ->  | I29: =IF(Engine!Q$26="*",'Class List'!AP28,IF(B29>24,"",INDEX('Class List'!AP$3:AP$1003,'Known Spells'!J72))) ->  | J29: =IF(Engine!R$26="*",'Class List'!AV28,IF(B29>24,"",INDEX('Class List'!AV$3:AV$1003,'Known Spells'!Q72))) ->  | K29: =IF(Engine!S$26="*",'Class List'!BB28,IF(B29>24,"",INDEX('Class List'!BB$3:BB$1003,'Known Spells'!X72))) ->  | L29: =IF(Engine!T$26="*",'Class List'!BH28,IF(B29>24,"",INDEX('Class List'!BH$3:BH$1003,'Known Spells'!AE72))) ->  | N29: 0 | P29: 0
B30: 26 | C30: =IF(Engine!K$26="*",'Class List'!F29,IF(B30>36,"",INDEX('Class List'!F$3:F$1003,'Known Spells'!C29))) ->  | D30: =IF(Engine!L$26="*",'Class List'!L29,IF(B30>42,"",INDEX('Class List'!L$3:L$1003,'Known Spells'!J29))) ->  | E30: =IF(Engine!M$26="*",'Class List'!R29,IF(B30>42,"",INDEX('Class List'!R$3:R$1003,'Known Spells'!Q29))) ->  | F30: =IF(Engine!N$26="*",'Class List'!X29,IF(B30>42,"",INDEX('Class List'!X$3:X$1003,'Known Spells'!X29))) ->  | G30: =IF(Engine!O$26="*",'Class List'!AD29,IF(B30>42,"",INDEX('Class List'!AD$3:AD$1003,'Known Spells'!AE29))) ->  | H30: =IF(Engine!P$26="*",'Class List'!AJ29,IF(B30>24,"",INDEX('Class List'!AJ$3:AJ$1003,'Known Spells'!C73))) ->  | I30: =IF(Engine!Q$26="*",'Class List'!AP29,IF(B30>24,"",INDEX('Class List'!AP$3:AP$1003,'Known Spells'!J73))) ->  | J30: =IF(Engine!R$26="*",'Class List'!AV29,IF(B30>24,"",INDEX('Class List'!AV$3:AV$1003,'Known Spells'!Q73))) ->  | K30: =IF(Engine!S$26="*",'Class List'!BB29,IF(B30>24,"",INDEX('Class List'!BB$3:BB$1003,'Known Spells'!X73))) ->  | L30: =IF(Engine!T$26="*",'Class List'!BH29,IF(B30>24,"",INDEX('Class List'!BH$3:BH$1003,'Known Spells'!AE73))) ->  | N30: 0 | P30: 0
B31: 27 | C31: =IF(Engine!K$26="*",'Class List'!F30,IF(B31>36,"",INDEX('Class List'!F$3:F$1003,'Known Spells'!C30))) ->  | D31: =IF(Engine!L$26="*",'Class List'!L30,IF(B31>42,"",INDEX('Class List'!L$3:L$1003,'Known Spells'!J30))) ->  | E31: =IF(Engine!M$26="*",'Class List'!R30,IF(B31>42,"",INDEX('Class List'!R$3:R$1003,'Known Spells'!Q30))) ->  | F31: =IF(Engine!N$26="*",'Class List'!X30,IF(B31>42,"",INDEX('Class List'!X$3:X$1003,'Known Spells'!X30))) ->  | G31: =IF(Engine!O$26="*",'Class List'!AD30,IF(B31>42,"",INDEX('Class List'!AD$3:AD$1003,'Known Spells'!AE30))) ->  | H31: =IF(Engine!P$26="*",'Class List'!AJ30,IF(B31>24,"",INDEX('Class List'!AJ$3:AJ$1003,'Known Spells'!C74))) ->  | I31: =IF(Engine!Q$26="*",'Class List'!AP30,IF(B31>24,"",INDEX('Class List'!AP$3:AP$1003,'Known Spells'!J74))) ->  | J31: =IF(Engine!R$26="*",'Class List'!AV30,IF(B31>24,"",INDEX('Class List'!AV$3:AV$1003,'Known Spells'!Q74))) ->  | K31: =IF(Engine!S$26="*",'Class List'!BB30,IF(B31>24,"",INDEX('Class List'!BB$3:BB$1003,'Known Spells'!X74))) ->  | L31: =IF(Engine!T$26="*",'Class List'!BH30,IF(B31>24,"",INDEX('Class List'!BH$3:BH$1003,'Known Spells'!AE74))) ->  | N31: 0 | P31: 0
B32: 28 | C32: =IF(Engine!K$26="*",'Class List'!F31,IF(B32>36,"",INDEX('Class List'!F$3:F$1003,'Known Spells'!C31))) ->  | D32: =IF(Engine!L$26="*",'Class List'!L31,IF(B32>42,"",INDEX('Class List'!L$3:L$1003,'Known Spells'!J31))) ->  | E32: =IF(Engine!M$26="*",'Class List'!R31,IF(B32>42,"",INDEX('Class List'!R$3:R$1003,'Known Spells'!Q31))) ->  | F32: =IF(Engine!N$26="*",'Class List'!X31,IF(B32>42,"",INDEX('Class List'!X$3:X$1003,'Known Spells'!X31))) ->  | G32: =IF(Engine!O$26="*",'Class List'!AD31,IF(B32>42,"",INDEX('Class List'!AD$3:AD$1003,'Known Spells'!AE31))) ->  | H32: =IF(Engine!P$26="*",'Class List'!AJ31,IF(B32>24,"",INDEX('Class List'!AJ$3:AJ$1003,'Known Spells'!C75))) ->  | I32: =IF(Engine!Q$26="*",'Class List'!AP31,IF(B32>24,"",INDEX('Class List'!AP$3:AP$1003,'Known Spells'!J75))) ->  | J32: =IF(Engine!R$26="*",'Class List'!AV31,IF(B32>24,"",INDEX('Class List'!AV$3:AV$1003,'Known Spells'!Q75))) ->  | K32: =IF(Engine!S$26="*",'Class List'!BB31,IF(B32>24,"",INDEX('Class List'!BB$3:BB$1003,'Known Spells'!X75))) ->  | L32: =IF(Engine!T$26="*",'Class List'!BH31,IF(B32>24,"",INDEX('Class List'!BH$3:BH$1003,'Known Spells'!AE75))) ->  | N32: 0 | P32: 0
B33: 29 | C33: =IF(Engine!K$26="*",'Class List'!F32,IF(B33>36,"",INDEX('Class List'!F$3:F$1003,'Known Spells'!C32))) ->  | D33: =IF(Engine!L$26="*",'Class List'!L32,IF(B33>42,"",INDEX('Class List'!L$3:L$1003,'Known Spells'!J32))) ->  | E33: =IF(Engine!M$26="*",'Class List'!R32,IF(B33>42,"",INDEX('Class List'!R$3:R$1003,'Known Spells'!Q32))) ->  | F33: =IF(Engine!N$26="*",'Class List'!X32,IF(B33>42,"",INDEX('Class List'!X$3:X$1003,'Known Spells'!X32))) ->  | G33: =IF(Engine!O$26="*",'Class List'!AD32,IF(B33>42,"",INDEX('Class List'!AD$3:AD$1003,'Known Spells'!AE32))) ->  | H33: =IF(Engine!P$26="*",'Class List'!AJ32,IF(B33>24,"",INDEX('Class List'!AJ$3:AJ$1003,'Known Spells'!C76))) ->  | I33: =IF(Engine!Q$26="*",'Class List'!AP32,IF(B33>24,"",INDEX('Class List'!AP$3:AP$1003,'Known Spells'!J76))) ->  | J33: =IF(Engine!R$26="*",'Class List'!AV32,IF(B33>24,"",INDEX('Class List'!AV$3:AV$1003,'Known Spells'!Q76))) ->  | K33: =IF(Engine!S$26="*",'Class List'!BB32,IF(B33>24,"",INDEX('Class List'!BB$3:BB$1003,'Known Spells'!X76))) ->  | L33: =IF(Engine!T$26="*",'Class List'!BH32,IF(B33>24,"",INDEX('Class List'!BH$3:BH$1003,'Known Spells'!AE76))) ->  | N33: 0 | P33: 0
B34: 30 | C34: =IF(Engine!K$26="*",'Class List'!F33,IF(B34>36,"",INDEX('Class List'!F$3:F$1003,'Known Spells'!C33))) ->  | D34: =IF(Engine!L$26="*",'Class List'!L33,IF(B34>42,"",INDEX('Class List'!L$3:L$1003,'Known Spells'!J33))) ->  | E34: =IF(Engine!M$26="*",'Class List'!R33,IF(B34>42,"",INDEX('Class List'!R$3:R$1003,'Known Spells'!Q33))) ->  | F34: =IF(Engine!N$26="*",'Class List'!X33,IF(B34>42,"",INDEX('Class List'!X$3:X$1003,'Known Spells'!X33))) ->  | G34: =IF(Engine!O$26="*",'Class List'!AD33,IF(B34>42,"",INDEX('Class List'!AD$3:AD$1003,'Known Spells'!AE33))) ->  | H34: =IF(Engine!P$26="*",'Class List'!AJ33,IF(B34>24,"",INDEX('Class List'!AJ$3:AJ$1003,'Known Spells'!C77))) ->  | I34: =IF(Engine!Q$26="*",'Class List'!AP33,IF(B34>24,"",INDEX('Class List'!AP$3:AP$1003,'Known Spells'!J77))) ->  | J34: =IF(Engine!R$26="*",'Class List'!AV33,IF(B34>24,"",INDEX('Class List'!AV$3:AV$1003,'Known Spells'!Q77))) ->  | K34: =IF(Engine!S$26="*",'Class List'!BB33,IF(B34>24,"",INDEX('Class List'!BB$3:BB$1003,'Known Spells'!X77))) ->  | L34: =IF(Engine!T$26="*",'Class List'!BH33,IF(B34>24,"",INDEX('Class List'!BH$3:BH$1003,'Known Spells'!AE77))) ->  | N34: 0 | P34: 0
B35: 31 | C35: =IF(Engine!K$26="*",'Class List'!F34,IF(B35>36,"",INDEX('Class List'!F$3:F$1003,'Known Spells'!C34))) ->  | D35: =IF(Engine!L$26="*",'Class List'!L34,IF(B35>42,"",INDEX('Class List'!L$3:L$1003,'Known Spells'!J34))) ->  | E35: =IF(Engine!M$26="*",'Class List'!R34,IF(B35>42,"",INDEX('Class List'!R$3:R$1003,'Known Spells'!Q34))) ->  | F35: =IF(Engine!N$26="*",'Class List'!X34,IF(B35>42,"",INDEX('Class List'!X$3:X$1003,'Known Spells'!X34))) ->  | G35: =IF(Engine!O$26="*",'Class List'!AD34,IF(B35>42,"",INDEX('Class List'!AD$3:AD$1003,'Known Spells'!AE34))) ->  | H35: =IF(Engine!P$26="*",'Class List'!AJ34,IF(B35>24,"",INDEX('Class List'!AJ$3:AJ$1003,'Known Spells'!C78))) ->  | I35: =IF(Engine!Q$26="*",'Class List'!AP34,IF(B35>24,"",INDEX('Class List'!AP$3:AP$1003,'Known Spells'!J78))) ->  | J35: =IF(Engine!R$26="*",'Class List'!AV34,IF(B35>24,"",INDEX('Class List'!AV$3:AV$1003,'Known Spells'!Q78))) ->  | K35: =IF(Engine!S$26="*",'Class List'!BB34,IF(B35>24,"",INDEX('Class List'!BB$3:BB$1003,'Known Spells'!X78))) ->  | L35: =IF(Engine!T$26="*",'Class List'!BH34,IF(B35>24,"",INDEX('Class List'!BH$3:BH$1003,'Known Spells'!AE78))) ->  | N35: 0 | P35: 0
B36: 32 | C36: =IF(Engine!K$26="*",'Class List'!F35,IF(B36>36,"",INDEX('Class List'!F$3:F$1003,'Known Spells'!C35))) ->  | D36: =IF(Engine!L$26="*",'Class List'!L35,IF(B36>42,"",INDEX('Class List'!L$3:L$1003,'Known Spells'!J35))) ->  | E36: =IF(Engine!M$26="*",'Class List'!R35,IF(B36>42,"",INDEX('Class List'!R$3:R$1003,'Known Spells'!Q35))) ->  | F36: =IF(Engine!N$26="*",'Class List'!X35,IF(B36>42,"",INDEX('Class List'!X$3:X$1003,'Known Spells'!X35))) ->  | G36: =IF(Engine!O$26="*",'Class List'!AD35,IF(B36>42,"",INDEX('Class List'!AD$3:AD$1003,'Known Spells'!AE35))) ->  | H36: =IF(Engine!P$26="*",'Class List'!AJ35,IF(B36>24,"",INDEX('Class List'!AJ$3:AJ$1003,'Known Spells'!C79))) ->  | I36: =IF(Engine!Q$26="*",'Class List'!AP35,IF(B36>24,"",INDEX('Class List'!AP$3:AP$1003,'Known Spells'!J79))) ->  | J36: =IF(Engine!R$26="*",'Class List'!AV35,IF(B36>24,"",INDEX('Class List'!AV$3:AV$1003,'Known Spells'!Q79))) ->  | K36: =IF(Engine!S$26="*",'Class List'!BB35,IF(B36>24,"",INDEX('Class List'!BB$3:BB$1003,'Known Spells'!X79))) ->  | L36: =IF(Engine!T$26="*",'Class List'!BH35,IF(B36>24,"",INDEX('Class List'!BH$3:BH$1003,'Known Spells'!AE79))) ->  | N36: 0 | P36: 0
B37: 33 | C37: =IF(Engine!K$26="*",'Class List'!F36,IF(B37>36,"",INDEX('Class List'!F$3:F$1003,'Known Spells'!C36))) ->  | D37: =IF(Engine!L$26="*",'Class List'!L36,IF(B37>42,"",INDEX('Class List'!L$3:L$1003,'Known Spells'!J36))) ->  | E37: =IF(Engine!M$26="*",'Class List'!R36,IF(B37>42,"",INDEX('Class List'!R$3:R$1003,'Known Spells'!Q36))) ->  | F37: =IF(Engine!N$26="*",'Class List'!X36,IF(B37>42,"",INDEX('Class List'!X$3:X$1003,'Known Spells'!X36))) ->  | G37: =IF(Engine!O$26="*",'Class List'!AD36,IF(B37>42,"",INDEX('Class List'!AD$3:AD$1003,'Known Spells'!AE36))) ->  | H37: =IF(Engine!P$26="*",'Class List'!AJ36,IF(B37>24,"",INDEX('Class List'!AJ$3:AJ$1003,'Known Spells'!C80))) ->  | I37: =IF(Engine!Q$26="*",'Class List'!AP36,IF(B37>24,"",INDEX('Class List'!AP$3:AP$1003,'Known Spells'!J80))) ->  | J37: =IF(Engine!R$26="*",'Class List'!AV36,IF(B37>24,"",INDEX('Class List'!AV$3:AV$1003,'Known Spells'!Q80))) ->  | K37: =IF(Engine!S$26="*",'Class List'!BB36,IF(B37>24,"",INDEX('Class List'!BB$3:BB$1003,'Known Spells'!X80))) ->  | L37: =IF(Engine!T$26="*",'Class List'!BH36,IF(B37>24,"",INDEX('Class List'!BH$3:BH$1003,'Known Spells'!AE80))) ->  | N37: 0 | O37: =IF(C37="","",IF(SUM(N38:N87)>0,", ","")) ->  | P37: 0 | Q37: =IF(E37="","",IF(SUM(P38:P87)>0,", ","")) -> 
B38: 34 | C38: =IF(Engine!K$26="*",'Class List'!F37,IF(B38>36,"",INDEX('Class List'!F$3:F$1003,'Known Spells'!C37))) ->  | D38: =IF(Engine!L$26="*",'Class List'!L37,IF(B38>42,"",INDEX('Class List'!L$3:L$1003,'Known Spells'!J37))) ->  | E38: =IF(Engine!M$26="*",'Class List'!R37,IF(B38>42,"",INDEX('Class List'!R$3:R$1003,'Known Spells'!Q37))) ->  | F38: =IF(Engine!N$26="*",'Class List'!X37,IF(B38>42,"",INDEX('Class List'!X$3:X$1003,'Known Spells'!X37))) ->  | G38: =IF(Engine!O$26="*",'Class List'!AD37,IF(B38>42,"",INDEX('Class List'!AD$3:AD$1003,'Known Spells'!AE37))) ->  | H38: =IF(Engine!P$26="*",'Class List'!AJ37,IF(B38>24,"",INDEX('Class List'!AJ$3:AJ$1003,'Known Spells'!C81))) ->  | I38: =IF(Engine!Q$26="*",'Class List'!AP37,IF(B38>24,"",INDEX('Class List'!AP$3:AP$1003,'Known Spells'!J81))) ->  | J38: =IF(Engine!R$26="*",'Class List'!AV37,IF(B38>24,"",INDEX('Class List'!AV$3:AV$1003,'Known Spells'!Q81))) ->  | K38: =IF(Engine!S$26="*",'Class List'!BB37,IF(B38>24,"",INDEX('Class List'!BB$3:BB$1003,'Known Spells'!X81))) ->  | L38: =IF(Engine!T$26="*",'Class List'!BH37,IF(B38>24,"",INDEX('Class List'!BH$3:BH$1003,'Known Spells'!AE81))) ->  | N38: 0 | P38: 0
B39: 35 | C39: =IF(Engine!K$26="*",'Class List'!F38,IF(B39>36,"",INDEX('Class List'!F$3:F$1003,'Known Spells'!C38))) ->  | D39: =IF(Engine!L$26="*",'Class List'!L38,IF(B39>42,"",INDEX('Class List'!L$3:L$1003,'Known Spells'!J38))) ->  | E39: =IF(Engine!M$26="*",'Class List'!R38,IF(B39>42,"",INDEX('Class List'!R$3:R$1003,'Known Spells'!Q38))) ->  | F39: =IF(Engine!N$26="*",'Class List'!X38,IF(B39>42,"",INDEX('Class List'!X$3:X$1003,'Known Spells'!X38))) ->  | G39: =IF(Engine!O$26="*",'Class List'!AD38,IF(B39>42,"",INDEX('Class List'!AD$3:AD$1003,'Known Spells'!AE38))) ->  | H39: =IF(Engine!P$26="*",'Class List'!AJ38,IF(B39>24,"",INDEX('Class List'!AJ$3:AJ$1003,'Known Spells'!C82))) ->  | I39: =IF(Engine!Q$26="*",'Class List'!AP38,IF(B39>24,"",INDEX('Class List'!AP$3:AP$1003,'Known Spells'!J82))) ->  | J39: =IF(Engine!R$26="*",'Class List'!AV38,IF(B39>24,"",INDEX('Class List'!AV$3:AV$1003,'Known Spells'!Q82))) ->  | K39: =IF(Engine!S$26="*",'Class List'!BB38,IF(B39>24,"",INDEX('Class List'!BB$3:BB$1003,'Known Spells'!X82))) ->  | L39: =IF(Engine!T$26="*",'Class List'!BH38,IF(B39>24,"",INDEX('Class List'!BH$3:BH$1003,'Known Spells'!AE82))) ->  | N39: 0 | P39: 0
B40: 36 | C40: =IF(Engine!K$26="*",'Class List'!F39,IF(B40>36,"",INDEX('Class List'!F$3:F$1003,'Known Spells'!C39))) ->  | D40: =IF(Engine!L$26="*",'Class List'!L39,IF(B40>42,"",INDEX('Class List'!L$3:L$1003,'Known Spells'!J39))) ->  | E40: =IF(Engine!M$26="*",'Class List'!R39,IF(B40>42,"",INDEX('Class List'!R$3:R$1003,'Known Spells'!Q39))) ->  | F40: =IF(Engine!N$26="*",'Class List'!X39,IF(B40>42,"",INDEX('Class List'!X$3:X$1003,'Known Spells'!X39))) ->  | G40: =IF(Engine!O$26="*",'Class List'!AD39,IF(B40>42,"",INDEX('Class List'!AD$3:AD$1003,'Known Spells'!AE39))) ->  | H40: =IF(Engine!P$26="*",'Class List'!AJ39,IF(B40>24,"",INDEX('Class List'!AJ$3:AJ$1003,'Known Spells'!C83))) ->  | I40: =IF(Engine!Q$26="*",'Class List'!AP39,IF(B40>24,"",INDEX('Class List'!AP$3:AP$1003,'Known Spells'!J83))) ->  | J40: =IF(Engine!R$26="*",'Class List'!AV39,IF(B40>24,"",INDEX('Class List'!AV$3:AV$1003,'Known Spells'!Q83))) ->  | K40: =IF(Engine!S$26="*",'Class List'!BB39,IF(B40>24,"",INDEX('Class List'!BB$3:BB$1003,'Known Spells'!X83))) ->  | L40: =IF(Engine!T$26="*",'Class List'!BH39,IF(B40>24,"",INDEX('Class List'!BH$3:BH$1003,'Known Spells'!AE83))) ->  | N40: 0 | P40: 0
B41: 37 | C41: =IF(Engine!K$26="*",'Class List'!F40,IF(B41>36,"",INDEX('Class List'!F$3:F$1003,'Known Spells'!C46))) ->  | D41: =IF(Engine!L$26="*",'Class List'!L40,IF(B41>42,"",INDEX('Class List'!L$3:L$1003,'Known Spells'!J40))) ->  | E41: =IF(Engine!M$26="*",'Class List'!R40,IF(B41>42,"",INDEX('Class List'!R$3:R$1003,'Known Spells'!Q40))) ->  | F41: =IF(Engine!N$26="*",'Class List'!X40,IF(B41>42,"",INDEX('Class List'!X$3:X$1003,'Known Spells'!X40))) ->  | G41: =IF(Engine!O$26="*",'Class List'!AD40,IF(B41>42,"",INDEX('Class List'!AD$3:AD$1003,'Known Spells'!AE40))) ->  | H41: =IF(Engine!P$26="*",'Class List'!AJ40,IF(B41>24,"",INDEX('Class List'!AJ$3:AJ$1003,'Known Spells'!C84))) ->  | I41: =IF(Engine!Q$26="*",'Class List'!AP40,IF(B41>24,"",INDEX('Class List'!AP$3:AP$1003,'Known Spells'!J84))) ->  | J41: =IF(Engine!R$26="*",'Class List'!AV40,IF(B41>24,"",INDEX('Class List'!AV$3:AV$1003,'Known Spells'!Q84))) ->  | K41: =IF(Engine!S$26="*",'Class List'!BB40,IF(B41>24,"",INDEX('Class List'!BB$3:BB$1003,'Known Spells'!X84))) ->  | L41: =IF(Engine!T$26="*",'Class List'!BH40,IF(B41>24,"",INDEX('Class List'!BH$3:BH$1003,'Known Spells'!AE84))) ->  | N41: 0 | P41: 0
B42: 38 | C42: =IF(Engine!K$26="*",'Class List'!F41,IF(B42>36,"",INDEX('Class List'!F$3:F$1003,'Known Spells'!#REF!))) ->  | D42: =IF(Engine!L$26="*",'Class List'!L41,IF(B42>42,"",INDEX('Class List'!L$3:L$1003,'Known Spells'!J41))) ->  | E42: =IF(Engine!M$26="*",'Class List'!R41,IF(B42>42,"",INDEX('Class List'!R$3:R$1003,'Known Spells'!Q41))) ->  | F42: =IF(Engine!N$26="*",'Class List'!X41,IF(B42>42,"",INDEX('Class List'!X$3:X$1003,'Known Spells'!X41))) ->  | G42: =IF(Engine!O$26="*",'Class List'!AD41,IF(B42>42,"",INDEX('Class List'!AD$3:AD$1003,'Known Spells'!AE41))) ->  | H42: =IF(Engine!P$26="*",'Class List'!AJ41,IF(B42>24,"",INDEX('Class List'!AJ$3:AJ$1003,'Known Spells'!C85))) ->  | I42: =IF(Engine!Q$26="*",'Class List'!AP41,IF(B42>24,"",INDEX('Class List'!AP$3:AP$1003,'Known Spells'!J85))) ->  | J42: =IF(Engine!R$26="*",'Class List'!AV41,IF(B42>24,"",INDEX('Class List'!AV$3:AV$1003,'Known Spells'!Q85))) ->  | K42: =IF(Engine!S$26="*",'Class List'!BB41,IF(B42>24,"",INDEX('Class List'!BB$3:BB$1003,'Known Spells'!X85))) ->  | L42: =IF(Engine!T$26="*",'Class List'!BH41,IF(B42>24,"",INDEX('Class List'!BH$3:BH$1003,'Known Spells'!AE85))) ->  | N42: 0 | P42: 0
B43: 39 | C43: =IF(Engine!K$26="*",'Class List'!F42,IF(B43>36,"",INDEX('Class List'!F$3:F$1003,'Known Spells'!C47))) ->  | D43: =IF(Engine!L$26="*",'Class List'!L42,IF(B43>42,"",INDEX('Class List'!L$3:L$1003,'Known Spells'!J42))) ->  | E43: =IF(Engine!M$26="*",'Class List'!R42,IF(B43>42,"",INDEX('Class List'!R$3:R$1003,'Known Spells'!Q42))) ->  | F43: =IF(Engine!N$26="*",'Class List'!X42,IF(B43>42,"",INDEX('Class List'!X$3:X$1003,'Known Spells'!X42))) ->  | G43: =IF(Engine!O$26="*",'Class List'!AD42,IF(B43>42,"",INDEX('Class List'!AD$3:AD$1003,'Known Spells'!AE42))) ->  | H43: =IF(Engine!P$26="*",'Class List'!AJ42,IF(B43>24,"",INDEX('Class List'!AJ$3:AJ$1003,'Known Spells'!C86))) ->  | I43: =IF(Engine!Q$26="*",'Class List'!AP42,IF(B43>24,"",INDEX('Class List'!AP$3:AP$1003,'Known Spells'!J86))) ->  | J43: =IF(Engine!R$26="*",'Class List'!AV42,IF(B43>24,"",INDEX('Class List'!AV$3:AV$1003,'Known Spells'!Q86))) ->  | K43: =IF(Engine!S$26="*",'Class List'!BB42,IF(B43>24,"",INDEX('Class List'!BB$3:BB$1003,'Known Spells'!X86))) ->  | L43: =IF(Engine!T$26="*",'Class List'!BH42,IF(B43>24,"",INDEX('Class List'!BH$3:BH$1003,'Known Spells'!AE86))) ->  | N43: 0 | P43: 0
B44: 40 | C44: =IF(Engine!K$26="*",'Class List'!F43,IF(B44>36,"",INDEX('Class List'!F$3:F$1003,'Known Spells'!C48))) ->  | D44: =IF(Engine!L$26="*",'Class List'!L43,IF(B44>42,"",INDEX('Class List'!L$3:L$1003,'Known Spells'!J43))) ->  | E44: =IF(Engine!M$26="*",'Class List'!R43,IF(B44>42,"",INDEX('Class List'!R$3:R$1003,'Known Spells'!Q43))) ->  | F44: =IF(Engine!N$26="*",'Class List'!X43,IF(B44>42,"",INDEX('Class List'!X$3:X$1003,'Known Spells'!X43))) ->  | G44: =IF(Engine!O$26="*",'Class List'!AD43,IF(B44>42,"",INDEX('Class List'!AD$3:AD$1003,'Known Spells'!AE43))) ->  | H44: =IF(Engine!P$26="*",'Class List'!AJ43,IF(B44>24,"",INDEX('Class List'!AJ$3:AJ$1003,'Known Spells'!C87))) ->  | I44: =IF(Engine!Q$26="*",'Class List'!AP43,IF(B44>24,"",INDEX('Class List'!AP$3:AP$1003,'Known Spells'!J87))) ->  | J44: =IF(Engine!R$26="*",'Class List'!AV43,IF(B44>24,"",INDEX('Class List'!AV$3:AV$1003,'Known Spells'!Q87))) ->  | K44: =IF(Engine!S$26="*",'Class List'!BB43,IF(B44>24,"",INDEX('Class List'!BB$3:BB$1003,'Known Spells'!X87))) ->  | L44: =IF(Engine!T$26="*",'Class List'!BH43,IF(B44>24,"",INDEX('Class List'!BH$3:BH$1003,'Known Spells'!AE87))) ->  | N44: 0 | P44: 0
B45: 41 | C45: =IF(Engine!K$26="*",'Class List'!F44,IF(B45>36,"",INDEX('Class List'!F$3:F$1003,'Known Spells'!C49))) ->  | D45: =IF(Engine!L$26="*",'Class List'!L44,IF(B45>42,"",INDEX('Class List'!L$3:L$1003,'Known Spells'!J44))) ->  | E45: =IF(Engine!M$26="*",'Class List'!R44,IF(B45>42,"",INDEX('Class List'!R$3:R$1003,'Known Spells'!Q44))) ->  | F45: =IF(Engine!N$26="*",'Class List'!X44,IF(B45>42,"",INDEX('Class List'!X$3:X$1003,'Known Spells'!X44))) ->  | G45: =IF(Engine!O$26="*",'Class List'!AD44,IF(B45>42,"",INDEX('Class List'!AD$3:AD$1003,'Known Spells'!AE44))) ->  | H45: =IF(Engine!P$26="*",'Class List'!AJ44,IF(B45>24,"",INDEX('Class List'!AJ$3:AJ$1003,'Known Spells'!C88))) ->  | I45: =IF(Engine!Q$26="*",'Class List'!AP44,IF(B45>24,"",INDEX('Class List'!AP$3:AP$1003,'Known Spells'!J88))) ->  | J45: =IF(Engine!R$26="*",'Class List'!AV44,IF(B45>24,"",INDEX('Class List'!AV$3:AV$1003,'Known Spells'!Q88))) ->  | K45: =IF(Engine!S$26="*",'Class List'!BB44,IF(B45>24,"",INDEX('Class List'!BB$3:BB$1003,'Known Spells'!X88))) ->  | L45: =IF(Engine!T$26="*",'Class List'!BH44,IF(B45>24,"",INDEX('Class List'!BH$3:BH$1003,'Known Spells'!AE88))) ->  | N45: 0 | P45: 0
B46: 42 | C46: =IF(Engine!K$26="*",'Class List'!F45,IF(B46>36,"",INDEX('Class List'!F$3:F$1003,'Known Spells'!C50))) ->  | D46: =IF(Engine!L$26="*",'Class List'!L45,IF(B46>42,"",INDEX('Class List'!L$3:L$1003,'Known Spells'!J45))) ->  | E46: =IF(Engine!M$26="*",'Class List'!R45,IF(B46>42,"",INDEX('Class List'!R$3:R$1003,'Known Spells'!Q45))) ->  | F46: =IF(Engine!N$26="*",'Class List'!X45,IF(B46>42,"",INDEX('Class List'!X$3:X$1003,'Known Spells'!X45))) ->  | G46: =IF(Engine!O$26="*",'Class List'!AD45,IF(B46>42,"",INDEX('Class List'!AD$3:AD$1003,'Known Spells'!AE45))) ->  | H46: =IF(Engine!P$26="*",'Class List'!AJ45,IF(B46>24,"",INDEX('Class List'!AJ$3:AJ$1003,'Known Spells'!C89))) ->  | I46: =IF(Engine!Q$26="*",'Class List'!AP45,IF(B46>24,"",INDEX('Class List'!AP$3:AP$1003,'Known Spells'!J89))) ->  | J46: =IF(Engine!R$26="*",'Class List'!AV45,IF(B46>24,"",INDEX('Class List'!AV$3:AV$1003,'Known Spells'!Q89))) ->  | K46: =IF(Engine!S$26="*",'Class List'!BB45,IF(B46>24,"",INDEX('Class List'!BB$3:BB$1003,'Known Spells'!X89))) ->  | L46: =IF(Engine!T$26="*",'Class List'!BH45,IF(B46>24,"",INDEX('Class List'!BH$3:BH$1003,'Known Spells'!AE89))) ->  | N46: 0 | P46: 0
B47: 43 | C47: =IF(Engine!K$26="*",'Class List'!F46,IF(B47>36,"",INDEX('Class List'!F$3:F$1003,'Known Spells'!C51))) ->  | D47: =IF(Engine!L$26="*",'Class List'!L46,IF(B47>42,"",INDEX('Class List'!L$3:L$1003,'Known Spells'!J46))) ->  | E47: =IF(Engine!M$26="*",'Class List'!R46,IF(B47>42,"",INDEX('Class List'!R$3:R$1003,'Known Spells'!Q46))) ->  | F47: =IF(Engine!N$26="*",'Class List'!X46,IF(B47>42,"",INDEX('Class List'!X$3:X$1003,'Known Spells'!X46))) ->  | G47: =IF(Engine!O$26="*",'Class List'!AD46,IF(B47>42,"",INDEX('Class List'!AD$3:AD$1003,'Known Spells'!AE46))) ->  | H47: =IF(Engine!P$26="*",'Class List'!AJ46,IF(B47>24,"",INDEX('Class List'!AJ$3:AJ$1003,'Known Spells'!C90))) ->  | I47: =IF(Engine!Q$26="*",'Class List'!AP46,IF(B47>24,"",INDEX('Class List'!AP$3:AP$1003,'Known Spells'!J90))) ->  | J47: =IF(Engine!R$26="*",'Class List'!AV46,IF(B47>24,"",INDEX('Class List'!AV$3:AV$1003,'Known Spells'!Q90))) ->  | K47: =IF(Engine!S$26="*",'Class List'!BB46,IF(B47>24,"",INDEX('Class List'!BB$3:BB$1003,'Known Spells'!X90))) ->  | L47: =IF(Engine!T$26="*",'Class List'!BH46,IF(B47>24,"",INDEX('Class List'!BH$3:BH$1003,'Known Spells'!AE90))) ->  | N47: 0 | P47: 0
B48: 44 | C48: =IF(Engine!K$26="*",'Class List'!F47,IF(B48>36,"",INDEX('Class List'!F$3:F$1003,'Known Spells'!C52))) ->  | D48: =IF(Engine!L$26="*",'Class List'!L47,IF(B48>42,"",INDEX('Class List'!L$3:L$1003,'Known Spells'!J47))) ->  | E48: =IF(Engine!M$26="*",'Class List'!R47,IF(B48>42,"",INDEX('Class List'!R$3:R$1003,'Known Spells'!Q47))) ->  | F48: =IF(Engine!N$26="*",'Class List'!X47,IF(B48>42,"",INDEX('Class List'!X$3:X$1003,'Known Spells'!X47))) ->  | G48: =IF(Engine!O$26="*",'Class List'!AD47,IF(B48>42,"",INDEX('Class List'!AD$3:AD$1003,'Known Spells'!AE47))) ->  | H48: =IF(Engine!P$26="*",'Class List'!AJ47,IF(B48>24,"",INDEX('Class List'!AJ$3:AJ$1003,'Known Spells'!C91))) ->  | I48: =IF(Engine!Q$26="*",'Class List'!AP47,IF(B48>24,"",INDEX('Class List'!AP$3:AP$1003,'Known Spells'!J91))) ->  | J48: =IF(Engine!R$26="*",'Class List'!AV47,IF(B48>24,"",INDEX('Class List'!AV$3:AV$1003,'Known Spells'!Q91))) ->  | K48: =IF(Engine!S$26="*",'Class List'!BB47,IF(B48>24,"",INDEX('Class List'!BB$3:BB$1003,'Known Spells'!X91))) ->  | L48: =IF(Engine!T$26="*",'Class List'!BH47,IF(B48>24,"",INDEX('Class List'!BH$3:BH$1003,'Known Spells'!AE91))) ->  | N48: 0 | P48: 0
B49: 45 | C49: =IF(Engine!K$26="*",'Class List'!F48,IF(B49>36,"",INDEX('Class List'!F$3:F$1003,'Known Spells'!C53))) ->  | D49: =IF(Engine!L$26="*",'Class List'!L48,IF(B49>42,"",INDEX('Class List'!L$3:L$1003,'Known Spells'!J48))) ->  | E49: =IF(Engine!M$26="*",'Class List'!R48,IF(B49>42,"",INDEX('Class List'!R$3:R$1003,'Known Spells'!Q48))) ->  | F49: =IF(Engine!N$26="*",'Class List'!X48,IF(B49>42,"",INDEX('Class List'!X$3:X$1003,'Known Spells'!X48))) ->  | G49: =IF(Engine!O$26="*",'Class List'!AD48,IF(B49>42,"",INDEX('Class List'!AD$3:AD$1003,'Known Spells'!AE48))) ->  | H49: =IF(Engine!P$26="*",'Class List'!AJ48,IF(B49>24,"",INDEX('Class List'!AJ$3:AJ$1003,'Known Spells'!C92))) ->  | I49: =IF(Engine!Q$26="*",'Class List'!AP48,IF(B49>24,"",INDEX('Class List'!AP$3:AP$1003,'Known Spells'!J92))) ->  | J49: =IF(Engine!R$26="*",'Class List'!AV48,IF(B49>24,"",INDEX('Class List'!AV$3:AV$1003,'Known Spells'!Q92))) ->  | K49: =IF(Engine!S$26="*",'Class List'!BB48,IF(B49>24,"",INDEX('Class List'!BB$3:BB$1003,'Known Spells'!X92))) ->  | L49: =IF(Engine!T$26="*",'Class List'!BH48,IF(B49>24,"",INDEX('Class List'!BH$3:BH$1003,'Known Spells'!AE92))) ->  | N49: 0 | P49: 0
B50: 46 | C50: =IF(Engine!K$26="*",'Class List'!F49,IF(B50>36,"",INDEX('Class List'!F$3:F$1003,'Known Spells'!C54))) ->  | D50: =IF(Engine!L$26="*",'Class List'!L49,IF(B50>42,"",INDEX('Class List'!L$3:L$1003,'Known Spells'!J49))) ->  | E50: =IF(Engine!M$26="*",'Class List'!R49,IF(B50>42,"",INDEX('Class List'!R$3:R$1003,'Known Spells'!Q49))) ->  | F50: =IF(Engine!N$26="*",'Class List'!X49,IF(B50>42,"",INDEX('Class List'!X$3:X$1003,'Known Spells'!X49))) ->  | G50: =IF(Engine!O$26="*",'Class List'!AD49,IF(B50>42,"",INDEX('Class List'!AD$3:AD$1003,'Known Spells'!AE49))) ->  | H50: =IF(Engine!P$26="*",'Class List'!AJ49,IF(B50>24,"",INDEX('Class List'!AJ$3:AJ$1003,'Known Spells'!C93))) ->  | I50: =IF(Engine!Q$26="*",'Class List'!AP49,IF(B50>24,"",INDEX('Class List'!AP$3:AP$1003,'Known Spells'!J93))) ->  | J50: =IF(Engine!R$26="*",'Class List'!AV49,IF(B50>24,"",INDEX('Class List'!AV$3:AV$1003,'Known Spells'!Q93))) ->  | K50: =IF(Engine!S$26="*",'Class List'!BB49,IF(B50>24,"",INDEX('Class List'!BB$3:BB$1003,'Known Spells'!X93))) ->  | L50: =IF(Engine!T$26="*",'Class List'!BH49,IF(B50>24,"",INDEX('Class List'!BH$3:BH$1003,'Known Spells'!AE93))) ->  | N50: 0 | P50: 0
B51: 47 | C51: =IF(Engine!K$26="*",'Class List'!F50,IF(B51>36,"",INDEX('Class List'!F$3:F$1003,'Known Spells'!C55))) ->  | D51: =IF(Engine!L$26="*",'Class List'!L50,IF(B51>42,"",INDEX('Class List'!L$3:L$1003,'Known Spells'!J50))) ->  | E51: =IF(Engine!M$26="*",'Class List'!R50,IF(B51>42,"",INDEX('Class List'!R$3:R$1003,'Known Spells'!Q50))) ->  | F51: =IF(Engine!N$26="*",'Class List'!X50,IF(B51>42,"",INDEX('Class List'!X$3:X$1003,'Known Spells'!X50))) ->  | G51: =IF(Engine!O$26="*",'Class List'!AD50,IF(B51>42,"",INDEX('Class List'!AD$3:AD$1003,'Known Spells'!AE50))) ->  | H51: =IF(Engine!P$26="*",'Class List'!AJ50,IF(B51>24,"",INDEX('Class List'!AJ$3:AJ$1003,'Known Spells'!C94))) ->  | I51: =IF(Engine!Q$26="*",'Class List'!AP50,IF(B51>24,"",INDEX('Class List'!AP$3:AP$1003,'Known Spells'!J94))) ->  | J51: =IF(Engine!R$26="*",'Class List'!AV50,IF(B51>24,"",INDEX('Class List'!AV$3:AV$1003,'Known Spells'!Q94))) ->  | K51: =IF(Engine!S$26="*",'Class List'!BB50,IF(B51>24,"",INDEX('Class List'!BB$3:BB$1003,'Known Spells'!X94))) ->  | L51: =IF(Engine!T$26="*",'Class List'!BH50,IF(B51>24,"",INDEX('Class List'!BH$3:BH$1003,'Known Spells'!AE94))) ->  | N51: 0 | P51: 0
B52: 48 | C52: =IF(Engine!K$26="*",'Class List'!F51,IF(B52>36,"",INDEX('Class List'!F$3:F$1003,'Known Spells'!C56))) ->  | D52: =IF(Engine!L$26="*",'Class List'!L51,IF(B52>42,"",INDEX('Class List'!L$3:L$1003,'Known Spells'!J51))) ->  | E52: =IF(Engine!M$26="*",'Class List'!R51,IF(B52>42,"",INDEX('Class List'!R$3:R$1003,'Known Spells'!Q51))) ->  | F52: =IF(Engine!N$26="*",'Class List'!X51,IF(B52>42,"",INDEX('Class List'!X$3:X$1003,'Known Spells'!X51))) ->  | G52: =IF(Engine!O$26="*",'Class List'!AD51,IF(B52>42,"",INDEX('Class List'!AD$3:AD$1003,'Known Spells'!AE51))) ->  | H52: =IF(Engine!P$26="*",'Class List'!AJ51,IF(B52>24,"",INDEX('Class List'!AJ$3:AJ$1003,'Known Spells'!C95))) ->  | I52: =IF(Engine!Q$26="*",'Class List'!AP51,IF(B52>24,"",INDEX('Class List'!AP$3:AP$1003,'Known Spells'!J95))) ->  | J52: =IF(Engine!R$26="*",'Class List'!AV51,IF(B52>24,"",INDEX('Class List'!AV$3:AV$1003,'Known Spells'!Q95))) ->  | K52: =IF(Engine!S$26="*",'Class List'!BB51,IF(B52>24,"",INDEX('Class List'!BB$3:BB$1003,'Known Spells'!X95))) ->  | L52: =IF(Engine!T$26="*",'Class List'!BH51,IF(B52>24,"",INDEX('Class List'!BH$3:BH$1003,'Known Spells'!AE95))) ->  | N52: 0 | P52: 0
B53: 49 | C53: =IF(Engine!K$26="*",'Class List'!F52,IF(B53>36,"",INDEX('Class List'!F$3:F$1003,'Known Spells'!C57))) ->  | D53: =IF(Engine!L$26="*",'Class List'!L52,IF(B53>42,"",INDEX('Class List'!L$3:L$1003,'Known Spells'!J52))) ->  | E53: =IF(Engine!M$26="*",'Class List'!R52,IF(B53>42,"",INDEX('Class List'!R$3:R$1003,'Known Spells'!Q52))) ->  | F53: =IF(Engine!N$26="*",'Class List'!X52,IF(B53>42,"",INDEX('Class List'!X$3:X$1003,'Known Spells'!X52))) ->  | G53: =IF(Engine!O$26="*",'Class List'!AD52,IF(B53>42,"",INDEX('Class List'!AD$3:AD$1003,'Known Spells'!AE52))) ->  | H53: =IF(Engine!P$26="*",'Class List'!AJ52,IF(B53>24,"",INDEX('Class List'!AJ$3:AJ$1003,'Known Spells'!C96))) ->  | I53: =IF(Engine!Q$26="*",'Class List'!AP52,IF(B53>24,"",INDEX('Class List'!AP$3:AP$1003,'Known Spells'!J96))) ->  | J53: =IF(Engine!R$26="*",'Class List'!AV52,IF(B53>24,"",INDEX('Class List'!AV$3:AV$1003,'Known Spells'!Q96))) ->  | K53: =IF(Engine!S$26="*",'Class List'!BB52,IF(B53>24,"",INDEX('Class List'!BB$3:BB$1003,'Known Spells'!X96))) ->  | L53: =IF(Engine!T$26="*",'Class List'!BH52,IF(B53>24,"",INDEX('Class List'!BH$3:BH$1003,'Known Spells'!AE96))) ->  | N53: 0 | P53: 0
B54: 50 | C54: =IF(Engine!K$26="*",'Class List'!F53,IF(B54>36,"",INDEX('Class List'!F$3:F$1003,'Known Spells'!C58))) ->  | D54: =IF(Engine!L$26="*",'Class List'!L53,IF(B54>42,"",INDEX('Class List'!L$3:L$1003,'Known Spells'!J53))) ->  | E54: =IF(Engine!M$26="*",'Class List'!R53,IF(B54>42,"",INDEX('Class List'!R$3:R$1003,'Known Spells'!Q53))) ->  | F54: =IF(Engine!N$26="*",'Class List'!X53,IF(B54>42,"",INDEX('Class List'!X$3:X$1003,'Known Spells'!X53))) ->  | G54: =IF(Engine!O$26="*",'Class List'!AD53,IF(B54>42,"",INDEX('Class List'!AD$3:AD$1003,'Known Spells'!AE53))) ->  | H54: =IF(Engine!P$26="*",'Class List'!AJ53,IF(B54>24,"",INDEX('Class List'!AJ$3:AJ$1003,'Known Spells'!C97))) ->  | I54: =IF(Engine!Q$26="*",'Class List'!AP53,IF(B54>24,"",INDEX('Class List'!AP$3:AP$1003,'Known Spells'!J97))) ->  | J54: =IF(Engine!R$26="*",'Class List'!AV53,IF(B54>24,"",INDEX('Class List'!AV$3:AV$1003,'Known Spells'!Q97))) ->  | K54: =IF(Engine!S$26="*",'Class List'!BB53,IF(B54>24,"",INDEX('Class List'!BB$3:BB$1003,'Known Spells'!X97))) ->  | L54: =IF(Engine!T$26="*",'Class List'!BH53,IF(B54>24,"",INDEX('Class List'!BH$3:BH$1003,'Known Spells'!AE97))) ->  | N54: 0 | P54: 0
B55: Newfound Arcana | D55: =IF('Known Spells'!AL5=1,"",INDEX('Class List'!$L$3:$L$1003,'Known Spells'!$AK$14)) ->  | E55: =IF('Known Spells'!AL8=1,"",INDEX('Class List'!$R$3:$R$1003,'Known Spells'!AL8)) ->  | N55: =IF(C56="",0,1) -> 0 | O55: =C5&O5&C6&O6&C7&O7&C8&O8&C9&O9&C10&O10&C11&O11&C12&O12&C13&O13&C14&O14&C15&O15&C16&O16&C17&O17&C18&O18&C19&O19&C20&O20 -> Create Water, Detect Magic, Detect Poison, Flare, Guidance, Know Direction, Light, Mending, Purify Food and Drink, Read Magic, Resistance, Stabilize, Virtue | P55: =IF(D56="",0,1) -> 0
B56: Sorcer Bonus | D56: =IF(AND(Class="Sorcerer",ClassLevel>=D4),VLOOKUP(Bloodline,Bloodlines!$B$3:$K$12,2),"") ->  | E56: =IF(AND(Class="Sorcerer",ClassLevel>=E4),VLOOKUP(Bloodline,Bloodlines!$B$3:$K$12,3),"") ->  | F56: =IF(AND(Class="Sorcerer",ClassLevel>=F4),VLOOKUP(Bloodline,Bloodlines!$B$3:$K$12,4),"") ->  | G56: =IF(AND(Class="Sorcerer",ClassLevel>=G4),VLOOKUP(Bloodline,Bloodlines!$B$3:$K$12,5),"") ->  | H56: =IF(AND(Class="Sorcerer",ClassLevel>=H4),VLOOKUP(Bloodline,Bloodlines!$B$3:$K$12,6),"") ->  | I56: =IF(AND(Class="Sorcerer",ClassLevel>=I4),VLOOKUP(Bloodline,Bloodlines!$B$3:$K$12,7),"") ->  | J56: =IF(AND(Class="Sorcerer",ClassLevel>=J4),VLOOKUP(Bloodline,Bloodlines!$B$3:$K$12,8),"") ->  | K56: =IF(AND(Class="Sorcerer",ClassLevel>=K4),VLOOKUP(Bloodline,Bloodlines!$B$3:$K$12,9),"") ->  | L56: =IF(AND(Class="Sorcerer",ClassLevel>=L4),VLOOKUP(Bloodline,Bloodlines!$B$3:$K$12,10),"") ->  | O56: =C21&O21&C22&O22&C23&O23&C24&O24&C25&O25&C26&O26&C27&O27&C28&O28&C29&O29&C30&O30&C31&O31&C32&O32&C33&O33&C34&O34&C35&O35&C36&O36 -> 
O57: =C37&O37&C38&O38&C39&O39&C40&O40&C41&O41&C42&O42&C43&O43&C44&O44&C45&O45&C46&O46&C47&O47&C48&O48&C49&O49&C50&O50&C51&O51&C52&O52 -> 
O58: =C53&O54&C54 -> 
O59: =O55&O56&O57&O58 -> Create Water, Detect Magic, Detect Poison, Flare, Guidance, Know Direction, Light, Mending, Purify Food and Drink, Read Magic, Resistance, Stabilize, Virtue

Sheet Bloodlines (hidden)
C2: 3 | D2: 5 | E2: 7 | F2: 9 | G2: 11 | H2: 13 | I2: 15 | J2: 17 | K2: 19
B3: Aberrant | C3: Enlarge Person | D3: Invisibility | E3: Tongues | F3: Black Tentacles | G3: Feeblemind | H3: Veil | I3: Plane Shift | J3: Mind Blank | K3: Shapechange
B4: Abyssal | C4: Cause Fear | D4: Bull's Strength | E4: Rage | F4: Stoneskin | G4: Dismissal | H4: Transformation | I4: Teleport, Greater | J4: Unholy Aura | K4: Summon Monster IX
B5: Arcane | C5: Identify | D5: Invisibility | E5: Dispel Magic | F5: Dimension Door | G5: Overland Flight | H5: True Seeing | I5: Teleport, Greater | J5: Power Word Stun | K5: Wish
B6: Celestial | C6: Bless | D6: Resist Energy | E6: Magic Circle Against Evil | F6: Remove Curse | G6: Flame Strike | H6: Dispell Magic, Greater | I6: Banishment | J6: Sunburst | K6: Gate
B7: Destined | C7: Alarm | D7: Blur | E7: Protection from Energy | F7: Freedom of Movement | G7: Break Enchantment | H7: Mislead | I7: Spell Turning | J7: Moment of Prescience | K7: Foresight
B8: Draconic | C8: Mage Armor | D8: Resist Energy | E8: Fly | F8: Fear | G8: Spell Resistance | H8: Form of the Dragon I | I8: Form of the Dragon II | J8: Form of the Dragon III
B9: Elemental | C9: Burning Hands | D9: Scorching Ray | E9: Protection from Energy | F9: Elemental Body I | G9: Elemental Body II | H9: Elemental Body III | I9: Elemental Body IV | J9: Summon Monster VIII | K9: Elemental Swarm
B10: Fey | C10: Entangle | D10: Hideous Laughter | E10: Deep Slumber | F10: Poison | G10: Tree Stride | H10: Mislead | I10: Phase Door | J10: Irresistable Dance | K10: Shapechange
B11: Infernal | C11: Protection from Good | D11: Scorching Ray | E11: Suggestion | F11: Charm Monster | G11: Dominate Person | H11: Planar Binding | I11: Teleport, Greater | J11: Power Word Stun | K11: Meteor Swarm
B12: Undead | C12: Chill Touch | D12: False Life | E12: Vampiric Touch | F12: Animate Dead | G12: Waves of Fatigue | H12: Undeath to Death | I12: Finger of Death | J12: Horrid Wilting | K12: Energy Drain

Sheet Class List (hidden)
B1: Level 0 | H1: Level 1 | N1: Level 2 | T1: Level 3 | Z1: Level 4 | AF1: Level 5 | AL1: Level 6 | AR1: Level 7 | AX1: Level 8 | BD1: Level 9
B2: =Engine!$AH$5 -> #Create Water#Cure Minor Wounds#Detect Magic#Detect Poison#Flare#Guidance#Know Direction#Light#Mending#Purify Food and Drink#Read Magic#Resistance#Stabilize#Virtue# | H2: =Engine!$AH$7 -> #Calm Animals#Charm Animal#Cure Light Wounds#Detect Animals or Plants#Detect Snares and Pits#Endure Elements#Entangle#Faerie Fire#Goodberry#Hide from Animals#Jump#Longstrider#Magic Fang#Magic Stone#Obscuring Mist#Pass without Trace#Produce Flame#Shillelagh#Speak with Animals#Summon Nature's Ally I# | N2: =Engine!$AH$9 -> #Align Fang#Animal Messenger#Animal Trance#Barkskin#Bear's Endurance#Bull's Strength#Cat's Grace#Chill Metal#Delay Poison#Fire Trap#Flame Blade#Flaming Sphere#Fog Cloud#Gust of Wind#Heat Metal#Hold Animal#Owl's Wisdom#Reduce Animal#Resist Energy#Restoration, Lesser#Soften Earth and Stone#Spider Climb#Summon Nature's Ally II#Summon Swarm#Tree Shape#Warp Wood#Wood Shape# | T2: =Engine!$AH$11 -> #Call Lightning#Contagion#Cure Moderate Wounds#Daylight#Diminish Plants#Dominate Animal#Magic Fang, Greater#Meld into Stone#Neutralize Poison#Plant Growth#Poison#Protection from Energy#Quench#Remove Disease#Sleet Storm#Snare#Speak with Plants#Spike Growth#Stone Shape#Summon Nature's Ally III#Water Breathing#Wind Wall# | Z2: =Engine!$AH$13 -> #Air Walk#Antiplant Shell#Blight#Command Plants#Control Water#Cure Serious Wounds#Dispel Magic#Flame Strike#Freedom of Movement#Giant Vermin#Ice Storm#Reincarnate#Repel Vermin#Rusting Grasp#Scrying#Spike Stones#Summon Nature's Ally IV# | AF2: =Engine!$AH$15 -> #Animal Growth#Atonement#Awaken#Baleful Polymorph#Call Lightning Storm#Commune with Nature#Control Winds#Cure Critical Wounds#Death Ward#Hallow#Insect Plague#Stoneskin#Summon Nature's Ally#Transmute Mud to Rock#Transmute Rock to Mud#Tree Stride#Unhallow#Wall of Fire#Wall of Thorns# | AL2: =Engine!$AH$17 -> #Antilife Shell#Bear's Endurance, Mass#Bull's Strength, Mass#Cat's Grace, Mass#Cure Light Wounds, Mass#Dispel Magic, Greater#Find the Path#Fire Seeds#Ironwood#Liveoak#Move Earth#Owl's Wisdom, Mass#Repel Wood#Spellstaff#Stone Tell#Summon Nature's Ally VI#Transport via Plants#Wall of Stone# | AR2: =Engine!$AH$19 -> #Animate Plants#Changestaff#Control Weather#Creeping Doom#Cure Moderate Wounds, Mass#Fire Storm#Heal#Scrying, Greater#Summon Nature's Ally VII#Sunbeam#Transmute Metal to Wood#True Seeing#Wind Walk# | AX2: =Engine!$AH$21 -> #Animal Shapes#Control Plants#Cure Serious Wounds, Mass#Earthquake#Finger of Death#Repel Metal or Stone#Reverse Gravity#Summon Nature's Ally VIII#Sunburst#Whirlwind#Word of Recall# | BD2: =Engine!$AH$23 -> #Antipathy#Cure Critical Wounds, Mass#Elemental Swarm#Foresight#Regenerate#Shambler#Shapechange#Storm of Vengeance#Summon Nature's Ally IX#Sympathy#
F3: =IF(Engine!K26="*","All","") -> All | G3: =F3 -> All | H3: ='Big Known List'!D56 ->  | L3: =IF(Engine!L26="*","All","") -> All | M3: =L3 -> All | N3: ='Big Known List'!E56 ->  | R3: =IF(Engine!M26="*","All","") ->  | S3: =R3 ->  | T3: ='Big Known List'!F56 ->  | X3: =IF(Engine!N26="*","All","") ->  | Y3: =X3 ->  | Z3: ='Big Known List'!G56 ->  | AD3: =IF(Engine!O26="*","All","") ->  | AE3: =AD3 ->  | AF3: ='Big Known List'!H56 ->  | AJ3: =IF(Engine!P26="*","All","") ->  | AK3: =AJ3 ->  | AL3: ='Big Known List'!I56 ->  | AP3: =IF(Engine!Q26="*","All","") ->  | AQ3: =AP3 ->  | AR3: ='Big Known List'!J56 ->  | AV3: =IF(Engine!R26="*","All","") ->  | AW3: =AV3 ->  | AX3: ='Big Known List'!K56 ->  | BB3: =IF(Engine!S26="*","All","") ->  | BC3: =BB3 ->  | BD3: ='Big Known List'!L56 ->  | BH3: =IF(Engine!T26="*","All","") ->  | BI3: =BH3 -> 
A4: 1 | B4: =IF(ISERROR(RANK($A4,C$4:C$1003,1)),"",RANK($A4,C$4:C$1003,1)) ->  | C4: =IF(AND(OR(Cull!$C3="Yes",ISERROR(FIND("#"&Spells!$B2&"#",B$2)),Spells!$B2="",NOT(ISERROR(FIND(LOWER(ForbiddenAlignment),LOWER(Spells!$J2))))),NOT(Spells!$B2=B$3)),"",$A4) ->  | D4: =IF(ISERROR(VLOOKUP($A4,B$4:C$1003,2)),"",VLOOKUP($A4,B$4:C$1003,2)) -> 107 | E4: =IF(D3=D4,"",D4) -> 107 | F4: =IF(E4="","",INDEX(Spells!$B$2:$B$1001,'Class List'!E4)) -> Create Water | G4: =IF(F4="","",IF(OR(NOT(ISERROR(FIND(Forbidden1,INDEX(Spells!$J$2:$J$1001,E4),1))),NOT(ISERROR(FIND(Forbidden2,INDEX(Spells!$J$2:$J$1001,E4),1)))),"* ",""))&F4 -> Create Water | H4: =IF(ISERROR(RANK($A4,I$4:I$1003,1)),"",RANK($A4,I$4:I$1003,1)) ->  | I4: =IF(AND(OR(Cull!$C3="Yes",ISERROR(FIND("#"&Spells!$B2&"#",H$2)),Spells!$B2="",NOT(ISERROR(FIND(LOWER(ForbiddenAlignment),LOWER(Spells!$J2))))),NOT(Spells!$B2=H$3)),"",$A4) ->  | J4: =IF(ISERROR(VLOOKUP($A4,H$4:I$1003,2)),"",VLOOKUP($A4,H$4:I$1003,2)) -> 62 | K4: =IF(J3=J4,"",J4) -> 62 | L4: =IF(K4="","",INDEX(Spells!$B$2:$B$1001,'Class List'!K4)) -> Calm Animals | M4: =IF(L4="","",IF(OR(NOT(ISERROR(FIND(Forbidden1,INDEX(Spells!$J$2:$J$1001,K4),1))),NOT(ISERROR(FIND(Forbidden2,INDEX(Spells!$J$2:$J$1001,K4),1)))),"* ",""))&L4 -> Calm Animals | N4: =IF(ISERROR(RANK($A4,O$4:O$1003,1)),"",RANK($A4,O$4:O$1003,1)) ->  | O4: =IF(AND(OR(Cull!$C3="Yes",ISERROR(FIND("#"&Spells!$B2&"#",N$2)),Spells!$B2="",NOT(ISERROR(FIND(LOWER(ForbiddenAlignment),LOWER(Spells!$J2))))),NOT(Spells!$B2=N$3)),"",$A4) ->  | P4: =IF(ISERROR(VLOOKUP($A4,N$4:O$1003,2)),"",VLOOKUP($A4,N$4:O$1003,2)) -> 7 | Q4: =IF(P3=P4,"",P4) -> 7 | R4: =IF(Q4="","",INDEX(Spells!$B$2:$B$1001,'Class List'!Q4)) -> Align Fang | S4: =IF(R4="","",IF(OR(NOT(ISERROR(FIND(Forbidden1,INDEX(Spells!$J$2:$J$1001,Q4),1))),NOT(ISERROR(FIND(Forbidden2,INDEX(Spells!$J$2:$J$1001,Q4),1)))),"* ",""))&R4 -> Align Fang | T4: =IF(ISERROR(RANK($A4,U$4:U$1003,1)),"",RANK($A4,U$4:U$1003,1)) ->  | U4: =IF(AND(OR(Cull!$C3="Yes",ISERROR(FIND("#"&Spells!$B2&"#",T$2)),Spells!$B2="",NOT(ISERROR(FIND(LOWER(ForbiddenAlignment),LOWER(Spells!$J2))))),NOT(Spells!$B2=T$3)),"",$A4) ->  | V4: =IF(ISERROR(VLOOKUP($A4,T$4:U$1003,2)),"",VLOOKUP($A4,T$4:U$1003,2)) -> 60 | W4: =IF(V3=V4,"",V4) -> 60 | X4: =IF(W4="","",INDEX(Spells!$B$2:$B$1001,'Class List'!W4)) -> Call Lightning | Y4: =IF(X4="","",IF(OR(NOT(ISERROR(FIND(Forbidden1,INDEX(Spells!$J$2:$J$1001,W4),1))),NOT(ISERROR(FIND(Forbidden2,INDEX(Spells!$J$2:$J$1001,W4),1)))),"* ",""))&X4 -> Call Lightning | Z4: =IF(ISERROR(RANK($A4,AA$4:AA$1003,1)),"",RANK($A4,AA$4:AA$1003,1)) ->  | AA4: =IF(AND(OR(Cull!$C3="Yes",ISERROR(FIND("#"&Spells!$B2&"#",Z$2)),Spells!$B2="",NOT(ISERROR(FIND(LOWER(ForbiddenAlignment),LOWER(Spells!$J2))))),NOT(Spells!$B2=Z$3)),"",$A4) ->  | AB4: =IF(ISERROR(VLOOKUP($A4,Z$4:AA$1003,2)),"",VLOOKUP($A4,Z$4:AA$1003,2)) -> 5 | AC4: =IF(AB3=AB4,"",AB4) -> 5 | AD4: =IF(AC4="","",INDEX(Spells!$B$2:$B$1001,'Class List'!AC4)) -> Air Walk | AE4: =IF(AD4="","",IF(OR(NOT(ISERROR(FIND(Forbidden1,INDEX(Spells!$J$2:$J$1001,AC4),1))),NOT(ISERROR(FIND(Forbidden2,INDEX(Spells!$J$2:$J$1001,AC4),1)))),"* ",""))&AD4 -> Air Walk | AF4: =IF(ISERROR(RANK($A4,AG$4:AG$1003,1)),"",RANK($A4,AG$4:AG$1003,1)) ->  | AG4: =IF(AND(OR(Cull!$C3="Yes",ISERROR(FIND("#"&Spells!$B2&"#",AF$2)),Spells!$B2="",NOT(ISERROR(FIND(LOWER(ForbiddenAlignment),LOWER(Spells!$J2))))),NOT(Spells!$B2=AF$3)),"",$A4) ->  | AH4: =IF(ISERROR(VLOOKUP($A4,AF$4:AG$1003,2)),"",VLOOKUP($A4,AF$4:AG$1003,2)) -> 11 | AI4: =IF(AH3=AH4,"",AH4) -> 11 | AJ4: =IF(AI4="","",INDEX(Spells!$B$2:$B$1001,'Class List'!AI4)) -> Animal Growth | AK4: =IF(AJ4="","",IF(OR(NOT(ISERROR(FIND(Forbidden1,INDEX(Spells!$J$2:$J$1001,AI4),1))),NOT(ISERROR(FIND(Forbidden2,INDEX(Spells!$J$2:$J$1001,AI4),1)))),"* ",""))&AJ4 -> Animal Growth | AL4: =IF(ISERROR(RANK($A4,AM$4:AM$1003,1)),"",RANK($A4,AM$4:AM$1003,1)) ->  | AM4: =IF(AND(OR(Cull!$C3="Yes",ISERROR(FIND("#"&Spells!$B2&"#",AL$2)),Spells!$B2="",NOT(ISERROR(FIND(LOWER(ForbiddenAlignment),LOWER(Spells!$J2))))),NOT(Spells!$B2=AL$3)),"",$A4) ->  | AN4: =IF(ISERROR(VLOOKUP($A4,AL$4:AM$1003,2)),"",VLOOKUP($A4,AL$4:AM$1003,2)) -> 19 | AO4: =IF(AN3=AN4,"",AN4) -> 19 | AP4: =IF(AO4="","",INDEX(Spells!$B$2:$B$1001,'Class List'!AO4)) -> Antilife Shell | AQ4: =IF(AP4="","",IF(OR(NOT(ISERROR(FIND(Forbidden1,INDEX(Spells!$J$2:$J$1001,AO4),1))),NOT(ISERROR(FIND(Forbidden2,INDEX(Spells!$J$2:$J$1001,AO4),1)))),"* ",""))&AP4 -> Antilife Shell | AR4: =IF(ISERROR(RANK($A4,AS$4:AS$1003,1)),"",RANK($A4,AS$4:AS$1003,1)) ->  | AS4: =IF(AND(OR(Cull!$C3="Yes",ISERROR(FIND("#"&Spells!$B2&"#",AR$2)),Spells!$B2="",NOT(ISERROR(FIND(LOWER(ForbiddenAlignment),LOWER(Spells!$J2))))),NOT(Spells!$B2=AR$3)),"",$A4) ->  | AT4: =IF(ISERROR(VLOOKUP($A4,AR$4:AS$1003,2)),"",VLOOKUP($A4,AR$4:AS$1003,2)) -> 17 | AU4: =IF(AT3=AT4,"",AT4) -> 17 | AV4: =IF(AU4="","",INDEX(Spells!$B$2:$B$1001,'Class List'!AU4)) -> Animate Plants | AW4: =IF(AV4="","",IF(OR(NOT(ISERROR(FIND(Forbidden1,INDEX(Spells!$J$2:$J$1001,AU4),1))),NOT(ISERROR(FIND(Forbidden2,INDEX(Spells!$J$2:$J$1001,AU4),1)))),"* ",""))&AV4 -> Animate Plants | AX4: =IF(ISERROR(RANK($A4,AY$4:AY$1003,1)),"",RANK($A4,AY$4:AY$1003,1)) ->  | AY4: =IF(AND(OR(Cull!$C3="Yes",ISERROR(FIND("#"&Spells!$B2&"#",AX$2)),Spells!$B2="",NOT(ISERROR(FIND(LOWER(ForbiddenAlignment),LOWER(Spells!$J2))))),NOT(Spells!$B2=AX$3)),"",$A4) ->  | AZ4: =IF(ISERROR(VLOOKUP($A4,AX$4:AY$1003,2)),"",VLOOKUP($A4,AX$4:AY$1003,2)) -> 13 | BA4: =IF(AZ3=AZ4,"",AZ4) -> 13 | BB4: =IF(BA4="","",INDEX(Spells!$B$2:$B$1001,'Class List'!BA4)) -> Animal Shapes | BC4: =IF(BB4="","",IF(OR(NOT(ISERROR(FIND(Forbidden1,INDEX(Spells!$J$2:$J$1001,BA4),1))),NOT(ISERROR(FIND(Forbidden2,INDEX(Spells!$J$2:$J$1001,BA4),1)))),"* ",""))&BB4 -> Animal Shapes | BD4: =IF(ISERROR(RANK($A4,BE$4:BE$1003,1)),"",RANK($A4,BE$4:BE$1003,1)) ->  | BE4: =IF(AND(OR(Cull!$C3="Yes",ISERROR(FIND("#"&Spells!$B2&"#",BD$2)),Spells!$B2="",NOT(ISERROR(FIND(LOWER(ForbiddenAlignment),LOWER(Spells!$J2))))),NOT(Spells!$B2=BD$3)),"",$A4) ->  | BF4: =IF(ISERROR(VLOOKUP($A4,BD$4:BE$1003,2)),"",VLOOKUP($A4,BD$4:BE$1003,2)) -> 21 | BG4: =IF(BF3=BF4,"",BF4) -> 21 | BH4: =IF(BG4="","",INDEX(Spells!$B$2:$B$1001,'Class List'!BG4)) -> Antipathy | BI4: =IF(BH4="","",IF(OR(NOT(ISERROR(FIND(Forbidden1,INDEX(Spells!$J$2:$J$1001,BG4),1))),NOT(ISERROR(FIND(Forbidden2,INDEX(Spells!$J$2:$J$1001,BG4),1)))),"* ",""))&BH4 -> Antipathy
A5: 2 | C5: =IF(AND(OR(Cull!$C4="Yes",ISERROR(FIND("#"&Spells!$B3&"#",B$2)),Spells!$B3="",NOT(ISERROR(FIND(LOWER(ForbiddenAlignment),LOWER(Spells!$J3))))),NOT(Spells!$B3=B$3)),"",$A5) ->  | D5: 142 | E5: 142 | F5: =IF(E5="","",INDEX(Spells!$B$2:$B$1001,'Class List'!E5)) -> Detect Magic | G5: =IF(F5="","",IF(OR(NOT(ISERROR(FIND(Forbidden1,INDEX(Spells!$J$2:$J$1001,E5),1))),NOT(ISERROR(FIND(Forbidden2,INDEX(Spells!$J$2:$J$1001,E5),1)))),"* ",""))&F5 -> Detect Magic | I5: =IF(AND(OR(Cull!$C4="Yes",ISERROR(FIND("#"&Spells!$B3&"#",H$2)),Spells!$B3="",NOT(ISERROR(FIND(LOWER(ForbiddenAlignment),LOWER(Spells!$J3))))),NOT(Spells!$B3=H$3)),"",$A5) ->  | J5: 70 | K5: 70 | L5: =IF(K5="","",INDEX(Spells!$B$2:$B$1001,'Class List'!K5)) -> Charm Animal | M5: =IF(L5="","",IF(OR(NOT(ISERROR(FIND(Forbidden1,INDEX(Spells!$J$2:$J$1001,K5),1))),NOT(ISERROR(FIND(Forbidden2,INDEX(Spells!$J$2:$J$1001,K5),1)))),"* ",""))&L5 -> Charm Animal | O5: =IF(AND(OR(Cull!$C4="Yes",ISERROR(FIND("#"&Spells!$B3&"#",N$2)),Spells!$B3="",NOT(ISERROR(FIND(LOWER(ForbiddenAlignment),LOWER(Spells!$J3))))),NOT(Spells!$B3=N$3)),"",$A5) ->  | P5: 12 | Q5: 12 | R5: =IF(Q5="","",INDEX(Spells!$B$2:$B$1001,'Class List'!Q5)) -> Animal Messenger | S5: =IF(R5="","",IF(OR(NOT(ISERROR(FIND(Forbidden1,INDEX(Spells!$J$2:$J$1001,Q5),1))),NOT(ISERROR(FIND(Forbidden2,INDEX(Spells!$J$2:$J$1001,Q5),1)))),"* ",""))&R5 -> Animal Messenger | U5: =IF(AND(OR(Cull!$C4="Yes",ISERROR(FIND("#"&Spells!$B3&"#",T$2)),Spells!$B3="",NOT(ISERROR(FIND(LOWER(ForbiddenAlignment),LOWER(Spells!$J3))))),NOT(Spells!$B3=T$3)),"",$A5) ->  | V5: 95 | W5: 95 | X5: =IF(W5="","",INDEX(Spells!$B$2:$B$1001,'Class List'!W5)) -> Contagion | Y5: =IF(X5="","",IF(OR(NOT(ISERROR(FIND(Forbidden1,INDEX(Spells!$J$2:$J$1001,W5),1))),NOT(ISERROR(FIND(Forbidden2,INDEX(Spells!$J$2:$J$1001,W5),1)))),"* ",""))&X5 -> Contagion | AA5: =IF(AND(OR(Cull!$C4="Yes",ISERROR(FIND("#"&Spells!$B3&"#",Z$2)),Spells!$B3="",NOT(ISERROR(FIND(LOWER(ForbiddenAlignment),LOWER(Spells!$J3))))),NOT(Spells!$B3=Z$3)),"",$A5) ->  | AB5: 22 | AC5: 22 | AD5: =IF(AC5="","",INDEX(Spells!$B$2:$B$1001,'Class List'!AC5)) -> Antiplant Shell | AE5: =IF(AD5="","",IF(OR(NOT(ISERROR(FIND(Forbidden1,INDEX(Spells!$J$2:$J$1001,AC5),1))),NOT(ISERROR(FIND(Forbidden2,INDEX(Spells!$J$2:$J$1001,AC5),1)))),"* ",""))&AD5 -> Antiplant Shell | AG5: =IF(AND(OR(Cull!$C4="Yes",ISERROR(FIND("#"&Spells!$B3&"#",AF$2)),Spells!$B3="",NOT(ISERROR(FIND(LOWER(ForbiddenAlignment),LOWER(Spells!$J3))))),NOT(Spells!$B3=AF$3)),"",$A5) ->  | AH5: 29 | AI5: 29 | AJ5: =IF(AI5="","",INDEX(Spells!$B$2:$B$1001,'Class List'!AI5)) -> Atonement | AK5: =IF(AJ5="","",IF(OR(NOT(ISERROR(FIND(Forbidden1,INDEX(Spells!$J$2:$J$1001,AI5),1))),NOT(ISERROR(FIND(Forbidden2,INDEX(Spells!$J$2:$J$1001,AI5),1)))),"* ",""))&AJ5 -> Atonement | AM5: =IF(AND(OR(Cull!$C4="Yes",ISERROR(FIND("#"&Spells!$B3&"#",AL$2)),Spells!$B3="",NOT(ISERROR(FIND(LOWER(ForbiddenAlignment),LOWER(Spells!$J3))))),NOT(Spells!$B3=AL$3)),"",$A5) ->  | AN5: 37 | AO5: 37 | AP5: =IF(AO5="","",INDEX(Spells!$B$2:$B$1001,'Class List'!AO5)) -> Bear's Endurance, Mass | AQ5: =IF(AP5="","",IF(OR(NOT(ISERROR(FIND(Forbidden1,INDEX(Spells!$J$2:$J$1001,AO5),1))),NOT(ISERROR(FIND(Forbidden2,INDEX(Spells!$J$2:$J$1001,AO5),1)))),"* ",""))&AP5 -> Bear's Endurance, Mass | AS5: =IF(AND(OR(Cull!$C4="Yes",ISERROR(FIND("#"&Spells!$B3&"#",AR$2)),Spells!$B3="",NOT(ISERROR(FIND(LOWER(ForbiddenAlignment),LOWER(Spells!$J3))))),NOT(Spells!$B3=AR$3)),"",$A5) ->  | AT5: 68 | AU5: 68 | AV5: =IF(AU5="","",INDEX(Spells!$B$2:$B$1001,'Class List'!AU5)) -> Changestaff | AW5: =IF(AV5="","",IF(OR(NOT(ISERROR(FIND(Forbidden1,INDEX(Spells!$J$2:$J$1001,AU5),1))),NOT(ISERROR(FIND(Forbidden2,INDEX(Spells!$J$2:$J$1001,AU5),1)))),"* ",""))&AV5 -> Changestaff | AY5: =IF(AND(OR(Cull!$C4="Yes",ISERROR(FIND("#"&Spells!$B3&"#",AX$2)),Spells!$B3="",NOT(ISERROR(FIND(LOWER(ForbiddenAlignment),LOWER(Spells!$J3))))),NOT(Spells!$B3=AX$3)),"",$A5) ->  | AZ5: 98 | BA5: =IF(AZ4=AZ5,"",AZ5) -> 98 | BB5: =IF(BA5="","",INDEX(Spells!$B$2:$B$1001,'Class List'!BA5)) -> Control Plants | BC5: =IF(BB5="","",IF(OR(NOT(ISERROR(FIND(Forbidden1,INDEX(Spells!$J$2:$J$1001,BA5),1))),NOT(ISERROR(FIND(Forbidden2,INDEX(Spells!$J$2:$J$1001,BA5),1)))),"* ",""))&BB5 -> Control Plants | BE5: =IF(AND(OR(Cull!$C4="Yes",ISERROR(FIND("#"&Spells!$B3&"#",BD$2)),Spells!$B3="",NOT(ISERROR(FIND(LOWER(ForbiddenAlignment),LOWER(Spells!$J3))))),NOT(Spells!$B3=BD$3)),"",$A5) ->  | BF5: 112 | BG5: =IF(BF4=BF5,"",BF5) -> 112 | BH5: =IF(BG5="","",INDEX(Spells!$B$2:$B$1001,'Class List'!BG5)) -> Cure Critical Wounds, Mass | BI5: =IF(BH5="","",IF(OR(NOT(ISERROR(FIND(Forbidden1,INDEX(Spells!$J$2:$J$1001,BG5),1))),NOT(ISERROR(FIND(Forbidden2,INDEX(Spells!$J$2:$J$1001,BG5),1)))),"* ",""))&BH5 -> Cure Critical Wounds, Mass
A6: 3 | C6: =IF(AND(OR(Cull!$C5="Yes",ISERROR(FIND("#"&Spells!$B4&"#",B$2)),Spells!$B4="",NOT(ISERROR(FIND(LOWER(ForbiddenAlignment),LOWER(Spells!$J4))))),NOT(Spells!$B4=B$3)),"",$A6) ->  | D6: 143 | E6: 143 | F6: =IF(E6="","",INDEX(Spells!$B$2:$B$1001,'Class List'!E6)) -> Detect Poison | G6: =IF(F6="","",IF(OR(NOT(ISERROR(FIND(Forbidden1,INDEX(Spells!$J$2:$J$1001,E6),1))),NOT(ISERROR(FIND(Forbidden2,INDEX(Spells!$J$2:$J$1001,E6),1)))),"* ",""))&F6 -> Detect Poison | I6: =IF(AND(OR(Cull!$C5="Yes",ISERROR(FIND("#"&Spells!$B4&"#",H$2)),Spells!$B4="",NOT(ISERROR(FIND(LOWER(ForbiddenAlignment),LOWER(Spells!$J4))))),NOT(Spells!$B4=H$3)),"",$A6) ->  | J6: 113 | K6: 113 | L6: =IF(K6="","",INDEX(Spells!$B$2:$B$1001,'Class List'!K6)) -> Cure Light Wounds | M6: =IF(L6="","",IF(OR(NOT(ISERROR(FIND(Forbidden1,INDEX(Spells!$J$2:$J$1001,K6),1))),NOT(ISERROR(FIND(Forbidden2,INDEX(Spells!$J$2:$J$1001,K6),1)))),"* ",""))&L6 -> Cure Light Wounds | O6: =IF(AND(OR(Cull!$C5="Yes",ISERROR(FIND("#"&Spells!$B4&"#",N$2)),Spells!$B4="",NOT(ISERROR(FIND(LOWER(ForbiddenAlignment),LOWER(Spells!$J4))))),NOT(Spells!$B4=N$3)),"",$A6) ->  | P6: 14 | Q6: 14 | R6: =IF(Q6="","",INDEX(Spells!$B$2:$B$1001,'Class List'!Q6)) -> Animal Trance | S6: =IF(R6="","",IF(OR(NOT(ISERROR(FIND(Forbidden1,INDEX(Spells!$J$2:$J$1001,Q6),1))),NOT(ISERROR(FIND(Forbidden2,INDEX(Spells!$J$2:$J$1001,Q6),1)))),"* ",""))&R6 -> Animal Trance | U6: =IF(AND(OR(Cull!$C5="Yes",ISERROR(FIND("#"&Spells!$B4&"#",T$2)),Spells!$B4="",NOT(ISERROR(FIND(LOWER(ForbiddenAlignment),LOWER(Spells!$J4))))),NOT(Spells!$B4=T$3)),"",$A6) ->  | V6: 116 | W6: 116 | X6: =IF(W6="","",INDEX(Spells!$B$2:$B$1001,'Class List'!W6)) -> Cure Moderate Wounds | Y6: =IF(X6="","",IF(OR(NOT(ISERROR(FIND(Forbidden1,INDEX(Spells!$J$2:$J$1001,W6),1))),NOT(ISERROR(FIND(Forbidden2,INDEX(Spells!$J$2:$J$1001,W6),1)))),"* ",""))&X6 -> Cure Moderate Wounds | AA6: =IF(AND(OR(Cull!$C5="Yes",ISERROR(FIND("#"&Spells!$B4&"#",Z$2)),Spells!$B4="",NOT(ISERROR(FIND(LOWER(ForbiddenAlignment),LOWER(Spells!$J4))))),NOT(Spells!$B4=Z$3)),"",$A6) ->  | AB6: 51 | AC6: 51 | AD6: =IF(AC6="","",INDEX(Spells!$B$2:$B$1001,'Class List'!AC6)) -> Blight | AE6: =IF(AD6="","",IF(OR(NOT(ISERROR(FIND(Forbidden1,INDEX(Spells!$J$2:$J$1001,AC6),1))),NOT(ISERROR(FIND(Forbidden2,INDEX(Spells!$J$2:$J$1001,AC6),1)))),"* ",""))&AD6 -> Blight | AG6: =IF(AND(OR(Cull!$C5="Yes",ISERROR(FIND("#"&Spells!$B4&"#",AF$2)),Spells!$B4="",NOT(ISERROR(FIND(LOWER(ForbiddenAlignment),LOWER(Spells!$J4))))),NOT(Spells!$B4=AF$3)),"",$A6) ->  | AH6: 31 | AI6: 31 | AJ6: =IF(AI6="","",INDEX(Spells!$B$2:$B$1001,'Class List'!AI6)) -> Awaken | AK6: =IF(AJ6="","",IF(OR(NOT(ISERROR(FIND(Forbidden1,INDEX(Spells!$J$2:$J$1001,AI6),1))),NOT(ISERROR(FIND(Forbidden2,INDEX(Spells!$J$2:$J$1001,AI6),1)))),"* ",""))&AJ6 -> Awaken | AM6: =IF(AND(OR(Cull!$C5="Yes",ISERROR(FIND("#"&Spells!$B4&"#",AL$2)),Spells!$B4="",NOT(ISERROR(FIND(LOWER(ForbiddenAlignment),LOWER(Spells!$J4))))),NOT(Spells!$B4=AL$3)),"",$A6) ->  | AN6: 58 | AO6: 58 | AP6: =IF(AO6="","",INDEX(Spells!$B$2:$B$1001,'Class List'!AO6)) -> Bull's Strength, Mass | AQ6: =IF(AP6="","",IF(OR(NOT(ISERROR(FIND(Forbidden1,INDEX(Spells!$J$2:$J$1001,AO6),1))),NOT(ISERROR(FIND(Forbidden2,INDEX(Spells!$J$2:$J$1001,AO6),1)))),"* ",""))&AP6 -> Bull's Strength, Mass | AS6: =IF(AND(OR(Cull!$C5="Yes",ISERROR(FIND("#"&Spells!$B4&"#",AR$2)),Spells!$B4="",NOT(ISERROR(FIND(LOWER(ForbiddenAlignment),LOWER(Spells!$J4))))),NOT(Spells!$B4=AR$3)),"",$A6) ->  | AT6: 101 | AU6: 101 | AV6: =IF(AU6="","",INDEX(Spells!$B$2:$B$1001,'Class List'!AU6)) -> Control Weather | AW6: =IF(AV6="","",IF(OR(NOT(ISERROR(FIND(Forbidden1,INDEX(Spells!$J$2:$J$1001,AU6),1))),NOT(ISERROR(FIND(Forbidden2,INDEX(Spells!$J$2:$J$1001,AU6),1)))),"* ",""))&AV6 -> Control Weather | AY6: =IF(AND(OR(Cull!$C5="Yes",ISERROR(FIND("#"&Spells!$B4&"#",AX$2)),Spells!$B4="",NOT(ISERROR(FIND(LOWER(ForbiddenAlignment),LOWER(Spells!$J4))))),NOT(Spells!$B4=AX$3)),"",$A6) ->  | AZ6: 119 | BA6: 119 | BB6: =IF(BA6="","",INDEX(Spells!$B$2:$B$1001,'Class List'!BA6)) -> Cure Serious Wounds, Mass | BC6: =IF(BB6="","",IF(OR(NOT(ISERROR(FIND(Forbidden1,INDEX(Spells!$J$2:$J$1001,BA6),1))),NOT(ISERROR(FIND(Forbidden2,INDEX(Spells!$J$2:$J$1001,BA6),1)))),"* ",""))&BB6 -> Cure Serious Wounds, Mass | BE6: =IF(AND(OR(Cull!$C5="Yes",ISERROR(FIND("#"&Spells!$B4&"#",BD$2)),Spells!$B4="",NOT(ISERROR(FIND(LOWER(ForbiddenAlignment),LOWER(Spells!$J4))))),NOT(Spells!$B4=BD$3)),"",$A6) ->  | BF6: 183 | BG6: 183 | BH6: =IF(BG6="","",INDEX(Spells!$B$2:$B$1001,'Class List'!BG6)) -> Elemental Swarm | BI6: =IF(BH6="","",IF(OR(NOT(ISERROR(FIND(Forbidden1,INDEX(Spells!$J$2:$J$1001,BG6),1))),NOT(ISERROR(FIND(Forbidden2,INDEX(Spells!$J$2:$J$1001,BG6),1)))),"* ",""))&BH6 -> Elemental Swarm
A7: 4 | C7: =IF(AND(OR(Cull!$C6="Yes",ISERROR(FIND("#"&Spells!$B5&"#",B$2)),Spells!$B5="",NOT(ISERROR(FIND(LOWER(ForbiddenAlignment),LOWER(Spells!$J5))))),NOT(Spells!$B5=B$3)),"",$A7) ->  | D7: 217 | E7: 217 | F7: =IF(E7="","",INDEX(Spells!$B$2:$B$1001,'Class List'!E7)) -> Flare | G7: =IF(F7="","",IF(OR(NOT(ISERROR(FIND(Forbidden1,INDEX(Spells!$J$2:$J$1001,E7),1))),NOT(ISERROR(FIND(Forbidden2,INDEX(Spells!$J$2:$J$1001,E7),1)))),"* ",""))&F7 -> Flare | I7: =IF(AND(OR(Cull!$C6="Yes",ISERROR(FIND("#"&Spells!$B5&"#",H$2)),Spells!$B5="",NOT(ISERROR(FIND(LOWER(ForbiddenAlignment),LOWER(Spells!$J5))))),NOT(Spells!$B5=H$3)),"",$A7) ->  | J7: 137 | K7: 137 | L7: =IF(K7="","",INDEX(Spells!$B$2:$B$1001,'Class List'!K7)) -> Detect Animals or Plants | M7: =IF(L7="","",IF(OR(NOT(ISERROR(FIND(Forbidden1,INDEX(Spells!$J$2:$J$1001,K7),1))),NOT(ISERROR(FIND(Forbidden2,INDEX(Spells!$J$2:$J$1001,K7),1)))),"* ",""))&L7 -> Detect Animals or Plants | O7: =IF(AND(OR(Cull!$C6="Yes",ISERROR(FIND("#"&Spells!$B5&"#",N$2)),Spells!$B5="",NOT(ISERROR(FIND(LOWER(ForbiddenAlignment),LOWER(Spells!$J5))))),NOT(Spells!$B5=N$3)),"",$A7) ->  | P7: 35 | Q7: 35 | R7: =IF(Q7="","",INDEX(Spells!$B$2:$B$1001,'Class List'!Q7)) -> Barkskin | S7: =IF(R7="","",IF(OR(NOT(ISERROR(FIND(Forbidden1,INDEX(Spells!$J$2:$J$1001,Q7),1))),NOT(ISERROR(FIND(Forbidden2,INDEX(Spells!$J$2:$J$1001,Q7),1)))),"* ",""))&R7 -> Barkskin | U7: =IF(AND(OR(Cull!$C6="Yes",ISERROR(FIND("#"&Spells!$B5&"#",T$2)),Spells!$B5="",NOT(ISERROR(FIND(LOWER(ForbiddenAlignment),LOWER(Spells!$J5))))),NOT(Spells!$B5=T$3)),"",$A7) ->  | V7: 124 | W7: 124 | X7: =IF(W7="","",INDEX(Spells!$B$2:$B$1001,'Class List'!W7)) -> Daylight | Y7: =IF(X7="","",IF(OR(NOT(ISERROR(FIND(Forbidden1,INDEX(Spells!$J$2:$J$1001,W7),1))),NOT(ISERROR(FIND(Forbidden2,INDEX(Spells!$J$2:$J$1001,W7),1)))),"* ",""))&X7 -> Daylight | AA7: =IF(AND(OR(Cull!$C6="Yes",ISERROR(FIND("#"&Spells!$B5&"#",Z$2)),Spells!$B5="",NOT(ISERROR(FIND(LOWER(ForbiddenAlignment),LOWER(Spells!$J5))))),NOT(Spells!$B5=Z$3)),"",$A7) ->  | AB7: 84 | AC7: 84 | AD7: =IF(AC7="","",INDEX(Spells!$B$2:$B$1001,'Class List'!AC7)) -> Command Plants | AE7: =IF(AD7="","",IF(OR(NOT(ISERROR(FIND(Forbidden1,INDEX(Spells!$J$2:$J$1001,AC7),1))),NOT(ISERROR(FIND(Forbidden2,INDEX(Spells!$J$2:$J$1001,AC7),1)))),"* ",""))&AD7 -> Command Plants | AG7: =IF(AND(OR(Cull!$C6="Yes",ISERROR(FIND("#"&Spells!$B5&"#",AF$2)),Spells!$B5="",NOT(ISERROR(FIND(LOWER(ForbiddenAlignment),LOWER(Spells!$J5))))),NOT(Spells!$B5=AF$3)),"",$A7) ->  | AH7: 32 | AI7: 32 | AJ7: =IF(AI7="","",INDEX(Spells!$B$2:$B$1001,'Class List'!AI7)) -> Baleful Polymorph | AK7: =IF(AJ7="","",IF(OR(NOT(ISERROR(FIND(Forbidden1,INDEX(Spells!$J$2:$J$1001,AI7),1))),NOT(ISERROR(FIND(Forbidden2,INDEX(Spells!$J$2:$J$1001,AI7),1)))),"* ",""))&AJ7 -> Baleful Polymorph | AM7: =IF(AND(OR(Cull!$C6="Yes",ISERROR(FIND("#"&Spells!$B5&"#",AL$2)),Spells!$B5="",NOT(ISERROR(FIND(LOWER(ForbiddenAlignment),LOWER(Spells!$J5))))),NOT(Spells!$B5=AL$3)),"",$A7) ->  | AN7: 65 | AO7: 65 | AP7: =IF(AO7="","",INDEX(Spells!$B$2:$B$1001,'Class List'!AO7)) -> Cat's Grace, Mass | AQ7: =IF(AP7="","",IF(OR(NOT(ISERROR(FIND(Forbidden1,INDEX(Spells!$J$2:$J$1001,AO7),1))),NOT(ISERROR(FIND(Forbidden2,INDEX(Spells!$J$2:$J$1001,AO7),1)))),"* ",""))&AP7 -> Cat's Grace, Mass | AS7: =IF(AND(OR(Cull!$C6="Yes",ISERROR(FIND("#"&Spells!$B5&"#",AR$2)),Spells!$B5="",NOT(ISERROR(FIND(LOWER(ForbiddenAlignment),LOWER(Spells!$J5))))),NOT(Spells!$B5=AR$3)),"",$A7) ->  | AT7: 108 | AU7: 108 | AV7: =IF(AU7="","",INDEX(Spells!$B$2:$B$1001,'Class List'!AU7)) -> Creeping Doom | AW7: =IF(AV7="","",IF(OR(NOT(ISERROR(FIND(Forbidden1,INDEX(Spells!$J$2:$J$1001,AU7),1))),NOT(ISERROR(FIND(Forbidden2,INDEX(Spells!$J$2:$J$1001,AU7),1)))),"* ",""))&AV7 -> Creeping Doom | AY7: =IF(AND(OR(Cull!$C6="Yes",ISERROR(FIND("#"&Spells!$B5&"#",AX$2)),Spells!$B5="",NOT(ISERROR(FIND(LOWER(ForbiddenAlignment),LOWER(Spells!$J5))))),NOT(Spells!$B5=AX$3)),"",$A7) ->  | AZ7: 178 | BA7: 178 | BB7: =IF(BA7="","",INDEX(Spells!$B$2:$B$1001,'Class List'!BA7)) -> Earthquake | BC7: =IF(BB7="","",IF(OR(NOT(ISERROR(FIND(Forbidden1,INDEX(Spells!$J$2:$J$1001,BA7),1))),NOT(ISERROR(FIND(Forbidden2,INDEX(Spells!$J$2:$J$1001,BA7),1)))),"* ",""))&BB7 -> Earthquake | BE7: =IF(AND(OR(Cull!$C6="Yes",ISERROR(FIND("#"&Spells!$B5&"#",BD$2)),Spells!$B5="",NOT(ISERROR(FIND(LOWER(ForbiddenAlignment),LOWER(Spells!$J5))))),NOT(Spells!$B5=BD$3)),"",$A7) ->  | BF7: 225 | BG7: 225 | BH7: =IF(BG7="","",INDEX(Spells!$B$2:$B$1001,'Class List'!BG7)) -> Foresight | BI7: =IF(BH7="","",IF(OR(NOT(ISERROR(FIND(Forbidden1,INDEX(Spells!$J$2:$J$1001,BG7),1))),NOT(ISERROR(FIND(Forbidden2,INDEX(Spells!$J$2:$J$1001,BG7),1)))),"* ",""))&BH7 -> Foresight
A8: 5 | C8: =IF(AND(OR(Cull!$C7="Yes",ISERROR(FIND("#"&Spells!$B6&"#",B$2)),Spells!$B6="",NOT(ISERROR(FIND(LOWER(ForbiddenAlignment),LOWER(Spells!$J6))))),NOT(Spells!$B6=B$3)),"",$A8) ->  | D8: 255 | E8: 255 | F8: =IF(E8="","",INDEX(Spells!$B$2:$B$1001,'Class List'!E8)) -> Guidance | G8: =IF(F8="","",IF(OR(NOT(ISERROR(FIND(Forbidden1,INDEX(Spells!$J$2:$J$1001,E8),1))),NOT(ISERROR(FIND(Forbidden2,INDEX(Spells!$J$2:$J$1001,E8),1)))),"* ",""))&F8 -> Guidance | I8: =IF(AND(OR(Cull!$C7="Yes",ISERROR(FIND("#"&Spells!$B6&"#",H$2)),Spells!$B6="",NOT(ISERROR(FIND(LOWER(ForbiddenAlignment),LOWER(Spells!$J6))))),NOT(Spells!$B6=H$3)),"",$A8) ->  | J8: 146 | K8: 146 | L8: =IF(K8="","",INDEX(Spells!$B$2:$B$1001,'Class List'!K8)) -> Detect Snares and Pits | M8: =IF(L8="","",IF(OR(NOT(ISERROR(FIND(Forbidden1,INDEX(Spells!$J$2:$J$1001,K8),1))),NOT(ISERROR(FIND(Forbidden2,INDEX(Spells!$J$2:$J$1001,K8),1)))),"* ",""))&L8 -> Detect Snares and Pits | O8: =IF(AND(OR(Cull!$C7="Yes",ISERROR(FIND("#"&Spells!$B6&"#",N$2)),Spells!$B6="",NOT(ISERROR(FIND(LOWER(ForbiddenAlignment),LOWER(Spells!$J6))))),NOT(Spells!$B6=N$3)),"",$A8) ->  | P8: 36 | Q8: 36 | R8: =IF(Q8="","",INDEX(Spells!$B$2:$B$1001,'Class List'!Q8)) -> Bear's Endurance | S8: =IF(R8="","",IF(OR(NOT(ISERROR(FIND(Forbidden1,INDEX(Spells!$J$2:$J$1001,Q8),1))),NOT(ISERROR(FIND(Forbidden2,INDEX(Spells!$J$2:$J$1001,Q8),1)))),"* ",""))&R8 -> Bear's Endurance | U8: =IF(AND(OR(Cull!$C7="Yes",ISERROR(FIND("#"&Spells!$B6&"#",T$2)),Spells!$B6="",NOT(ISERROR(FIND(LOWER(ForbiddenAlignment),LOWER(Spells!$J6))))),NOT(Spells!$B6=T$3)),"",$A8) ->  | V8: 153 | W8: 153 | X8: =IF(W8="","",INDEX(Spells!$B$2:$B$1001,'Class List'!W8)) -> Diminish Plants | Y8: =IF(X8="","",IF(OR(NOT(ISERROR(FIND(Forbidden1,INDEX(Spells!$J$2:$J$1001,W8),1))),NOT(ISERROR(FIND(Forbidden2,INDEX(Spells!$J$2:$J$1001,W8),1)))),"* ",""))&X8 -> Diminish Plants | Z8: 1 | AA8: =IF(AND(OR(Cull!$C7="Yes",ISERROR(FIND("#"&Spells!$B6&"#",Z$2)),Spells!$B6="",NOT(ISERROR(FIND(LOWER(ForbiddenAlignment),LOWER(Spells!$J6))))),NOT(Spells!$B6=Z$3)),"",$A8) -> 5 | AB8: 100 | AC8: 100 | AD8: =IF(AC8="","",INDEX(Spells!$B$2:$B$1001,'Class List'!AC8)) -> Control Water | AE8: =IF(AD8="","",IF(OR(NOT(ISERROR(FIND(Forbidden1,INDEX(Spells!$J$2:$J$1001,AC8),1))),NOT(ISERROR(FIND(Forbidden2,INDEX(Spells!$J$2:$J$1001,AC8),1)))),"* ",""))&AD8 -> Control Water | AG8: =IF(AND(OR(Cull!$C7="Yes",ISERROR(FIND("#"&Spells!$B6&"#",AF$2)),Spells!$B6="",NOT(ISERROR(FIND(LOWER(ForbiddenAlignment),LOWER(Spells!$J6))))),NOT(Spells!$B6=AF$3)),"",$A8) ->  | AH8: 61 | AI8: 61 | AJ8: =IF(AI8="","",INDEX(Spells!$B$2:$B$1001,'Class List'!AI8)) -> Call Lightning Storm | AK8: =IF(AJ8="","",IF(OR(NOT(ISERROR(FIND(Forbidden1,INDEX(Spells!$J$2:$J$1001,AI8),1))),NOT(ISERROR(FIND(Forbidden2,INDEX(Spells!$J$2:$J$1001,AI8),1)))),"* ",""))&AJ8 -> Call Lightning Storm | AM8: =IF(AND(OR(Cull!$C7="Yes",ISERROR(FIND("#"&Spells!$B6&"#",AL$2)),Spells!$B6="",NOT(ISERROR(FIND(LOWER(ForbiddenAlignment),LOWER(Spells!$J6))))),NOT(Spells!$B6=AL$3)),"",$A8) ->  | AN8: 114 | AO8: 114 | AP8: =IF(AO8="","",INDEX(Spells!$B$2:$B$1001,'Class List'!AO8)) -> Cure Light Wounds, Mass | AQ8: =IF(AP8="","",IF(OR(NOT(ISERROR(FIND(Forbidden1,INDEX(Spells!$J$2:$J$1001,AO8),1))),NOT(ISERROR(FIND(Forbidden2,INDEX(Spells!$J$2:$J$1001,AO8),1)))),"* ",""))&AP8 -> Cure Light Wounds, Mass | AS8: =IF(AND(OR(Cull!$C7="Yes",ISERROR(FIND("#"&Spells!$B6&"#",AR$2)),Spells!$B6="",NOT(ISERROR(FIND(LOWER(ForbiddenAlignment),LOWER(Spells!$J6))))),NOT(Spells!$B6=AR$3)),"",$A8) ->  | AT8: 117 | AU8: 117 | AV8: =IF(AU8="","",INDEX(Spells!$B$2:$B$1001,'Class List'!AU8)) -> Cure Moderate Wounds, Mass | AW8: =IF(AV8="","",IF(OR(NOT(ISERROR(FIND(Forbidden1,INDEX(Spells!$J$2:$J$1001,AU8),1))),NOT(ISERROR(FIND(Forbidden2,INDEX(Spells!$J$2:$J$1001,AU8),1)))),"* ",""))&AV8 -> Cure Moderate Wounds, Mass | AY8: =IF(AND(OR(Cull!$C7="Yes",ISERROR(FIND("#"&Spells!$B6&"#",AX$2)),Spells!$B6="",NOT(ISERROR(FIND(LOWER(ForbiddenAlignment),LOWER(Spells!$J6))))),NOT(Spells!$B6=AX$3)),"",$A8) ->  | AZ8: 207 | BA8: 207 | BB8: =IF(BA8="","",INDEX(Spells!$B$2:$B$1001,'Class List'!BA8)) -> Finger of Death | BC8: =IF(BB8="","",IF(OR(NOT(ISERROR(FIND(Forbidden1,INDEX(Spells!$J$2:$J$1001,BA8),1))),NOT(ISERROR(FIND(Forbidden2,INDEX(Spells!$J$2:$J$1001,BA8),1)))),"* ",""))&BB8 -> Finger of Death | BE8: =IF(AND(OR(Cull!$C7="Yes",ISERROR(FIND("#"&Spells!$B6&"#",BD$2)),Spells!$B6="",NOT(ISERROR(FIND(LOWER(ForbiddenAlignment),LOWER(Spells!$J6))))),NOT(Spells!$B6=BD$3)),"",$A8) ->  | BF8: 443 | BG8: 443 | BH8: =IF(BG8="","",INDEX(Spells!$B$2:$B$1001,'Class List'!BG8)) -> Regenerate | BI8: =IF(BH8="","",IF(OR(NOT(ISERROR(FIND(Forbidden1,INDEX(Spells!$J$2:$J$1001,BG8),1))),NOT(ISERROR(FIND(Forbidden2,INDEX(Spells!$J$2:$J$1001,BG8),1)))),"* ",""))&BH8 -> Regenerate
A9: 6 | C9: =IF(AND(OR(Cull!$C8="Yes",ISERROR(FIND("#"&Spells!$B7&"#",B$2)),Spells!$B7="",NOT(ISERROR(FIND(LOWER(ForbiddenAlignment),LOWER(Spells!$J7))))),NOT(Spells!$B7=B$3)),"",$A9) ->  | D9: 318 | E9: 318 | F9: =IF(E9="","",INDEX(Spells!$B$2:$B$1001,'Class List'!E9)) -> Know Direction | G9: =IF(F9="","",IF(OR(NOT(ISERROR(FIND(Forbidden1,INDEX(Spells!$J$2:$J$1001,E9),1))),NOT(ISERROR(FIND(Forbidden2,INDEX(Spells!$J$2:$J$1001,E9),1)))),"* ",""))&F9 -> Know Direction | I9: =IF(AND(OR(Cull!$C8="Yes",ISERROR(FIND("#"&Spells!$B7&"#",H$2)),Spells!$B7="",NOT(ISERROR(FIND(LOWER(ForbiddenAlignment),LOWER(Spells!$J7))))),NOT(Spells!$B7=H$3)),"",$A9) ->  | J9: 184 | K9: 184 | L9: =IF(K9="","",INDEX(Spells!$B$2:$B$1001,'Class List'!K9)) -> Endure Elements | M9: =IF(L9="","",IF(OR(NOT(ISERROR(FIND(Forbidden1,INDEX(Spells!$J$2:$J$1001,K9),1))),NOT(ISERROR(FIND(Forbidden2,INDEX(Spells!$J$2:$J$1001,K9),1)))),"* ",""))&L9 -> Endure Elements | O9: =IF(AND(OR(Cull!$C8="Yes",ISERROR(FIND("#"&Spells!$B7&"#",N$2)),Spells!$B7="",NOT(ISERROR(FIND(LOWER(ForbiddenAlignment),LOWER(Spells!$J7))))),NOT(Spells!$B7=N$3)),"",$A9) ->  | P9: 57 | Q9: 57 | R9: =IF(Q9="","",INDEX(Spells!$B$2:$B$1001,'Class List'!Q9)) -> Bull's Strength | S9: =IF(R9="","",IF(OR(NOT(ISERROR(FIND(Forbidden1,INDEX(Spells!$J$2:$J$1001,Q9),1))),NOT(ISERROR(FIND(Forbidden2,INDEX(Spells!$J$2:$J$1001,Q9),1)))),"* ",""))&R9 -> Bull's Strength | U9: =IF(AND(OR(Cull!$C8="Yes",ISERROR(FIND("#"&Spells!$B7&"#",T$2)),Spells!$B7="",NOT(ISERROR(FIND(LOWER(ForbiddenAlignment),LOWER(Spells!$J7))))),NOT(Spells!$B7=T$3)),"",$A9) ->  | V9: 171 | W9: 171 | X9: =IF(W9="","",INDEX(Spells!$B$2:$B$1001,'Class List'!W9)) -> Dominate Animal | Y9: =IF(X9="","",IF(OR(NOT(ISERROR(FIND(Forbidden1,INDEX(Spells!$J$2:$J$1001,W9),1))),NOT(ISERROR(FIND(Forbidden2,INDEX(Spells!$J$2:$J$1001,W9),1)))),"* ",""))&X9 -> Dominate Animal | AA9: =IF(AND(OR(Cull!$C8="Yes",ISERROR(FIND("#"&Spells!$B7&"#",Z$2)),Spells!$B7="",NOT(ISERROR(FIND(LOWER(ForbiddenAlignment),LOWER(Spells!$J7))))),NOT(Spells!$B7=Z$3)),"",$A9) ->  | AB9: 118 | AC9: 118 | AD9: =IF(AC9="","",INDEX(Spells!$B$2:$B$1001,'Class List'!AC9)) -> Cure Serious Wounds | AE9: =IF(AD9="","",IF(OR(NOT(ISERROR(FIND(Forbidden1,INDEX(Spells!$J$2:$J$1001,AC9),1))),NOT(ISERROR(FIND(Forbidden2,INDEX(Spells!$J$2:$J$1001,AC9),1)))),"* ",""))&AD9 -> Cure Serious Wounds | AG9: =IF(AND(OR(Cull!$C8="Yes",ISERROR(FIND("#"&Spells!$B7&"#",AF$2)),Spells!$B7="",NOT(ISERROR(FIND(LOWER(ForbiddenAlignment),LOWER(Spells!$J7))))),NOT(Spells!$B7=AF$3)),"",$A9) ->  | AH9: 88 | AI9: 88 | AJ9: =IF(AI9="","",INDEX(Spells!$B$2:$B$1001,'Class List'!AI9)) -> Commune with Nature | AK9: =IF(AJ9="","",IF(OR(NOT(ISERROR(FIND(Forbidden1,INDEX(Spells!$J$2:$J$1001,AI9),1))),NOT(ISERROR(FIND(Forbidden2,INDEX(Spells!$J$2:$J$1001,AI9),1)))),"* ",""))&AJ9 -> Commune with Nature | AM9: =IF(AND(OR(Cull!$C8="Yes",ISERROR(FIND("#"&Spells!$B7&"#",AL$2)),Spells!$B7="",NOT(ISERROR(FIND(LOWER(ForbiddenAlignment),LOWER(Spells!$J7))))),NOT(Spells!$B7=AL$3)),"",$A9) ->  | AN9: 164 | AO9: 164 | AP9: =IF(AO9="","",INDEX(Spells!$B$2:$B$1001,'Class List'!AO9)) -> Dispel Magic, Greater | AQ9: =IF(AP9="","",IF(OR(NOT(ISERROR(FIND(Forbidden1,INDEX(Spells!$J$2:$J$1001,AO9),1))),NOT(ISERROR(FIND(Forbidden2,INDEX(Spells!$J$2:$J$1001,AO9),1)))),"* ",""))&AP9 -> Dispel Magic, Greater | AS9: =IF(AND(OR(Cull!$C8="Yes",ISERROR(FIND("#"&Spells!$B7&"#",AR$2)),Spells!$B7="",NOT(ISERROR(FIND(LOWER(ForbiddenAlignment),LOWER(Spells!$J7))))),NOT(Spells!$B7=AR$3)),"",$A9) ->  | AT9: 210 | AU9: 210 | AV9: =IF(AU9="","",INDEX(Spells!$B$2:$B$1001,'Class List'!AU9)) -> Fire Storm | AW9: =IF(AV9="","",IF(OR(NOT(ISERROR(FIND(Forbidden1,INDEX(Spells!$J$2:$J$1001,AU9),1))),NOT(ISERROR(FIND(Forbidden2,INDEX(Spells!$J$2:$J$1001,AU9),1)))),"* ",""))&AV9 -> Fire Storm | AY9: =IF(AND(OR(Cull!$C8="Yes",ISERROR(FIND("#"&Spells!$B7&"#",AX$2)),Spells!$B7="",NOT(ISERROR(FIND(LOWER(ForbiddenAlignment),LOWER(Spells!$J7))))),NOT(Spells!$B7=AX$3)),"",$A9) ->  | AZ9: 450 | BA9: 450 | BB9: =IF(BA9="","",INDEX(Spells!$B$2:$B$1001,'Class List'!BA9)) -> Repel Metal or Stone | BC9: =IF(BB9="","",IF(OR(NOT(ISERROR(FIND(Forbidden1,INDEX(Spells!$J$2:$J$1001,BA9),1))),NOT(ISERROR(FIND(Forbidden2,INDEX(Spells!$J$2:$J$1001,BA9),1)))),"* ",""))&BB9 -> Repel Metal or Stone | BE9: =IF(AND(OR(Cull!$C8="Yes",ISERROR(FIND("#"&Spells!$B7&"#",BD$2)),Spells!$B7="",NOT(ISERROR(FIND(LOWER(ForbiddenAlignment),LOWER(Spells!$J7))))),NOT(Spells!$B7=BD$3)),"",$A9) ->  | BF9: 488 | BG9: 488 | BH9: =IF(BG9="","",INDEX(Spells!$B$2:$B$1001,'Class List'!BG9)) -> Shambler | BI9: =IF(BH9="","",IF(OR(NOT(ISERROR(FIND(Forbidden1,INDEX(Spells!$J$2:$J$1001,BG9),1))),NOT(ISERROR(FIND(Forbidden2,INDEX(Spells!$J$2:$J$1001,BG9),1)))),"* ",""))&BH9 -> Shambler
A10: 7 | C10: =IF(AND(OR(Cull!$C9="Yes",ISERROR(FIND("#"&Spells!$B8&"#",B$2)),Spells!$B8="",NOT(ISERROR(FIND(LOWER(ForbiddenAlignment),LOWER(Spells!$J8))))),NOT(Spells!$B8=B$3)),"",$A10) ->  | D10: 321 | E10: 321 | F10: =IF(E10="","",INDEX(Spells!$B$2:$B$1001,'Class List'!E10)) -> Light | G10: =IF(F10="","",IF(OR(NOT(ISERROR(FIND(Forbidden1,INDEX(Spells!$J$2:$J$1001,E10),1))),NOT(ISERROR(FIND(Forbidden2,INDEX(Spells!$J$2:$J$1001,E10),1)))),"* ",""))&F10 -> Light | I10: =IF(AND(OR(Cull!$C9="Yes",ISERROR(FIND("#"&Spells!$B8&"#",H$2)),Spells!$B8="",NOT(ISERROR(FIND(LOWER(ForbiddenAlignment),LOWER(Spells!$J8))))),NOT(Spells!$B8=H$3)),"",$A10) ->  | J10: 189 | K10: 189 | L10: =IF(K10="","",INDEX(Spells!$B$2:$B$1001,'Class List'!K10)) -> Entangle | M10: =IF(L10="","",IF(OR(NOT(ISERROR(FIND(Forbidden1,INDEX(Spells!$J$2:$J$1001,K10),1))),NOT(ISERROR(FIND(Forbidden2,INDEX(Spells!$J$2:$J$1001,K10),1)))),"* ",""))&L10 -> Entangle | N10: 1 | O10: =IF(AND(OR(Cull!$C9="Yes",ISERROR(FIND("#"&Spells!$B8&"#",N$2)),Spells!$B8="",NOT(ISERROR(FIND(LOWER(ForbiddenAlignment),LOWER(Spells!$J8))))),NOT(Spells!$B8=N$3)),"",$A10) -> 7 | P10: 64 | Q10: 64 | R10: =IF(Q10="","",INDEX(Spells!$B$2:$B$1001,'Class List'!Q10)) -> Cat's Grace | S10: =IF(R10="","",IF(OR(NOT(ISERROR(FIND(Forbidden1,INDEX(Spells!$J$2:$J$1001,Q10),1))),NOT(ISERROR(FIND(Forbidden2,INDEX(Spells!$J$2:$J$1001,Q10),1)))),"* ",""))&R10 -> Cat's Grace | U10: =IF(AND(OR(Cull!$C9="Yes",ISERROR(FIND("#"&Spells!$B8&"#",T$2)),Spells!$B8="",NOT(ISERROR(FIND(LOWER(ForbiddenAlignment),LOWER(Spells!$J8))))),NOT(Spells!$B8=T$3)),"",$A10) ->  | V10: 343 | W10: 343 | X10: =IF(W10="","",INDEX(Spells!$B$2:$B$1001,'Class List'!W10)) -> Magic Fang, Greater | Y10: =IF(X10="","",IF(OR(NOT(ISERROR(FIND(Forbidden1,INDEX(Spells!$J$2:$J$1001,W10),1))),NOT(ISERROR(FIND(Forbidden2,INDEX(Spells!$J$2:$J$1001,W10),1)))),"* ",""))&X10 -> Magic Fang, Greater | AA10: =IF(AND(OR(Cull!$C9="Yes",ISERROR(FIND("#"&Spells!$B8&"#",Z$2)),Spells!$B8="",NOT(ISERROR(FIND(LOWER(ForbiddenAlignment),LOWER(Spells!$J8))))),NOT(Spells!$B8=Z$3)),"",$A10) ->  | AB10: 163 | AC10: 163 | AD10: =IF(AC10="","",INDEX(Spells!$B$2:$B$1001,'Class List'!AC10)) -> Dispel Magic | AE10: =IF(AD10="","",IF(OR(NOT(ISERROR(FIND(Forbidden1,INDEX(Spells!$J$2:$J$1001,AC10),1))),NOT(ISERROR(FIND(Forbidden2,INDEX(Spells!$J$2:$J$1001,AC10),1)))),"* ",""))&AD10 -> Dispel Magic | AG10: =IF(AND(OR(Cull!$C9="Yes",ISERROR(FIND("#"&Spells!$B8&"#",AF$2)),Spells!$B8="",NOT(ISERROR(FIND(LOWER(ForbiddenAlignment),LOWER(Spells!$J8))))),NOT(Spells!$B8=AF$3)),"",$A10) ->  | AH10: 102 | AI10: 102 | AJ10: =IF(AI10="","",INDEX(Spells!$B$2:$B$1001,'Class List'!AI10)) -> Control Winds | AK10: =IF(AJ10="","",IF(OR(NOT(ISERROR(FIND(Forbidden1,INDEX(Spells!$J$2:$J$1001,AI10),1))),NOT(ISERROR(FIND(Forbidden2,INDEX(Spells!$J$2:$J$1001,AI10),1)))),"* ",""))&AJ10 -> Control Winds | AM10: =IF(AND(OR(Cull!$C9="Yes",ISERROR(FIND("#"&Spells!$B8&"#",AL$2)),Spells!$B8="",NOT(ISERROR(FIND(LOWER(ForbiddenAlignment),LOWER(Spells!$J8))))),NOT(Spells!$B8=AL$3)),"",$A10) ->  | AN10: 205 | AO10: 205 | AP10: =IF(AO10="","",INDEX(Spells!$B$2:$B$1001,'Class List'!AO10)) -> Find the Path | AQ10: =IF(AP10="","",IF(OR(NOT(ISERROR(FIND(Forbidden1,INDEX(Spells!$J$2:$J$1001,AO10),1))),NOT(ISERROR(FIND(Forbidden2,INDEX(Spells!$J$2:$J$1001,AO10),1)))),"* ",""))&AP10 -> Find the Path | AS10: =IF(AND(OR(Cull!$C9="Yes",ISERROR(FIND("#"&Spells!$B8&"#",AR$2)),Spells!$B8="",NOT(ISERROR(FIND(LOWER(ForbiddenAlignment),LOWER(Spells!$J8))))),NOT(Spells!$B8=AR$3)),"",$A10) ->  | AT10: 262 | AU10: 262 | AV10: =IF(AU10="","",INDEX(Spells!$B$2:$B$1001,'Class List'!AU10)) -> Heal | AW10: =IF(AV10="","",IF(OR(NOT(ISERROR(FIND(Forbidden1,INDEX(Spells!$J$2:$J$1001,AU10),1))),NOT(ISERROR(FIND(Forbidden2,INDEX(Spells!$J$2:$J$1001,AU10),1)))),"* ",""))&AV10 -> Heal | AY10: =IF(AND(OR(Cull!$C9="Yes",ISERROR(FIND("#"&Spells!$B8&"#",AX$2)),Spells!$B8="",NOT(ISERROR(FIND(LOWER(ForbiddenAlignment),LOWER(Spells!$J8))))),NOT(Spells!$B8=AX$3)),"",$A10) ->  | AZ10: 461 | BA10: 461 | BB10: =IF(BA10="","",INDEX(Spells!$B$2:$B$1001,'Class List'!BA10)) -> Reverse Gravity | BC10: =IF(BB10="","",IF(OR(NOT(ISERROR(FIND(Forbidden1,INDEX(Spells!$J$2:$J$1001,BA10),1))),NOT(ISERROR(FIND(Forbidden2,INDEX(Spells!$J$2:$J$1001,BA10),1)))),"* ",""))&BB10 -> Reverse Gravity | BE10: =IF(AND(OR(Cull!$C9="Yes",ISERROR(FIND("#"&Spells!$B8&"#",BD$2)),Spells!$B8="",NOT(ISERROR(FIND(LOWER(ForbiddenAlignment),LOWER(Spells!$J8))))),NOT(Spells!$B8=BD$3)),"",$A10) ->  | BF10: 489 | BG10: 489 | BH10: =IF(BG10="","",INDEX(Spells!$B$2:$B$1001,'Class List'!BG10)) -> Shapechange | BI10: =IF(BH10="","",IF(OR(NOT(ISERROR(FIND(Forbidden1,INDEX(Spells!$J$2:$J$1001,BG10),1))),NOT(ISERROR(FIND(Forbidden2,INDEX(Spells!$J$2:$J$1001,BG10),1)))),"* ",""))&BH10 -> Shapechange
A11: 8 | C11: =IF(AND(OR(Cull!$C10="Yes",ISERROR(FIND("#"&Spells!$B9&"#",B$2)),Spells!$B9="",NOT(ISERROR(FIND(LOWER(ForbiddenAlignment),LOWER(Spells!$J9))))),NOT(Spells!$B9=B$3)),"",$A11) ->  | D11: 357 | E11: 357 | F11: =IF(E11="","",INDEX(Spells!$B$2:$B$1001,'Class List'!E11)) -> Mending | G11: =IF(F11="","",IF(OR(NOT(ISERROR(FIND(Forbidden1,INDEX(Spells!$J$2:$J$1001,E11),1))),NOT(ISERROR(FIND(Forbidden2,INDEX(Spells!$J$2:$J$1001,E11),1)))),"* ",""))&F11 -> Mending | I11: =IF(AND(OR(Cull!$C10="Yes",ISERROR(FIND("#"&Spells!$B9&"#",H$2)),Spells!$B9="",NOT(ISERROR(FIND(LOWER(ForbiddenAlignment),LOWER(Spells!$J9))))),NOT(Spells!$B9=H$3)),"",$A11) ->  | J11: 199 | K11: 199 | L11: =IF(K11="","",INDEX(Spells!$B$2:$B$1001,'Class List'!K11)) -> Faerie Fire | M11: =IF(L11="","",IF(OR(NOT(ISERROR(FIND(Forbidden1,INDEX(Spells!$J$2:$J$1001,K11),1))),NOT(ISERROR(FIND(Forbidden2,INDEX(Spells!$J$2:$J$1001,K11),1)))),"* ",""))&L11 -> Faerie Fire | O11: =IF(AND(OR(Cull!$C10="Yes",ISERROR(FIND("#"&Spells!$B9&"#",N$2)),Spells!$B9="",NOT(ISERROR(FIND(LOWER(ForbiddenAlignment),LOWER(Spells!$J9))))),NOT(Spells!$B9=N$3)),"",$A11) ->  | P11: 74 | Q11: 74 | R11: =IF(Q11="","",INDEX(Spells!$B$2:$B$1001,'Class List'!Q11)) -> Chill Metal | S11: =IF(R11="","",IF(OR(NOT(ISERROR(FIND(Forbidden1,INDEX(Spells!$J$2:$J$1001,Q11),1))),NOT(ISERROR(FIND(Forbidden2,INDEX(Spells!$J$2:$J$1001,Q11),1)))),"* ",""))&R11 -> Chill Metal | U11: =IF(AND(OR(Cull!$C10="Yes",ISERROR(FIND("#"&Spells!$B9&"#",T$2)),Spells!$B9="",NOT(ISERROR(FIND(LOWER(ForbiddenAlignment),LOWER(Spells!$J9))))),NOT(Spells!$B9=T$3)),"",$A11) ->  | V11: 356 | W11: 356 | X11: =IF(W11="","",INDEX(Spells!$B$2:$B$1001,'Class List'!W11)) -> Meld into Stone | Y11: =IF(X11="","",IF(OR(NOT(ISERROR(FIND(Forbidden1,INDEX(Spells!$J$2:$J$1001,W11),1))),NOT(ISERROR(FIND(Forbidden2,INDEX(Spells!$J$2:$J$1001,W11),1)))),"* ",""))&X11 -> Meld into Stone | AA11: =IF(AND(OR(Cull!$C10="Yes",ISERROR(FIND("#"&Spells!$B9&"#",Z$2)),Spells!$B9="",NOT(ISERROR(FIND(LOWER(ForbiddenAlignment),LOWER(Spells!$J9))))),NOT(Spells!$B9=Z$3)),"",$A11) ->  | AB11: 215 | AC11: 215 | AD11: =IF(AC11="","",INDEX(Spells!$B$2:$B$1001,'Class List'!AC11)) -> Flame Strike | AE11: =IF(AD11="","",IF(OR(NOT(ISERROR(FIND(Forbidden1,INDEX(Spells!$J$2:$J$1001,AC11),1))),NOT(ISERROR(FIND(Forbidden2,INDEX(Spells!$J$2:$J$1001,AC11),1)))),"* ",""))&AD11 -> Flame Strike | AG11: =IF(AND(OR(Cull!$C10="Yes",ISERROR(FIND("#"&Spells!$B9&"#",AF$2)),Spells!$B9="",NOT(ISERROR(FIND(LOWER(ForbiddenAlignment),LOWER(Spells!$J9))))),NOT(Spells!$B9=AF$3)),"",$A11) ->  | AH11: 111 | AI11: 111 | AJ11: =IF(AI11="","",INDEX(Spells!$B$2:$B$1001,'Class List'!AI11)) -> Cure Critical Wounds | AK11: =IF(AJ11="","",IF(OR(NOT(ISERROR(FIND(Forbidden1,INDEX(Spells!$J$2:$J$1001,AI11),1))),NOT(ISERROR(FIND(Forbidden2,INDEX(Spells!$J$2:$J$1001,AI11),1)))),"* ",""))&AJ11 -> Cure Critical Wounds | AM11: =IF(AND(OR(Cull!$C10="Yes",ISERROR(FIND("#"&Spells!$B9&"#",AL$2)),Spells!$B9="",NOT(ISERROR(FIND(LOWER(ForbiddenAlignment),LOWER(Spells!$J9))))),NOT(Spells!$B9=AL$3)),"",$A11) ->  | AN11: 208 | AO11: 208 | AP11: =IF(AO11="","",INDEX(Spells!$B$2:$B$1001,'Class List'!AO11)) -> Fire Seeds | AQ11: =IF(AP11="","",IF(OR(NOT(ISERROR(FIND(Forbidden1,INDEX(Spells!$J$2:$J$1001,AO11),1))),NOT(ISERROR(FIND(Forbidden2,INDEX(Spells!$J$2:$J$1001,AO11),1)))),"* ",""))&AP11 -> Fire Seeds | AS11: =IF(AND(OR(Cull!$C10="Yes",ISERROR(FIND("#"&Spells!$B9&"#",AR$2)),Spells!$B9="",NOT(ISERROR(FIND(LOWER(ForbiddenAlignment),LOWER(Spells!$J9))))),NOT(Spells!$B9=AR$3)),"",$A11) ->  | AT11: 471 | AU11: 471 | AV11: =IF(AU11="","",INDEX(Spells!$B$2:$B$1001,'Class List'!AU11)) -> Scrying, Greater | AW11: =IF(AV11="","",IF(OR(NOT(ISERROR(FIND(Forbidden1,INDEX(Spells!$J$2:$J$1001,AU11),1))),NOT(ISERROR(FIND(Forbidden2,INDEX(Spells!$J$2:$J$1001,AU11),1)))),"* ",""))&AV11 -> Scrying, Greater | AY11: =IF(AND(OR(Cull!$C10="Yes",ISERROR(FIND("#"&Spells!$B9&"#",AX$2)),Spells!$B9="",NOT(ISERROR(FIND(LOWER(ForbiddenAlignment),LOWER(Spells!$J9))))),NOT(Spells!$B9=AX$3)),"",$A11) ->  | AZ11: 555 | BA11: 555 | BB11: =IF(BA11="","",INDEX(Spells!$B$2:$B$1001,'Class List'!BA11)) -> Summon Nature's Ally VIII | BC11: =IF(BB11="","",IF(OR(NOT(ISERROR(FIND(Forbidden1,INDEX(Spells!$J$2:$J$1001,BA11),1))),NOT(ISERROR(FIND(Forbidden2,INDEX(Spells!$J$2:$J$1001,BA11),1)))),"* ",""))&BB11 -> Summon Nature's Ally VIII | BE11: =IF(AND(OR(Cull!$C10="Yes",ISERROR(FIND("#"&Spells!$B9&"#",BD$2)),Spells!$B9="",NOT(ISERROR(FIND(LOWER(ForbiddenAlignment),LOWER(Spells!$J9))))),NOT(Spells!$B9=BD$3)),"",$A11) ->  | BF11: 534 | BG11: 534 | BH11: =IF(BG11="","",INDEX(Spells!$B$2:$B$1001,'Class List'!BG11)) -> Storm of Vengeance | BI11: =IF(BH11="","",IF(OR(NOT(ISERROR(FIND(Forbidden1,INDEX(Spells!$J$2:$J$1001,BG11),1))),NOT(ISERROR(FIND(Forbidden2,INDEX(Spells!$J$2:$J$1001,BG11),1)))),"* ",""))&BH11 -> Storm of Vengeance
A12: 9 | C12: =IF(AND(OR(Cull!$C11="Yes",ISERROR(FIND("#"&Spells!$B10&"#",B$2)),Spells!$B10="",NOT(ISERROR(FIND(LOWER(ForbiddenAlignment),LOWER(Spells!$J10))))),NOT(Spells!$B10=B$3)),"",$A12) ->  | D12: 429 | E12: 429 | F12: =IF(E12="","",INDEX(Spells!$B$2:$B$1001,'Class List'!E12)) -> Purify Food and Drink | G12: =IF(F12="","",IF(OR(NOT(ISERROR(FIND(Forbidden1,INDEX(Spells!$J$2:$J$1001,E12),1))),NOT(ISERROR(FIND(Forbidden2,INDEX(Spells!$J$2:$J$1001,E12),1)))),"* ",""))&F12 -> Purify Food and Drink | I12: =IF(AND(OR(Cull!$C11="Yes",ISERROR(FIND("#"&Spells!$B10&"#",H$2)),Spells!$B10="",NOT(ISERROR(FIND(LOWER(ForbiddenAlignment),LOWER(Spells!$J10))))),NOT(Spells!$B10=H$3)),"",$A12) ->  | J12: 251 | K12: 251 | L12: =IF(K12="","",INDEX(Spells!$B$2:$B$1001,'Class List'!K12)) -> Goodberry | M12: =IF(L12="","",IF(OR(NOT(ISERROR(FIND(Forbidden1,INDEX(Spells!$J$2:$J$1001,K12),1))),NOT(ISERROR(FIND(Forbidden2,INDEX(Spells!$J$2:$J$1001,K12),1)))),"* ",""))&L12 -> Goodberry | O12: =IF(AND(OR(Cull!$C11="Yes",ISERROR(FIND("#"&Spells!$B10&"#",N$2)),Spells!$B10="",NOT(ISERROR(FIND(LOWER(ForbiddenAlignment),LOWER(Spells!$J10))))),NOT(Spells!$B10=N$3)),"",$A12) ->  | P12: 132 | Q12: 132 | R12: =IF(Q12="","",INDEX(Spells!$B$2:$B$1001,'Class List'!Q12)) -> Delay Poison | S12: =IF(R12="","",IF(OR(NOT(ISERROR(FIND(Forbidden1,INDEX(Spells!$J$2:$J$1001,Q12),1))),NOT(ISERROR(FIND(Forbidden2,INDEX(Spells!$J$2:$J$1001,Q12),1)))),"* ",""))&R12 -> Delay Poison | U12: =IF(AND(OR(Cull!$C11="Yes",ISERROR(FIND("#"&Spells!$B10&"#",T$2)),Spells!$B10="",NOT(ISERROR(FIND(LOWER(ForbiddenAlignment),LOWER(Spells!$J10))))),NOT(Spells!$B10=T$3)),"",$A12) ->  | V12: 374 | W12: 374 | X12: =IF(W12="","",INDEX(Spells!$B$2:$B$1001,'Class List'!W12)) -> Neutralize Poison | Y12: =IF(X12="","",IF(OR(NOT(ISERROR(FIND(Forbidden1,INDEX(Spells!$J$2:$J$1001,W12),1))),NOT(ISERROR(FIND(Forbidden2,INDEX(Spells!$J$2:$J$1001,W12),1)))),"* ",""))&X12 -> Neutralize Poison | AA12: =IF(AND(OR(Cull!$C11="Yes",ISERROR(FIND("#"&Spells!$B10&"#",Z$2)),Spells!$B10="",NOT(ISERROR(FIND(LOWER(ForbiddenAlignment),LOWER(Spells!$J10))))),NOT(Spells!$B10=Z$3)),"",$A12) ->  | AB12: 232 | AC12: 232 | AD12: =IF(AC12="","",INDEX(Spells!$B$2:$B$1001,'Class List'!AC12)) -> Freedom of Movement | AE12: =IF(AD12="","",IF(OR(NOT(ISERROR(FIND(Forbidden1,INDEX(Spells!$J$2:$J$1001,AC12),1))),NOT(ISERROR(FIND(Forbidden2,INDEX(Spells!$J$2:$J$1001,AC12),1)))),"* ",""))&AD12 -> Freedom of Movement | AG12: =IF(AND(OR(Cull!$C11="Yes",ISERROR(FIND("#"&Spells!$B10&"#",AF$2)),Spells!$B10="",NOT(ISERROR(FIND(LOWER(ForbiddenAlignment),LOWER(Spells!$J10))))),NOT(Spells!$B10=AF$3)),"",$A12) ->  | AH12: 128 | AI12: 128 | AJ12: =IF(AI12="","",INDEX(Spells!$B$2:$B$1001,'Class List'!AI12)) -> Death Ward | AK12: =IF(AJ12="","",IF(OR(NOT(ISERROR(FIND(Forbidden1,INDEX(Spells!$J$2:$J$1001,AI12),1))),NOT(ISERROR(FIND(Forbidden2,INDEX(Spells!$J$2:$J$1001,AI12),1)))),"* ",""))&AJ12 -> Death Ward | AM12: =IF(AND(OR(Cull!$C11="Yes",ISERROR(FIND("#"&Spells!$B10&"#",AL$2)),Spells!$B10="",NOT(ISERROR(FIND(LOWER(ForbiddenAlignment),LOWER(Spells!$J10))))),NOT(Spells!$B10=AL$3)),"",$A12) ->  | AN12: 313 | AO12: 313 | AP12: =IF(AO12="","",INDEX(Spells!$B$2:$B$1001,'Class List'!AO12)) -> Ironwood | AQ12: =IF(AP12="","",IF(OR(NOT(ISERROR(FIND(Forbidden1,INDEX(Spells!$J$2:$J$1001,AO12),1))),NOT(ISERROR(FIND(Forbidden2,INDEX(Spells!$J$2:$J$1001,AO12),1)))),"* ",""))&AP12 -> Ironwood | AS12: =IF(AND(OR(Cull!$C11="Yes",ISERROR(FIND("#"&Spells!$B10&"#",AR$2)),Spells!$B10="",NOT(ISERROR(FIND(LOWER(ForbiddenAlignment),LOWER(Spells!$J10))))),NOT(Spells!$B10=AR$3)),"",$A12) ->  | AT12: 554 | AU12: 554 | AV12: =IF(AU12="","",INDEX(Spells!$B$2:$B$1001,'Class List'!AU12)) -> Summon Nature's Ally VII | AW12: =IF(AV12="","",IF(OR(NOT(ISERROR(FIND(Forbidden1,INDEX(Spells!$J$2:$J$1001,AU12),1))),NOT(ISERROR(FIND(Forbidden2,INDEX(Spells!$J$2:$J$1001,AU12),1)))),"* ",""))&AV12 -> Summon Nature's Ally VII | AY12: =IF(AND(OR(Cull!$C11="Yes",ISERROR(FIND("#"&Spells!$B10&"#",AX$2)),Spells!$B10="",NOT(ISERROR(FIND(LOWER(ForbiddenAlignment),LOWER(Spells!$J10))))),NOT(Spells!$B10=AX$3)),"",$A12) ->  | AZ12: 558 | BA12: 558 | BB12: =IF(BA12="","",INDEX(Spells!$B$2:$B$1001,'Class List'!BA12)) -> Sunburst | BC12: =IF(BB12="","",IF(OR(NOT(ISERROR(FIND(Forbidden1,INDEX(Spells!$J$2:$J$1001,BA12),1))),NOT(ISERROR(FIND(Forbidden2,INDEX(Spells!$J$2:$J$1001,BA12),1)))),"* ",""))&BB12 -> Sunburst | BE12: =IF(AND(OR(Cull!$C11="Yes",ISERROR(FIND("#"&Spells!$B10&"#",BD$2)),Spells!$B10="",NOT(ISERROR(FIND(LOWER(ForbiddenAlignment),LOWER(Spells!$J10))))),NOT(Spells!$B10=BD$3)),"",$A12) ->  | BF12: 551 | BG12: 551 | BH12: =IF(BG12="","",INDEX(Spells!$B$2:$B$1001,'Class List'!BG12)) -> Summon Nature's Ally IX | BI12: =IF(BH12="","",IF(OR(NOT(ISERROR(FIND(Forbidden1,INDEX(Spells!$J$2:$J$1001,BG12),1))),NOT(ISERROR(FIND(Forbidden2,INDEX(Spells!$J$2:$J$1001,BG12),1)))),"* ",""))&BH12 -> Summon Nature's Ally IX
A13: 10 | C13: =IF(AND(OR(Cull!$C12="Yes",ISERROR(FIND("#"&Spells!$B11&"#",B$2)),Spells!$B11="",NOT(ISERROR(FIND(LOWER(ForbiddenAlignment),LOWER(Spells!$J11))))),NOT(Spells!$B11=B$3)),"",$A13) ->  | D13: 438 | E13: 438 | F13: =IF(E13="","",INDEX(Spells!$B$2:$B$1001,'Class List'!E13)) -> Read Magic | G13: =IF(F13="","",IF(OR(NOT(ISERROR(FIND(Forbidden1,INDEX(Spells!$J$2:$J$1001,E13),1))),NOT(ISERROR(FIND(Forbidden2,INDEX(Spells!$J$2:$J$1001,E13),1)))),"* ",""))&F13 -> Read Magic | I13: =IF(AND(OR(Cull!$C12="Yes",ISERROR(FIND("#"&Spells!$B11&"#",H$2)),Spells!$B11="",NOT(ISERROR(FIND(LOWER(ForbiddenAlignment),LOWER(Spells!$J11))))),NOT(Spells!$B11=H$3)),"",$A13) ->  | J13: 270 | K13: 270 | L13: =IF(K13="","",INDEX(Spells!$B$2:$B$1001,'Class List'!K13)) -> Hide from Animals | M13: =IF(L13="","",IF(OR(NOT(ISERROR(FIND(Forbidden1,INDEX(Spells!$J$2:$J$1001,K13),1))),NOT(ISERROR(FIND(Forbidden2,INDEX(Spells!$J$2:$J$1001,K13),1)))),"* ",""))&L13 -> Hide from Animals | O13: =IF(AND(OR(Cull!$C12="Yes",ISERROR(FIND("#"&Spells!$B11&"#",N$2)),Spells!$B11="",NOT(ISERROR(FIND(LOWER(ForbiddenAlignment),LOWER(Spells!$J11))))),NOT(Spells!$B11=N$3)),"",$A13) ->  | P13: 211 | Q13: 211 | R13: =IF(Q13="","",INDEX(Spells!$B$2:$B$1001,'Class List'!Q13)) -> Fire Trap | S13: =IF(R13="","",IF(OR(NOT(ISERROR(FIND(Forbidden1,INDEX(Spells!$J$2:$J$1001,Q13),1))),NOT(ISERROR(FIND(Forbidden2,INDEX(Spells!$J$2:$J$1001,Q13),1)))),"* ",""))&R13 -> Fire Trap | U13: =IF(AND(OR(Cull!$C12="Yes",ISERROR(FIND("#"&Spells!$B11&"#",T$2)),Spells!$B11="",NOT(ISERROR(FIND(LOWER(ForbiddenAlignment),LOWER(Spells!$J11))))),NOT(Spells!$B11=T$3)),"",$A13) ->  | V13: 400 | W13: 400 | X13: =IF(W13="","",INDEX(Spells!$B$2:$B$1001,'Class List'!W13)) -> Plant Growth | Y13: =IF(X13="","",IF(OR(NOT(ISERROR(FIND(Forbidden1,INDEX(Spells!$J$2:$J$1001,W13),1))),NOT(ISERROR(FIND(Forbidden2,INDEX(Spells!$J$2:$J$1001,W13),1)))),"* ",""))&X13 -> Plant Growth | AA13: =IF(AND(OR(Cull!$C12="Yes",ISERROR(FIND("#"&Spells!$B11&"#",Z$2)),Spells!$B11="",NOT(ISERROR(FIND(LOWER(ForbiddenAlignment),LOWER(Spells!$J11))))),NOT(Spells!$B11=Z$3)),"",$A13) ->  | AB13: 243 | AC13: 243 | AD13: =IF(AC13="","",INDEX(Spells!$B$2:$B$1001,'Class List'!AC13)) -> Giant Vermin | AE13: =IF(AD13="","",IF(OR(NOT(ISERROR(FIND(Forbidden1,INDEX(Spells!$J$2:$J$1001,AC13),1))),NOT(ISERROR(FIND(Forbidden2,INDEX(Spells!$J$2:$J$1001,AC13),1)))),"* ",""))&AD13 -> Giant Vermin | AG13: =IF(AND(OR(Cull!$C12="Yes",ISERROR(FIND("#"&Spells!$B11&"#",AF$2)),Spells!$B11="",NOT(ISERROR(FIND(LOWER(ForbiddenAlignment),LOWER(Spells!$J11))))),NOT(Spells!$B11=AF$3)),"",$A13) ->  | AH13: 257 | AI13: 257 | AJ13: =IF(AI13="","",INDEX(Spells!$B$2:$B$1001,'Class List'!AI13)) -> Hallow | AK13: =IF(AJ13="","",IF(OR(NOT(ISERROR(FIND(Forbidden1,INDEX(Spells!$J$2:$J$1001,AI13),1))),NOT(ISERROR(FIND(Forbidden2,INDEX(Spells!$J$2:$J$1001,AI13),1)))),"* ",""))&AJ13 -> Hallow | AM13: =IF(AND(OR(Cull!$C12="Yes",ISERROR(FIND("#"&Spells!$B11&"#",AL$2)),Spells!$B11="",NOT(ISERROR(FIND(LOWER(ForbiddenAlignment),LOWER(Spells!$J11))))),NOT(Spells!$B11=AL$3)),"",$A13) ->  | AN13: 324 | AO13: 324 | AP13: =IF(AO13="","",INDEX(Spells!$B$2:$B$1001,'Class List'!AO13)) -> Liveoak | AQ13: =IF(AP13="","",IF(OR(NOT(ISERROR(FIND(Forbidden1,INDEX(Spells!$J$2:$J$1001,AO13),1))),NOT(ISERROR(FIND(Forbidden2,INDEX(Spells!$J$2:$J$1001,AO13),1)))),"* ",""))&AP13 -> Liveoak | AS13: =IF(AND(OR(Cull!$C12="Yes",ISERROR(FIND("#"&Spells!$B11&"#",AR$2)),Spells!$B11="",NOT(ISERROR(FIND(LOWER(ForbiddenAlignment),LOWER(Spells!$J11))))),NOT(Spells!$B11=AR$3)),"",$A13) ->  | AT13: 557 | AU13: 557 | AV13: =IF(AU13="","",INDEX(Spells!$B$2:$B$1001,'Class List'!AU13)) -> Sunbeam | AW13: =IF(AV13="","",IF(OR(NOT(ISERROR(FIND(Forbidden1,INDEX(Spells!$J$2:$J$1001,AU13),1))),NOT(ISERROR(FIND(Forbidden2,INDEX(Spells!$J$2:$J$1001,AU13),1)))),"* ",""))&AV13 -> Sunbeam | AY13: =IF(AND(OR(Cull!$C12="Yes",ISERROR(FIND("#"&Spells!$B11&"#",AX$2)),Spells!$B11="",NOT(ISERROR(FIND(LOWER(ForbiddenAlignment),LOWER(Spells!$J11))))),NOT(Spells!$B11=AX$3)),"",$A13) ->  | AZ13: 618 | BA13: 618 | BB13: =IF(BA13="","",INDEX(Spells!$B$2:$B$1001,'Class List'!BA13)) -> Whirlwind | BC13: =IF(BB13="","",IF(OR(NOT(ISERROR(FIND(Forbidden1,INDEX(Spells!$J$2:$J$1001,BA13),1))),NOT(ISERROR(FIND(Forbidden2,INDEX(Spells!$J$2:$J$1001,BA13),1)))),"* ",""))&BB13 -> Whirlwind | BE13: =IF(AND(OR(Cull!$C12="Yes",ISERROR(FIND("#"&Spells!$B11&"#",BD$2)),Spells!$B11="",NOT(ISERROR(FIND(LOWER(ForbiddenAlignment),LOWER(Spells!$J11))))),NOT(Spells!$B11=BD$3)),"",$A13) ->  | BF13: 568 | BG13: 568 | BH13: =IF(BG13="","",INDEX(Spells!$B$2:$B$1001,'Class List'!BG13)) -> Sympathy | BI13: =IF(BH13="","",IF(OR(NOT(ISERROR(FIND(Forbidden1,INDEX(Spells!$J$2:$J$1001,BG13),1))),NOT(ISERROR(FIND(Forbidden2,INDEX(Spells!$J$2:$J$1001,BG13),1)))),"* ",""))&BH13 -> Sympathy
A14: 11 | C14: =IF(AND(OR(Cull!$C13="Yes",ISERROR(FIND("#"&Spells!$B12&"#",B$2)),Spells!$B12="",NOT(ISERROR(FIND(LOWER(ForbiddenAlignment),LOWER(Spells!$J12))))),NOT(Spells!$B12=B$3)),"",$A14) ->  | D14: 456 | E14: 456 | F14: =IF(E14="","",INDEX(Spells!$B$2:$B$1001,'Class List'!E14)) -> Resistance | G14: =IF(F14="","",IF(OR(NOT(ISERROR(FIND(Forbidden1,INDEX(Spells!$J$2:$J$1001,E14),1))),NOT(ISERROR(FIND(Forbidden2,INDEX(Spells!$J$2:$J$1001,E14),1)))),"* ",""))&F14 -> Resistance | I14: =IF(AND(OR(Cull!$C13="Yes",ISERROR(FIND("#"&Spells!$B12&"#",H$2)),Spells!$B12="",NOT(ISERROR(FIND(LOWER(ForbiddenAlignment),LOWER(Spells!$J12))))),NOT(Spells!$B12=H$3)),"",$A14) ->  | J14: 315 | K14: 315 | L14: =IF(K14="","",INDEX(Spells!$B$2:$B$1001,'Class List'!K14)) -> Jump | M14: =IF(L14="","",IF(OR(NOT(ISERROR(FIND(Forbidden1,INDEX(Spells!$J$2:$J$1001,K14),1))),NOT(ISERROR(FIND(Forbidden2,INDEX(Spells!$J$2:$J$1001,K14),1)))),"* ",""))&L14 -> Jump | O14: =IF(AND(OR(Cull!$C13="Yes",ISERROR(FIND("#"&Spells!$B12&"#",N$2)),Spells!$B12="",NOT(ISERROR(FIND(LOWER(ForbiddenAlignment),LOWER(Spells!$J12))))),NOT(Spells!$B12=N$3)),"",$A14) ->  | P14: 214 | Q14: 214 | R14: =IF(Q14="","",INDEX(Spells!$B$2:$B$1001,'Class List'!Q14)) -> Flame Blade | S14: =IF(R14="","",IF(OR(NOT(ISERROR(FIND(Forbidden1,INDEX(Spells!$J$2:$J$1001,Q14),1))),NOT(ISERROR(FIND(Forbidden2,INDEX(Spells!$J$2:$J$1001,Q14),1)))),"* ",""))&R14 -> Flame Blade | U14: =IF(AND(OR(Cull!$C13="Yes",ISERROR(FIND("#"&Spells!$B12&"#",T$2)),Spells!$B12="",NOT(ISERROR(FIND(LOWER(ForbiddenAlignment),LOWER(Spells!$J12))))),NOT(Spells!$B12=T$3)),"",$A14) ->  | V14: 404 | W14: 404 | X14: =IF(W14="","",INDEX(Spells!$B$2:$B$1001,'Class List'!W14)) -> Poison | Y14: =IF(X14="","",IF(OR(NOT(ISERROR(FIND(Forbidden1,INDEX(Spells!$J$2:$J$1001,W14),1))),NOT(ISERROR(FIND(Forbidden2,INDEX(Spells!$J$2:$J$1001,W14),1)))),"* ",""))&X14 -> Poison | AA14: =IF(AND(OR(Cull!$C13="Yes",ISERROR(FIND("#"&Spells!$B12&"#",Z$2)),Spells!$B12="",NOT(ISERROR(FIND(LOWER(ForbiddenAlignment),LOWER(Spells!$J12))))),NOT(Spells!$B12=Z$3)),"",$A14) ->  | AB14: 286 | AC14: 286 | AD14: =IF(AC14="","",INDEX(Spells!$B$2:$B$1001,'Class List'!AC14)) -> Ice Storm | AE14: =IF(AD14="","",IF(OR(NOT(ISERROR(FIND(Forbidden1,INDEX(Spells!$J$2:$J$1001,AC14),1))),NOT(ISERROR(FIND(Forbidden2,INDEX(Spells!$J$2:$J$1001,AC14),1)))),"* ",""))&AD14 -> Ice Storm | AF14: 1 | AG14: =IF(AND(OR(Cull!$C13="Yes",ISERROR(FIND("#"&Spells!$B12&"#",AF$2)),Spells!$B12="",NOT(ISERROR(FIND(LOWER(ForbiddenAlignment),LOWER(Spells!$J12))))),NOT(Spells!$B12=AF$3)),"",$A14) -> 11 | AH14: 304 | AI14: 304 | AJ14: =IF(AI14="","",INDEX(Spells!$B$2:$B$1001,'Class List'!AI14)) -> Insect Plague | AK14: =IF(AJ14="","",IF(OR(NOT(ISERROR(FIND(Forbidden1,INDEX(Spells!$J$2:$J$1001,AI14),1))),NOT(ISERROR(FIND(Forbidden2,INDEX(Spells!$J$2:$J$1001,AI14),1)))),"* ",""))&AJ14 -> Insect Plague | AM14: =IF(AND(OR(Cull!$C13="Yes",ISERROR(FIND("#"&Spells!$B12&"#",AL$2)),Spells!$B12="",NOT(ISERROR(FIND(LOWER(ForbiddenAlignment),LOWER(Spells!$J12))))),NOT(Spells!$B12=AL$3)),"",$A14) ->  | AN14: 373 | AO14: 373 | AP14: =IF(AO14="","",INDEX(Spells!$B$2:$B$1001,'Class List'!AO14)) -> Move Earth | AQ14: =IF(AP14="","",IF(OR(NOT(ISERROR(FIND(Forbidden1,INDEX(Spells!$J$2:$J$1001,AO14),1))),NOT(ISERROR(FIND(Forbidden2,INDEX(Spells!$J$2:$J$1001,AO14),1)))),"* ",""))&AP14 -> Move Earth | AS14: =IF(AND(OR(Cull!$C13="Yes",ISERROR(FIND("#"&Spells!$B12&"#",AR$2)),Spells!$B12="",NOT(ISERROR(FIND(LOWER(ForbiddenAlignment),LOWER(Spells!$J12))))),NOT(Spells!$B12=AR$3)),"",$A14) ->  | AT14: 583 | AU14: 583 | AV14: =IF(AU14="","",INDEX(Spells!$B$2:$B$1001,'Class List'!AU14)) -> Transmute Metal to Wood | AW14: =IF(AV14="","",IF(OR(NOT(ISERROR(FIND(Forbidden1,INDEX(Spells!$J$2:$J$1001,AU14),1))),NOT(ISERROR(FIND(Forbidden2,INDEX(Spells!$J$2:$J$1001,AU14),1)))),"* ",""))&AV14 -> Transmute Metal to Wood | AY14: =IF(AND(OR(Cull!$C13="Yes",ISERROR(FIND("#"&Spells!$B12&"#",AX$2)),Spells!$B12="",NOT(ISERROR(FIND(LOWER(ForbiddenAlignment),LOWER(Spells!$J12))))),NOT(Spells!$B12=AX$3)),"",$A14) ->  | AZ14: 625 | BA14: 625 | BB14: =IF(BA14="","",INDEX(Spells!$B$2:$B$1001,'Class List'!BA14)) -> Word of Recall | BC14: =IF(BB14="","",IF(OR(NOT(ISERROR(FIND(Forbidden1,INDEX(Spells!$J$2:$J$1001,BA14),1))),NOT(ISERROR(FIND(Forbidden2,INDEX(Spells!$J$2:$J$1001,BA14),1)))),"* ",""))&BB14 -> Word of Recall | BE14: =IF(AND(OR(Cull!$C13="Yes",ISERROR(FIND("#"&Spells!$B12&"#",BD$2)),Spells!$B12="",NOT(ISERROR(FIND(LOWER(ForbiddenAlignment),LOWER(Spells!$J12))))),NOT(Spells!$B12=BD$3)),"",$A14) ->  | BF14: 568 | BH14: =IF(BG14="","",INDEX(Spells!$B$2:$B$1001,'Class List'!BG14)) ->  | BI14: =IF(BH14="","",IF(OR(NOT(ISERROR(FIND(Forbidden1,INDEX(Spells!$J$2:$J$1001,BG14),1))),NOT(ISERROR(FIND(Forbidden2,INDEX(Spells!$J$2:$J$1001,BG14),1)))),"* ",""))&BH14 -> 
A15: 12 | C15: =IF(AND(OR(Cull!$C14="Yes",ISERROR(FIND("#"&Spells!$B13&"#",B$2)),Spells!$B13="",NOT(ISERROR(FIND(LOWER(ForbiddenAlignment),LOWER(Spells!$J13))))),NOT(Spells!$B13=B$3)),"",$A15) ->  | D15: 526 | E15: 526 | F15: =IF(E15="","",INDEX(Spells!$B$2:$B$1001,'Class List'!E15)) -> Stabilize | G15: =IF(F15="","",IF(OR(NOT(ISERROR(FIND(Forbidden1,INDEX(Spells!$J$2:$J$1001,E15),1))),NOT(ISERROR(FIND(Forbidden2,INDEX(Spells!$J$2:$J$1001,E15),1)))),"* ",""))&F15 -> Stabilize | I15: =IF(AND(OR(Cull!$C14="Yes",ISERROR(FIND("#"&Spells!$B13&"#",H$2)),Spells!$B13="",NOT(ISERROR(FIND(LOWER(ForbiddenAlignment),LOWER(Spells!$J13))))),NOT(Spells!$B13=H$3)),"",$A15) ->  | J15: 327 | K15: 327 | L15: =IF(K15="","",INDEX(Spells!$B$2:$B$1001,'Class List'!K15)) -> Longstrider | M15: =IF(L15="","",IF(OR(NOT(ISERROR(FIND(Forbidden1,INDEX(Spells!$J$2:$J$1001,K15),1))),NOT(ISERROR(FIND(Forbidden2,INDEX(Spells!$J$2:$J$1001,K15),1)))),"* ",""))&L15 -> Longstrider | N15: 2 | O15: =IF(AND(OR(Cull!$C14="Yes",ISERROR(FIND("#"&Spells!$B13&"#",N$2)),Spells!$B13="",NOT(ISERROR(FIND(LOWER(ForbiddenAlignment),LOWER(Spells!$J13))))),NOT(Spells!$B13=N$3)),"",$A15) -> 12 | P15: 216 | Q15: 216 | R15: =IF(Q15="","",INDEX(Spells!$B$2:$B$1001,'Class List'!Q15)) -> Flaming Sphere | S15: =IF(R15="","",IF(OR(NOT(ISERROR(FIND(Forbidden1,INDEX(Spells!$J$2:$J$1001,Q15),1))),NOT(ISERROR(FIND(Forbidden2,INDEX(Spells!$J$2:$J$1001,Q15),1)))),"* ",""))&R15 -> Flaming Sphere | U15: =IF(AND(OR(Cull!$C14="Yes",ISERROR(FIND("#"&Spells!$B13&"#",T$2)),Spells!$B13="",NOT(ISERROR(FIND(LOWER(ForbiddenAlignment),LOWER(Spells!$J13))))),NOT(Spells!$B13=T$3)),"",$A15) ->  | V15: 422 | W15: 422 | X15: =IF(W15="","",INDEX(Spells!$B$2:$B$1001,'Class List'!W15)) -> Protection from Energy | Y15: =IF(X15="","",IF(OR(NOT(ISERROR(FIND(Forbidden1,INDEX(Spells!$J$2:$J$1001,W15),1))),NOT(ISERROR(FIND(Forbidden2,INDEX(Spells!$J$2:$J$1001,W15),1)))),"* ",""))&X15 -> Protection from Energy | AA15: =IF(AND(OR(Cull!$C14="Yes",ISERROR(FIND("#"&Spells!$B13&"#",Z$2)),Spells!$B13="",NOT(ISERROR(FIND(LOWER(ForbiddenAlignment),LOWER(Spells!$J13))))),NOT(Spells!$B13=Z$3)),"",$A15) ->  | AB15: 444 | AC15: 444 | AD15: =IF(AC15="","",INDEX(Spells!$B$2:$B$1001,'Class List'!AC15)) -> Reincarnate | AE15: =IF(AD15="","",IF(OR(NOT(ISERROR(FIND(Forbidden1,INDEX(Spells!$J$2:$J$1001,AC15),1))),NOT(ISERROR(FIND(Forbidden2,INDEX(Spells!$J$2:$J$1001,AC15),1)))),"* ",""))&AD15 -> Reincarnate | AG15: =IF(AND(OR(Cull!$C14="Yes",ISERROR(FIND("#"&Spells!$B13&"#",AF$2)),Spells!$B13="",NOT(ISERROR(FIND(LOWER(ForbiddenAlignment),LOWER(Spells!$J13))))),NOT(Spells!$B13=AF$3)),"",$A15) ->  | AH15: 533 | AI15: 533 | AJ15: =IF(AI15="","",INDEX(Spells!$B$2:$B$1001,'Class List'!AI15)) -> Stoneskin | AK15: =IF(AJ15="","",IF(OR(NOT(ISERROR(FIND(Forbidden1,INDEX(Spells!$J$2:$J$1001,AI15),1))),NOT(ISERROR(FIND(Forbidden2,INDEX(Spells!$J$2:$J$1001,AI15),1)))),"* ",""))&AJ15 -> Stoneskin | AM15: =IF(AND(OR(Cull!$C14="Yes",ISERROR(FIND("#"&Spells!$B13&"#",AL$2)),Spells!$B13="",NOT(ISERROR(FIND(LOWER(ForbiddenAlignment),LOWER(Spells!$J13))))),NOT(Spells!$B13=AL$3)),"",$A15) ->  | AN15: 383 | AO15: 383 | AP15: =IF(AO15="","",INDEX(Spells!$B$2:$B$1001,'Class List'!AO15)) -> Owl's Wisdom, Mass | AQ15: =IF(AP15="","",IF(OR(NOT(ISERROR(FIND(Forbidden1,INDEX(Spells!$J$2:$J$1001,AO15),1))),NOT(ISERROR(FIND(Forbidden2,INDEX(Spells!$J$2:$J$1001,AO15),1)))),"* ",""))&AP15 -> Owl's Wisdom, Mass | AS15: =IF(AND(OR(Cull!$C14="Yes",ISERROR(FIND("#"&Spells!$B13&"#",AR$2)),Spells!$B13="",NOT(ISERROR(FIND(LOWER(ForbiddenAlignment),LOWER(Spells!$J13))))),NOT(Spells!$B13=AR$3)),"",$A15) ->  | AT15: 591 | AU15: 591 | AV15: =IF(AU15="","",INDEX(Spells!$B$2:$B$1001,'Class List'!AU15)) -> True Seeing | AW15: =IF(AV15="","",IF(OR(NOT(ISERROR(FIND(Forbidden1,INDEX(Spells!$J$2:$J$1001,AU15),1))),NOT(ISERROR(FIND(Forbidden2,INDEX(Spells!$J$2:$J$1001,AU15),1)))),"* ",""))&AV15 -> True Seeing | AY15: =IF(AND(OR(Cull!$C14="Yes",ISERROR(FIND("#"&Spells!$B13&"#",AX$2)),Spells!$B13="",NOT(ISERROR(FIND(LOWER(ForbiddenAlignment),LOWER(Spells!$J13))))),NOT(Spells!$B13=AX$3)),"",$A15) ->  | AZ15: 625 | BB15: =IF(BA15="","",INDEX(Spells!$B$2:$B$1001,'Class List'!BA15)) ->  | BC15: =IF(BB15="","",IF(OR(NOT(ISERROR(FIND(Forbidden1,INDEX(Spells!$J$2:$J$1001,BA15),1))),NOT(ISERROR(FIND(Forbidden2,INDEX(Spells!$J$2:$J$1001,BA15),1)))),"* ",""))&BB15 ->  | BE15: =IF(AND(OR(Cull!$C14="Yes",ISERROR(FIND("#"&Spells!$B13&"#",BD$2)),Spells!$B13="",NOT(ISERROR(FIND(LOWER(ForbiddenAlignment),LOWER(Spells!$J13))))),NOT(Spells!$B13=BD$3)),"",$A15) ->  | BF15: 568 | BH15: =IF(BG15="","",INDEX(Spells!$B$2:$B$1001,'Class List'!BG15)) ->  | BI15: =IF(BH15="","",IF(OR(NOT(ISERROR(FIND(Forbidden1,INDEX(Spells!$J$2:$J$1001,BG15),1))),NOT(ISERROR(FIND(Forbidden2,INDEX(Spells!$J$2:$J$1001,BG15),1)))),"* ",""))&BH15 -> 
A16: 13 | C16: =IF(AND(OR(Cull!$C15="Yes",ISERROR(FIND("#"&Spells!$B14&"#",B$2)),Spells!$B14="",NOT(ISERROR(FIND(LOWER(ForbiddenAlignment),LOWER(Spells!$J14))))),NOT(Spells!$B14=B$3)),"",$A16) ->  | D16: 602 | E16: 602 | F16: =IF(E16="","",INDEX(Spells!$B$2:$B$1001,'Class List'!E16)) -> Virtue | G16: =IF(F16="","",IF(OR(NOT(ISERROR(FIND(Forbidden1,INDEX(Spells!$J$2:$J$1001,E16),1))),NOT(ISERROR(FIND(Forbidden2,INDEX(Spells!$J$2:$J$1001,E16),1)))),"* ",""))&F16 -> Virtue | I16: =IF(AND(OR(Cull!$C15="Yes",ISERROR(FIND("#"&Spells!$B14&"#",H$2)),Spells!$B14="",NOT(ISERROR(FIND(LOWER(ForbiddenAlignment),LOWER(Spells!$J14))))),NOT(Spells!$B14=H$3)),"",$A16) ->  | J16: 342 | K16: 342 | L16: =IF(K16="","",INDEX(Spells!$B$2:$B$1001,'Class List'!K16)) -> Magic Fang | M16: =IF(L16="","",IF(OR(NOT(ISERROR(FIND(Forbidden1,INDEX(Spells!$J$2:$J$1001,K16),1))),NOT(ISERROR(FIND(Forbidden2,INDEX(Spells!$J$2:$J$1001,K16),1)))),"* ",""))&L16 -> Magic Fang | O16: =IF(AND(OR(Cull!$C15="Yes",ISERROR(FIND("#"&Spells!$B14&"#",N$2)),Spells!$B14="",NOT(ISERROR(FIND(LOWER(ForbiddenAlignment),LOWER(Spells!$J14))))),NOT(Spells!$B14=N$3)),"",$A16) ->  | P16: 221 | Q16: 221 | R16: =IF(Q16="","",INDEX(Spells!$B$2:$B$1001,'Class List'!Q16)) -> Fog Cloud | S16: =IF(R16="","",IF(OR(NOT(ISERROR(FIND(Forbidden1,INDEX(Spells!$J$2:$J$1001,Q16),1))),NOT(ISERROR(FIND(Forbidden2,INDEX(Spells!$J$2:$J$1001,Q16),1)))),"* ",""))&R16 -> Fog Cloud | U16: =IF(AND(OR(Cull!$C15="Yes",ISERROR(FIND("#"&Spells!$B14&"#",T$2)),Spells!$B14="",NOT(ISERROR(FIND(LOWER(ForbiddenAlignment),LOWER(Spells!$J14))))),NOT(Spells!$B14=T$3)),"",$A16) ->  | V16: 431 | W16: 431 | X16: =IF(W16="","",INDEX(Spells!$B$2:$B$1001,'Class List'!W16)) -> Quench | Y16: =IF(X16="","",IF(OR(NOT(ISERROR(FIND(Forbidden1,INDEX(Spells!$J$2:$J$1001,W16),1))),NOT(ISERROR(FIND(Forbidden2,INDEX(Spells!$J$2:$J$1001,W16),1)))),"* ",""))&X16 -> Quench | AA16: =IF(AND(OR(Cull!$C15="Yes",ISERROR(FIND("#"&Spells!$B14&"#",Z$2)),Spells!$B14="",NOT(ISERROR(FIND(LOWER(ForbiddenAlignment),LOWER(Spells!$J14))))),NOT(Spells!$B14=Z$3)),"",$A16) ->  | AB16: 451 | AC16: 451 | AD16: =IF(AC16="","",INDEX(Spells!$B$2:$B$1001,'Class List'!AC16)) -> Repel Vermin | AE16: =IF(AD16="","",IF(OR(NOT(ISERROR(FIND(Forbidden1,INDEX(Spells!$J$2:$J$1001,AC16),1))),NOT(ISERROR(FIND(Forbidden2,INDEX(Spells!$J$2:$J$1001,AC16),1)))),"* ",""))&AD16 -> Repel Vermin | AG16: =IF(AND(OR(Cull!$C15="Yes",ISERROR(FIND("#"&Spells!$B14&"#",AF$2)),Spells!$B14="",NOT(ISERROR(FIND(LOWER(ForbiddenAlignment),LOWER(Spells!$J14))))),NOT(Spells!$B14=AF$3)),"",$A16) ->  | AH16: 584 | AI16: 584 | AJ16: =IF(AI16="","",INDEX(Spells!$B$2:$B$1001,'Class List'!AI16)) -> Transmute Mud to Rock | AK16: =IF(AJ16="","",IF(OR(NOT(ISERROR(FIND(Forbidden1,INDEX(Spells!$J$2:$J$1001,AI16),1))),NOT(ISERROR(FIND(Forbidden2,INDEX(Spells!$J$2:$J$1001,AI16),1)))),"* ",""))&AJ16 -> Transmute Mud to Rock | AM16: =IF(AND(OR(Cull!$C15="Yes",ISERROR(FIND("#"&Spells!$B14&"#",AL$2)),Spells!$B14="",NOT(ISERROR(FIND(LOWER(ForbiddenAlignment),LOWER(Spells!$J14))))),NOT(Spells!$B14=AL$3)),"",$A16) ->  | AN16: 452 | AO16: 452 | AP16: =IF(AO16="","",INDEX(Spells!$B$2:$B$1001,'Class List'!AO16)) -> Repel Wood | AQ16: =IF(AP16="","",IF(OR(NOT(ISERROR(FIND(Forbidden1,INDEX(Spells!$J$2:$J$1001,AO16),1))),NOT(ISERROR(FIND(Forbidden2,INDEX(Spells!$J$2:$J$1001,AO16),1)))),"* ",""))&AP16 -> Repel Wood | AS16: =IF(AND(OR(Cull!$C15="Yes",ISERROR(FIND("#"&Spells!$B14&"#",AR$2)),Spells!$B14="",NOT(ISERROR(FIND(LOWER(ForbiddenAlignment),LOWER(Spells!$J14))))),NOT(Spells!$B14=AR$3)),"",$A16) ->  | AT16: 620 | AU16: 620 | AV16: =IF(AU16="","",INDEX(Spells!$B$2:$B$1001,'Class List'!AU16)) -> Wind Walk | AW16: =IF(AV16="","",IF(OR(NOT(ISERROR(FIND(Forbidden1,INDEX(Spells!$J$2:$J$1001,AU16),1))),NOT(ISERROR(FIND(Forbidden2,INDEX(Spells!$J$2:$J$1001,AU16),1)))),"* ",""))&AV16 -> Wind Walk | AX16: 1 | AY16: =IF(AND(OR(Cull!$C15="Yes",ISERROR(FIND("#"&Spells!$B14&"#",AX$2)),Spells!$B14="",NOT(ISERROR(FIND(LOWER(ForbiddenAlignment),LOWER(Spells!$J14))))),NOT(Spells!$B14=AX$3)),"",$A16) -> 13 | AZ16: 625 | BB16: =IF(BA16="","",INDEX(Spells!$B$2:$B$1001,'Class List'!BA16)) ->  | BC16: =IF(BB16="","",IF(OR(NOT(ISERROR(FIND(Forbidden1,INDEX(Spells!$J$2:$J$1001,BA16),1))),NOT(ISERROR(FIND(Forbidden2,INDEX(Spells!$J$2:$J$1001,BA16),1)))),"* ",""))&BB16 ->  | BE16: =IF(AND(OR(Cull!$C15="Yes",ISERROR(FIND("#"&Spells!$B14&"#",BD$2)),Spells!$B14="",NOT(ISERROR(FIND(LOWER(ForbiddenAlignment),LOWER(Spells!$J14))))),NOT(Spells!$B14=BD$3)),"",$A16) ->  | BF16: 568 | BH16: =IF(BG16="","",INDEX(Spells!$B$2:$B$1001,'Class List'!BG16)) ->  | BI16: =IF(BH16="","",IF(OR(NOT(ISERROR(FIND(Forbidden1,INDEX(Spells!$J$2:$J$1001,BG16),1))),NOT(ISERROR(FIND(Forbidden2,INDEX(Spells!$J$2:$J$1001,BG16),1)))),"* ",""))&BH16 -> 
A17: 14 | C17: =IF(AND(OR(Cull!$C16="Yes",ISERROR(FIND("#"&Spells!$B15&"#",B$2)),Spells!$B15="",NOT(ISERROR(FIND(LOWER(ForbiddenAlignment),LOWER(Spells!$J15))))),NOT(Spells!$B15=B$3)),"",$A17) ->  | D17: 602 | F17: =IF(E17="","",INDEX(Spells!$B$2:$B$1001,'Class List'!E17)) ->  | G17: =IF(F17="","",IF(OR(NOT(ISERROR(FIND(Forbidden1,INDEX(Spells!$J$2:$J$1001,E17),1))),NOT(ISERROR(FIND(Forbidden2,INDEX(Spells!$J$2:$J$1001,E17),1)))),"* ",""))&F17 ->  | I17: =IF(AND(OR(Cull!$C16="Yes",ISERROR(FIND("#"&Spells!$B15&"#",H$2)),Spells!$B15="",NOT(ISERROR(FIND(LOWER(ForbiddenAlignment),LOWER(Spells!$J15))))),NOT(Spells!$B15=H$3)),"",$A17) ->  | J17: 347 | K17: 347 | L17: =IF(K17="","",INDEX(Spells!$B$2:$B$1001,'Class List'!K17)) -> Magic Stone | M17: =IF(L17="","",IF(OR(NOT(ISERROR(FIND(Forbidden1,INDEX(Spells!$J$2:$J$1001,K17),1))),NOT(ISERROR(FIND(Forbidden2,INDEX(Spells!$J$2:$J$1001,K17),1)))),"* ",""))&L17 -> Magic Stone | N17: 3 | O17: =IF(AND(OR(Cull!$C16="Yes",ISERROR(FIND("#"&Spells!$B15&"#",N$2)),Spells!$B15="",NOT(ISERROR(FIND(LOWER(ForbiddenAlignment),LOWER(Spells!$J15))))),NOT(Spells!$B15=N$3)),"",$A17) -> 14 | P17: 256 | Q17: 256 | R17: =IF(Q17="","",INDEX(Spells!$B$2:$B$1001,'Class List'!Q17)) -> Gust of Wind | S17: =IF(R17="","",IF(OR(NOT(ISERROR(FIND(Forbidden1,INDEX(Spells!$J$2:$J$1001,Q17),1))),NOT(ISERROR(FIND(Forbidden2,INDEX(Spells!$J$2:$J$1001,Q17),1)))),"* ",""))&R17 -> Gust of Wind | U17: =IF(AND(OR(Cull!$C16="Yes",ISERROR(FIND("#"&Spells!$B15&"#",T$2)),Spells!$B15="",NOT(ISERROR(FIND(LOWER(ForbiddenAlignment),LOWER(Spells!$J15))))),NOT(Spells!$B15=T$3)),"",$A17) ->  | V17: 447 | W17: 447 | X17: =IF(W17="","",INDEX(Spells!$B$2:$B$1001,'Class List'!W17)) -> Remove Disease | Y17: =IF(X17="","",IF(OR(NOT(ISERROR(FIND(Forbidden1,INDEX(Spells!$J$2:$J$1001,W17),1))),NOT(ISERROR(FIND(Forbidden2,INDEX(Spells!$J$2:$J$1001,W17),1)))),"* ",""))&X17 -> Remove Disease | AA17: =IF(AND(OR(Cull!$C16="Yes",ISERROR(FIND("#"&Spells!$B15&"#",Z$2)),Spells!$B15="",NOT(ISERROR(FIND(LOWER(ForbiddenAlignment),LOWER(Spells!$J15))))),NOT(Spells!$B15=Z$3)),"",$A17) ->  | AB17: 464 | AC17: 464 | AD17: =IF(AC17="","",INDEX(Spells!$B$2:$B$1001,'Class List'!AC17)) -> Rusting Grasp | AE17: =IF(AD17="","",IF(OR(NOT(ISERROR(FIND(Forbidden1,INDEX(Spells!$J$2:$J$1001,AC17),1))),NOT(ISERROR(FIND(Forbidden2,INDEX(Spells!$J$2:$J$1001,AC17),1)))),"* ",""))&AD17 -> Rusting Grasp | AG17: =IF(AND(OR(Cull!$C16="Yes",ISERROR(FIND("#"&Spells!$B15&"#",AF$2)),Spells!$B15="",NOT(ISERROR(FIND(LOWER(ForbiddenAlignment),LOWER(Spells!$J15))))),NOT(Spells!$B15=AF$3)),"",$A17) ->  | AH17: 585 | AI17: 585 | AJ17: =IF(AI17="","",INDEX(Spells!$B$2:$B$1001,'Class List'!AI17)) -> Transmute Rock to Mud | AK17: =IF(AJ17="","",IF(OR(NOT(ISERROR(FIND(Forbidden1,INDEX(Spells!$J$2:$J$1001,AI17),1))),NOT(ISERROR(FIND(Forbidden2,INDEX(Spells!$J$2:$J$1001,AI17),1)))),"* ",""))&AJ17 -> Transmute Rock to Mud | AM17: =IF(AND(OR(Cull!$C16="Yes",ISERROR(FIND("#"&Spells!$B15&"#",AL$2)),Spells!$B15="",NOT(ISERROR(FIND(LOWER(ForbiddenAlignment),LOWER(Spells!$J15))))),NOT(Spells!$B15=AL$3)),"",$A17) ->  | AN17: 521 | AO17: 521 | AP17: =IF(AO17="","",INDEX(Spells!$B$2:$B$1001,'Class List'!AO17)) -> Spellstaff | AQ17: =IF(AP17="","",IF(OR(NOT(ISERROR(FIND(Forbidden1,INDEX(Spells!$J$2:$J$1001,AO17),1))),NOT(ISERROR(FIND(Forbidden2,INDEX(Spells!$J$2:$J$1001,AO17),1)))),"* ",""))&AP17 -> Spellstaff | AS17: =IF(AND(OR(Cull!$C16="Yes",ISERROR(FIND("#"&Spells!$B15&"#",AR$2)),Spells!$B15="",NOT(ISERROR(FIND(LOWER(ForbiddenAlignment),LOWER(Spells!$J15))))),NOT(Spells!$B15=AR$3)),"",$A17) ->  | AT17: 620 | AV17: =IF(AU17="","",INDEX(Spells!$B$2:$B$1001,'Class List'!AU17)) ->  | AW17: =IF(AV17="","",IF(OR(NOT(ISERROR(FIND(Forbidden1,INDEX(Spells!$J$2:$J$1001,AU17),1))),NOT(ISERROR(FIND(Forbidden2,INDEX(Spells!$J$2:$J$1001,AU17),1)))),"* ",""))&AV17 ->  | AY17: =IF(AND(OR(Cull!$C16="Yes",ISERROR(FIND("#"&Spells!$B15&"#",AX$2)),Spells!$B15="",NOT(ISERROR(FIND(LOWER(ForbiddenAlignment),LOWER(Spells!$J15))))),NOT(Spells!$B15=AX$3)),"",$A17) ->  | AZ17: 625 | BB17: =IF(BA17="","",INDEX(Spells!$B$2:$B$1001,'Class List'!BA17)) ->  | BC17: =IF(BB17="","",IF(OR(NOT(ISERROR(FIND(Forbidden1,INDEX(Spells!$J$2:$J$1001,BA17),1))),NOT(ISERROR(FIND(Forbidden2,INDEX(Spells!$J$2:$J$1001,BA17),1)))),"* ",""))&BB17 ->  | BE17: =IF(AND(OR(Cull!$C16="Yes",ISERROR(FIND("#"&Spells!$B15&"#",BD$2)),Spells!$B15="",NOT(ISERROR(FIND(LOWER(ForbiddenAlignment),LOWER(Spells!$J15))))),NOT(Spells!$B15=BD$3)),"",$A17) ->  | BF17: 568 | BH17: =IF(BG17="","",INDEX(Spells!$B$2:$B$1001,'Class List'!BG17)) ->  | BI17: =IF(BH17="","",IF(OR(NOT(ISERROR(FIND(Forbidden1,INDEX(Spells!$J$2:$J$1001,BG17),1))),NOT(ISERROR(FIND(Forbidden2,INDEX(Spells!$J$2:$J$1001,BG17),1)))),"* ",""))&BH17 -> 
A18: 15 | C18: =IF(AND(OR(Cull!$C17="Yes",ISERROR(FIND("#"&Spells!$B16&"#",B$2)),Spells!$B16="",NOT(ISERROR(FIND(LOWER(ForbiddenAlignment),LOWER(Spells!$J16))))),NOT(Spells!$B16=B$3)),"",$A18) ->  | D18: 602 | F18: =IF(E18="","",INDEX(Spells!$B$2:$B$1001,'Class List'!E18)) ->  | G18: =IF(F18="","",IF(OR(NOT(ISERROR(FIND(Forbidden1,INDEX(Spells!$J$2:$J$1001,E18),1))),NOT(ISERROR(FIND(Forbidden2,INDEX(Spells!$J$2:$J$1001,E18),1)))),"* ",""))&F18 ->  | I18: =IF(AND(OR(Cull!$C17="Yes",ISERROR(FIND("#"&Spells!$B16&"#",H$2)),Spells!$B16="",NOT(ISERROR(FIND(LOWER(ForbiddenAlignment),LOWER(Spells!$J16))))),NOT(Spells!$B16=H$3)),"",$A18) ->  | J18: 378 | K18: 378 | L18: =IF(K18="","",INDEX(Spells!$B$2:$B$1001,'Class List'!K18)) -> Obscuring Mist | M18: =IF(L18="","",IF(OR(NOT(ISERROR(FIND(Forbidden1,INDEX(Spells!$J$2:$J$1001,K18),1))),NOT(ISERROR(FIND(Forbidden2,INDEX(Spells!$J$2:$J$1001,K18),1)))),"* ",""))&L18 -> Obscuring Mist | O18: =IF(AND(OR(Cull!$C17="Yes",ISERROR(FIND("#"&Spells!$B16&"#",N$2)),Spells!$B16="",NOT(ISERROR(FIND(LOWER(ForbiddenAlignment),LOWER(Spells!$J16))))),NOT(Spells!$B16=N$3)),"",$A18) ->  | P18: 265 | Q18: 265 | R18: =IF(Q18="","",INDEX(Spells!$B$2:$B$1001,'Class List'!Q18)) -> Heat Metal | S18: =IF(R18="","",IF(OR(NOT(ISERROR(FIND(Forbidden1,INDEX(Spells!$J$2:$J$1001,Q18),1))),NOT(ISERROR(FIND(Forbidden2,INDEX(Spells!$J$2:$J$1001,Q18),1)))),"* ",""))&R18 -> Heat Metal | U18: =IF(AND(OR(Cull!$C17="Yes",ISERROR(FIND("#"&Spells!$B16&"#",T$2)),Spells!$B16="",NOT(ISERROR(FIND(LOWER(ForbiddenAlignment),LOWER(Spells!$J16))))),NOT(Spells!$B16=T$3)),"",$A18) ->  | V18: 505 | W18: 505 | X18: =IF(W18="","",INDEX(Spells!$B$2:$B$1001,'Class List'!W18)) -> Sleet Storm | Y18: =IF(X18="","",IF(OR(NOT(ISERROR(FIND(Forbidden1,INDEX(Spells!$J$2:$J$1001,W18),1))),NOT(ISERROR(FIND(Forbidden2,INDEX(Spells!$J$2:$J$1001,W18),1)))),"* ",""))&X18 -> Sleet Storm | AA18: =IF(AND(OR(Cull!$C17="Yes",ISERROR(FIND("#"&Spells!$B16&"#",Z$2)),Spells!$B16="",NOT(ISERROR(FIND(LOWER(ForbiddenAlignment),LOWER(Spells!$J16))))),NOT(Spells!$B16=Z$3)),"",$A18) ->  | AB18: 470 | AC18: 470 | AD18: =IF(AC18="","",INDEX(Spells!$B$2:$B$1001,'Class List'!AC18)) -> Scrying | AE18: =IF(AD18="","",IF(OR(NOT(ISERROR(FIND(Forbidden1,INDEX(Spells!$J$2:$J$1001,AC18),1))),NOT(ISERROR(FIND(Forbidden2,INDEX(Spells!$J$2:$J$1001,AC18),1)))),"* ",""))&AD18 -> Scrying | AG18: =IF(AND(OR(Cull!$C17="Yes",ISERROR(FIND("#"&Spells!$B16&"#",AF$2)),Spells!$B16="",NOT(ISERROR(FIND(LOWER(ForbiddenAlignment),LOWER(Spells!$J16))))),NOT(Spells!$B16=AF$3)),"",$A18) ->  | AH18: 589 | AI18: 589 | AJ18: =IF(AI18="","",INDEX(Spells!$B$2:$B$1001,'Class List'!AI18)) -> Tree Stride | AK18: =IF(AJ18="","",IF(OR(NOT(ISERROR(FIND(Forbidden1,INDEX(Spells!$J$2:$J$1001,AI18),1))),NOT(ISERROR(FIND(Forbidden2,INDEX(Spells!$J$2:$J$1001,AI18),1)))),"* ",""))&AJ18 -> Tree Stride | AM18: =IF(AND(OR(Cull!$C17="Yes",ISERROR(FIND("#"&Spells!$B16&"#",AL$2)),Spells!$B16="",NOT(ISERROR(FIND(LOWER(ForbiddenAlignment),LOWER(Spells!$J16))))),NOT(Spells!$B16=AL$3)),"",$A18) ->  | AN18: 531 | AO18: 531 | AP18: =IF(AO18="","",INDEX(Spells!$B$2:$B$1001,'Class List'!AO18)) -> Stone Tell | AQ18: =IF(AP18="","",IF(OR(NOT(ISERROR(FIND(Forbidden1,INDEX(Spells!$J$2:$J$1001,AO18),1))),NOT(ISERROR(FIND(Forbidden2,INDEX(Spells!$J$2:$J$1001,AO18),1)))),"* ",""))&AP18 -> Stone Tell | AS18: =IF(AND(OR(Cull!$C17="Yes",ISERROR(FIND("#"&Spells!$B16&"#",AR$2)),Spells!$B16="",NOT(ISERROR(FIND(LOWER(ForbiddenAlignment),LOWER(Spells!$J16))))),NOT(Spells!$B16=AR$3)),"",$A18) ->  | AT18: 620 | AV18: =IF(AU18="","",INDEX(Spells!$B$2:$B$1001,'Class List'!AU18)) ->  | AW18: =IF(AV18="","",IF(OR(NOT(ISERROR(FIND(Forbidden1,INDEX(Spells!$J$2:$J$1001,AU18),1))),NOT(ISERROR(FIND(Forbidden2,INDEX(Spells!$J$2:$J$1001,AU18),1)))),"* ",""))&AV18 ->  | AY18: =IF(AND(OR(Cull!$C17="Yes",ISERROR(FIND("#"&Spells!$B16&"#",AX$2)),Spells!$B16="",NOT(ISERROR(FIND(LOWER(ForbiddenAlignment),LOWER(Spells!$J16))))),NOT(Spells!$B16=AX$3)),"",$A18) ->  | AZ18: 625 | BB18: =IF(BA18="","",INDEX(Spells!$B$2:$B$1001,'Class List'!BA18)) ->  | BC18: =IF(BB18="","",IF(OR(NOT(ISERROR(FIND(Forbidden1,INDEX(Spells!$J$2:$J$1001,BA18),1))),NOT(ISERROR(FIND(Forbidden2,INDEX(Spells!$J$2:$J$1001,BA18),1)))),"* ",""))&BB18 ->  | BE18: =IF(AND(OR(Cull!$C17="Yes",ISERROR(FIND("#"&Spells!$B16&"#",BD$2)),Spells!$B16="",NOT(ISERROR(FIND(LOWER(ForbiddenAlignment),LOWER(Spells!$J16))))),NOT(Spells!$B16=BD$3)),"",$A18) ->  | BF18: 568 | BH18: =IF(BG18="","",INDEX(Spells!$B$2:$B$1001,'Class List'!BG18)) ->  | BI18: =IF(BH18="","",IF(OR(NOT(ISERROR(FIND(Forbidden1,INDEX(Spells!$J$2:$J$1001,BG18),1))),NOT(ISERROR(FIND(Forbidden2,INDEX(Spells!$J$2:$J$1001,BG18),1)))),"* ",""))&BH18 -> 
A19: 16 | C19: =IF(AND(OR(Cull!$C18="Yes",ISERROR(FIND("#"&Spells!$B17&"#",B$2)),Spells!$B17="",NOT(ISERROR(FIND(LOWER(ForbiddenAlignment),LOWER(Spells!$J17))))),NOT(Spells!$B17=B$3)),"",$A19) ->  | D19: 602 | F19: =IF(E19="","",INDEX(Spells!$B$2:$B$1001,'Class List'!E19)) ->  | G19: =IF(F19="","",IF(OR(NOT(ISERROR(FIND(Forbidden1,INDEX(Spells!$J$2:$J$1001,E19),1))),NOT(ISERROR(FIND(Forbidden2,INDEX(Spells!$J$2:$J$1001,E19),1)))),"* ",""))&F19 ->  | I19: =IF(AND(OR(Cull!$C18="Yes",ISERROR(FIND("#"&Spells!$B17&"#",H$2)),Spells!$B17="",NOT(ISERROR(FIND(LOWER(ForbiddenAlignment),LOWER(Spells!$J17))))),NOT(Spells!$B17=H$3)),"",$A19) ->  | J19: 384 | K19: 384 | L19: =IF(K19="","",INDEX(Spells!$B$2:$B$1001,'Class List'!K19)) -> Pass without Trace | M19: =IF(L19="","",IF(OR(NOT(ISERROR(FIND(Forbidden1,INDEX(Spells!$J$2:$J$1001,K19),1))),NOT(ISERROR(FIND(Forbidden2,INDEX(Spells!$J$2:$J$1001,K19),1)))),"* ",""))&L19 -> Pass without Trace | O19: =IF(AND(OR(Cull!$C18="Yes",ISERROR(FIND("#"&Spells!$B17&"#",N$2)),Spells!$B17="",NOT(ISERROR(FIND(LOWER(ForbiddenAlignment),LOWER(Spells!$J17))))),NOT(Spells!$B17=N$3)),"",$A19) ->  | P19: 273 | Q19: 273 | R19: =IF(Q19="","",INDEX(Spells!$B$2:$B$1001,'Class List'!Q19)) -> Hold Animal | S19: =IF(R19="","",IF(OR(NOT(ISERROR(FIND(Forbidden1,INDEX(Spells!$J$2:$J$1001,Q19),1))),NOT(ISERROR(FIND(Forbidden2,INDEX(Spells!$J$2:$J$1001,Q19),1)))),"* ",""))&R19 -> Hold Animal | U19: =IF(AND(OR(Cull!$C18="Yes",ISERROR(FIND("#"&Spells!$B17&"#",T$2)),Spells!$B17="",NOT(ISERROR(FIND(LOWER(ForbiddenAlignment),LOWER(Spells!$J17))))),NOT(Spells!$B17=T$3)),"",$A19) ->  | V19: 507 | W19: 507 | X19: =IF(W19="","",INDEX(Spells!$B$2:$B$1001,'Class List'!W19)) -> Snare | Y19: =IF(X19="","",IF(OR(NOT(ISERROR(FIND(Forbidden1,INDEX(Spells!$J$2:$J$1001,W19),1))),NOT(ISERROR(FIND(Forbidden2,INDEX(Spells!$J$2:$J$1001,W19),1)))),"* ",""))&X19 -> Snare | AA19: =IF(AND(OR(Cull!$C18="Yes",ISERROR(FIND("#"&Spells!$B17&"#",Z$2)),Spells!$B17="",NOT(ISERROR(FIND(LOWER(ForbiddenAlignment),LOWER(Spells!$J17))))),NOT(Spells!$B17=Z$3)),"",$A19) ->  | AB19: 524 | AC19: 524 | AD19: =IF(AC19="","",INDEX(Spells!$B$2:$B$1001,'Class List'!AC19)) -> Spike Stones | AE19: =IF(AD19="","",IF(OR(NOT(ISERROR(FIND(Forbidden1,INDEX(Spells!$J$2:$J$1001,AC19),1))),NOT(ISERROR(FIND(Forbidden2,INDEX(Spells!$J$2:$J$1001,AC19),1)))),"* ",""))&AD19 -> Spike Stones | AG19: =IF(AND(OR(Cull!$C18="Yes",ISERROR(FIND("#"&Spells!$B17&"#",AF$2)),Spells!$B17="",NOT(ISERROR(FIND(LOWER(ForbiddenAlignment),LOWER(Spells!$J17))))),NOT(Spells!$B17=AF$3)),"",$A19) ->  | AH19: 595 | AI19: 595 | AJ19: =IF(AI19="","",INDEX(Spells!$B$2:$B$1001,'Class List'!AI19)) -> Unhallow | AK19: =IF(AJ19="","",IF(OR(NOT(ISERROR(FIND(Forbidden1,INDEX(Spells!$J$2:$J$1001,AI19),1))),NOT(ISERROR(FIND(Forbidden2,INDEX(Spells!$J$2:$J$1001,AI19),1)))),"* ",""))&AJ19 -> Unhallow | AM19: =IF(AND(OR(Cull!$C18="Yes",ISERROR(FIND("#"&Spells!$B17&"#",AL$2)),Spells!$B17="",NOT(ISERROR(FIND(LOWER(ForbiddenAlignment),LOWER(Spells!$J17))))),NOT(Spells!$B17=AL$3)),"",$A19) ->  | AN19: 553 | AO19: 553 | AP19: =IF(AO19="","",INDEX(Spells!$B$2:$B$1001,'Class List'!AO19)) -> Summon Nature's Ally VI | AQ19: =IF(AP19="","",IF(OR(NOT(ISERROR(FIND(Forbidden1,INDEX(Spells!$J$2:$J$1001,AO19),1))),NOT(ISERROR(FIND(Forbidden2,INDEX(Spells!$J$2:$J$1001,AO19),1)))),"* ",""))&AP19 -> Summon Nature's Ally VI | AS19: =IF(AND(OR(Cull!$C18="Yes",ISERROR(FIND("#"&Spells!$B17&"#",AR$2)),Spells!$B17="",NOT(ISERROR(FIND(LOWER(ForbiddenAlignment),LOWER(Spells!$J17))))),NOT(Spells!$B17=AR$3)),"",$A19) ->  | AT19: 620 | AV19: =IF(AU19="","",INDEX(Spells!$B$2:$B$1001,'Class List'!AU19)) ->  | AW19: =IF(AV19="","",IF(OR(NOT(ISERROR(FIND(Forbidden1,INDEX(Spells!$J$2:$J$1001,AU19),1))),NOT(ISERROR(FIND(Forbidden2,INDEX(Spells!$J$2:$J$1001,AU19),1)))),"* ",""))&AV19 ->  | AY19: =IF(AND(OR(Cull!$C18="Yes",ISERROR(FIND("#"&Spells!$B17&"#",AX$2)),Spells!$B17="",NOT(ISERROR(FIND(LOWER(ForbiddenAlignment),LOWER(Spells!$J17))))),NOT(Spells!$B17=AX$3)),"",$A19) ->  | AZ19: 625 | BB19: =IF(BA19="","",INDEX(Spells!$B$2:$B$1001,'Class List'!BA19)) ->  | BC19: =IF(BB19="","",IF(OR(NOT(ISERROR(FIND(Forbidden1,INDEX(Spells!$J$2:$J$1001,BA19),1))),NOT(ISERROR(FIND(Forbidden2,INDEX(Spells!$J$2:$J$1001,BA19),1)))),"* ",""))&BB19 ->  | BE19: =IF(AND(OR(Cull!$C18="Yes",ISERROR(FIND("#"&Spells!$B17&"#",BD$2)),Spells!$B17="",NOT(ISERROR(FIND(LOWER(ForbiddenAlignment),LOWER(Spells!$J17))))),NOT(Spells!$B17=BD$3)),"",$A19) ->  | BF19: 568 | BH19: =IF(BG19="","",INDEX(Spells!$B$2:$B$1001,'Class List'!BG19)) ->  | BI19: =IF(BH19="","",IF(OR(NOT(ISERROR(FIND(Forbidden1,INDEX(Spells!$J$2:$J$1001,BG19),1))),NOT(ISERROR(FIND(Forbidden2,INDEX(Spells!$J$2:$J$1001,BG19),1)))),"* ",""))&BH19 -> 
A20: 17 | C20: =IF(AND(OR(Cull!$C19="Yes",ISERROR(FIND("#"&Spells!$B18&"#",B$2)),Spells!$B18="",NOT(ISERROR(FIND(LOWER(ForbiddenAlignment),LOWER(Spells!$J18))))),NOT(Spells!$B18=B$3)),"",$A20) ->  | D20: 602 | F20: =IF(E20="","",INDEX(Spells!$B$2:$B$1001,'Class List'!E20)) ->  | G20: =IF(F20="","",IF(OR(NOT(ISERROR(FIND(Forbidden1,INDEX(Spells!$J$2:$J$1001,E20),1))),NOT(ISERROR(FIND(Forbidden2,INDEX(Spells!$J$2:$J$1001,E20),1)))),"* ",""))&F20 ->  | I20: =IF(AND(OR(Cull!$C19="Yes",ISERROR(FIND("#"&Spells!$B18&"#",H$2)),Spells!$B18="",NOT(ISERROR(FIND(LOWER(ForbiddenAlignment),LOWER(Spells!$J18))))),NOT(Spells!$B18=H$3)),"",$A20) ->  | J20: 417 | K20: 417 | L20: =IF(K20="","",INDEX(Spells!$B$2:$B$1001,'Class List'!K20)) -> Produce Flame | M20: =IF(L20="","",IF(OR(NOT(ISERROR(FIND(Forbidden1,INDEX(Spells!$J$2:$J$1001,K20),1))),NOT(ISERROR(FIND(Forbidden2,INDEX(Spells!$J$2:$J$1001,K20),1)))),"* ",""))&L20 -> Produce Flame | O20: =IF(AND(OR(Cull!$C19="Yes",ISERROR(FIND("#"&Spells!$B18&"#",N$2)),Spells!$B18="",NOT(ISERROR(FIND(LOWER(ForbiddenAlignment),LOWER(Spells!$J18))))),NOT(Spells!$B18=N$3)),"",$A20) ->  | P20: 382 | Q20: 382 | R20: =IF(Q20="","",INDEX(Spells!$B$2:$B$1001,'Class List'!Q20)) -> Owl's Wisdom | S20: =IF(R20="","",IF(OR(NOT(ISERROR(FIND(Forbidden1,INDEX(Spells!$J$2:$J$1001,Q20),1))),NOT(ISERROR(FIND(Forbidden2,INDEX(Spells!$J$2:$J$1001,Q20),1)))),"* ",""))&R20 -> Owl's Wisdom | U20: =IF(AND(OR(Cull!$C19="Yes",ISERROR(FIND("#"&Spells!$B18&"#",T$2)),Spells!$B18="",NOT(ISERROR(FIND(LOWER(ForbiddenAlignment),LOWER(Spells!$J18))))),NOT(Spells!$B18=T$3)),"",$A20) ->  | V20: 515 | W20: 515 | X20: =IF(W20="","",INDEX(Spells!$B$2:$B$1001,'Class List'!W20)) -> Speak with Plants | Y20: =IF(X20="","",IF(OR(NOT(ISERROR(FIND(Forbidden1,INDEX(Spells!$J$2:$J$1001,W20),1))),NOT(ISERROR(FIND(Forbidden2,INDEX(Spells!$J$2:$J$1001,W20),1)))),"* ",""))&X20 -> Speak with Plants | AA20: =IF(AND(OR(Cull!$C19="Yes",ISERROR(FIND("#"&Spells!$B18&"#",Z$2)),Spells!$B18="",NOT(ISERROR(FIND(LOWER(ForbiddenAlignment),LOWER(Spells!$J18))))),NOT(Spells!$B18=Z$3)),"",$A20) ->  | AB20: 550 | AC20: 550 | AD20: =IF(AC20="","",INDEX(Spells!$B$2:$B$1001,'Class List'!AC20)) -> Summon Nature's Ally IV | AE20: =IF(AD20="","",IF(OR(NOT(ISERROR(FIND(Forbidden1,INDEX(Spells!$J$2:$J$1001,AC20),1))),NOT(ISERROR(FIND(Forbidden2,INDEX(Spells!$J$2:$J$1001,AC20),1)))),"* ",""))&AD20 -> Summon Nature's Ally IV | AG20: =IF(AND(OR(Cull!$C19="Yes",ISERROR(FIND("#"&Spells!$B18&"#",AF$2)),Spells!$B18="",NOT(ISERROR(FIND(LOWER(ForbiddenAlignment),LOWER(Spells!$J18))))),NOT(Spells!$B18=AF$3)),"",$A20) ->  | AH20: 605 | AI20: 605 | AJ20: =IF(AI20="","",INDEX(Spells!$B$2:$B$1001,'Class List'!AI20)) -> Wall of Fire | AK20: =IF(AJ20="","",IF(OR(NOT(ISERROR(FIND(Forbidden1,INDEX(Spells!$J$2:$J$1001,AI20),1))),NOT(ISERROR(FIND(Forbidden2,INDEX(Spells!$J$2:$J$1001,AI20),1)))),"* ",""))&AJ20 -> Wall of Fire | AM20: =IF(AND(OR(Cull!$C19="Yes",ISERROR(FIND("#"&Spells!$B18&"#",AL$2)),Spells!$B18="",NOT(ISERROR(FIND(LOWER(ForbiddenAlignment),LOWER(Spells!$J18))))),NOT(Spells!$B18=AL$3)),"",$A20) ->  | AN20: 586 | AO20: 586 | AP20: =IF(AO20="","",INDEX(Spells!$B$2:$B$1001,'Class List'!AO20)) -> Transport via Plants | AQ20: =IF(AP20="","",IF(OR(NOT(ISERROR(FIND(Forbidden1,INDEX(Spells!$J$2:$J$1001,AO20),1))),NOT(ISERROR(FIND(Forbidden2,INDEX(Spells!$J$2:$J$1001,AO20),1)))),"* ",""))&AP20 -> Transport via Plants | AR20: 1 | AS20: =IF(AND(OR(Cull!$C19="Yes",ISERROR(FIND("#"&Spells!$B18&"#",AR$2)),Spells!$B18="",NOT(ISERROR(FIND(LOWER(ForbiddenAlignment),LOWER(Spells!$J18))))),NOT(Spells!$B18=AR$3)),"",$A20) -> 17 | AT20: 620 | AV20: =IF(AU20="","",INDEX(Spells!$B$2:$B$1001,'Class List'!AU20)) ->  | AW20: =IF(AV20="","",IF(OR(NOT(ISERROR(FIND(Forbidden1,INDEX(Spells!$J$2:$J$1001,AU20),1))),NOT(ISERROR(FIND(Forbidden2,INDEX(Spells!$J$2:$J$1001,AU20),1)))),"* ",""))&AV20 ->  | AY20: =IF(AND(OR(Cull!$C19="Yes",ISERROR(FIND("#"&Spells!$B18&"#",AX$2)),Spells!$B18="",NOT(ISERROR(FIND(LOWER(ForbiddenAlignment),LOWER(Spells!$J18))))),NOT(Spells!$B18=AX$3)),"",$A20) ->  | AZ20: 625 | BB20: =IF(BA20="","",INDEX(Spells!$B$2:$B$1001,'Class List'!BA20)) ->  | BC20: =IF(BB20="","",IF(OR(NOT(ISERROR(FIND(Forbidden1,INDEX(Spells!$J$2:$J$1001,BA20),1))),NOT(ISERROR(FIND(Forbidden2,INDEX(Spells!$J$2:$J$1001,BA20),1)))),"* ",""))&BB20 ->  | BE20: =IF(AND(OR(Cull!$C19="Yes",ISERROR(FIND("#"&Spells!$B18&"#",BD$2)),Spells!$B18="",NOT(ISERROR(FIND(LOWER(ForbiddenAlignment),LOWER(Spells!$J18))))),NOT(Spells!$B18=BD$3)),"",$A20) ->  | BF20: 568 | BH20: =IF(BG20="","",INDEX(Spells!$B$2:$B$1001,'Class List'!BG20)) ->  | BI20: =IF(BH20="","",IF(OR(NOT(ISERROR(FIND(Forbidden1,INDEX(Spells!$J$2:$J$1001,BG20),1))),NOT(ISERROR(FIND(Forbidden2,INDEX(Spells!$J$2:$J$1001,BG20),1)))),"* ",""))&BH20 -> 
A21: 18 | C21: =IF(AND(OR(Cull!$C20="Yes",ISERROR(FIND("#"&Spells!$B19&"#",B$2)),Spells!$B19="",NOT(ISERROR(FIND(LOWER(ForbiddenAlignment),LOWER(Spells!$J19))))),NOT(Spells!$B19=B$3)),"",$A21) ->  | D21: 602 | F21: =IF(E21="","",INDEX(Spells!$B$2:$B$1001,'Class List'!E21)) ->  | G21: =IF(F21="","",IF(OR(NOT(ISERROR(FIND(Forbidden1,INDEX(Spells!$J$2:$J$1001,E21),1))),NOT(ISERROR(FIND(Forbidden2,INDEX(Spells!$J$2:$J$1001,E21),1)))),"* ",""))&F21 ->  | I21: =IF(AND(OR(Cull!$C20="Yes",ISERROR(FIND("#"&Spells!$B19&"#",H$2)),Spells!$B19="",NOT(ISERROR(FIND(LOWER(ForbiddenAlignment),LOWER(Spells!$J19))))),NOT(Spells!$B19=H$3)),"",$A21) ->  | J21: 495 | K21: 495 | L21: =IF(K21="","",INDEX(Spells!$B$2:$B$1001,'Class List'!K21)) -> Shillelagh | M21: =IF(L21="","",IF(OR(NOT(ISERROR(FIND(Forbidden1,INDEX(Spells!$J$2:$J$1001,K21),1))),NOT(ISERROR(FIND(Forbidden2,INDEX(Spells!$J$2:$J$1001,K21),1)))),"* ",""))&L21 -> Shillelagh | O21: =IF(AND(OR(Cull!$C20="Yes",ISERROR(FIND("#"&Spells!$B19&"#",N$2)),Spells!$B19="",NOT(ISERROR(FIND(LOWER(ForbiddenAlignment),LOWER(Spells!$J19))))),NOT(Spells!$B19=N$3)),"",$A21) ->  | P21: 439 | Q21: 439 | R21: =IF(Q21="","",INDEX(Spells!$B$2:$B$1001,'Class List'!Q21)) -> Reduce Animal | S21: =IF(R21="","",IF(OR(NOT(ISERROR(FIND(Forbidden1,INDEX(Spells!$J$2:$J$1001,Q21),1))),NOT(ISERROR(FIND(Forbidden2,INDEX(Spells!$J$2:$J$1001,Q21),1)))),"* ",""))&R21 -> Reduce Animal | U21: =IF(AND(OR(Cull!$C20="Yes",ISERROR(FIND("#"&Spells!$B19&"#",T$2)),Spells!$B19="",NOT(ISERROR(FIND(LOWER(ForbiddenAlignment),LOWER(Spells!$J19))))),NOT(Spells!$B19=T$3)),"",$A21) ->  | V21: 523 | W21: 523 | X21: =IF(W21="","",INDEX(Spells!$B$2:$B$1001,'Class List'!W21)) -> Spike Growth | Y21: =IF(X21="","",IF(OR(NOT(ISERROR(FIND(Forbidden1,INDEX(Spells!$J$2:$J$1001,W21),1))),NOT(ISERROR(FIND(Forbidden2,INDEX(Spells!$J$2:$J$1001,W21),1)))),"* ",""))&X21 -> Spike Growth | AA21: =IF(AND(OR(Cull!$C20="Yes",ISERROR(FIND("#"&Spells!$B19&"#",Z$2)),Spells!$B19="",NOT(ISERROR(FIND(LOWER(ForbiddenAlignment),LOWER(Spells!$J19))))),NOT(Spells!$B19=Z$3)),"",$A21) ->  | AB21: 550 | AD21: =IF(AC21="","",INDEX(Spells!$B$2:$B$1001,'Class List'!AC21)) ->  | AE21: =IF(AD21="","",IF(OR(NOT(ISERROR(FIND(Forbidden1,INDEX(Spells!$J$2:$J$1001,AC21),1))),NOT(ISERROR(FIND(Forbidden2,INDEX(Spells!$J$2:$J$1001,AC21),1)))),"* ",""))&AD21 ->  | AG21: =IF(AND(OR(Cull!$C20="Yes",ISERROR(FIND("#"&Spells!$B19&"#",AF$2)),Spells!$B19="",NOT(ISERROR(FIND(LOWER(ForbiddenAlignment),LOWER(Spells!$J19))))),NOT(Spells!$B19=AF$3)),"",$A21) ->  | AH21: 610 | AI21: 610 | AJ21: =IF(AI21="","",INDEX(Spells!$B$2:$B$1001,'Class List'!AI21)) -> Wall of Thorns | AK21: =IF(AJ21="","",IF(OR(NOT(ISERROR(FIND(Forbidden1,INDEX(Spells!$J$2:$J$1001,AI21),1))),NOT(ISERROR(FIND(Forbidden2,INDEX(Spells!$J$2:$J$1001,AI21),1)))),"* ",""))&AJ21 -> Wall of Thorns | AM21: =IF(AND(OR(Cull!$C20="Yes",ISERROR(FIND("#"&Spells!$B19&"#",AL$2)),Spells!$B19="",NOT(ISERROR(FIND(LOWER(ForbiddenAlignment),LOWER(Spells!$J19))))),NOT(Spells!$B19=AL$3)),"",$A21) ->  | AN21: 609 | AO21: 609 | AP21: =IF(AO21="","",INDEX(Spells!$B$2:$B$1001,'Class List'!AO21)) -> Wall of Stone | AQ21: =IF(AP21="","",IF(OR(NOT(ISERROR(FIND(Forbidden1,INDEX(Spells!$J$2:$J$1001,AO21),1))),NOT(ISERROR(FIND(Forbidden2,INDEX(Spells!$J$2:$J$1001,AO21),1)))),"* ",""))&AP21 -> Wall of Stone | AS21: =IF(AND(OR(Cull!$C20="Yes",ISERROR(FIND("#"&Spells!$B19&"#",AR$2)),Spells!$B19="",NOT(ISERROR(FIND(LOWER(ForbiddenAlignment),LOWER(Spells!$J19))))),NOT(Spells!$B19=AR$3)),"",$A21) ->  | AT21: 620 | AV21: =IF(AU21="","",INDEX(Spells!$B$2:$B$1001,'Class List'!AU21)) ->  | AW21: =IF(AV21="","",IF(OR(NOT(ISERROR(FIND(Forbidden1,INDEX(Spells!$J$2:$J$1001,AU21),1))),NOT(ISERROR(FIND(Forbidden2,INDEX(Spells!$J$2:$J$1001,AU21),1)))),"* ",""))&AV21 ->  | AY21: =IF(AND(OR(Cull!$C20="Yes",ISERROR(FIND("#"&Spells!$B19&"#",AX$2)),Spells!$B19="",NOT(ISERROR(FIND(LOWER(ForbiddenAlignment),LOWER(Spells!$J19))))),NOT(Spells!$B19=AX$3)),"",$A21) ->  | AZ21: 625 | BB21: =IF(BA21="","",INDEX(Spells!$B$2:$B$1001,'Class List'!BA21)) ->  | BC21: =IF(BB21="","",IF(OR(NOT(ISERROR(FIND(Forbidden1,INDEX(Spells!$J$2:$J$1001,BA21),1))),NOT(ISERROR(FIND(Forbidden2,INDEX(Spells!$J$2:$J$1001,BA21),1)))),"* ",""))&BB21 ->  | BE21: =IF(AND(OR(Cull!$C20="Yes",ISERROR(FIND("#"&Spells!$B19&"#",BD$2)),Spells!$B19="",NOT(ISERROR(FIND(LOWER(ForbiddenAlignment),LOWER(Spells!$J19))))),NOT(Spells!$B19=BD$3)),"",$A21) ->  | BF21: 568 | BH21: =IF(BG21="","",INDEX(Spells!$B$2:$B$1001,'Class List'!BG21)) ->  | BI21: =IF(BH21="","",IF(OR(NOT(ISERROR(FIND(Forbidden1,INDEX(Spells!$J$2:$J$1001,BG21),1))),NOT(ISERROR(FIND(Forbidden2,INDEX(Spells!$J$2:$J$1001,BG21),1)))),"* ",""))&BH21 -> 
A22: 19 | C22: =IF(AND(OR(Cull!$C21="Yes",ISERROR(FIND("#"&Spells!$B20&"#",B$2)),Spells!$B20="",NOT(ISERROR(FIND(LOWER(ForbiddenAlignment),LOWER(Spells!$J20))))),NOT(Spells!$B20=B$3)),"",$A22) ->  | D22: 602 | F22: =IF(E22="","",INDEX(Spells!$B$2:$B$1001,'Class List'!E22)) ->  | G22: =IF(F22="","",IF(OR(NOT(ISERROR(FIND(Forbidden1,INDEX(Spells!$J$2:$J$1001,E22),1))),NOT(ISERROR(FIND(Forbidden2,INDEX(Spells!$J$2:$J$1001,E22),1)))),"* ",""))&F22 ->  | I22: =IF(AND(OR(Cull!$C21="Yes",ISERROR(FIND("#"&Spells!$B20&"#",H$2)),Spells!$B20="",NOT(ISERROR(FIND(LOWER(ForbiddenAlignment),LOWER(Spells!$J20))))),NOT(Spells!$B20=H$3)),"",$A22) ->  | J22: 513 | K22: 513 | L22: =IF(K22="","",INDEX(Spells!$B$2:$B$1001,'Class List'!K22)) -> Speak with Animals | M22: =IF(L22="","",IF(OR(NOT(ISERROR(FIND(Forbidden1,INDEX(Spells!$J$2:$J$1001,K22),1))),NOT(ISERROR(FIND(Forbidden2,INDEX(Spells!$J$2:$J$1001,K22),1)))),"* ",""))&L22 -> Speak with Animals | O22: =IF(AND(OR(Cull!$C21="Yes",ISERROR(FIND("#"&Spells!$B20&"#",N$2)),Spells!$B20="",NOT(ISERROR(FIND(LOWER(ForbiddenAlignment),LOWER(Spells!$J20))))),NOT(Spells!$B20=N$3)),"",$A22) ->  | P22: 455 | Q22: 455 | R22: =IF(Q22="","",INDEX(Spells!$B$2:$B$1001,'Class List'!Q22)) -> Resist Energy | S22: =IF(R22="","",IF(OR(NOT(ISERROR(FIND(Forbidden1,INDEX(Spells!$J$2:$J$1001,Q22),1))),NOT(ISERROR(FIND(Forbidden2,INDEX(Spells!$J$2:$J$1001,Q22),1)))),"* ",""))&R22 -> Resist Energy | U22: =IF(AND(OR(Cull!$C21="Yes",ISERROR(FIND("#"&Spells!$B20&"#",T$2)),Spells!$B20="",NOT(ISERROR(FIND(LOWER(ForbiddenAlignment),LOWER(Spells!$J20))))),NOT(Spells!$B20=T$3)),"",$A22) ->  | V22: 530 | W22: 530 | X22: =IF(W22="","",INDEX(Spells!$B$2:$B$1001,'Class List'!W22)) -> Stone Shape | Y22: =IF(X22="","",IF(OR(NOT(ISERROR(FIND(Forbidden1,INDEX(Spells!$J$2:$J$1001,W22),1))),NOT(ISERROR(FIND(Forbidden2,INDEX(Spells!$J$2:$J$1001,W22),1)))),"* ",""))&X22 -> Stone Shape | AA22: =IF(AND(OR(Cull!$C21="Yes",ISERROR(FIND("#"&Spells!$B20&"#",Z$2)),Spells!$B20="",NOT(ISERROR(FIND(LOWER(ForbiddenAlignment),LOWER(Spells!$J20))))),NOT(Spells!$B20=Z$3)),"",$A22) ->  | AB22: 550 | AD22: =IF(AC22="","",INDEX(Spells!$B$2:$B$1001,'Class List'!AC22)) ->  | AE22: =IF(AD22="","",IF(OR(NOT(ISERROR(FIND(Forbidden1,INDEX(Spells!$J$2:$J$1001,AC22),1))),NOT(ISERROR(FIND(Forbidden2,INDEX(Spells!$J$2:$J$1001,AC22),1)))),"* ",""))&AD22 ->  | AG22: =IF(AND(OR(Cull!$C21="Yes",ISERROR(FIND("#"&Spells!$B20&"#",AF$2)),Spells!$B20="",NOT(ISERROR(FIND(LOWER(ForbiddenAlignment),LOWER(Spells!$J20))))),NOT(Spells!$B20=AF$3)),"",$A22) ->  | AH22: 610 | AJ22: =IF(AI22="","",INDEX(Spells!$B$2:$B$1001,'Class List'!AI22)) ->  | AK22: =IF(AJ22="","",IF(OR(NOT(ISERROR(FIND(Forbidden1,INDEX(Spells!$J$2:$J$1001,AI22),1))),NOT(ISERROR(FIND(Forbidden2,INDEX(Spells!$J$2:$J$1001,AI22),1)))),"* ",""))&AJ22 ->  | AL22: 1 | AM22: =IF(AND(OR(Cull!$C21="Yes",ISERROR(FIND("#"&Spells!$B20&"#",AL$2)),Spells!$B20="",NOT(ISERROR(FIND(LOWER(ForbiddenAlignment),LOWER(Spells!$J20))))),NOT(Spells!$B20=AL$3)),"",$A22) -> 19 | AN22: 609 | AP22: =IF(AO22="","",INDEX(Spells!$B$2:$B$1001,'Class List'!AO22)) ->  | AQ22: =IF(AP22="","",IF(OR(NOT(ISERROR(FIND(Forbidden1,INDEX(Spells!$J$2:$J$1001,AO22),1))),NOT(ISERROR(FIND(Forbidden2,INDEX(Spells!$J$2:$J$1001,AO22),1)))),"* ",""))&AP22 ->  | AS22: =IF(AND(OR(Cull!$C21="Yes",ISERROR(FIND("#"&Spells!$B20&"#",AR$2)),Spells!$B20="",NOT(ISERROR(FIND(LOWER(ForbiddenAlignment),LOWER(Spells!$J20))))),NOT(Spells!$B20=AR$3)),"",$A22) ->  | AT22: 620 | AV22: =IF(AU22="","",INDEX(Spells!$B$2:$B$1001,'Class List'!AU22)) ->  | AW22: =IF(AV22="","",IF(OR(NOT(ISERROR(FIND(Forbidden1,INDEX(Spells!$J$2:$J$1001,AU22),1))),NOT(ISERROR(FIND(Forbidden2,INDEX(Spells!$J$2:$J$1001,AU22),1)))),"* ",""))&AV22 ->  | AY22: =IF(AND(OR(Cull!$C21="Yes",ISERROR(FIND("#"&Spells!$B20&"#",AX$2)),Spells!$B20="",NOT(ISERROR(FIND(LOWER(ForbiddenAlignment),LOWER(Spells!$J20))))),NOT(Spells!$B20=AX$3)),"",$A22) ->  | AZ22: 625 | BB22: =IF(BA22="","",INDEX(Spells!$B$2:$B$1001,'Class List'!BA22)) ->  | BC22: =IF(BB22="","",IF(OR(NOT(ISERROR(FIND(Forbidden1,INDEX(Spells!$J$2:$J$1001,BA22),1))),NOT(ISERROR(FIND(Forbidden2,INDEX(Spells!$J$2:$J$1001,BA22),1)))),"* ",""))&BB22 ->  | BE22: =IF(AND(OR(Cull!$C21="Yes",ISERROR(FIND("#"&Spells!$B20&"#",BD$2)),Spells!$B20="",NOT(ISERROR(FIND(LOWER(ForbiddenAlignment),LOWER(Spells!$J20))))),NOT(Spells!$B20=BD$3)),"",$A22) ->  | BF22: 568 | BH22: =IF(BG22="","",INDEX(Spells!$B$2:$B$1001,'Class List'!BG22)) ->  | BI22: =IF(BH22="","",IF(OR(NOT(ISERROR(FIND(Forbidden1,INDEX(Spells!$J$2:$J$1001,BG22),1))),NOT(ISERROR(FIND(Forbidden2,INDEX(Spells!$J$2:$J$1001,BG22),1)))),"* ",""))&BH22 -> 
A23: 20 | C23: =IF(AND(OR(Cull!$C22="Yes",ISERROR(FIND("#"&Spells!$B21&"#",B$2)),Spells!$B21="",NOT(ISERROR(FIND(LOWER(ForbiddenAlignment),LOWER(Spells!$J21))))),NOT(Spells!$B21=B$3)),"",$A23) ->  | D23: 602 | F23: =IF(E23="","",INDEX(Spells!$B$2:$B$1001,'Class List'!E23)) ->  | G23: =IF(F23="","",IF(OR(NOT(ISERROR(FIND(Forbidden1,INDEX(Spells!$J$2:$J$1001,E23),1))),NOT(ISERROR(FIND(Forbidden2,INDEX(Spells!$J$2:$J$1001,E23),1)))),"* ",""))&F23 ->  | I23: =IF(AND(OR(Cull!$C22="Yes",ISERROR(FIND("#"&Spells!$B21&"#",H$2)),Spells!$B21="",NOT(ISERROR(FIND(LOWER(ForbiddenAlignment),LOWER(Spells!$J21))))),NOT(Spells!$B21=H$3)),"",$A23) ->  | J23: 547 | K23: 547 | L23: =IF(K23="","",INDEX(Spells!$B$2:$B$1001,'Class List'!K23)) -> Summon Nature's Ally I | M23: =IF(L23="","",IF(OR(NOT(ISERROR(FIND(Forbidden1,INDEX(Spells!$J$2:$J$1001,K23),1))),NOT(ISERROR(FIND(Forbidden2,INDEX(Spells!$J$2:$J$1001,K23),1)))),"* ",""))&L23 -> Summon Nature's Ally I | O23: =IF(AND(OR(Cull!$C22="Yes",ISERROR(FIND("#"&Spells!$B21&"#",N$2)),Spells!$B21="",NOT(ISERROR(FIND(LOWER(ForbiddenAlignment),LOWER(Spells!$J21))))),NOT(Spells!$B21=N$3)),"",$A23) ->  | P23: 459 | Q23: 459 | R23: =IF(Q23="","",INDEX(Spells!$B$2:$B$1001,'Class List'!Q23)) -> Restoration, Lesser | S23: =IF(R23="","",IF(OR(NOT(ISERROR(FIND(Forbidden1,INDEX(Spells!$J$2:$J$1001,Q23),1))),NOT(ISERROR(FIND(Forbidden2,INDEX(Spells!$J$2:$J$1001,Q23),1)))),"* ",""))&R23 -> Restoration, Lesser | U23: =IF(AND(OR(Cull!$C22="Yes",ISERROR(FIND("#"&Spells!$B21&"#",T$2)),Spells!$B21="",NOT(ISERROR(FIND(LOWER(ForbiddenAlignment),LOWER(Spells!$J21))))),NOT(Spells!$B21=T$3)),"",$A23) ->  | V23: 549 | W23: 549 | X23: =IF(W23="","",INDEX(Spells!$B$2:$B$1001,'Class List'!W23)) -> Summon Nature's Ally III | Y23: =IF(X23="","",IF(OR(NOT(ISERROR(FIND(Forbidden1,INDEX(Spells!$J$2:$J$1001,W23),1))),NOT(ISERROR(FIND(Forbidden2,INDEX(Spells!$J$2:$J$1001,W23),1)))),"* ",""))&X23 -> Summon Nature's Ally III | AA23: =IF(AND(OR(Cull!$C22="Yes",ISERROR(FIND("#"&Spells!$B21&"#",Z$2)),Spells!$B21="",NOT(ISERROR(FIND(LOWER(ForbiddenAlignment),LOWER(Spells!$J21))))),NOT(Spells!$B21=Z$3)),"",$A23) ->  | AB23: 550 | AD23: =IF(AC23="","",INDEX(Spells!$B$2:$B$1001,'Class List'!AC23)) ->  | AE23: =IF(AD23="","",IF(OR(NOT(ISERROR(FIND(Forbidden1,INDEX(Spells!$J$2:$J$1001,AC23),1))),NOT(ISERROR(FIND(Forbidden2,INDEX(Spells!$J$2:$J$1001,AC23),1)))),"* ",""))&AD23 ->  | AG23: =IF(AND(OR(Cull!$C22="Yes",ISERROR(FIND("#"&Spells!$B21&"#",AF$2)),Spells!$B21="",NOT(ISERROR(FIND(LOWER(ForbiddenAlignment),LOWER(Spells!$J21))))),NOT(Spells!$B21=AF$3)),"",$A23) ->  | AH23: 610 | AJ23: =IF(AI23="","",INDEX(Spells!$B$2:$B$1001,'Class List'!AI23)) ->  | AK23: =IF(AJ23="","",IF(OR(NOT(ISERROR(FIND(Forbidden1,INDEX(Spells!$J$2:$J$1001,AI23),1))),NOT(ISERROR(FIND(Forbidden2,INDEX(Spells!$J$2:$J$1001,AI23),1)))),"* ",""))&AJ23 ->  | AM23: =IF(AND(OR(Cull!$C22="Yes",ISERROR(FIND("#"&Spells!$B21&"#",AL$2)),Spells!$B21="",NOT(ISERROR(FIND(LOWER(ForbiddenAlignment),LOWER(Spells!$J21))))),NOT(Spells!$B21=AL$3)),"",$A23) ->  | AN23: 609 | AP23: =IF(AO23="","",INDEX(Spells!$B$2:$B$1001,'Class List'!AO23)) ->  | AQ23: =IF(AP23="","",IF(OR(NOT(ISERROR(FIND(Forbidden1,INDEX(Spells!$J$2:$J$1001,AO23),1))),NOT(ISERROR(FIND(Forbidden2,INDEX(Spells!$J$2:$J$1001,AO23),1)))),"* ",""))&AP23 ->  | AS23: =IF(AND(OR(Cull!$C22="Yes",ISERROR(FIND("#"&Spells!$B21&"#",AR$2)),Spells!$B21="",NOT(ISERROR(FIND(LOWER(ForbiddenAlignment),LOWER(Spells!$J21))))),NOT(Spells!$B21=AR$3)),"",$A23) ->  | AT23: 620 | AV23: =IF(AU23="","",INDEX(Spells!$B$2:$B$1001,'Class List'!AU23)) ->  | AW23: =IF(AV23="","",IF(OR(NOT(ISERROR(FIND(Forbidden1,INDEX(Spells!$J$2:$J$1001,AU23),1))),NOT(ISERROR(FIND(Forbidden2,INDEX(Spells!$J$2:$J$1001,AU23),1)))),"* ",""))&AV23 ->  | AY23: =IF(AND(OR(Cull!$C22="Yes",ISERROR(FIND("#"&Spells!$B21&"#",AX$2)),Spells!$B21="",NOT(ISERROR(FIND(LOWER(ForbiddenAlignment),LOWER(Spells!$J21))))),NOT(Spells!$B21=AX$3)),"",$A23) ->  | AZ23: 625 | BB23: =IF(BA23="","",INDEX(Spells!$B$2:$B$1001,'Class List'!BA23)) ->  | BC23: =IF(BB23="","",IF(OR(NOT(ISERROR(FIND(Forbidden1,INDEX(Spells!$J$2:$J$1001,BA23),1))),NOT(ISERROR(FIND(Forbidden2,INDEX(Spells!$J$2:$J$1001,BA23),1)))),"* ",""))&BB23 ->  | BE23: =IF(AND(OR(Cull!$C22="Yes",ISERROR(FIND("#"&Spells!$B21&"#",BD$2)),Spells!$B21="",NOT(ISERROR(FIND(LOWER(ForbiddenAlignment),LOWER(Spells!$J21))))),NOT(Spells!$B21=BD$3)),"",$A23) ->  | BF23: 568 | BH23: =IF(BG23="","",INDEX(Spells!$B$2:$B$1001,'Class List'!BG23)) ->  | BI23: =IF(BH23="","",IF(OR(NOT(ISERROR(FIND(Forbidden1,INDEX(Spells!$J$2:$J$1001,BG23),1))),NOT(ISERROR(FIND(Forbidden2,INDEX(Spells!$J$2:$J$1001,BG23),1)))),"* ",""))&BH23 -> 
A24: 21 | C24: =IF(AND(OR(Cull!$C23="Yes",ISERROR(FIND("#"&Spells!$B22&"#",B$2)),Spells!$B22="",NOT(ISERROR(FIND(LOWER(ForbiddenAlignment),LOWER(Spells!$J22))))),NOT(Spells!$B22=B$3)),"",$A24) ->  | D24: 602 | F24: =IF(E24="","",INDEX(Spells!$B$2:$B$1001,'Class List'!E24)) ->  | G24: =IF(F24="","",IF(OR(NOT(ISERROR(FIND(Forbidden1,INDEX(Spells!$J$2:$J$1001,E24),1))),NOT(ISERROR(FIND(Forbidden2,INDEX(Spells!$J$2:$J$1001,E24),1)))),"* ",""))&F24 ->  | I24: =IF(AND(OR(Cull!$C23="Yes",ISERROR(FIND("#"&Spells!$B22&"#",H$2)),Spells!$B22="",NOT(ISERROR(FIND(LOWER(ForbiddenAlignment),LOWER(Spells!$J22))))),NOT(Spells!$B22=H$3)),"",$A24) ->  | J24: 547 | L24: =IF(K24="","",INDEX(Spells!$B$2:$B$1001,'Class List'!K24)) ->  | M24: =IF(L24="","",IF(OR(NOT(ISERROR(FIND(Forbidden1,INDEX(Spells!$J$2:$J$1001,K24),1))),NOT(ISERROR(FIND(Forbidden2,INDEX(Spells!$J$2:$J$1001,K24),1)))),"* ",""))&L24 ->  | O24: =IF(AND(OR(Cull!$C23="Yes",ISERROR(FIND("#"&Spells!$B22&"#",N$2)),Spells!$B22="",NOT(ISERROR(FIND(LOWER(ForbiddenAlignment),LOWER(Spells!$J22))))),NOT(Spells!$B22=N$3)),"",$A24) ->  | P24: 508 | Q24: 508 | R24: =IF(Q24="","",INDEX(Spells!$B$2:$B$1001,'Class List'!Q24)) -> Soften Earth and Stone | S24: =IF(R24="","",IF(OR(NOT(ISERROR(FIND(Forbidden1,INDEX(Spells!$J$2:$J$1001,Q24),1))),NOT(ISERROR(FIND(Forbidden2,INDEX(Spells!$J$2:$J$1001,Q24),1)))),"* ",""))&R24 -> Soften Earth and Stone | U24: =IF(AND(OR(Cull!$C23="Yes",ISERROR(FIND("#"&Spells!$B22&"#",T$2)),Spells!$B22="",NOT(ISERROR(FIND(LOWER(ForbiddenAlignment),LOWER(Spells!$J22))))),NOT(Spells!$B22=T$3)),"",$A24) ->  | V24: 612 | W24: 612 | X24: =IF(W24="","",INDEX(Spells!$B$2:$B$1001,'Class List'!W24)) -> Water Breathing | Y24: =IF(X24="","",IF(OR(NOT(ISERROR(FIND(Forbidden1,INDEX(Spells!$J$2:$J$1001,W24),1))),NOT(ISERROR(FIND(Forbidden2,INDEX(Spells!$J$2:$J$1001,W24),1)))),"* ",""))&X24 -> Water Breathing | AA24: =IF(AND(OR(Cull!$C23="Yes",ISERROR(FIND("#"&Spells!$B22&"#",Z$2)),Spells!$B22="",NOT(ISERROR(FIND(LOWER(ForbiddenAlignment),LOWER(Spells!$J22))))),NOT(Spells!$B22=Z$3)),"",$A24) ->  | AB24: 550 | AD24: =IF(AC24="","",INDEX(Spells!$B$2:$B$1001,'Class List'!AC24)) ->  | AE24: =IF(AD24="","",IF(OR(NOT(ISERROR(FIND(Forbidden1,INDEX(Spells!$J$2:$J$1001,AC24),1))),NOT(ISERROR(FIND(Forbidden2,INDEX(Spells!$J$2:$J$1001,AC24),1)))),"* ",""))&AD24 ->  | AG24: =IF(AND(OR(Cull!$C23="Yes",ISERROR(FIND("#"&Spells!$B22&"#",AF$2)),Spells!$B22="",NOT(ISERROR(FIND(LOWER(ForbiddenAlignment),LOWER(Spells!$J22))))),NOT(Spells!$B22=AF$3)),"",$A24) ->  | AH24: 610 | AJ24: =IF(AI24="","",INDEX(Spells!$B$2:$B$1001,'Class List'!AI24)) ->  | AK24: =IF(AJ24="","",IF(OR(NOT(ISERROR(FIND(Forbidden1,INDEX(Spells!$J$2:$J$1001,AI24),1))),NOT(ISERROR(FIND(Forbidden2,INDEX(Spells!$J$2:$J$1001,AI24),1)))),"* ",""))&AJ24 ->  | AM24: =IF(AND(OR(Cull!$C23="Yes",ISERROR(FIND("#"&Spells!$B22&"#",AL$2)),Spells!$B22="",NOT(ISERROR(FIND(LOWER(ForbiddenAlignment),LOWER(Spells!$J22))))),NOT(Spells!$B22=AL$3)),"",$A24) ->  | AN24: 609 | AP24: =IF(AO24="","",INDEX(Spells!$B$2:$B$1001,'Class List'!AO24)) ->  | AQ24: =IF(AP24="","",IF(OR(NOT(ISERROR(FIND(Forbidden1,INDEX(Spells!$J$2:$J$1001,AO24),1))),NOT(ISERROR(FIND(Forbidden2,INDEX(Spells!$J$2:$J$1001,AO24),1)))),"* ",""))&AP24 ->  | AS24: =IF(AND(OR(Cull!$C23="Yes",ISERROR(FIND("#"&Spells!$B22&"#",AR$2)),Spells!$B22="",NOT(ISERROR(FIND(LOWER(ForbiddenAlignment),LOWER(Spells!$J22))))),NOT(Spells!$B22=AR$3)),"",$A24) ->  | AT24: 620 | AV24: =IF(AU24="","",INDEX(Spells!$B$2:$B$1001,'Class List'!AU24)) ->  | AW24: =IF(AV24="","",IF(OR(NOT(ISERROR(FIND(Forbidden1,INDEX(Spells!$J$2:$J$1001,AU24),1))),NOT(ISERROR(FIND(Forbidden2,INDEX(Spells!$J$2:$J$1001,AU24),1)))),"* ",""))&AV24 ->  | AY24: =IF(AND(OR(Cull!$C23="Yes",ISERROR(FIND("#"&Spells!$B22&"#",AX$2)),Spells!$B22="",NOT(ISERROR(FIND(LOWER(ForbiddenAlignment),LOWER(Spells!$J22))))),NOT(Spells!$B22=AX$3)),"",$A24) ->  | AZ24: 625 | BB24: =IF(BA24="","",INDEX(Spells!$B$2:$B$1001,'Class List'!BA24)) ->  | BC24: =IF(BB24="","",IF(OR(NOT(ISERROR(FIND(Forbidden1,INDEX(Spells!$J$2:$J$1001,BA24),1))),NOT(ISERROR(FIND(Forbidden2,INDEX(Spells!$J$2:$J$1001,BA24),1)))),"* ",""))&BB24 ->  | BD24: 1 | BE24: =IF(AND(OR(Cull!$C23="Yes",ISERROR(FIND("#"&Spells!$B22&"#",BD$2)),Spells!$B22="",NOT(ISERROR(FIND(LOWER(ForbiddenAlignment),LOWER(Spells!$J22))))),NOT(Spells!$B22=BD$3)),"",$A24) -> 21 | BF24: 568 | BH24: =IF(BG24="","",INDEX(Spells!$B$2:$B$1001,'Class List'!BG24)) ->  | BI24: =IF(BH24="","",IF(OR(NOT(ISERROR(FIND(Forbidden1,INDEX(Spells!$J$2:$J$1001,BG24),1))),NOT(ISERROR(FIND(Forbidden2,INDEX(Spells!$J$2:$J$1001,BG24),1)))),"* ",""))&BH24 -> 
A25: 22 | C25: =IF(AND(OR(Cull!$C24="Yes",ISERROR(FIND("#"&Spells!$B23&"#",B$2)),Spells!$B23="",NOT(ISERROR(FIND(LOWER(ForbiddenAlignment),LOWER(Spells!$J23))))),NOT(Spells!$B23=B$3)),"",$A25) ->  | D25: 602 | F25: =IF(E25="","",INDEX(Spells!$B$2:$B$1001,'Class List'!E25)) ->  | G25: =IF(F25="","",IF(OR(NOT(ISERROR(FIND(Forbidden1,INDEX(Spells!$J$2:$J$1001,E25),1))),NOT(ISERROR(FIND(Forbidden2,INDEX(Spells!$J$2:$J$1001,E25),1)))),"* ",""))&F25 ->  | I25: =IF(AND(OR(Cull!$C24="Yes",ISERROR(FIND("#"&Spells!$B23&"#",H$2)),Spells!$B23="",NOT(ISERROR(FIND(LOWER(ForbiddenAlignment),LOWER(Spells!$J23))))),NOT(Spells!$B23=H$3)),"",$A25) ->  | J25: 547 | L25: =IF(K25="","",INDEX(Spells!$B$2:$B$1001,'Class List'!K25)) ->  | M25: =IF(L25="","",IF(OR(NOT(ISERROR(FIND(Forbidden1,INDEX(Spells!$J$2:$J$1001,K25),1))),NOT(ISERROR(FIND(Forbidden2,INDEX(Spells!$J$2:$J$1001,K25),1)))),"* ",""))&L25 ->  | O25: =IF(AND(OR(Cull!$C24="Yes",ISERROR(FIND("#"&Spells!$B23&"#",N$2)),Spells!$B23="",NOT(ISERROR(FIND(LOWER(ForbiddenAlignment),LOWER(Spells!$J23))))),NOT(Spells!$B23=N$3)),"",$A25) ->  | P25: 522 | Q25: 522 | R25: =IF(Q25="","",INDEX(Spells!$B$2:$B$1001,'Class List'!Q25)) -> Spider Climb | S25: =IF(R25="","",IF(OR(NOT(ISERROR(FIND(Forbidden1,INDEX(Spells!$J$2:$J$1001,Q25),1))),NOT(ISERROR(FIND(Forbidden2,INDEX(Spells!$J$2:$J$1001,Q25),1)))),"* ",""))&R25 -> Spider Climb | U25: =IF(AND(OR(Cull!$C24="Yes",ISERROR(FIND("#"&Spells!$B23&"#",T$2)),Spells!$B23="",NOT(ISERROR(FIND(LOWER(ForbiddenAlignment),LOWER(Spells!$J23))))),NOT(Spells!$B23=T$3)),"",$A25) ->  | V25: 621 | W25: 621 | X25: =IF(W25="","",INDEX(Spells!$B$2:$B$1001,'Class List'!W25)) -> Wind Wall | Y25: =IF(X25="","",IF(OR(NOT(ISERROR(FIND(Forbidden1,INDEX(Spells!$J$2:$J$1001,W25),1))),NOT(ISERROR(FIND(Forbidden2,INDEX(Spells!$J$2:$J$1001,W25),1)))),"* ",""))&X25 -> Wind Wall | Z25: 2 | AA25: =IF(AND(OR(Cull!$C24="Yes",ISERROR(FIND("#"&Spells!$B23&"#",Z$2)),Spells!$B23="",NOT(ISERROR(FIND(LOWER(ForbiddenAlignment),LOWER(Spells!$J23))))),NOT(Spells!$B23=Z$3)),"",$A25) -> 22 | AB25: 550 | AD25: =IF(AC25="","",INDEX(Spells!$B$2:$B$1001,'Class List'!AC25)) ->  | AE25: =IF(AD25="","",IF(OR(NOT(ISERROR(FIND(Forbidden1,INDEX(Spells!$J$2:$J$1001,AC25),1))),NOT(ISERROR(FIND(Forbidden2,INDEX(Spells!$J$2:$J$1001,AC25),1)))),"* ",""))&AD25 ->  | AG25: =IF(AND(OR(Cull!$C24="Yes",ISERROR(FIND("#"&Spells!$B23&"#",AF$2)),Spells!$B23="",NOT(ISERROR(FIND(LOWER(ForbiddenAlignment),LOWER(Spells!$J23))))),NOT(Spells!$B23=AF$3)),"",$A25) ->  | AH25: 610 | AJ25: =IF(AI25="","",INDEX(Spells!$B$2:$B$1001,'Class List'!AI25)) ->  | AK25: =IF(AJ25="","",IF(OR(NOT(ISERROR(FIND(Forbidden1,INDEX(Spells!$J$2:$J$1001,AI25),1))),NOT(ISERROR(FIND(Forbidden2,INDEX(Spells!$J$2:$J$1001,AI25),1)))),"* ",""))&AJ25 ->  | AM25: =IF(AND(OR(Cull!$C24="Yes",ISERROR(FIND("#"&Spells!$B23&"#",AL$2)),Spells!$B23="",NOT(ISERROR(FIND(LOWER(ForbiddenAlignment),LOWER(Spells!$J23))))),NOT(Spells!$B23=AL$3)),"",$A25) ->  | AN25: 609 | AP25: =IF(AO25="","",INDEX(Spells!$B$2:$B$1001,'Class List'!AO25)) ->  | AQ25: =IF(AP25="","",IF(OR(NOT(ISERROR(FIND(Forbidden1,INDEX(Spells!$J$2:$J$1001,AO25),1))),NOT(ISERROR(FIND(Forbidden2,INDEX(Spells!$J$2:$J$1001,AO25),1)))),"* ",""))&AP25 ->  | AS25: =IF(AND(OR(Cull!$C24="Yes",ISERROR(FIND("#"&Spells!$B23&"#",AR$2)),Spells!$B23="",NOT(ISERROR(FIND(LOWER(ForbiddenAlignment),LOWER(Spells!$J23))))),NOT(Spells!$B23=AR$3)),"",$A25) ->  | AT25: 620 | AV25: =IF(AU25="","",INDEX(Spells!$B$2:$B$1001,'Class List'!AU25)) ->  | AW25: =IF(AV25="","",IF(OR(NOT(ISERROR(FIND(Forbidden1,INDEX(Spells!$J$2:$J$1001,AU25),1))),NOT(ISERROR(FIND(Forbidden2,INDEX(Spells!$J$2:$J$1001,AU25),1)))),"* ",""))&AV25 ->  | AY25: =IF(AND(OR(Cull!$C24="Yes",ISERROR(FIND("#"&Spells!$B23&"#",AX$2)),Spells!$B23="",NOT(ISERROR(FIND(LOWER(ForbiddenAlignment),LOWER(Spells!$J23))))),NOT(Spells!$B23=AX$3)),"",$A25) ->  | AZ25: 625 | BB25: =IF(BA25="","",INDEX(Spells!$B$2:$B$1001,'Class List'!BA25)) ->  | BC25: =IF(BB25="","",IF(OR(NOT(ISERROR(FIND(Forbidden1,INDEX(Spells!$J$2:$J$1001,BA25),1))),NOT(ISERROR(FIND(Forbidden2,INDEX(Spells!$J$2:$J$1001,BA25),1)))),"* ",""))&BB25 ->  | BE25: =IF(AND(OR(Cull!$C24="Yes",ISERROR(FIND("#"&Spells!$B23&"#",BD$2)),Spells!$B23="",NOT(ISERROR(FIND(LOWER(ForbiddenAlignment),LOWER(Spells!$J23))))),NOT(Spells!$B23=BD$3)),"",$A25) ->  | BF25: 568 | BH25: =IF(BG25="","",INDEX(Spells!$B$2:$B$1001,'Class List'!BG25)) ->  | BI25: =IF(BH25="","",IF(OR(NOT(ISERROR(FIND(Forbidden1,INDEX(Spells!$J$2:$J$1001,BG25),1))),NOT(ISERROR(FIND(Forbidden2,INDEX(Spells!$J$2:$J$1001,BG25),1)))),"* ",""))&BH25 -> 
A26: 23 | C26: =IF(AND(OR(Cull!$C25="Yes",ISERROR(FIND("#"&Spells!$B24&"#",B$2)),Spells!$B24="",NOT(ISERROR(FIND(LOWER(ForbiddenAlignment),LOWER(Spells!$J24))))),NOT(Spells!$B24=B$3)),"",$A26) ->  | D26: 602 | F26: =IF(E26="","",INDEX(Spells!$B$2:$B$1001,'Class List'!E26)) ->  | G26: =IF(F26="","",IF(OR(NOT(ISERROR(FIND(Forbidden1,INDEX(Spells!$J$2:$J$1001,E26),1))),NOT(ISERROR(FIND(Forbidden2,INDEX(Spells!$J$2:$J$1001,E26),1)))),"* ",""))&F26 ->  | I26: =IF(AND(OR(Cull!$C25="Yes",ISERROR(FIND("#"&Spells!$B24&"#",H$2)),Spells!$B24="",NOT(ISERROR(FIND(LOWER(ForbiddenAlignment),LOWER(Spells!$J24))))),NOT(Spells!$B24=H$3)),"",$A26) ->  | J26: 547 | L26: =IF(K26="","",INDEX(Spells!$B$2:$B$1001,'Class List'!K26)) ->  | M26: =IF(L26="","",IF(OR(NOT(ISERROR(FIND(Forbidden1,INDEX(Spells!$J$2:$J$1001,K26),1))),NOT(ISERROR(FIND(Forbidden2,INDEX(Spells!$J$2:$J$1001,K26),1)))),"* ",""))&L26 ->  | O26: =IF(AND(OR(Cull!$C25="Yes",ISERROR(FIND("#"&Spells!$B24&"#",N$2)),Spells!$B24="",NOT(ISERROR(FIND(LOWER(ForbiddenAlignment),LOWER(Spells!$J24))))),NOT(Spells!$B24=N$3)),"",$A26) ->  | P26: 548 | Q26: 548 | R26: =IF(Q26="","",INDEX(Spells!$B$2:$B$1001,'Class List'!Q26)) -> Summon Nature's Ally II | S26: =IF(R26="","",IF(OR(NOT(ISERROR(FIND(Forbidden1,INDEX(Spells!$J$2:$J$1001,Q26),1))),NOT(ISERROR(FIND(Forbidden2,INDEX(Spells!$J$2:$J$1001,Q26),1)))),"* ",""))&R26 -> Summon Nature's Ally II | U26: =IF(AND(OR(Cull!$C25="Yes",ISERROR(FIND("#"&Spells!$B24&"#",T$2)),Spells!$B24="",NOT(ISERROR(FIND(LOWER(ForbiddenAlignment),LOWER(Spells!$J24))))),NOT(Spells!$B24=T$3)),"",$A26) ->  | V26: 621 | X26: =IF(W26="","",INDEX(Spells!$B$2:$B$1001,'Class List'!W26)) ->  | Y26: =IF(X26="","",IF(OR(NOT(ISERROR(FIND(Forbidden1,INDEX(Spells!$J$2:$J$1001,W26),1))),NOT(ISERROR(FIND(Forbidden2,INDEX(Spells!$J$2:$J$1001,W26),1)))),"* ",""))&X26 ->  | AA26: =IF(AND(OR(Cull!$C25="Yes",ISERROR(FIND("#"&Spells!$B24&"#",Z$2)),Spells!$B24="",NOT(ISERROR(FIND(LOWER(ForbiddenAlignment),LOWER(Spells!$J24))))),NOT(Spells!$B24=Z$3)),"",$A26) ->  | AB26: 550 | AD26: =IF(AC26="","",INDEX(Spells!$B$2:$B$1001,'Class List'!AC26)) ->  | AE26: =IF(AD26="","",IF(OR(NOT(ISERROR(FIND(Forbidden1,INDEX(Spells!$J$2:$J$1001,AC26),1))),NOT(ISERROR(FIND(Forbidden2,INDEX(Spells!$J$2:$J$1001,AC26),1)))),"* ",""))&AD26 ->  | AG26: =IF(AND(OR(Cull!$C25="Yes",ISERROR(FIND("#"&Spells!$B24&"#",AF$2)),Spells!$B24="",NOT(ISERROR(FIND(LOWER(ForbiddenAlignment),LOWER(Spells!$J24))))),NOT(Spells!$B24=AF$3)),"",$A26) ->  | AH26: 610 | AJ26: =IF(AI26="","",INDEX(Spells!$B$2:$B$1001,'Class List'!AI26)) ->  | AK26: =IF(AJ26="","",IF(OR(NOT(ISERROR(FIND(Forbidden1,INDEX(Spells!$J$2:$J$1001,AI26),1))),NOT(ISERROR(FIND(Forbidden2,INDEX(Spells!$J$2:$J$1001,AI26),1)))),"* ",""))&AJ26 ->  | AM26: =IF(AND(OR(Cull!$C25="Yes",ISERROR(FIND("#"&Spells!$B24&"#",AL$2)),Spells!$B24="",NOT(ISERROR(FIND(LOWER(ForbiddenAlignment),LOWER(Spells!$J24))))),NOT(Spells!$B24=AL$3)),"",$A26) ->  | AN26: 609 | AP26: =IF(AO26="","",INDEX(Spells!$B$2:$B$1001,'Class List'!AO26)) ->  | AQ26: =IF(AP26="","",IF(OR(NOT(ISERROR(FIND(Forbidden1,INDEX(Spells!$J$2:$J$1001,AO26),1))),NOT(ISERROR(FIND(Forbidden2,INDEX(Spells!$J$2:$J$1001,AO26),1)))),"* ",""))&AP26 ->  | AS26: =IF(AND(OR(Cull!$C25="Yes",ISERROR(FIND("#"&Spells!$B24&"#",AR$2)),Spells!$B24="",NOT(ISERROR(FIND(LOWER(ForbiddenAlignment),LOWER(Spells!$J24))))),NOT(Spells!$B24=AR$3)),"",$A26) ->  | AT26: 620 | AV26: =IF(AU26="","",INDEX(Spells!$B$2:$B$1001,'Class List'!AU26)) ->  | AW26: =IF(AV26="","",IF(OR(NOT(ISERROR(FIND(Forbidden1,INDEX(Spells!$J$2:$J$1001,AU26),1))),NOT(ISERROR(FIND(Forbidden2,INDEX(Spells!$J$2:$J$1001,AU26),1)))),"* ",""))&AV26 ->  | AY26: =IF(AND(OR(Cull!$C25="Yes",ISERROR(FIND("#"&Spells!$B24&"#",AX$2)),Spells!$B24="",NOT(ISERROR(FIND(LOWER(ForbiddenAlignment),LOWER(Spells!$J24))))),NOT(Spells!$B24=AX$3)),"",$A26) ->  | AZ26: 625 | BB26: =IF(BA26="","",INDEX(Spells!$B$2:$B$1001,'Class List'!BA26)) ->  | BC26: =IF(BB26="","",IF(OR(NOT(ISERROR(FIND(Forbidden1,INDEX(Spells!$J$2:$J$1001,BA26),1))),NOT(ISERROR(FIND(Forbidden2,INDEX(Spells!$J$2:$J$1001,BA26),1)))),"* ",""))&BB26 ->  | BE26: =IF(AND(OR(Cull!$C25="Yes",ISERROR(FIND("#"&Spells!$B24&"#",BD$2)),Spells!$B24="",NOT(ISERROR(FIND(LOWER(ForbiddenAlignment),LOWER(Spells!$J24))))),NOT(Spells!$B24=BD$3)),"",$A26) ->  | BF26: 568 | BH26: =IF(BG26="","",INDEX(Spells!$B$2:$B$1001,'Class List'!BG26)) ->  | BI26: =IF(BH26="","",IF(OR(NOT(ISERROR(FIND(Forbidden1,INDEX(Spells!$J$2:$J$1001,BG26),1))),NOT(ISERROR(FIND(Forbidden2,INDEX(Spells!$J$2:$J$1001,BG26),1)))),"* ",""))&BH26 -> 
A27: 24 | C27: =IF(AND(OR(Cull!$C26="Yes",ISERROR(FIND("#"&Spells!$B25&"#",B$2)),Spells!$B25="",NOT(ISERROR(FIND(LOWER(ForbiddenAlignment),LOWER(Spells!$J25))))),NOT(Spells!$B25=B$3)),"",$A27) ->  | D27: 602 | F27: =IF(E27="","",INDEX(Spells!$B$2:$B$1001,'Class List'!E27)) ->  | G27: =IF(F27="","",IF(OR(NOT(ISERROR(FIND(Forbidden1,INDEX(Spells!$J$2:$J$1001,E27),1))),NOT(ISERROR(FIND(Forbidden2,INDEX(Spells!$J$2:$J$1001,E27),1)))),"* ",""))&F27 ->  | I27: =IF(AND(OR(Cull!$C26="Yes",ISERROR(FIND("#"&Spells!$B25&"#",H$2)),Spells!$B25="",NOT(ISERROR(FIND(LOWER(ForbiddenAlignment),LOWER(Spells!$J25))))),NOT(Spells!$B25=H$3)),"",$A27) ->  | J27: 547 | L27: =IF(K27="","",INDEX(Spells!$B$2:$B$1001,'Class List'!K27)) ->  | M27: =IF(L27="","",IF(OR(NOT(ISERROR(FIND(Forbidden1,INDEX(Spells!$J$2:$J$1001,K27),1))),NOT(ISERROR(FIND(Forbidden2,INDEX(Spells!$J$2:$J$1001,K27),1)))),"* ",""))&L27 ->  | O27: =IF(AND(OR(Cull!$C26="Yes",ISERROR(FIND("#"&Spells!$B25&"#",N$2)),Spells!$B25="",NOT(ISERROR(FIND(LOWER(ForbiddenAlignment),LOWER(Spells!$J25))))),NOT(Spells!$B25=N$3)),"",$A27) ->  | P27: 556 | Q27: 556 | R27: =IF(Q27="","",INDEX(Spells!$B$2:$B$1001,'Class List'!Q27)) -> Summon Swarm | S27: =IF(R27="","",IF(OR(NOT(ISERROR(FIND(Forbidden1,INDEX(Spells!$J$2:$J$1001,Q27),1))),NOT(ISERROR(FIND(Forbidden2,INDEX(Spells!$J$2:$J$1001,Q27),1)))),"* ",""))&R27 -> Summon Swarm | U27: =IF(AND(OR(Cull!$C26="Yes",ISERROR(FIND("#"&Spells!$B25&"#",T$2)),Spells!$B25="",NOT(ISERROR(FIND(LOWER(ForbiddenAlignment),LOWER(Spells!$J25))))),NOT(Spells!$B25=T$3)),"",$A27) ->  | V27: 621 | X27: =IF(W27="","",INDEX(Spells!$B$2:$B$1001,'Class List'!W27)) ->  | Y27: =IF(X27="","",IF(OR(NOT(ISERROR(FIND(Forbidden1,INDEX(Spells!$J$2:$J$1001,W27),1))),NOT(ISERROR(FIND(Forbidden2,INDEX(Spells!$J$2:$J$1001,W27),1)))),"* ",""))&X27 ->  | AA27: =IF(AND(OR(Cull!$C26="Yes",ISERROR(FIND("#"&Spells!$B25&"#",Z$2)),Spells!$B25="",NOT(ISERROR(FIND(LOWER(ForbiddenAlignment),LOWER(Spells!$J25))))),NOT(Spells!$B25=Z$3)),"",$A27) ->  | AB27: 550 | AD27: =IF(AC27="","",INDEX(Spells!$B$2:$B$1001,'Class List'!AC27)) ->  | AE27: =IF(AD27="","",IF(OR(NOT(ISERROR(FIND(Forbidden1,INDEX(Spells!$J$2:$J$1001,AC27),1))),NOT(ISERROR(FIND(Forbidden2,INDEX(Spells!$J$2:$J$1001,AC27),1)))),"* ",""))&AD27 ->  | AG27: =IF(AND(OR(Cull!$C26="Yes",ISERROR(FIND("#"&Spells!$B25&"#",AF$2)),Spells!$B25="",NOT(ISERROR(FIND(LOWER(ForbiddenAlignment),LOWER(Spells!$J25))))),NOT(Spells!$B25=AF$3)),"",$A27) ->  | AH27: 610 | AJ27: =IF(AI27="","",INDEX(Spells!$B$2:$B$1001,'Class List'!AI27)) ->  | AK27: =IF(AJ27="","",IF(OR(NOT(ISERROR(FIND(Forbidden1,INDEX(Spells!$J$2:$J$1001,AI27),1))),NOT(ISERROR(FIND(Forbidden2,INDEX(Spells!$J$2:$J$1001,AI27),1)))),"* ",""))&AJ27 ->  | AM27: =IF(AND(OR(Cull!$C26="Yes",ISERROR(FIND("#"&Spells!$B25&"#",AL$2)),Spells!$B25="",NOT(ISERROR(FIND(LOWER(ForbiddenAlignment),LOWER(Spells!$J25))))),NOT(Spells!$B25=AL$3)),"",$A27) ->  | AN27: 609 | AP27: =IF(AO27="","",INDEX(Spells!$B$2:$B$1001,'Class List'!AO27)) ->  | AQ27: =IF(AP27="","",IF(OR(NOT(ISERROR(FIND(Forbidden1,INDEX(Spells!$J$2:$J$1001,AO27),1))),NOT(ISERROR(FIND(Forbidden2,INDEX(Spells!$J$2:$J$1001,AO27),1)))),"* ",""))&AP27 ->  | AS27: =IF(AND(OR(Cull!$C26="Yes",ISERROR(FIND("#"&Spells!$B25&"#",AR$2)),Spells!$B25="",NOT(ISERROR(FIND(LOWER(ForbiddenAlignment),LOWER(Spells!$J25))))),NOT(Spells!$B25=AR$3)),"",$A27) ->  | AT27: 620 | AV27: =IF(AU27="","",INDEX(Spells!$B$2:$B$1001,'Class List'!AU27)) ->  | AW27: =IF(AV27="","",IF(OR(NOT(ISERROR(FIND(Forbidden1,INDEX(Spells!$J$2:$J$1001,AU27),1))),NOT(ISERROR(FIND(Forbidden2,INDEX(Spells!$J$2:$J$1001,AU27),1)))),"* ",""))&AV27 ->  | AY27: =IF(AND(OR(Cull!$C26="Yes",ISERROR(FIND("#"&Spells!$B25&"#",AX$2)),Spells!$B25="",NOT(ISERROR(FIND(LOWER(ForbiddenAlignment),LOWER(Spells!$J25))))),NOT(Spells!$B25=AX$3)),"",$A27) ->  | AZ27: 625 | BB27: =IF(BA27="","",INDEX(Spells!$B$2:$B$1001,'Class List'!BA27)) ->  | BC27: =IF(BB27="","",IF(OR(NOT(ISERROR(FIND(Forbidden1,INDEX(Spells!$J$2:$J$1001,BA27),1))),NOT(ISERROR(FIND(Forbidden2,INDEX(Spells!$J$2:$J$1001,BA27),1)))),"* ",""))&BB27 ->  | BE27: =IF(AND(OR(Cull!$C26="Yes",ISERROR(FIND("#"&Spells!$B25&"#",BD$2)),Spells!$B25="",NOT(ISERROR(FIND(LOWER(ForbiddenAlignment),LOWER(Spells!$J25))))),NOT(Spells!$B25=BD$3)),"",$A27) ->  | BF27: 568 | BH27: =IF(BG27="","",INDEX(Spells!$B$2:$B$1001,'Class List'!BG27)) ->  | BI27: =IF(BH27="","",IF(OR(NOT(ISERROR(FIND(Forbidden1,INDEX(Spells!$J$2:$J$1001,BG27),1))),NOT(ISERROR(FIND(Forbidden2,INDEX(Spells!$J$2:$J$1001,BG27),1)))),"* ",""))&BH27 -> 
A28: 25 | C28: =IF(AND(OR(Cull!$C27="Yes",ISERROR(FIND("#"&Spells!$B26&"#",B$2)),Spells!$B26="",NOT(ISERROR(FIND(LOWER(ForbiddenAlignment),LOWER(Spells!$J26))))),NOT(Spells!$B26=B$3)),"",$A28) ->  | D28: 602 | F28: =IF(E28="","",INDEX(Spells!$B$2:$B$1001,'Class List'!E28)) ->  | G28: =IF(F28="","",IF(OR(NOT(ISERROR(FIND(Forbidden1,INDEX(Spells!$J$2:$J$1001,E28),1))),NOT(ISERROR(FIND(Forbidden2,INDEX(Spells!$J$2:$J$1001,E28),1)))),"* ",""))&F28 ->  | I28: =IF(AND(OR(Cull!$C27="Yes",ISERROR(FIND("#"&Spells!$B26&"#",H$2)),Spells!$B26="",NOT(ISERROR(FIND(LOWER(ForbiddenAlignment),LOWER(Spells!$J26))))),NOT(Spells!$B26=H$3)),"",$A28) ->  | J28: 547 | L28: =IF(K28="","",INDEX(Spells!$B$2:$B$1001,'Class List'!K28)) ->  | M28: =IF(L28="","",IF(OR(NOT(ISERROR(FIND(Forbidden1,INDEX(Spells!$J$2:$J$1001,K28),1))),NOT(ISERROR(FIND(Forbidden2,INDEX(Spells!$J$2:$J$1001,K28),1)))),"* ",""))&L28 ->  | O28: =IF(AND(OR(Cull!$C27="Yes",ISERROR(FIND("#"&Spells!$B26&"#",N$2)),Spells!$B26="",NOT(ISERROR(FIND(LOWER(ForbiddenAlignment),LOWER(Spells!$J26))))),NOT(Spells!$B26=N$3)),"",$A28) ->  | P28: 588 | Q28: 588 | R28: =IF(Q28="","",INDEX(Spells!$B$2:$B$1001,'Class List'!Q28)) -> Tree Shape | S28: =IF(R28="","",IF(OR(NOT(ISERROR(FIND(Forbidden1,INDEX(Spells!$J$2:$J$1001,Q28),1))),NOT(ISERROR(FIND(Forbidden2,INDEX(Spells!$J$2:$J$1001,Q28),1)))),"* ",""))&R28 -> Tree Shape | U28: =IF(AND(OR(Cull!$C27="Yes",ISERROR(FIND("#"&Spells!$B26&"#",T$2)),Spells!$B26="",NOT(ISERROR(FIND(LOWER(ForbiddenAlignment),LOWER(Spells!$J26))))),NOT(Spells!$B26=T$3)),"",$A28) ->  | V28: 621 | X28: =IF(W28="","",INDEX(Spells!$B$2:$B$1001,'Class List'!W28)) ->  | Y28: =IF(X28="","",IF(OR(NOT(ISERROR(FIND(Forbidden1,INDEX(Spells!$J$2:$J$1001,W28),1))),NOT(ISERROR(FIND(Forbidden2,INDEX(Spells!$J$2:$J$1001,W28),1)))),"* ",""))&X28 ->  | AA28: =IF(AND(OR(Cull!$C27="Yes",ISERROR(FIND("#"&Spells!$B26&"#",Z$2)),Spells!$B26="",NOT(ISERROR(FIND(LOWER(ForbiddenAlignment),LOWER(Spells!$J26))))),NOT(Spells!$B26=Z$3)),"",$A28) ->  | AB28: 550 | AD28: =IF(AC28="","",INDEX(Spells!$B$2:$B$1001,'Class List'!AC28)) ->  | AE28: =IF(AD28="","",IF(OR(NOT(ISERROR(FIND(Forbidden1,INDEX(Spells!$J$2:$J$1001,AC28),1))),NOT(ISERROR(FIND(Forbidden2,INDEX(Spells!$J$2:$J$1001,AC28),1)))),"* ",""))&AD28 ->  | AG28: =IF(AND(OR(Cull!$C27="Yes",ISERROR(FIND("#"&Spells!$B26&"#",AF$2)),Spells!$B26="",NOT(ISERROR(FIND(LOWER(ForbiddenAlignment),LOWER(Spells!$J26))))),NOT(Spells!$B26=AF$3)),"",$A28) ->  | AH28: 610 | AJ28: =IF(AI28="","",INDEX(Spells!$B$2:$B$1001,'Class List'!AI28)) ->  | AK28: =IF(AJ28="","",IF(OR(NOT(ISERROR(FIND(Forbidden1,INDEX(Spells!$J$2:$J$1001,AI28),1))),NOT(ISERROR(FIND(Forbidden2,INDEX(Spells!$J$2:$J$1001,AI28),1)))),"* ",""))&AJ28 ->  | AM28: =IF(AND(OR(Cull!$C27="Yes",ISERROR(FIND("#"&Spells!$B26&"#",AL$2)),Spells!$B26="",NOT(ISERROR(FIND(LOWER(ForbiddenAlignment),LOWER(Spells!$J26))))),NOT(Spells!$B26=AL$3)),"",$A28) ->  | AN28: 609 | AP28: =IF(AO28="","",INDEX(Spells!$B$2:$B$1001,'Class List'!AO28)) ->  | AQ28: =IF(AP28="","",IF(OR(NOT(ISERROR(FIND(Forbidden1,INDEX(Spells!$J$2:$J$1001,AO28),1))),NOT(ISERROR(FIND(Forbidden2,INDEX(Spells!$J$2:$J$1001,AO28),1)))),"* ",""))&AP28 ->  | AS28: =IF(AND(OR(Cull!$C27="Yes",ISERROR(FIND("#"&Spells!$B26&"#",AR$2)),Spells!$B26="",NOT(ISERROR(FIND(LOWER(ForbiddenAlignment),LOWER(Spells!$J26))))),NOT(Spells!$B26=AR$3)),"",$A28) ->  | AT28: 620 | AV28: =IF(AU28="","",INDEX(Spells!$B$2:$B$1001,'Class List'!AU28)) ->  | AW28: =IF(AV28="","",IF(OR(NOT(ISERROR(FIND(Forbidden1,INDEX(Spells!$J$2:$J$1001,AU28),1))),NOT(ISERROR(FIND(Forbidden2,INDEX(Spells!$J$2:$J$1001,AU28),1)))),"* ",""))&AV28 ->  | AY28: =IF(AND(OR(Cull!$C27="Yes",ISERROR(FIND("#"&Spells!$B26&"#",AX$2)),Spells!$B26="",NOT(ISERROR(FIND(LOWER(ForbiddenAlignment),LOWER(Spells!$J26))))),NOT(Spells!$B26=AX$3)),"",$A28) ->  | AZ28: 625 | BB28: =IF(BA28="","",INDEX(Spells!$B$2:$B$1001,'Class List'!BA28)) ->  | BC28: =IF(BB28="","",IF(OR(NOT(ISERROR(FIND(Forbidden1,INDEX(Spells!$J$2:$J$1001,BA28),1))),NOT(ISERROR(FIND(Forbidden2,INDEX(Spells!$J$2:$J$1001,BA28),1)))),"* ",""))&BB28 ->  | BE28: =IF(AND(OR(Cull!$C27="Yes",ISERROR(FIND("#"&Spells!$B26&"#",BD$2)),Spells!$B26="",NOT(ISERROR(FIND(LOWER(ForbiddenAlignment),LOWER(Spells!$J26))))),NOT(Spells!$B26=BD$3)),"",$A28) ->  | BF28: 568 | BH28: =IF(BG28="","",INDEX(Spells!$B$2:$B$1001,'Class List'!BG28)) ->  | BI28: =IF(BH28="","",IF(OR(NOT(ISERROR(FIND(Forbidden1,INDEX(Spells!$J$2:$J$1001,BG28),1))),NOT(ISERROR(FIND(Forbidden2,INDEX(Spells!$J$2:$J$1001,BG28),1)))),"* ",""))&BH28 -> 
A29: 26 | C29: =IF(AND(OR(Cull!$C28="Yes",ISERROR(FIND("#"&Spells!$B27&"#",B$2)),Spells!$B27="",NOT(ISERROR(FIND(LOWER(ForbiddenAlignment),LOWER(Spells!$J27))))),NOT(Spells!$B27=B$3)),"",$A29) ->  | D29: 602 | F29: =IF(E29="","",INDEX(Spells!$B$2:$B$1001,'Class List'!E29)) ->  | G29: =IF(F29="","",IF(OR(NOT(ISERROR(FIND(Forbidden1,INDEX(Spells!$J$2:$J$1001,E29),1))),NOT(ISERROR(FIND(Forbidden2,INDEX(Spells!$J$2:$J$1001,E29),1)))),"* ",""))&F29 ->  | I29: =IF(AND(OR(Cull!$C28="Yes",ISERROR(FIND("#"&Spells!$B27&"#",H$2)),Spells!$B27="",NOT(ISERROR(FIND(LOWER(ForbiddenAlignment),LOWER(Spells!$J27))))),NOT(Spells!$B27=H$3)),"",$A29) ->  | J29: 547 | L29: =IF(K29="","",INDEX(Spells!$B$2:$B$1001,'Class List'!K29)) ->  | M29: =IF(L29="","",IF(OR(NOT(ISERROR(FIND(Forbidden1,INDEX(Spells!$J$2:$J$1001,K29),1))),NOT(ISERROR(FIND(Forbidden2,INDEX(Spells!$J$2:$J$1001,K29),1)))),"* ",""))&L29 ->  | O29: =IF(AND(OR(Cull!$C28="Yes",ISERROR(FIND("#"&Spells!$B27&"#",N$2)),Spells!$B27="",NOT(ISERROR(FIND(LOWER(ForbiddenAlignment),LOWER(Spells!$J27))))),NOT(Spells!$B27=N$3)),"",$A29) ->  | P29: 611 | Q29: 611 | R29: =IF(Q29="","",INDEX(Spells!$B$2:$B$1001,'Class List'!Q29)) -> Warp Wood | S29: =IF(R29="","",IF(OR(NOT(ISERROR(FIND(Forbidden1,INDEX(Spells!$J$2:$J$1001,Q29),1))),NOT(ISERROR(FIND(Forbidden2,INDEX(Spells!$J$2:$J$1001,Q29),1)))),"* ",""))&R29 -> Warp Wood | U29: =IF(AND(OR(Cull!$C28="Yes",ISERROR(FIND("#"&Spells!$B27&"#",T$2)),Spells!$B27="",NOT(ISERROR(FIND(LOWER(ForbiddenAlignment),LOWER(Spells!$J27))))),NOT(Spells!$B27=T$3)),"",$A29) ->  | V29: 621 | X29: =IF(W29="","",INDEX(Spells!$B$2:$B$1001,'Class List'!W29)) ->  | Y29: =IF(X29="","",IF(OR(NOT(ISERROR(FIND(Forbidden1,INDEX(Spells!$J$2:$J$1001,W29),1))),NOT(ISERROR(FIND(Forbidden2,INDEX(Spells!$J$2:$J$1001,W29),1)))),"* ",""))&X29 ->  | AA29: =IF(AND(OR(Cull!$C28="Yes",ISERROR(FIND("#"&Spells!$B27&"#",Z$2)),Spells!$B27="",NOT(ISERROR(FIND(LOWER(ForbiddenAlignment),LOWER(Spells!$J27))))),NOT(Spells!$B27=Z$3)),"",$A29) ->  | AB29: 550 | AD29: =IF(AC29="","",INDEX(Spells!$B$2:$B$1001,'Class List'!AC29)) ->  | AE29: =IF(AD29="","",IF(OR(NOT(ISERROR(FIND(Forbidden1,INDEX(Spells!$J$2:$J$1001,AC29),1))),NOT(ISERROR(FIND(Forbidden2,INDEX(Spells!$J$2:$J$1001,AC29),1)))),"* ",""))&AD29 ->  | AG29: =IF(AND(OR(Cull!$C28="Yes",ISERROR(FIND("#"&Spells!$B27&"#",AF$2)),Spells!$B27="",NOT(ISERROR(FIND(LOWER(ForbiddenAlignment),LOWER(Spells!$J27))))),NOT(Spells!$B27=AF$3)),"",$A29) ->  | AH29: 610 | AJ29: =IF(AI29="","",INDEX(Spells!$B$2:$B$1001,'Class List'!AI29)) ->  | AK29: =IF(AJ29="","",IF(OR(NOT(ISERROR(FIND(Forbidden1,INDEX(Spells!$J$2:$J$1001,AI29),1))),NOT(ISERROR(FIND(Forbidden2,INDEX(Spells!$J$2:$J$1001,AI29),1)))),"* ",""))&AJ29 ->  | AM29: =IF(AND(OR(Cull!$C28="Yes",ISERROR(FIND("#"&Spells!$B27&"#",AL$2)),Spells!$B27="",NOT(ISERROR(FIND(LOWER(ForbiddenAlignment),LOWER(Spells!$J27))))),NOT(Spells!$B27=AL$3)),"",$A29) ->  | AN29: 609 | AP29: =IF(AO29="","",INDEX(Spells!$B$2:$B$1001,'Class List'!AO29)) ->  | AQ29: =IF(AP29="","",IF(OR(NOT(ISERROR(FIND(Forbidden1,INDEX(Spells!$J$2:$J$1001,AO29),1))),NOT(ISERROR(FIND(Forbidden2,INDEX(Spells!$J$2:$J$1001,AO29),1)))),"* ",""))&AP29 ->  | AS29: =IF(AND(OR(Cull!$C28="Yes",ISERROR(FIND("#"&Spells!$B27&"#",AR$2)),Spells!$B27="",NOT(ISERROR(FIND(LOWER(ForbiddenAlignment),LOWER(Spells!$J27))))),NOT(Spells!$B27=AR$3)),"",$A29) ->  | AT29: 620 | AV29: =IF(AU29="","",INDEX(Spells!$B$2:$B$1001,'Class List'!AU29)) ->  | AW29: =IF(AV29="","",IF(OR(NOT(ISERROR(FIND(Forbidden1,INDEX(Spells!$J$2:$J$1001,AU29),1))),NOT(ISERROR(FIND(Forbidden2,INDEX(Spells!$J$2:$J$1001,AU29),1)))),"* ",""))&AV29 ->  | AY29: =IF(AND(OR(Cull!$C28="Yes",ISERROR(FIND("#"&Spells!$B27&"#",AX$2)),Spells!$B27="",NOT(ISERROR(FIND(LOWER(ForbiddenAlignment),LOWER(Spells!$J27))))),NOT(Spells!$B27=AX$3)),"",$A29) ->  | AZ29: 625 | BB29: =IF(BA29="","",INDEX(Spells!$B$2:$B$1001,'Class List'!BA29)) ->  | BC29: =IF(BB29="","",IF(OR(NOT(ISERROR(FIND(Forbidden1,INDEX(Spells!$J$2:$J$1001,BA29),1))),NOT(ISERROR(FIND(Forbidden2,INDEX(Spells!$J$2:$J$1001,BA29),1)))),"* ",""))&BB29 ->  | BE29: =IF(AND(OR(Cull!$C28="Yes",ISERROR(FIND("#"&Spells!$B27&"#",BD$2)),Spells!$B27="",NOT(ISERROR(FIND(LOWER(ForbiddenAlignment),LOWER(Spells!$J27))))),NOT(Spells!$B27=BD$3)),"",$A29) ->  | BF29: 568 | BH29: =IF(BG29="","",INDEX(Spells!$B$2:$B$1001,'Class List'!BG29)) ->  | BI29: =IF(BH29="","",IF(OR(NOT(ISERROR(FIND(Forbidden1,INDEX(Spells!$J$2:$J$1001,BG29),1))),NOT(ISERROR(FIND(Forbidden2,INDEX(Spells!$J$2:$J$1001,BG29),1)))),"* ",""))&BH29 -> 
A30: 27 | C30: =IF(AND(OR(Cull!$C29="Yes",ISERROR(FIND("#"&Spells!$B28&"#",B$2)),Spells!$B28="",NOT(ISERROR(FIND(LOWER(ForbiddenAlignment),LOWER(Spells!$J28))))),NOT(Spells!$B28=B$3)),"",$A30) ->  | D30: 602 | F30: =IF(E30="","",INDEX(Spells!$B$2:$B$1001,'Class List'!E30)) ->  | G30: =IF(F30="","",IF(OR(NOT(ISERROR(FIND(Forbidden1,INDEX(Spells!$J$2:$J$1001,E30),1))),NOT(ISERROR(FIND(Forbidden2,INDEX(Spells!$J$2:$J$1001,E30),1)))),"* ",""))&F30 ->  | I30: =IF(AND(OR(Cull!$C29="Yes",ISERROR(FIND("#"&Spells!$B28&"#",H$2)),Spells!$B28="",NOT(ISERROR(FIND(LOWER(ForbiddenAlignment),LOWER(Spells!$J28))))),NOT(Spells!$B28=H$3)),"",$A30) ->  | J30: 547 | L30: =IF(K30="","",INDEX(Spells!$B$2:$B$1001,'Class List'!K30)) ->  | M30: =IF(L30="","",IF(OR(NOT(ISERROR(FIND(Forbidden1,INDEX(Spells!$J$2:$J$1001,K30),1))),NOT(ISERROR(FIND(Forbidden2,INDEX(Spells!$J$2:$J$1001,K30),1)))),"* ",""))&L30 ->  | O30: =IF(AND(OR(Cull!$C29="Yes",ISERROR(FIND("#"&Spells!$B28&"#",N$2)),Spells!$B28="",NOT(ISERROR(FIND(LOWER(ForbiddenAlignment),LOWER(Spells!$J28))))),NOT(Spells!$B28=N$3)),"",$A30) ->  | P30: 623 | Q30: 623 | R30: =IF(Q30="","",INDEX(Spells!$B$2:$B$1001,'Class List'!Q30)) -> Wood Shape | S30: =IF(R30="","",IF(OR(NOT(ISERROR(FIND(Forbidden1,INDEX(Spells!$J$2:$J$1001,Q30),1))),NOT(ISERROR(FIND(Forbidden2,INDEX(Spells!$J$2:$J$1001,Q30),1)))),"* ",""))&R30 -> Wood Shape | U30: =IF(AND(OR(Cull!$C29="Yes",ISERROR(FIND("#"&Spells!$B28&"#",T$2)),Spells!$B28="",NOT(ISERROR(FIND(LOWER(ForbiddenAlignment),LOWER(Spells!$J28))))),NOT(Spells!$B28=T$3)),"",$A30) ->  | V30: 621 | X30: =IF(W30="","",INDEX(Spells!$B$2:$B$1001,'Class List'!W30)) ->  | Y30: =IF(X30="","",IF(OR(NOT(ISERROR(FIND(Forbidden1,INDEX(Spells!$J$2:$J$1001,W30),1))),NOT(ISERROR(FIND(Forbidden2,INDEX(Spells!$J$2:$J$1001,W30),1)))),"* ",""))&X30 ->  | AA30: =IF(AND(OR(Cull!$C29="Yes",ISERROR(FIND("#"&Spells!$B28&"#",Z$2)),Spells!$B28="",NOT(ISERROR(FIND(LOWER(ForbiddenAlignment),LOWER(Spells!$J28))))),NOT(Spells!$B28=Z$3)),"",$A30) ->  | AB30: 550 | AD30: =IF(AC30="","",INDEX(Spells!$B$2:$B$1001,'Class List'!AC30)) ->  | AE30: =IF(AD30="","",IF(OR(NOT(ISERROR(FIND(Forbidden1,INDEX(Spells!$J$2:$J$1001,AC30),1))),NOT(ISERROR(FIND(Forbidden2,INDEX(Spells!$J$2:$J$1001,AC30),1)))),"* ",""))&AD30 ->  | AG30: =IF(AND(OR(Cull!$C29="Yes",ISERROR(FIND("#"&Spells!$B28&"#",AF$2)),Spells!$B28="",NOT(ISERROR(FIND(LOWER(ForbiddenAlignment),LOWER(Spells!$J28))))),NOT(Spells!$B28=AF$3)),"",$A30) ->  | AH30: 610 | AJ30: =IF(AI30="","",INDEX(Spells!$B$2:$B$1001,'Class List'!AI30)) ->  | AK30: =IF(AJ30="","",IF(OR(NOT(ISERROR(FIND(Forbidden1,INDEX(Spells!$J$2:$J$1001,AI30),1))),NOT(ISERROR(FIND(Forbidden2,INDEX(Spells!$J$2:$J$1001,AI30),1)))),"* ",""))&AJ30 ->  | AM30: =IF(AND(OR(Cull!$C29="Yes",ISERROR(FIND("#"&Spells!$B28&"#",AL$2)),Spells!$B28="",NOT(ISERROR(FIND(LOWER(ForbiddenAlignment),LOWER(Spells!$J28))))),NOT(Spells!$B28=AL$3)),"",$A30) ->  | AN30: 609 | AP30: =IF(AO30="","",INDEX(Spells!$B$2:$B$1001,'Class List'!AO30)) ->  | AQ30: =IF(AP30="","",IF(OR(NOT(ISERROR(FIND(Forbidden1,INDEX(Spells!$J$2:$J$1001,AO30),1))),NOT(ISERROR(FIND(Forbidden2,INDEX(Spells!$J$2:$J$1001,AO30),1)))),"* ",""))&AP30 ->  | AS30: =IF(AND(OR(Cull!$C29="Yes",ISERROR(FIND("#"&Spells!$B28&"#",AR$2)),Spells!$B28="",NOT(ISERROR(FIND(LOWER(ForbiddenAlignment),LOWER(Spells!$J28))))),NOT(Spells!$B28=AR$3)),"",$A30) ->  | AT30: 620 | AV30: =IF(AU30="","",INDEX(Spells!$B$2:$B$1001,'Class List'!AU30)) ->  | AW30: =IF(AV30="","",IF(OR(NOT(ISERROR(FIND(Forbidden1,INDEX(Spells!$J$2:$J$1001,AU30),1))),NOT(ISERROR(FIND(Forbidden2,INDEX(Spells!$J$2:$J$1001,AU30),1)))),"* ",""))&AV30 ->  | AY30: =IF(AND(OR(Cull!$C29="Yes",ISERROR(FIND("#"&Spells!$B28&"#",AX$2)),Spells!$B28="",NOT(ISERROR(FIND(LOWER(ForbiddenAlignment),LOWER(Spells!$J28))))),NOT(Spells!$B28=AX$3)),"",$A30) ->  | AZ30: 625 | BB30: =IF(BA30="","",INDEX(Spells!$B$2:$B$1001,'Class List'!BA30)) ->  | BC30: =IF(BB30="","",IF(OR(NOT(ISERROR(FIND(Forbidden1,INDEX(Spells!$J$2:$J$1001,BA30),1))),NOT(ISERROR(FIND(Forbidden2,INDEX(Spells!$J$2:$J$1001,BA30),1)))),"* ",""))&BB30 ->  | BE30: =IF(AND(OR(Cull!$C29="Yes",ISERROR(FIND("#"&Spells!$B28&"#",BD$2)),Spells!$B28="",NOT(ISERROR(FIND(LOWER(ForbiddenAlignment),LOWER(Spells!$J28))))),NOT(Spells!$B28=BD$3)),"",$A30) ->  | BF30: 568 | BH30: =IF(BG30="","",INDEX(Spells!$B$2:$B$1001,'Class List'!BG30)) ->  | BI30: =IF(BH30="","",IF(OR(NOT(ISERROR(FIND(Forbidden1,INDEX(Spells!$J$2:$J$1001,BG30),1))),NOT(ISERROR(FIND(Forbidden2,INDEX(Spells!$J$2:$J$1001,BG30),1)))),"* ",""))&BH30 -> 
A31: 28 | C31: =IF(AND(OR(Cull!$C30="Yes",ISERROR(FIND("#"&Spells!$B29&"#",B$2)),Spells!$B29="",NOT(ISERROR(FIND(LOWER(ForbiddenAlignment),LOWER(Spells!$J29))))),NOT(Spells!$B29=B$3)),"",$A31) ->  | D31: 602 | F31: =IF(E31="","",INDEX(Spells!$B$2:$B$1001,'Class List'!E31)) ->  | G31: =IF(F31="","",IF(OR(NOT(ISERROR(FIND(Forbidden1,INDEX(Spells!$J$2:$J$1001,E31),1))),NOT(ISERROR(FIND(Forbidden2,INDEX(Spells!$J$2:$J$1001,E31),1)))),"* ",""))&F31 ->  | I31: =IF(AND(OR(Cull!$C30="Yes",ISERROR(FIND("#"&Spells!$B29&"#",H$2)),Spells!$B29="",NOT(ISERROR(FIND(LOWER(ForbiddenAlignment),LOWER(Spells!$J29))))),NOT(Spells!$B29=H$3)),"",$A31) ->  | J31: 547 | L31: =IF(K31="","",INDEX(Spells!$B$2:$B$1001,'Class List'!K31)) ->  | M31: =IF(L31="","",IF(OR(NOT(ISERROR(FIND(Forbidden1,INDEX(Spells!$J$2:$J$1001,K31),1))),NOT(ISERROR(FIND(Forbidden2,INDEX(Spells!$J$2:$J$1001,K31),1)))),"* ",""))&L31 ->  | O31: =IF(AND(OR(Cull!$C30="Yes",ISERROR(FIND("#"&Spells!$B29&"#",N$2)),Spells!$B29="",NOT(ISERROR(FIND(LOWER(ForbiddenAlignment),LOWER(Spells!$J29))))),NOT(Spells!$B29=N$3)),"",$A31) ->  | P31: 623 | R31: =IF(Q31="","",INDEX(Spells!$B$2:$B$1001,'Class List'!Q31)) ->  | S31: =IF(R31="","",IF(OR(NOT(ISERROR(FIND(Forbidden1,INDEX(Spells!$J$2:$J$1001,Q31),1))),NOT(ISERROR(FIND(Forbidden2,INDEX(Spells!$J$2:$J$1001,Q31),1)))),"* ",""))&R31 ->  | U31: =IF(AND(OR(Cull!$C30="Yes",ISERROR(FIND("#"&Spells!$B29&"#",T$2)),Spells!$B29="",NOT(ISERROR(FIND(LOWER(ForbiddenAlignment),LOWER(Spells!$J29))))),NOT(Spells!$B29=T$3)),"",$A31) ->  | V31: 621 | X31: =IF(W31="","",INDEX(Spells!$B$2:$B$1001,'Class List'!W31)) ->  | Y31: =IF(X31="","",IF(OR(NOT(ISERROR(FIND(Forbidden1,INDEX(Spells!$J$2:$J$1001,W31),1))),NOT(ISERROR(FIND(Forbidden2,INDEX(Spells!$J$2:$J$1001,W31),1)))),"* ",""))&X31 ->  | AA31: =IF(AND(OR(Cull!$C30="Yes",ISERROR(FIND("#"&Spells!$B29&"#",Z$2)),Spells!$B29="",NOT(ISERROR(FIND(LOWER(ForbiddenAlignment),LOWER(Spells!$J29))))),NOT(Spells!$B29=Z$3)),"",$A31) ->  | AB31: 550 | AD31: =IF(AC31="","",INDEX(Spells!$B$2:$B$1001,'Class List'!AC31)) ->  | AE31: =IF(AD31="","",IF(OR(NOT(ISERROR(FIND(Forbidden1,INDEX(Spells!$J$2:$J$1001,AC31),1))),NOT(ISERROR(FIND(Forbidden2,INDEX(Spells!$J$2:$J$1001,AC31),1)))),"* ",""))&AD31 ->  | AG31: =IF(AND(OR(Cull!$C30="Yes",ISERROR(FIND("#"&Spells!$B29&"#",AF$2)),Spells!$B29="",NOT(ISERROR(FIND(LOWER(ForbiddenAlignment),LOWER(Spells!$J29))))),NOT(Spells!$B29=AF$3)),"",$A31) ->  | AH31: 610 | AJ31: =IF(AI31="","",INDEX(Spells!$B$2:$B$1001,'Class List'!AI31)) ->  | AK31: =IF(AJ31="","",IF(OR(NOT(ISERROR(FIND(Forbidden1,INDEX(Spells!$J$2:$J$1001,AI31),1))),NOT(ISERROR(FIND(Forbidden2,INDEX(Spells!$J$2:$J$1001,AI31),1)))),"* ",""))&AJ31 ->  | AM31: =IF(AND(OR(Cull!$C30="Yes",ISERROR(FIND("#"&Spells!$B29&"#",AL$2)),Spells!$B29="",NOT(ISERROR(FIND(LOWER(ForbiddenAlignment),LOWER(Spells!$J29))))),NOT(Spells!$B29=AL$3)),"",$A31) ->  | AN31: 609 | AP31: =IF(AO31="","",INDEX(Spells!$B$2:$B$1001,'Class List'!AO31)) ->  | AQ31: =IF(AP31="","",IF(OR(NOT(ISERROR(FIND(Forbidden1,INDEX(Spells!$J$2:$J$1001,AO31),1))),NOT(ISERROR(FIND(Forbidden2,INDEX(Spells!$J$2:$J$1001,AO31),1)))),"* ",""))&AP31 ->  | AS31: =IF(AND(OR(Cull!$C30="Yes",ISERROR(FIND("#"&Spells!$B29&"#",AR$2)),Spells!$B29="",NOT(ISERROR(FIND(LOWER(ForbiddenAlignment),LOWER(Spells!$J29))))),NOT(Spells!$B29=AR$3)),"",$A31) ->  | AT31: 620 | AV31: =IF(AU31="","",INDEX(Spells!$B$2:$B$1001,'Class List'!AU31)) ->  | AW31: =IF(AV31="","",IF(OR(NOT(ISERROR(FIND(Forbidden1,INDEX(Spells!$J$2:$J$1001,AU31),1))),NOT(ISERROR(FIND(Forbidden2,INDEX(Spells!$J$2:$J$1001,AU31),1)))),"* ",""))&AV31 ->  | AY31: =IF(AND(OR(Cull!$C30="Yes",ISERROR(FIND("#"&Spells!$B29&"#",AX$2)),Spells!$B29="",NOT(ISERROR(FIND(LOWER(ForbiddenAlignment),LOWER(Spells!$J29))))),NOT(Spells!$B29=AX$3)),"",$A31) ->  | AZ31: 625 | BB31: =IF(BA31="","",INDEX(Spells!$B$2:$B$1001,'Class List'!BA31)) ->  | BC31: =IF(BB31="","",IF(OR(NOT(ISERROR(FIND(Forbidden1,INDEX(Spells!$J$2:$J$1001,BA31),1))),NOT(ISERROR(FIND(Forbidden2,INDEX(Spells!$J$2:$J$1001,BA31),1)))),"* ",""))&BB31 ->  | BE31: =IF(AND(OR(Cull!$C30="Yes",ISERROR(FIND("#"&Spells!$B29&"#",BD$2)),Spells!$B29="",NOT(ISERROR(FIND(LOWER(ForbiddenAlignment),LOWER(Spells!$J29))))),NOT(Spells!$B29=BD$3)),"",$A31) ->  | BF31: 568 | BH31: =IF(BG31="","",INDEX(Spells!$B$2:$B$1001,'Class List'!BG31)) ->  | BI31: =IF(BH31="","",IF(OR(NOT(ISERROR(FIND(Forbidden1,INDEX(Spells!$J$2:$J$1001,BG31),1))),NOT(ISERROR(FIND(Forbidden2,INDEX(Spells!$J$2:$J$1001,BG31),1)))),"* ",""))&BH31 -> 
A32: 29 | C32: =IF(AND(OR(Cull!$C31="Yes",ISERROR(FIND("#"&Spells!$B30&"#",B$2)),Spells!$B30="",NOT(ISERROR(FIND(LOWER(ForbiddenAlignment),LOWER(Spells!$J30))))),NOT(Spells!$B30=B$3)),"",$A32) ->  | D32: 602 | F32: =IF(E32="","",INDEX(Spells!$B$2:$B$1001,'Class List'!E32)) ->  | G32: =IF(F32="","",IF(OR(NOT(ISERROR(FIND(Forbidden1,INDEX(Spells!$J$2:$J$1001,E32),1))),NOT(ISERROR(FIND(Forbidden2,INDEX(Spells!$J$2:$J$1001,E32),1)))),"* ",""))&F32 ->  | I32: =IF(AND(OR(Cull!$C31="Yes",ISERROR(FIND("#"&Spells!$B30&"#",H$2)),Spells!$B30="",NOT(ISERROR(FIND(LOWER(ForbiddenAlignment),LOWER(Spells!$J30))))),NOT(Spells!$B30=H$3)),"",$A32) ->  | J32: 547 | L32: =IF(K32="","",INDEX(Spells!$B$2:$B$1001,'Class List'!K32)) ->  | M32: =IF(L32="","",IF(OR(NOT(ISERROR(FIND(Forbidden1,INDEX(Spells!$J$2:$J$1001,K32),1))),NOT(ISERROR(FIND(Forbidden2,INDEX(Spells!$J$2:$J$1001,K32),1)))),"* ",""))&L32 ->  | O32: =IF(AND(OR(Cull!$C31="Yes",ISERROR(FIND("#"&Spells!$B30&"#",N$2)),Spells!$B30="",NOT(ISERROR(FIND(LOWER(ForbiddenAlignment),LOWER(Spells!$J30))))),NOT(Spells!$B30=N$3)),"",$A32) ->  | P32: 623 | R32: =IF(Q32="","",INDEX(Spells!$B$2:$B$1001,'Class List'!Q32)) ->  | S32: =IF(R32="","",IF(OR(NOT(ISERROR(FIND(Forbidden1,INDEX(Spells!$J$2:$J$1001,Q32),1))),NOT(ISERROR(FIND(Forbidden2,INDEX(Spells!$J$2:$J$1001,Q32),1)))),"* ",""))&R32 ->  | U32: =IF(AND(OR(Cull!$C31="Yes",ISERROR(FIND("#"&Spells!$B30&"#",T$2)),Spells!$B30="",NOT(ISERROR(FIND(LOWER(ForbiddenAlignment),LOWER(Spells!$J30))))),NOT(Spells!$B30=T$3)),"",$A32) ->  | V32: 621 | X32: =IF(W32="","",INDEX(Spells!$B$2:$B$1001,'Class List'!W32)) ->  | Y32: =IF(X32="","",IF(OR(NOT(ISERROR(FIND(Forbidden1,INDEX(Spells!$J$2:$J$1001,W32),1))),NOT(ISERROR(FIND(Forbidden2,INDEX(Spells!$J$2:$J$1001,W32),1)))),"* ",""))&X32 ->  | AA32: =IF(AND(OR(Cull!$C31="Yes",ISERROR(FIND("#"&Spells!$B30&"#",Z$2)),Spells!$B30="",NOT(ISERROR(FIND(LOWER(ForbiddenAlignment),LOWER(Spells!$J30))))),NOT(Spells!$B30=Z$3)),"",$A32) ->  | AB32: 550 | AD32: =IF(AC32="","",INDEX(Spells!$B$2:$B$1001,'Class List'!AC32)) ->  | AE32: =IF(AD32="","",IF(OR(NOT(ISERROR(FIND(Forbidden1,INDEX(Spells!$J$2:$J$1001,AC32),1))),NOT(ISERROR(FIND(Forbidden2,INDEX(Spells!$J$2:$J$1001,AC32),1)))),"* ",""))&AD32 ->  | AF32: 2 | AG32: =IF(AND(OR(Cull!$C31="Yes",ISERROR(FIND("#"&Spells!$B30&"#",AF$2)),Spells!$B30="",NOT(ISERROR(FIND(LOWER(ForbiddenAlignment),LOWER(Spells!$J30))))),NOT(Spells!$B30=AF$3)),"",$A32) -> 29 | AH32: 610 | AJ32: =IF(AI32="","",INDEX(Spells!$B$2:$B$1001,'Class List'!AI32)) ->  | AK32: =IF(AJ32="","",IF(OR(NOT(ISERROR(FIND(Forbidden1,INDEX(Spells!$J$2:$J$1001,AI32),1))),NOT(ISERROR(FIND(Forbidden2,INDEX(Spells!$J$2:$J$1001,AI32),1)))),"* ",""))&AJ32 ->  | AM32: =IF(AND(OR(Cull!$C31="Yes",ISERROR(FIND("#"&Spells!$B30&"#",AL$2)),Spells!$B30="",NOT(ISERROR(FIND(LOWER(ForbiddenAlignment),LOWER(Spells!$J30))))),NOT(Spells!$B30=AL$3)),"",$A32) ->  | AN32: 609 | AP32: =IF(AO32="","",INDEX(Spells!$B$2:$B$1001,'Class List'!AO32)) ->  | AQ32: =IF(AP32="","",IF(OR(NOT(ISERROR(FIND(Forbidden1,INDEX(Spells!$J$2:$J$1001,AO32),1))),NOT(ISERROR(FIND(Forbidden2,INDEX(Spells!$J$2:$J$1001,AO32),1)))),"* ",""))&AP32 ->  | AS32: =IF(AND(OR(Cull!$C31="Yes",ISERROR(FIND("#"&Spells!$B30&"#",AR$2)),Spells!$B30="",NOT(ISERROR(FIND(LOWER(ForbiddenAlignment),LOWER(Spells!$J30))))),NOT(Spells!$B30=AR$3)),"",$A32) ->  | AT32: 620 | AV32: =IF(AU32="","",INDEX(Spells!$B$2:$B$1001,'Class List'!AU32)) ->  | AW32: =IF(AV32="","",IF(OR(NOT(ISERROR(FIND(Forbidden1,INDEX(Spells!$J$2:$J$1001,AU32),1))),NOT(ISERROR(FIND(Forbidden2,INDEX(Spells!$J$2:$J$1001,AU32),1)))),"* ",""))&AV32 ->  | AY32: =IF(AND(OR(Cull!$C31="Yes",ISERROR(FIND("#"&Spells!$B30&"#",AX$2)),Spells!$B30="",NOT(ISERROR(FIND(LOWER(ForbiddenAlignment),LOWER(Spells!$J30))))),NOT(Spells!$B30=AX$3)),"",$A32) ->  | AZ32: 625 | BB32: =IF(BA32="","",INDEX(Spells!$B$2:$B$1001,'Class List'!BA32)) ->  | BC32: =IF(BB32="","",IF(OR(NOT(ISERROR(FIND(Forbidden1,INDEX(Spells!$J$2:$J$1001,BA32),1))),NOT(ISERROR(FIND(Forbidden2,INDEX(Spells!$J$2:$J$1001,BA32),1)))),"* ",""))&BB32 ->  | BE32: =IF(AND(OR(Cull!$C31="Yes",ISERROR(FIND("#"&Spells!$B30&"#",BD$2)),Spells!$B30="",NOT(ISERROR(FIND(LOWER(ForbiddenAlignment),LOWER(Spells!$J30))))),NOT(Spells!$B30=BD$3)),"",$A32) ->  | BF32: 568 | BH32: =IF(BG32="","",INDEX(Spells!$B$2:$B$1001,'Class List'!BG32)) ->  | BI32: =IF(BH32="","",IF(OR(NOT(ISERROR(FIND(Forbidden1,INDEX(Spells!$J$2:$J$1001,BG32),1))),NOT(ISERROR(FIND(Forbidden2,INDEX(Spells!$J$2:$J$1001,BG32),1)))),"* ",""))&BH32 -> 
A33: 30 | C33: =IF(AND(OR(Cull!$C32="Yes",ISERROR(FIND("#"&Spells!$B31&"#",B$2)),Spells!$B31="",NOT(ISERROR(FIND(LOWER(ForbiddenAlignment),LOWER(Spells!$J31))))),NOT(Spells!$B31=B$3)),"",$A33) ->  | D33: 602 | F33: =IF(E33="","",INDEX(Spells!$B$2:$B$1001,'Class List'!E33)) ->  | G33: =IF(F33="","",IF(OR(NOT(ISERROR(FIND(Forbidden1,INDEX(Spells!$J$2:$J$1001,E33),1))),NOT(ISERROR(FIND(Forbidden2,INDEX(Spells!$J$2:$J$1001,E33),1)))),"* ",""))&F33 ->  | I33: =IF(AND(OR(Cull!$C32="Yes",ISERROR(FIND("#"&Spells!$B31&"#",H$2)),Spells!$B31="",NOT(ISERROR(FIND(LOWER(ForbiddenAlignment),LOWER(Spells!$J31))))),NOT(Spells!$B31=H$3)),"",$A33) ->  | J33: 547 | L33: =IF(K33="","",INDEX(Spells!$B$2:$B$1001,'Class List'!K33)) ->  | M33: =IF(L33="","",IF(OR(NOT(ISERROR(FIND(Forbidden1,INDEX(Spells!$J$2:$J$1001,K33),1))),NOT(ISERROR(FIND(Forbidden2,INDEX(Spells!$J$2:$J$1001,K33),1)))),"* ",""))&L33 ->  | O33: =IF(AND(OR(Cull!$C32="Yes",ISERROR(FIND("#"&Spells!$B31&"#",N$2)),Spells!$B31="",NOT(ISERROR(FIND(LOWER(ForbiddenAlignment),LOWER(Spells!$J31))))),NOT(Spells!$B31=N$3)),"",$A33) ->  | P33: 623 | R33: =IF(Q33="","",INDEX(Spells!$B$2:$B$1001,'Class List'!Q33)) ->  | S33: =IF(R33="","",IF(OR(NOT(ISERROR(FIND(Forbidden1,INDEX(Spells!$J$2:$J$1001,Q33),1))),NOT(ISERROR(FIND(Forbidden2,INDEX(Spells!$J$2:$J$1001,Q33),1)))),"* ",""))&R33 ->  | U33: =IF(AND(OR(Cull!$C32="Yes",ISERROR(FIND("#"&Spells!$B31&"#",T$2)),Spells!$B31="",NOT(ISERROR(FIND(LOWER(ForbiddenAlignment),LOWER(Spells!$J31))))),NOT(Spells!$B31=T$3)),"",$A33) ->  | V33: 621 | X33: =IF(W33="","",INDEX(Spells!$B$2:$B$1001,'Class List'!W33)) ->  | Y33: =IF(X33="","",IF(OR(NOT(ISERROR(FIND(Forbidden1,INDEX(Spells!$J$2:$J$1001,W33),1))),NOT(ISERROR(FIND(Forbidden2,INDEX(Spells!$J$2:$J$1001,W33),1)))),"* ",""))&X33 ->  | AA33: =IF(AND(OR(Cull!$C32="Yes",ISERROR(FIND("#"&Spells!$B31&"#",Z$2)),Spells!$B31="",NOT(ISERROR(FIND(LOWER(ForbiddenAlignment),LOWER(Spells!$J31))))),NOT(Spells!$B31=Z$3)),"",$A33) ->  | AB33: 550 | AD33: =IF(AC33="","",INDEX(Spells!$B$2:$B$1001,'Class List'!AC33)) ->  | AE33: =IF(AD33="","",IF(OR(NOT(ISERROR(FIND(Forbidden1,INDEX(Spells!$J$2:$J$1001,AC33),1))),NOT(ISERROR(FIND(Forbidden2,INDEX(Spells!$J$2:$J$1001,AC33),1)))),"* ",""))&AD33 ->  | AG33: =IF(AND(OR(Cull!$C32="Yes",ISERROR(FIND("#"&Spells!$B31&"#",AF$2)),Spells!$B31="",NOT(ISERROR(FIND(LOWER(ForbiddenAlignment),LOWER(Spells!$J31))))),NOT(Spells!$B31=AF$3)),"",$A33) ->  | AH33: 610 | AJ33: =IF(AI33="","",INDEX(Spells!$B$2:$B$1001,'Class List'!AI33)) ->  | AK33: =IF(AJ33="","",IF(OR(NOT(ISERROR(FIND(Forbidden1,INDEX(Spells!$J$2:$J$1001,AI33),1))),NOT(ISERROR(FIND(Forbidden2,INDEX(Spells!$J$2:$J$1001,AI33),1)))),"* ",""))&AJ33 ->  | AM33: =IF(AND(OR(Cull!$C32="Yes",ISERROR(FIND("#"&Spells!$B31&"#",AL$2)),Spells!$B31="",NOT(ISERROR(FIND(LOWER(ForbiddenAlignment),LOWER(Spells!$J31))))),NOT(Spells!$B31=AL$3)),"",$A33) ->  | AN33: 609 | AP33: =IF(AO33="","",INDEX(Spells!$B$2:$B$1001,'Class List'!AO33)) ->  | AQ33: =IF(AP33="","",IF(OR(NOT(ISERROR(FIND(Forbidden1,INDEX(Spells!$J$2:$J$1001,AO33),1))),NOT(ISERROR(FIND(Forbidden2,INDEX(Spells!$J$2:$J$1001,AO33),1)))),"* ",""))&AP33 ->  | AS33: =IF(AND(OR(Cull!$C32="Yes",ISERROR(FIND("#"&Spells!$B31&"#",AR$2)),Spells!$B31="",NOT(ISERROR(FIND(LOWER(ForbiddenAlignment),LOWER(Spells!$J31))))),NOT(Spells!$B31=AR$3)),"",$A33) ->  | AT33: 620 | AV33: =IF(AU33="","",INDEX(Spells!$B$2:$B$1001,'Class List'!AU33)) ->  | AW33: =IF(AV33="","",IF(OR(NOT(ISERROR(FIND(Forbidden1,INDEX(Spells!$J$2:$J$1001,AU33),1))),NOT(ISERROR(FIND(Forbidden2,INDEX(Spells!$J$2:$J$1001,AU33),1)))),"* ",""))&AV33 ->  | AY33: =IF(AND(OR(Cull!$C32="Yes",ISERROR(FIND("#"&Spells!$B31&"#",AX$2)),Spells!$B31="",NOT(ISERROR(FIND(LOWER(ForbiddenAlignment),LOWER(Spells!$J31))))),NOT(Spells!$B31=AX$3)),"",$A33) ->  | AZ33: 625 | BB33: =IF(BA33="","",INDEX(Spells!$B$2:$B$1001,'Class List'!BA33)) ->  | BC33: =IF(BB33="","",IF(OR(NOT(ISERROR(FIND(Forbidden1,INDEX(Spells!$J$2:$J$1001,BA33),1))),NOT(ISERROR(FIND(Forbidden2,INDEX(Spells!$J$2:$J$1001,BA33),1)))),"* ",""))&BB33 ->  | BE33: =IF(AND(OR(Cull!$C32="Yes",ISERROR(FIND("#"&Spells!$B31&"#",BD$2)),Spells!$B31="",NOT(ISERROR(FIND(LOWER(ForbiddenAlignment),LOWER(Spells!$J31))))),NOT(Spells!$B31=BD$3)),"",$A33) ->  | BF33: 568 | BH33: =IF(BG33="","",INDEX(Spells!$B$2:$B$1001,'Class List'!BG33)) ->  | BI33: =IF(BH33="","",IF(OR(NOT(ISERROR(FIND(Forbidden1,INDEX(Spells!$J$2:$J$1001,BG33),1))),NOT(ISERROR(FIND(Forbidden2,INDEX(Spells!$J$2:$J$1001,BG33),1)))),"* ",""))&BH33 -> 
A34: 31 | C34: =IF(AND(OR(Cull!$C33="Yes",ISERROR(FIND("#"&Spells!$B32&"#",B$2)),Spells!$B32="",NOT(ISERROR(FIND(LOWER(ForbiddenAlignment),LOWER(Spells!$J32))))),NOT(Spells!$B32=B$3)),"",$A34) ->  | D34: 602 | F34: =IF(E34="","",INDEX(Spells!$B$2:$B$1001,'Class List'!E34)) ->  | G34: =IF(F34="","",IF(OR(NOT(ISERROR(FIND(Forbidden1,INDEX(Spells!$J$2:$J$1001,E34),1))),NOT(ISERROR(FIND(Forbidden2,INDEX(Spells!$J$2:$J$1001,E34),1)))),"* ",""))&F34 ->  | I34: =IF(AND(OR(Cull!$C33="Yes",ISERROR(FIND("#"&Spells!$B32&"#",H$2)),Spells!$B32="",NOT(ISERROR(FIND(LOWER(ForbiddenAlignment),LOWER(Spells!$J32))))),NOT(Spells!$B32=H$3)),"",$A34) ->  | J34: 547 | L34: =IF(K34="","",INDEX(Spells!$B$2:$B$1001,'Class List'!K34)) ->  | M34: =IF(L34="","",IF(OR(NOT(ISERROR(FIND(Forbidden1,INDEX(Spells!$J$2:$J$1001,K34),1))),NOT(ISERROR(FIND(Forbidden2,INDEX(Spells!$J$2:$J$1001,K34),1)))),"* ",""))&L34 ->  | O34: =IF(AND(OR(Cull!$C33="Yes",ISERROR(FIND("#"&Spells!$B32&"#",N$2)),Spells!$B32="",NOT(ISERROR(FIND(LOWER(ForbiddenAlignment),LOWER(Spells!$J32))))),NOT(Spells!$B32=N$3)),"",$A34) ->  | P34: 623 | R34: =IF(Q34="","",INDEX(Spells!$B$2:$B$1001,'Class List'!Q34)) ->  | S34: =IF(R34="","",IF(OR(NOT(ISERROR(FIND(Forbidden1,INDEX(Spells!$J$2:$J$1001,Q34),1))),NOT(ISERROR(FIND(Forbidden2,INDEX(Spells!$J$2:$J$1001,Q34),1)))),"* ",""))&R34 ->  | U34: =IF(AND(OR(Cull!$C33="Yes",ISERROR(FIND("#"&Spells!$B32&"#",T$2)),Spells!$B32="",NOT(ISERROR(FIND(LOWER(ForbiddenAlignment),LOWER(Spells!$J32))))),NOT(Spells!$B32=T$3)),"",$A34) ->  | V34: 621 | X34: =IF(W34="","",INDEX(Spells!$B$2:$B$1001,'Class List'!W34)) ->  | Y34: =IF(X34="","",IF(OR(NOT(ISERROR(FIND(Forbidden1,INDEX(Spells!$J$2:$J$1001,W34),1))),NOT(ISERROR(FIND(Forbidden2,INDEX(Spells!$J$2:$J$1001,W34),1)))),"* ",""))&X34 ->  | AA34: =IF(AND(OR(Cull!$C33="Yes",ISERROR(FIND("#"&Spells!$B32&"#",Z$2)),Spells!$B32="",NOT(ISERROR(FIND(LOWER(ForbiddenAlignment),LOWER(Spells!$J32))))),NOT(Spells!$B32=Z$3)),"",$A34) ->  | AB34: 550 | AD34: =IF(AC34="","",INDEX(Spells!$B$2:$B$1001,'Class List'!AC34)) ->  | AE34: =IF(AD34="","",IF(OR(NOT(ISERROR(FIND(Forbidden1,INDEX(Spells!$J$2:$J$1001,AC34),1))),NOT(ISERROR(FIND(Forbidden2,INDEX(Spells!$J$2:$J$1001,AC34),1)))),"* ",""))&AD34 ->  | AF34: 3 | AG34: =IF(AND(OR(Cull!$C33="Yes",ISERROR(FIND("#"&Spells!$B32&"#",AF$2)),Spells!$B32="",NOT(ISERROR(FIND(LOWER(ForbiddenAlignment),LOWER(Spells!$J32))))),NOT(Spells!$B32=AF$3)),"",$A34) -> 31 | AH34: 610 | AJ34: =IF(AI34="","",INDEX(Spells!$B$2:$B$1001,'Class List'!AI34)) ->  | AK34: =IF(AJ34="","",IF(OR(NOT(ISERROR(FIND(Forbidden1,INDEX(Spells!$J$2:$J$1001,AI34),1))),NOT(ISERROR(FIND(Forbidden2,INDEX(Spells!$J$2:$J$1001,AI34),1)))),"* ",""))&AJ34 ->  | AM34: =IF(AND(OR(Cull!$C33="Yes",ISERROR(FIND("#"&Spells!$B32&"#",AL$2)),Spells!$B32="",NOT(ISERROR(FIND(LOWER(ForbiddenAlignment),LOWER(Spells!$J32))))),NOT(Spells!$B32=AL$3)),"",$A34) ->  | AN34: 609 | AP34: =IF(AO34="","",INDEX(Spells!$B$2:$B$1001,'Class List'!AO34)) ->  | AQ34: =IF(AP34="","",IF(OR(NOT(ISERROR(FIND(Forbidden1,INDEX(Spells!$J$2:$J$1001,AO34),1))),NOT(ISERROR(FIND(Forbidden2,INDEX(Spells!$J$2:$J$1001,AO34),1)))),"* ",""))&AP34 ->  | AS34: =IF(AND(OR(Cull!$C33="Yes",ISERROR(FIND("#"&Spells!$B32&"#",AR$2)),Spells!$B32="",NOT(ISERROR(FIND(LOWER(ForbiddenAlignment),LOWER(Spells!$J32))))),NOT(Spells!$B32=AR$3)),"",$A34) ->  | AT34: 620 | AV34: =IF(AU34="","",INDEX(Spells!$B$2:$B$1001,'Class List'!AU34)) ->  | AW34: =IF(AV34="","",IF(OR(NOT(ISERROR(FIND(Forbidden1,INDEX(Spells!$J$2:$J$1001,AU34),1))),NOT(ISERROR(FIND(Forbidden2,INDEX(Spells!$J$2:$J$1001,AU34),1)))),"* ",""))&AV34 ->  | AY34: =IF(AND(OR(Cull!$C33="Yes",ISERROR(FIND("#"&Spells!$B32&"#",AX$2)),Spells!$B32="",NOT(ISERROR(FIND(LOWER(ForbiddenAlignment),LOWER(Spells!$J32))))),NOT(Spells!$B32=AX$3)),"",$A34) ->  | AZ34: 625 | BB34: =IF(BA34="","",INDEX(Spells!$B$2:$B$1001,'Class List'!BA34)) ->  | BC34: =IF(BB34="","",IF(OR(NOT(ISERROR(FIND(Forbidden1,INDEX(Spells!$J$2:$J$1001,BA34),1))),NOT(ISERROR(FIND(Forbidden2,INDEX(Spells!$J$2:$J$1001,BA34),1)))),"* ",""))&BB34 ->  | BE34: =IF(AND(OR(Cull!$C33="Yes",ISERROR(FIND("#"&Spells!$B32&"#",BD$2)),Spells!$B32="",NOT(ISERROR(FIND(LOWER(ForbiddenAlignment),LOWER(Spells!$J32))))),NOT(Spells!$B32=BD$3)),"",$A34) ->  | BF34: 568 | BH34: =IF(BG34="","",INDEX(Spells!$B$2:$B$1001,'Class List'!BG34)) ->  | BI34: =IF(BH34="","",IF(OR(NOT(ISERROR(FIND(Forbidden1,INDEX(Spells!$J$2:$J$1001,BG34),1))),NOT(ISERROR(FIND(Forbidden2,INDEX(Spells!$J$2:$J$1001,BG34),1)))),"* ",""))&BH34 -> 
A35: 32 | C35: =IF(AND(OR(Cull!$C34="Yes",ISERROR(FIND("#"&Spells!$B33&"#",B$2)),Spells!$B33="",NOT(ISERROR(FIND(LOWER(ForbiddenAlignment),LOWER(Spells!$J33))))),NOT(Spells!$B33=B$3)),"",$A35) ->  | D35: 602 | F35: =IF(E35="","",INDEX(Spells!$B$2:$B$1001,'Class List'!E35)) ->  | G35: =IF(F35="","",IF(OR(NOT(ISERROR(FIND(Forbidden1,INDEX(Spells!$J$2:$J$1001,E35),1))),NOT(ISERROR(FIND(Forbidden2,INDEX(Spells!$J$2:$J$1001,E35),1)))),"* ",""))&F35 ->  | I35: =IF(AND(OR(Cull!$C34="Yes",ISERROR(FIND("#"&Spells!$B33&"#",H$2)),Spells!$B33="",NOT(ISERROR(FIND(LOWER(ForbiddenAlignment),LOWER(Spells!$J33))))),NOT(Spells!$B33=H$3)),"",$A35) ->  | J35: 547 | L35: =IF(K35="","",INDEX(Spells!$B$2:$B$1001,'Class List'!K35)) ->  | M35: =IF(L35="","",IF(OR(NOT(ISERROR(FIND(Forbidden1,INDEX(Spells!$J$2:$J$1001,K35),1))),NOT(ISERROR(FIND(Forbidden2,INDEX(Spells!$J$2:$J$1001,K35),1)))),"* ",""))&L35 ->  | O35: =IF(AND(OR(Cull!$C34="Yes",ISERROR(FIND("#"&Spells!$B33&"#",N$2)),Spells!$B33="",NOT(ISERROR(FIND(LOWER(ForbiddenAlignment),LOWER(Spells!$J33))))),NOT(Spells!$B33=N$3)),"",$A35) ->  | P35: 623 | R35: =IF(Q35="","",INDEX(Spells!$B$2:$B$1001,'Class List'!Q35)) ->  | S35: =IF(R35="","",IF(OR(NOT(ISERROR(FIND(Forbidden1,INDEX(Spells!$J$2:$J$1001,Q35),1))),NOT(ISERROR(FIND(Forbidden2,INDEX(Spells!$J$2:$J$1001,Q35),1)))),"* ",""))&R35 ->  | U35: =IF(AND(OR(Cull!$C34="Yes",ISERROR(FIND("#"&Spells!$B33&"#",T$2)),Spells!$B33="",NOT(ISERROR(FIND(LOWER(ForbiddenAlignment),LOWER(Spells!$J33))))),NOT(Spells!$B33=T$3)),"",$A35) ->  | V35: 621 | X35: =IF(W35="","",INDEX(Spells!$B$2:$B$1001,'Class List'!W35)) ->  | Y35: =IF(X35="","",IF(OR(NOT(ISERROR(FIND(Forbidden1,INDEX(Spells!$J$2:$J$1001,W35),1))),NOT(ISERROR(FIND(Forbidden2,INDEX(Spells!$J$2:$J$1001,W35),1)))),"* ",""))&X35 ->  | AA35: =IF(AND(OR(Cull!$C34="Yes",ISERROR(FIND("#"&Spells!$B33&"#",Z$2)),Spells!$B33="",NOT(ISERROR(FIND(LOWER(ForbiddenAlignment),LOWER(Spells!$J33))))),NOT(Spells!$B33=Z$3)),"",$A35) ->  | AB35: 550 | AD35: =IF(AC35="","",INDEX(Spells!$B$2:$B$1001,'Class List'!AC35)) ->  | AE35: =IF(AD35="","",IF(OR(NOT(ISERROR(FIND(Forbidden1,INDEX(Spells!$J$2:$J$1001,AC35),1))),NOT(ISERROR(FIND(Forbidden2,INDEX(Spells!$J$2:$J$1001,AC35),1)))),"* ",""))&AD35 ->  | AF35: 4 | AG35: =IF(AND(OR(Cull!$C34="Yes",ISERROR(FIND("#"&Spells!$B33&"#",AF$2)),Spells!$B33="",NOT(ISERROR(FIND(LOWER(ForbiddenAlignment),LOWER(Spells!$J33))))),NOT(Spells!$B33=AF$3)),"",$A35) -> 32 | AH35: 610 | AJ35: =IF(AI35="","",INDEX(Spells!$B$2:$B$1001,'Class List'!AI35)) ->  | AK35: =IF(AJ35="","",IF(OR(NOT(ISERROR(FIND(Forbidden1,INDEX(Spells!$J$2:$J$1001,AI35),1))),NOT(ISERROR(FIND(Forbidden2,INDEX(Spells!$J$2:$J$1001,AI35),1)))),"* ",""))&AJ35 ->  | AM35: =IF(AND(OR(Cull!$C34="Yes",ISERROR(FIND("#"&Spells!$B33&"#",AL$2)),Spells!$B33="",NOT(ISERROR(FIND(LOWER(ForbiddenAlignment),LOWER(Spells!$J33))))),NOT(Spells!$B33=AL$3)),"",$A35) ->  | AN35: 609 | AP35: =IF(AO35="","",INDEX(Spells!$B$2:$B$1001,'Class List'!AO35)) ->  | AQ35: =IF(AP35="","",IF(OR(NOT(ISERROR(FIND(Forbidden1,INDEX(Spells!$J$2:$J$1001,AO35),1))),NOT(ISERROR(FIND(Forbidden2,INDEX(Spells!$J$2:$J$1001,AO35),1)))),"* ",""))&AP35 ->  | AS35: =IF(AND(OR(Cull!$C34="Yes",ISERROR(FIND("#"&Spells!$B33&"#",AR$2)),Spells!$B33="",NOT(ISERROR(FIND(LOWER(ForbiddenAlignment),LOWER(Spells!$J33))))),NOT(Spells!$B33=AR$3)),"",$A35) ->  | AT35: 620 | AV35: =IF(AU35="","",INDEX(Spells!$B$2:$B$1001,'Class List'!AU35)) ->  | AW35: =IF(AV35="","",IF(OR(NOT(ISERROR(FIND(Forbidden1,INDEX(Spells!$J$2:$J$1001,AU35),1))),NOT(ISERROR(FIND(Forbidden2,INDEX(Spells!$J$2:$J$1001,AU35),1)))),"* ",""))&AV35 ->  | AY35: =IF(AND(OR(Cull!$C34="Yes",ISERROR(FIND("#"&Spells!$B33&"#",AX$2)),Spells!$B33="",NOT(ISERROR(FIND(LOWER(ForbiddenAlignment),LOWER(Spells!$J33))))),NOT(Spells!$B33=AX$3)),"",$A35) ->  | AZ35: 625 | BB35: =IF(BA35="","",INDEX(Spells!$B$2:$B$1001,'Class List'!BA35)) ->  | BC35: =IF(BB35="","",IF(OR(NOT(ISERROR(FIND(Forbidden1,INDEX(Spells!$J$2:$J$1001,BA35),1))),NOT(ISERROR(FIND(Forbidden2,INDEX(Spells!$J$2:$J$1001,BA35),1)))),"* ",""))&BB35 ->  | BE35: =IF(AND(OR(Cull!$C34="Yes",ISERROR(FIND("#"&Spells!$B33&"#",BD$2)),Spells!$B33="",NOT(ISERROR(FIND(LOWER(ForbiddenAlignment),LOWER(Spells!$J33))))),NOT(Spells!$B33=BD$3)),"",$A35) ->  | BF35: 568 | BH35: =IF(BG35="","",INDEX(Spells!$B$2:$B$1001,'Class List'!BG35)) ->  | BI35: =IF(BH35="","",IF(OR(NOT(ISERROR(FIND(Forbidden1,INDEX(Spells!$J$2:$J$1001,BG35),1))),NOT(ISERROR(FIND(Forbidden2,INDEX(Spells!$J$2:$J$1001,BG35),1)))),"* ",""))&BH35 -> 
A36: 33 | C36: =IF(AND(OR(Cull!$C35="Yes",ISERROR(FIND("#"&Spells!$B34&"#",B$2)),Spells!$B34="",NOT(ISERROR(FIND(LOWER(ForbiddenAlignment),LOWER(Spells!$J34))))),NOT(Spells!$B34=B$3)),"",$A36) ->  | D36: 602 | F36: =IF(E36="","",INDEX(Spells!$B$2:$B$1001,'Class List'!E36)) ->  | G36: =IF(F36="","",IF(OR(NOT(ISERROR(FIND(Forbidden1,INDEX(Spells!$J$2:$J$1001,E36),1))),NOT(ISERROR(FIND(Forbidden2,INDEX(Spells!$J$2:$J$1001,E36),1)))),"* ",""))&F36 ->  | I36: =IF(AND(OR(Cull!$C35="Yes",ISERROR(FIND("#"&Spells!$B34&"#",H$2)),Spells!$B34="",NOT(ISERROR(FIND(LOWER(ForbiddenAlignment),LOWER(Spells!$J34))))),NOT(Spells!$B34=H$3)),"",$A36) ->  | J36: 547 | L36: =IF(K36="","",INDEX(Spells!$B$2:$B$1001,'Class List'!K36)) ->  | M36: =IF(L36="","",IF(OR(NOT(ISERROR(FIND(Forbidden1,INDEX(Spells!$J$2:$J$1001,K36),1))),NOT(ISERROR(FIND(Forbidden2,INDEX(Spells!$J$2:$J$1001,K36),1)))),"* ",""))&L36 ->  | O36: =IF(AND(OR(Cull!$C35="Yes",ISERROR(FIND("#"&Spells!$B34&"#",N$2)),Spells!$B34="",NOT(ISERROR(FIND(LOWER(ForbiddenAlignment),LOWER(Spells!$J34))))),NOT(Spells!$B34=N$3)),"",$A36) ->  | P36: 623 | R36: =IF(Q36="","",INDEX(Spells!$B$2:$B$1001,'Class List'!Q36)) ->  | S36: =IF(R36="","",IF(OR(NOT(ISERROR(FIND(Forbidden1,INDEX(Spells!$J$2:$J$1001,Q36),1))),NOT(ISERROR(FIND(Forbidden2,INDEX(Spells!$J$2:$J$1001,Q36),1)))),"* ",""))&R36 ->  | U36: =IF(AND(OR(Cull!$C35="Yes",ISERROR(FIND("#"&Spells!$B34&"#",T$2)),Spells!$B34="",NOT(ISERROR(FIND(LOWER(ForbiddenAlignment),LOWER(Spells!$J34))))),NOT(Spells!$B34=T$3)),"",$A36) ->  | V36: 621 | X36: =IF(W36="","",INDEX(Spells!$B$2:$B$1001,'Class List'!W36)) ->  | Y36: =IF(X36="","",IF(OR(NOT(ISERROR(FIND(Forbidden1,INDEX(Spells!$J$2:$J$1001,W36),1))),NOT(ISERROR(FIND(Forbidden2,INDEX(Spells!$J$2:$J$1001,W36),1)))),"* ",""))&X36 ->  | AA36: =IF(AND(OR(Cull!$C35="Yes",ISERROR(FIND("#"&Spells!$B34&"#",Z$2)),Spells!$B34="",NOT(ISERROR(FIND(LOWER(ForbiddenAlignment),LOWER(Spells!$J34))))),NOT(Spells!$B34=Z$3)),"",$A36) ->  | AB36: 550 | AD36: =IF(AC36="","",INDEX(Spells!$B$2:$B$1001,'Class List'!AC36)) ->  | AE36: =IF(AD36="","",IF(OR(NOT(ISERROR(FIND(Forbidden1,INDEX(Spells!$J$2:$J$1001,AC36),1))),NOT(ISERROR(FIND(Forbidden2,INDEX(Spells!$J$2:$J$1001,AC36),1)))),"* ",""))&AD36 ->  | AG36: =IF(AND(OR(Cull!$C35="Yes",ISERROR(FIND("#"&Spells!$B34&"#",AF$2)),Spells!$B34="",NOT(ISERROR(FIND(LOWER(ForbiddenAlignment),LOWER(Spells!$J34))))),NOT(Spells!$B34=AF$3)),"",$A36) ->  | AH36: 610 | AJ36: =IF(AI36="","",INDEX(Spells!$B$2:$B$1001,'Class List'!AI36)) ->  | AK36: =IF(AJ36="","",IF(OR(NOT(ISERROR(FIND(Forbidden1,INDEX(Spells!$J$2:$J$1001,AI36),1))),NOT(ISERROR(FIND(Forbidden2,INDEX(Spells!$J$2:$J$1001,AI36),1)))),"* ",""))&AJ36 ->  | AM36: =IF(AND(OR(Cull!$C35="Yes",ISERROR(FIND("#"&Spells!$B34&"#",AL$2)),Spells!$B34="",NOT(ISERROR(FIND(LOWER(ForbiddenAlignment),LOWER(Spells!$J34))))),NOT(Spells!$B34=AL$3)),"",$A36) ->  | AN36: 609 | AP36: =IF(AO36="","",INDEX(Spells!$B$2:$B$1001,'Class List'!AO36)) ->  | AQ36: =IF(AP36="","",IF(OR(NOT(ISERROR(FIND(Forbidden1,INDEX(Spells!$J$2:$J$1001,AO36),1))),NOT(ISERROR(FIND(Forbidden2,INDEX(Spells!$J$2:$J$1001,AO36),1)))),"* ",""))&AP36 ->  | AS36: =IF(AND(OR(Cull!$C35="Yes",ISERROR(FIND("#"&Spells!$B34&"#",AR$2)),Spells!$B34="",NOT(ISERROR(FIND(LOWER(ForbiddenAlignment),LOWER(Spells!$J34))))),NOT(Spells!$B34=AR$3)),"",$A36) ->  | AT36: 620 | AV36: =IF(AU36="","",INDEX(Spells!$B$2:$B$1001,'Class List'!AU36)) ->  | AW36: =IF(AV36="","",IF(OR(NOT(ISERROR(FIND(Forbidden1,INDEX(Spells!$J$2:$J$1001,AU36),1))),NOT(ISERROR(FIND(Forbidden2,INDEX(Spells!$J$2:$J$1001,AU36),1)))),"* ",""))&AV36 ->  | AY36: =IF(AND(OR(Cull!$C35="Yes",ISERROR(FIND("#"&Spells!$B34&"#",AX$2)),Spells!$B34="",NOT(ISERROR(FIND(LOWER(ForbiddenAlignment),LOWER(Spells!$J34))))),NOT(Spells!$B34=AX$3)),"",$A36) ->  | AZ36: 625 | BB36: =IF(BA36="","",INDEX(Spells!$B$2:$B$1001,'Class List'!BA36)) ->  | BC36: =IF(BB36="","",IF(OR(NOT(ISERROR(FIND(Forbidden1,INDEX(Spells!$J$2:$J$1001,BA36),1))),NOT(ISERROR(FIND(Forbidden2,INDEX(Spells!$J$2:$J$1001,BA36),1)))),"* ",""))&BB36 ->  | BE36: =IF(AND(OR(Cull!$C35="Yes",ISERROR(FIND("#"&Spells!$B34&"#",BD$2)),Spells!$B34="",NOT(ISERROR(FIND(LOWER(ForbiddenAlignment),LOWER(Spells!$J34))))),NOT(Spells!$B34=BD$3)),"",$A36) ->  | BF36: 568 | BH36: =IF(BG36="","",INDEX(Spells!$B$2:$B$1001,'Class List'!BG36)) ->  | BI36: =IF(BH36="","",IF(OR(NOT(ISERROR(FIND(Forbidden1,INDEX(Spells!$J$2:$J$1001,BG36),1))),NOT(ISERROR(FIND(Forbidden2,INDEX(Spells!$J$2:$J$1001,BG36),1)))),"* ",""))&BH36 -> 
A37: 34 | C37: =IF(AND(OR(Cull!$C36="Yes",ISERROR(FIND("#"&Spells!$B35&"#",B$2)),Spells!$B35="",NOT(ISERROR(FIND(LOWER(ForbiddenAlignment),LOWER(Spells!$J35))))),NOT(Spells!$B35=B$3)),"",$A37) ->  | D37: 602 | F37: =IF(E37="","",INDEX(Spells!$B$2:$B$1001,'Class List'!E37)) ->  | G37: =IF(F37="","",IF(OR(NOT(ISERROR(FIND(Forbidden1,INDEX(Spells!$J$2:$J$1001,E37),1))),NOT(ISERROR(FIND(Forbidden2,INDEX(Spells!$J$2:$J$1001,E37),1)))),"* ",""))&F37 ->  | I37: =IF(AND(OR(Cull!$C36="Yes",ISERROR(FIND("#"&Spells!$B35&"#",H$2)),Spells!$B35="",NOT(ISERROR(FIND(LOWER(ForbiddenAlignment),LOWER(Spells!$J35))))),NOT(Spells!$B35=H$3)),"",$A37) ->  | J37: 547 | L37: =IF(K37="","",INDEX(Spells!$B$2:$B$1001,'Class List'!K37)) ->  | M37: =IF(L37="","",IF(OR(NOT(ISERROR(FIND(Forbidden1,INDEX(Spells!$J$2:$J$1001,K37),1))),NOT(ISERROR(FIND(Forbidden2,INDEX(Spells!$J$2:$J$1001,K37),1)))),"* ",""))&L37 ->  | O37: =IF(AND(OR(Cull!$C36="Yes",ISERROR(FIND("#"&Spells!$B35&"#",N$2)),Spells!$B35="",NOT(ISERROR(FIND(LOWER(ForbiddenAlignment),LOWER(Spells!$J35))))),NOT(Spells!$B35=N$3)),"",$A37) ->  | P37: 623 | R37: =IF(Q37="","",INDEX(Spells!$B$2:$B$1001,'Class List'!Q37)) ->  | S37: =IF(R37="","",IF(OR(NOT(ISERROR(FIND(Forbidden1,INDEX(Spells!$J$2:$J$1001,Q37),1))),NOT(ISERROR(FIND(Forbidden2,INDEX(Spells!$J$2:$J$1001,Q37),1)))),"* ",""))&R37 ->  | U37: =IF(AND(OR(Cull!$C36="Yes",ISERROR(FIND("#"&Spells!$B35&"#",T$2)),Spells!$B35="",NOT(ISERROR(FIND(LOWER(ForbiddenAlignment),LOWER(Spells!$J35))))),NOT(Spells!$B35=T$3)),"",$A37) ->  | V37: 621 | X37: =IF(W37="","",INDEX(Spells!$B$2:$B$1001,'Class List'!W37)) ->  | Y37: =IF(X37="","",IF(OR(NOT(ISERROR(FIND(Forbidden1,INDEX(Spells!$J$2:$J$1001,W37),1))),NOT(ISERROR(FIND(Forbidden2,INDEX(Spells!$J$2:$J$1001,W37),1)))),"* ",""))&X37 ->  | AA37: =IF(AND(OR(Cull!$C36="Yes",ISERROR(FIND("#"&Spells!$B35&"#",Z$2)),Spells!$B35="",NOT(ISERROR(FIND(LOWER(ForbiddenAlignment),LOWER(Spells!$J35))))),NOT(Spells!$B35=Z$3)),"",$A37) ->  | AB37: 550 | AD37: =IF(AC37="","",INDEX(Spells!$B$2:$B$1001,'Class List'!AC37)) ->  | AE37: =IF(AD37="","",IF(OR(NOT(ISERROR(FIND(Forbidden1,INDEX(Spells!$J$2:$J$1001,AC37),1))),NOT(ISERROR(FIND(Forbidden2,INDEX(Spells!$J$2:$J$1001,AC37),1)))),"* ",""))&AD37 ->  | AG37: =IF(AND(OR(Cull!$C36="Yes",ISERROR(FIND("#"&Spells!$B35&"#",AF$2)),Spells!$B35="",NOT(ISERROR(FIND(LOWER(ForbiddenAlignment),LOWER(Spells!$J35))))),NOT(Spells!$B35=AF$3)),"",$A37) ->  | AH37: 610 | AJ37: =IF(AI37="","",INDEX(Spells!$B$2:$B$1001,'Class List'!AI37)) ->  | AK37: =IF(AJ37="","",IF(OR(NOT(ISERROR(FIND(Forbidden1,INDEX(Spells!$J$2:$J$1001,AI37),1))),NOT(ISERROR(FIND(Forbidden2,INDEX(Spells!$J$2:$J$1001,AI37),1)))),"* ",""))&AJ37 ->  | AM37: =IF(AND(OR(Cull!$C36="Yes",ISERROR(FIND("#"&Spells!$B35&"#",AL$2)),Spells!$B35="",NOT(ISERROR(FIND(LOWER(ForbiddenAlignment),LOWER(Spells!$J35))))),NOT(Spells!$B35=AL$3)),"",$A37) ->  | AN37: 609 | AP37: =IF(AO37="","",INDEX(Spells!$B$2:$B$1001,'Class List'!AO37)) ->  | AQ37: =IF(AP37="","",IF(OR(NOT(ISERROR(FIND(Forbidden1,INDEX(Spells!$J$2:$J$1001,AO37),1))),NOT(ISERROR(FIND(Forbidden2,INDEX(Spells!$J$2:$J$1001,AO37),1)))),"* ",""))&AP37 ->  | AS37: =IF(AND(OR(Cull!$C36="Yes",ISERROR(FIND("#"&Spells!$B35&"#",AR$2)),Spells!$B35="",NOT(ISERROR(FIND(LOWER(ForbiddenAlignment),LOWER(Spells!$J35))))),NOT(Spells!$B35=AR$3)),"",$A37) ->  | AT37: 620 | AV37: =IF(AU37="","",INDEX(Spells!$B$2:$B$1001,'Class List'!AU37)) ->  | AW37: =IF(AV37="","",IF(OR(NOT(ISERROR(FIND(Forbidden1,INDEX(Spells!$J$2:$J$1001,AU37),1))),NOT(ISERROR(FIND(Forbidden2,INDEX(Spells!$J$2:$J$1001,AU37),1)))),"* ",""))&AV37 ->  | AY37: =IF(AND(OR(Cull!$C36="Yes",ISERROR(FIND("#"&Spells!$B35&"#",AX$2)),Spells!$B35="",NOT(ISERROR(FIND(LOWER(ForbiddenAlignment),LOWER(Spells!$J35))))),NOT(Spells!$B35=AX$3)),"",$A37) ->  | AZ37: 625 | BB37: =IF(BA37="","",INDEX(Spells!$B$2:$B$1001,'Class List'!BA37)) ->  | BC37: =IF(BB37="","",IF(OR(NOT(ISERROR(FIND(Forbidden1,INDEX(Spells!$J$2:$J$1001,BA37),1))),NOT(ISERROR(FIND(Forbidden2,INDEX(Spells!$J$2:$J$1001,BA37),1)))),"* ",""))&BB37 ->  | BE37: =IF(AND(OR(Cull!$C36="Yes",ISERROR(FIND("#"&Spells!$B35&"#",BD$2)),Spells!$B35="",NOT(ISERROR(FIND(LOWER(ForbiddenAlignment),LOWER(Spells!$J35))))),NOT(Spells!$B35=BD$3)),"",$A37) ->  | BF37: 568 | BH37: =IF(BG37="","",INDEX(Spells!$B$2:$B$1001,'Class List'!BG37)) ->  | BI37: =IF(BH37="","",IF(OR(NOT(ISERROR(FIND(Forbidden1,INDEX(Spells!$J$2:$J$1001,BG37),1))),NOT(ISERROR(FIND(Forbidden2,INDEX(Spells!$J$2:$J$1001,BG37),1)))),"* ",""))&BH37 -> 
A38: 35 | C38: =IF(AND(OR(Cull!$C37="Yes",ISERROR(FIND("#"&Spells!$B36&"#",B$2)),Spells!$B36="",NOT(ISERROR(FIND(LOWER(ForbiddenAlignment),LOWER(Spells!$J36))))),NOT(Spells!$B36=B$3)),"",$A38) ->  | D38: 602 | F38: =IF(E38="","",INDEX(Spells!$B$2:$B$1001,'Class List'!E38)) ->  | G38: =IF(F38="","",IF(OR(NOT(ISERROR(FIND(Forbidden1,INDEX(Spells!$J$2:$J$1001,E38),1))),NOT(ISERROR(FIND(Forbidden2,INDEX(Spells!$J$2:$J$1001,E38),1)))),"* ",""))&F38 ->  | I38: =IF(AND(OR(Cull!$C37="Yes",ISERROR(FIND("#"&Spells!$B36&"#",H$2)),Spells!$B36="",NOT(ISERROR(FIND(LOWER(ForbiddenAlignment),LOWER(Spells!$J36))))),NOT(Spells!$B36=H$3)),"",$A38) ->  | J38: 547 | L38: =IF(K38="","",INDEX(Spells!$B$2:$B$1001,'Class List'!K38)) ->  | M38: =IF(L38="","",IF(OR(NOT(ISERROR(FIND(Forbidden1,INDEX(Spells!$J$2:$J$1001,K38),1))),NOT(ISERROR(FIND(Forbidden2,INDEX(Spells!$J$2:$J$1001,K38),1)))),"* ",""))&L38 ->  | N38: 4 | O38: =IF(AND(OR(Cull!$C37="Yes",ISERROR(FIND("#"&Spells!$B36&"#",N$2)),Spells!$B36="",NOT(ISERROR(FIND(LOWER(ForbiddenAlignment),LOWER(Spells!$J36))))),NOT(Spells!$B36=N$3)),"",$A38) -> 35 | P38: 623 | R38: =IF(Q38="","",INDEX(Spells!$B$2:$B$1001,'Class List'!Q38)) ->  | S38: =IF(R38="","",IF(OR(NOT(ISERROR(FIND(Forbidden1,INDEX(Spells!$J$2:$J$1001,Q38),1))),NOT(ISERROR(FIND(Forbidden2,INDEX(Spells!$J$2:$J$1001,Q38),1)))),"* ",""))&R38 ->  | U38: =IF(AND(OR(Cull!$C37="Yes",ISERROR(FIND("#"&Spells!$B36&"#",T$2)),Spells!$B36="",NOT(ISERROR(FIND(LOWER(ForbiddenAlignment),LOWER(Spells!$J36))))),NOT(Spells!$B36=T$3)),"",$A38) ->  | V38: 621 | X38: =IF(W38="","",INDEX(Spells!$B$2:$B$1001,'Class List'!W38)) ->  | Y38: =IF(X38="","",IF(OR(NOT(ISERROR(FIND(Forbidden1,INDEX(Spells!$J$2:$J$1001,W38),1))),NOT(ISERROR(FIND(Forbidden2,INDEX(Spells!$J$2:$J$1001,W38),1)))),"* ",""))&X38 ->  | AA38: =IF(AND(OR(Cull!$C37="Yes",ISERROR(FIND("#"&Spells!$B36&"#",Z$2)),Spells!$B36="",NOT(ISERROR(FIND(LOWER(ForbiddenAlignment),LOWER(Spells!$J36))))),NOT(Spells!$B36=Z$3)),"",$A38) ->  | AB38: 550 | AD38: =IF(AC38="","",INDEX(Spells!$B$2:$B$1001,'Class List'!AC38)) ->  | AE38: =IF(AD38="","",IF(OR(NOT(ISERROR(FIND(Forbidden1,INDEX(Spells!$J$2:$J$1001,AC38),1))),NOT(ISERROR(FIND(Forbidden2,INDEX(Spells!$J$2:$J$1001,AC38),1)))),"* ",""))&AD38 ->  | AG38: =IF(AND(OR(Cull!$C37="Yes",ISERROR(FIND("#"&Spells!$B36&"#",AF$2)),Spells!$B36="",NOT(ISERROR(FIND(LOWER(ForbiddenAlignment),LOWER(Spells!$J36))))),NOT(Spells!$B36=AF$3)),"",$A38) ->  | AH38: 610 | AJ38: =IF(AI38="","",INDEX(Spells!$B$2:$B$1001,'Class List'!AI38)) ->  | AK38: =IF(AJ38="","",IF(OR(NOT(ISERROR(FIND(Forbidden1,INDEX(Spells!$J$2:$J$1001,AI38),1))),NOT(ISERROR(FIND(Forbidden2,INDEX(Spells!$J$2:$J$1001,AI38),1)))),"* ",""))&AJ38 ->  | AM38: =IF(AND(OR(Cull!$C37="Yes",ISERROR(FIND("#"&Spells!$B36&"#",AL$2)),Spells!$B36="",NOT(ISERROR(FIND(LOWER(ForbiddenAlignment),LOWER(Spells!$J36))))),NOT(Spells!$B36=AL$3)),"",$A38) ->  | AN38: 609 | AP38: =IF(AO38="","",INDEX(Spells!$B$2:$B$1001,'Class List'!AO38)) ->  | AQ38: =IF(AP38="","",IF(OR(NOT(ISERROR(FIND(Forbidden1,INDEX(Spells!$J$2:$J$1001,AO38),1))),NOT(ISERROR(FIND(Forbidden2,INDEX(Spells!$J$2:$J$1001,AO38),1)))),"* ",""))&AP38 ->  | AS38: =IF(AND(OR(Cull!$C37="Yes",ISERROR(FIND("#"&Spells!$B36&"#",AR$2)),Spells!$B36="",NOT(ISERROR(FIND(LOWER(ForbiddenAlignment),LOWER(Spells!$J36))))),NOT(Spells!$B36=AR$3)),"",$A38) ->  | AT38: 620 | AV38: =IF(AU38="","",INDEX(Spells!$B$2:$B$1001,'Class List'!AU38)) ->  | AW38: =IF(AV38="","",IF(OR(NOT(ISERROR(FIND(Forbidden1,INDEX(Spells!$J$2:$J$1001,AU38),1))),NOT(ISERROR(FIND(Forbidden2,INDEX(Spells!$J$2:$J$1001,AU38),1)))),"* ",""))&AV38 ->  | AY38: =IF(AND(OR(Cull!$C37="Yes",ISERROR(FIND("#"&Spells!$B36&"#",AX$2)),Spells!$B36="",NOT(ISERROR(FIND(LOWER(ForbiddenAlignment),LOWER(Spells!$J36))))),NOT(Spells!$B36=AX$3)),"",$A38) ->  | AZ38: 625 | BB38: =IF(BA38="","",INDEX(Spells!$B$2:$B$1001,'Class List'!BA38)) ->  | BC38: =IF(BB38="","",IF(OR(NOT(ISERROR(FIND(Forbidden1,INDEX(Spells!$J$2:$J$1001,BA38),1))),NOT(ISERROR(FIND(Forbidden2,INDEX(Spells!$J$2:$J$1001,BA38),1)))),"* ",""))&BB38 ->  | BE38: =IF(AND(OR(Cull!$C37="Yes",ISERROR(FIND("#"&Spells!$B36&"#",BD$2)),Spells!$B36="",NOT(ISERROR(FIND(LOWER(ForbiddenAlignment),LOWER(Spells!$J36))))),NOT(Spells!$B36=BD$3)),"",$A38) ->  | BF38: 568 | BH38: =IF(BG38="","",INDEX(Spells!$B$2:$B$1001,'Class List'!BG38)) ->  | BI38: =IF(BH38="","",IF(OR(NOT(ISERROR(FIND(Forbidden1,INDEX(Spells!$J$2:$J$1001,BG38),1))),NOT(ISERROR(FIND(Forbidden2,INDEX(Spells!$J$2:$J$1001,BG38),1)))),"* ",""))&BH38 -> 
A39: 36 | C39: =IF(AND(OR(Cull!$C38="Yes",ISERROR(FIND("#"&Spells!$B37&"#",B$2)),Spells!$B37="",NOT(ISERROR(FIND(LOWER(ForbiddenAlignment),LOWER(Spells!$J37))))),NOT(Spells!$B37=B$3)),"",$A39) ->  | D39: 602 | F39: =IF(E39="","",INDEX(Spells!$B$2:$B$1001,'Class List'!E39)) ->  | G39: =IF(F39="","",IF(OR(NOT(ISERROR(FIND(Forbidden1,INDEX(Spells!$J$2:$J$1001,E39),1))),NOT(ISERROR(FIND(Forbidden2,INDEX(Spells!$J$2:$J$1001,E39),1)))),"* ",""))&F39 ->  | I39: =IF(AND(OR(Cull!$C38="Yes",ISERROR(FIND("#"&Spells!$B37&"#",H$2)),Spells!$B37="",NOT(ISERROR(FIND(LOWER(ForbiddenAlignment),LOWER(Spells!$J37))))),NOT(Spells!$B37=H$3)),"",$A39) ->  | J39: 547 | L39: =IF(K39="","",INDEX(Spells!$B$2:$B$1001,'Class List'!K39)) ->  | M39: =IF(L39="","",IF(OR(NOT(ISERROR(FIND(Forbidden1,INDEX(Spells!$J$2:$J$1001,K39),1))),NOT(ISERROR(FIND(Forbidden2,INDEX(Spells!$J$2:$J$1001,K39),1)))),"* ",""))&L39 ->  | N39: 5 | O39: =IF(AND(OR(Cull!$C38="Yes",ISERROR(FIND("#"&Spells!$B37&"#",N$2)),Spells!$B37="",NOT(ISERROR(FIND(LOWER(ForbiddenAlignment),LOWER(Spells!$J37))))),NOT(Spells!$B37=N$3)),"",$A39) -> 36 | P39: 623 | R39: =IF(Q39="","",INDEX(Spells!$B$2:$B$1001,'Class List'!Q39)) ->  | S39: =IF(R39="","",IF(OR(NOT(ISERROR(FIND(Forbidden1,INDEX(Spells!$J$2:$J$1001,Q39),1))),NOT(ISERROR(FIND(Forbidden2,INDEX(Spells!$J$2:$J$1001,Q39),1)))),"* ",""))&R39 ->  | U39: =IF(AND(OR(Cull!$C38="Yes",ISERROR(FIND("#"&Spells!$B37&"#",T$2)),Spells!$B37="",NOT(ISERROR(FIND(LOWER(ForbiddenAlignment),LOWER(Spells!$J37))))),NOT(Spells!$B37=T$3)),"",$A39) ->  | V39: 621 | X39: =IF(W39="","",INDEX(Spells!$B$2:$B$1001,'Class List'!W39)) ->  | Y39: =IF(X39="","",IF(OR(NOT(ISERROR(FIND(Forbidden1,INDEX(Spells!$J$2:$J$1001,W39),1))),NOT(ISERROR(FIND(Forbidden2,INDEX(Spells!$J$2:$J$1001,W39),1)))),"* ",""))&X39 ->  | AA39: =IF(AND(OR(Cull!$C38="Yes",ISERROR(FIND("#"&Spells!$B37&"#",Z$2)),Spells!$B37="",NOT(ISERROR(FIND(LOWER(ForbiddenAlignment),LOWER(Spells!$J37))))),NOT(Spells!$B37=Z$3)),"",$A39) ->  | AB39: 550 | AD39: =IF(AC39="","",INDEX(Spells!$B$2:$B$1001,'Class List'!AC39)) ->  | AE39: =IF(AD39="","",IF(OR(NOT(ISERROR(FIND(Forbidden1,INDEX(Spells!$J$2:$J$1001,AC39),1))),NOT(ISERROR(FIND(Forbidden2,INDEX(Spells!$J$2:$J$1001,AC39),1)))),"* ",""))&AD39 ->  | AG39: =IF(AND(OR(Cull!$C38="Yes",ISERROR(FIND("#"&Spells!$B37&"#",AF$2)),Spells!$B37="",NOT(ISERROR(FIND(LOWER(ForbiddenAlignment),LOWER(Spells!$J37))))),NOT(Spells!$B37=AF$3)),"",$A39) ->  | AH39: 610 | AJ39: =IF(AI39="","",INDEX(Spells!$B$2:$B$1001,'Class List'!AI39)) ->  | AK39: =IF(AJ39="","",IF(OR(NOT(ISERROR(FIND(Forbidden1,INDEX(Spells!$J$2:$J$1001,AI39),1))),NOT(ISERROR(FIND(Forbidden2,INDEX(Spells!$J$2:$J$1001,AI39),1)))),"* ",""))&AJ39 ->  | AM39: =IF(AND(OR(Cull!$C38="Yes",ISERROR(FIND("#"&Spells!$B37&"#",AL$2)),Spells!$B37="",NOT(ISERROR(FIND(LOWER(ForbiddenAlignment),LOWER(Spells!$J37))))),NOT(Spells!$B37=AL$3)),"",$A39) ->  | AN39: 609 | AP39: =IF(AO39="","",INDEX(Spells!$B$2:$B$1001,'Class List'!AO39)) ->  | AQ39: =IF(AP39="","",IF(OR(NOT(ISERROR(FIND(Forbidden1,INDEX(Spells!$J$2:$J$1001,AO39),1))),NOT(ISERROR(FIND(Forbidden2,INDEX(Spells!$J$2:$J$1001,AO39),1)))),"* ",""))&AP39 ->  | AS39: =IF(AND(OR(Cull!$C38="Yes",ISERROR(FIND("#"&Spells!$B37&"#",AR$2)),Spells!$B37="",NOT(ISERROR(FIND(LOWER(ForbiddenAlignment),LOWER(Spells!$J37))))),NOT(Spells!$B37=AR$3)),"",$A39) ->  | AT39: 620 | AV39: =IF(AU39="","",INDEX(Spells!$B$2:$B$1001,'Class List'!AU39)) ->  | AW39: =IF(AV39="","",IF(OR(NOT(ISERROR(FIND(Forbidden1,INDEX(Spells!$J$2:$J$1001,AU39),1))),NOT(ISERROR(FIND(Forbidden2,INDEX(Spells!$J$2:$J$1001,AU39),1)))),"* ",""))&AV39 ->  | AY39: =IF(AND(OR(Cull!$C38="Yes",ISERROR(FIND("#"&Spells!$B37&"#",AX$2)),Spells!$B37="",NOT(ISERROR(FIND(LOWER(ForbiddenAlignment),LOWER(Spells!$J37))))),NOT(Spells!$B37=AX$3)),"",$A39) ->  | AZ39: 625 | BB39: =IF(BA39="","",INDEX(Spells!$B$2:$B$1001,'Class List'!BA39)) ->  | BC39: =IF(BB39="","",IF(OR(NOT(ISERROR(FIND(Forbidden1,INDEX(Spells!$J$2:$J$1001,BA39),1))),NOT(ISERROR(FIND(Forbidden2,INDEX(Spells!$J$2:$J$1001,BA39),1)))),"* ",""))&BB39 ->  | BE39: =IF(AND(OR(Cull!$C38="Yes",ISERROR(FIND("#"&Spells!$B37&"#",BD$2)),Spells!$B37="",NOT(ISERROR(FIND(LOWER(ForbiddenAlignment),LOWER(Spells!$J37))))),NOT(Spells!$B37=BD$3)),"",$A39) ->  | BF39: 568 | BH39: =IF(BG39="","",INDEX(Spells!$B$2:$B$1001,'Class List'!BG39)) ->  | BI39: =IF(BH39="","",IF(OR(NOT(ISERROR(FIND(Forbidden1,INDEX(Spells!$J$2:$J$1001,BG39),1))),NOT(ISERROR(FIND(Forbidden2,INDEX(Spells!$J$2:$J$1001,BG39),1)))),"* ",""))&BH39 -> 
A40: 37 | C40: =IF(AND(OR(Cull!$C39="Yes",ISERROR(FIND("#"&Spells!$B38&"#",B$2)),Spells!$B38="",NOT(ISERROR(FIND(LOWER(ForbiddenAlignment),LOWER(Spells!$J38))))),NOT(Spells!$B38=B$3)),"",$A40) ->  | D40: 602 | F40: =IF(E40="","",INDEX(Spells!$B$2:$B$1001,'Class List'!E40)) ->  | G40: =IF(F40="","",IF(OR(NOT(ISERROR(FIND(Forbidden1,INDEX(Spells!$J$2:$J$1001,E40),1))),NOT(ISERROR(FIND(Forbidden2,INDEX(Spells!$J$2:$J$1001,E40),1)))),"* ",""))&F40 ->  | I40: =IF(AND(OR(Cull!$C39="Yes",ISERROR(FIND("#"&Spells!$B38&"#",H$2)),Spells!$B38="",NOT(ISERROR(FIND(LOWER(ForbiddenAlignment),LOWER(Spells!$J38))))),NOT(Spells!$B38=H$3)),"",$A40) ->  | J40: 547 | L40: =IF(K40="","",INDEX(Spells!$B$2:$B$1001,'Class List'!K40)) ->  | M40: =IF(L40="","",IF(OR(NOT(ISERROR(FIND(Forbidden1,INDEX(Spells!$J$2:$J$1001,K40),1))),NOT(ISERROR(FIND(Forbidden2,INDEX(Spells!$J$2:$J$1001,K40),1)))),"* ",""))&L40 ->  | O40: =IF(AND(OR(Cull!$C39="Yes",ISERROR(FIND("#"&Spells!$B38&"#",N$2)),Spells!$B38="",NOT(ISERROR(FIND(LOWER(ForbiddenAlignment),LOWER(Spells!$J38))))),NOT(Spells!$B38=N$3)),"",$A40) ->  | P40: 623 | R40: =IF(Q40="","",INDEX(Spells!$B$2:$B$1001,'Class List'!Q40)) ->  | S40: =IF(R40="","",IF(OR(NOT(ISERROR(FIND(Forbidden1,INDEX(Spells!$J$2:$J$1001,Q40),1))),NOT(ISERROR(FIND(Forbidden2,INDEX(Spells!$J$2:$J$1001,Q40),1)))),"* ",""))&R40 ->  | U40: =IF(AND(OR(Cull!$C39="Yes",ISERROR(FIND("#"&Spells!$B38&"#",T$2)),Spells!$B38="",NOT(ISERROR(FIND(LOWER(ForbiddenAlignment),LOWER(Spells!$J38))))),NOT(Spells!$B38=T$3)),"",$A40) ->  | V40: 621 | X40: =IF(W40="","",INDEX(Spells!$B$2:$B$1001,'Class List'!W40)) ->  | Y40: =IF(X40="","",IF(OR(NOT(ISERROR(FIND(Forbidden1,INDEX(Spells!$J$2:$J$1001,W40),1))),NOT(ISERROR(FIND(Forbidden2,INDEX(Spells!$J$2:$J$1001,W40),1)))),"* ",""))&X40 ->  | AA40: =IF(AND(OR(Cull!$C39="Yes",ISERROR(FIND("#"&Spells!$B38&"#",Z$2)),Spells!$B38="",NOT(ISERROR(FIND(LOWER(ForbiddenAlignment),LOWER(Spells!$J38))))),NOT(Spells!$B38=Z$3)),"",$A40) ->  | AB40: 550 | AD40: =IF(AC40="","",INDEX(Spells!$B$2:$B$1001,'Class List'!AC40)) ->  | AE40: =IF(AD40="","",IF(OR(NOT(ISERROR(FIND(Forbidden1,INDEX(Spells!$J$2:$J$1001,AC40),1))),NOT(ISERROR(FIND(Forbidden2,INDEX(Spells!$J$2:$J$1001,AC40),1)))),"* ",""))&AD40 ->  | AG40: =IF(AND(OR(Cull!$C39="Yes",ISERROR(FIND("#"&Spells!$B38&"#",AF$2)),Spells!$B38="",NOT(ISERROR(FIND(LOWER(ForbiddenAlignment),LOWER(Spells!$J38))))),NOT(Spells!$B38=AF$3)),"",$A40) ->  | AH40: 610 | AJ40: =IF(AI40="","",INDEX(Spells!$B$2:$B$1001,'Class List'!AI40)) ->  | AK40: =IF(AJ40="","",IF(OR(NOT(ISERROR(FIND(Forbidden1,INDEX(Spells!$J$2:$J$1001,AI40),1))),NOT(ISERROR(FIND(Forbidden2,INDEX(Spells!$J$2:$J$1001,AI40),1)))),"* ",""))&AJ40 ->  | AL40: 2 | AM40: =IF(AND(OR(Cull!$C39="Yes",ISERROR(FIND("#"&Spells!$B38&"#",AL$2)),Spells!$B38="",NOT(ISERROR(FIND(LOWER(ForbiddenAlignment),LOWER(Spells!$J38))))),NOT(Spells!$B38=AL$3)),"",$A40) -> 37 | AN40: 609 | AP40: =IF(AO40="","",INDEX(Spells!$B$2:$B$1001,'Class List'!AO40)) ->  | AQ40: =IF(AP40="","",IF(OR(NOT(ISERROR(FIND(Forbidden1,INDEX(Spells!$J$2:$J$1001,AO40),1))),NOT(ISERROR(FIND(Forbidden2,INDEX(Spells!$J$2:$J$1001,AO40),1)))),"* ",""))&AP40 ->  | AS40: =IF(AND(OR(Cull!$C39="Yes",ISERROR(FIND("#"&Spells!$B38&"#",AR$2)),Spells!$B38="",NOT(ISERROR(FIND(LOWER(ForbiddenAlignment),LOWER(Spells!$J38))))),NOT(Spells!$B38=AR$3)),"",$A40) ->  | AT40: 620 | AV40: =IF(AU40="","",INDEX(Spells!$B$2:$B$1001,'Class List'!AU40)) ->  | AW40: =IF(AV40="","",IF(OR(NOT(ISERROR(FIND(Forbidden1,INDEX(Spells!$J$2:$J$1001,AU40),1))),NOT(ISERROR(FIND(Forbidden2,INDEX(Spells!$J$2:$J$1001,AU40),1)))),"* ",""))&AV40 ->  | AY40: =IF(AND(OR(Cull!$C39="Yes",ISERROR(FIND("#"&Spells!$B38&"#",AX$2)),Spells!$B38="",NOT(ISERROR(FIND(LOWER(ForbiddenAlignment),LOWER(Spells!$J38))))),NOT(Spells!$B38=AX$3)),"",$A40) ->  | AZ40: 625 | BB40: =IF(BA40="","",INDEX(Spells!$B$2:$B$1001,'Class List'!BA40)) ->  | BC40: =IF(BB40="","",IF(OR(NOT(ISERROR(FIND(Forbidden1,INDEX(Spells!$J$2:$J$1001,BA40),1))),NOT(ISERROR(FIND(Forbidden2,INDEX(Spells!$J$2:$J$1001,BA40),1)))),"* ",""))&BB40 ->  | BE40: =IF(AND(OR(Cull!$C39="Yes",ISERROR(FIND("#"&Spells!$B38&"#",BD$2)),Spells!$B38="",NOT(ISERROR(FIND(LOWER(ForbiddenAlignment),LOWER(Spells!$J38))))),NOT(Spells!$B38=BD$3)),"",$A40) ->  | BF40: 568 | BH40: =IF(BG40="","",INDEX(Spells!$B$2:$B$1001,'Class List'!BG40)) ->  | BI40: =IF(BH40="","",IF(OR(NOT(ISERROR(FIND(Forbidden1,INDEX(Spells!$J$2:$J$1001,BG40),1))),NOT(ISERROR(FIND(Forbidden2,INDEX(Spells!$J$2:$J$1001,BG40),1)))),"* ",""))&BH40 -> 
A41: 38 | C41: =IF(AND(OR(Cull!$C40="Yes",ISERROR(FIND("#"&Spells!$B39&"#",B$2)),Spells!$B39="",NOT(ISERROR(FIND(LOWER(ForbiddenAlignment),LOWER(Spells!$J39))))),NOT(Spells!$B39=B$3)),"",$A41) ->  | D41: 602 | F41: =IF(E41="","",INDEX(Spells!$B$2:$B$1001,'Class List'!E41)) ->  | G41: =IF(F41="","",IF(OR(NOT(ISERROR(FIND(Forbidden1,INDEX(Spells!$J$2:$J$1001,E41),1))),NOT(ISERROR(FIND(Forbidden2,INDEX(Spells!$J$2:$J$1001,E41),1)))),"* ",""))&F41 ->  | I41: =IF(AND(OR(Cull!$C40="Yes",ISERROR(FIND("#"&Spells!$B39&"#",H$2)),Spells!$B39="",NOT(ISERROR(FIND(LOWER(ForbiddenAlignment),LOWER(Spells!$J39))))),NOT(Spells!$B39=H$3)),"",$A41) ->  | J41: 547 | L41: =IF(K41="","",INDEX(Spells!$B$2:$B$1001,'Class List'!K41)) ->  | M41: =IF(L41="","",IF(OR(NOT(ISERROR(FIND(Forbidden1,INDEX(Spells!$J$2:$J$1001,K41),1))),NOT(ISERROR(FIND(Forbidden2,INDEX(Spells!$J$2:$J$1001,K41),1)))),"* ",""))&L41 ->  | O41: =IF(AND(OR(Cull!$C40="Yes",ISERROR(FIND("#"&Spells!$B39&"#",N$2)),Spells!$B39="",NOT(ISERROR(FIND(LOWER(ForbiddenAlignment),LOWER(Spells!$J39))))),NOT(Spells!$B39=N$3)),"",$A41) ->  | P41: 623 | R41: =IF(Q41="","",INDEX(Spells!$B$2:$B$1001,'Class List'!Q41)) ->  | S41: =IF(R41="","",IF(OR(NOT(ISERROR(FIND(Forbidden1,INDEX(Spells!$J$2:$J$1001,Q41),1))),NOT(ISERROR(FIND(Forbidden2,INDEX(Spells!$J$2:$J$1001,Q41),1)))),"* ",""))&R41 ->  | U41: =IF(AND(OR(Cull!$C40="Yes",ISERROR(FIND("#"&Spells!$B39&"#",T$2)),Spells!$B39="",NOT(ISERROR(FIND(LOWER(ForbiddenAlignment),LOWER(Spells!$J39))))),NOT(Spells!$B39=T$3)),"",$A41) ->  | V41: 621 | X41: =IF(W41="","",INDEX(Spells!$B$2:$B$1001,'Class List'!W41)) ->  | Y41: =IF(X41="","",IF(OR(NOT(ISERROR(FIND(Forbidden1,INDEX(Spells!$J$2:$J$1001,W41),1))),NOT(ISERROR(FIND(Forbidden2,INDEX(Spells!$J$2:$J$1001,W41),1)))),"* ",""))&X41 ->  | AA41: =IF(AND(OR(Cull!$C40="Yes",ISERROR(FIND("#"&Spells!$B39&"#",Z$2)),Spells!$B39="",NOT(ISERROR(FIND(LOWER(ForbiddenAlignment),LOWER(Spells!$J39))))),NOT(Spells!$B39=Z$3)),"",$A41) ->  | AB41: 550 | AD41: =IF(AC41="","",INDEX(Spells!$B$2:$B$1001,'Class List'!AC41)) ->  | AE41: =IF(AD41="","",IF(OR(NOT(ISERROR(FIND(Forbidden1,INDEX(Spells!$J$2:$J$1001,AC41),1))),NOT(ISERROR(FIND(Forbidden2,INDEX(Spells!$J$2:$J$1001,AC41),1)))),"* ",""))&AD41 ->  | AG41: =IF(AND(OR(Cull!$C40="Yes",ISERROR(FIND("#"&Spells!$B39&"#",AF$2)),Spells!$B39="",NOT(ISERROR(FIND(LOWER(ForbiddenAlignment),LOWER(Spells!$J39))))),NOT(Spells!$B39=AF$3)),"",$A41) ->  | AH41: 610 | AJ41: =IF(AI41="","",INDEX(Spells!$B$2:$B$1001,'Class List'!AI41)) ->  | AK41: =IF(AJ41="","",IF(OR(NOT(ISERROR(FIND(Forbidden1,INDEX(Spells!$J$2:$J$1001,AI41),1))),NOT(ISERROR(FIND(Forbidden2,INDEX(Spells!$J$2:$J$1001,AI41),1)))),"* ",""))&AJ41 ->  | AM41: =IF(AND(OR(Cull!$C40="Yes",ISERROR(FIND("#"&Spells!$B39&"#",AL$2)),Spells!$B39="",NOT(ISERROR(FIND(LOWER(ForbiddenAlignment),LOWER(Spells!$J39))))),NOT(Spells!$B39=AL$3)),"",$A41) ->  | AN41: 609 | AP41: =IF(AO41="","",INDEX(Spells!$B$2:$B$1001,'Class List'!AO41)) ->  | AQ41: =IF(AP41="","",IF(OR(NOT(ISERROR(FIND(Forbidden1,INDEX(Spells!$J$2:$J$1001,AO41),1))),NOT(ISERROR(FIND(Forbidden2,INDEX(Spells!$J$2:$J$1001,AO41),1)))),"* ",""))&AP41 ->  | AS41: =IF(AND(OR(Cull!$C40="Yes",ISERROR(FIND("#"&Spells!$B39&"#",AR$2)),Spells!$B39="",NOT(ISERROR(FIND(LOWER(ForbiddenAlignment),LOWER(Spells!$J39))))),NOT(Spells!$B39=AR$3)),"",$A41) ->  | AT41: 620 | AV41: =IF(AU41="","",INDEX(Spells!$B$2:$B$1001,'Class List'!AU41)) ->  | AW41: =IF(AV41="","",IF(OR(NOT(ISERROR(FIND(Forbidden1,INDEX(Spells!$J$2:$J$1001,AU41),1))),NOT(ISERROR(FIND(Forbidden2,INDEX(Spells!$J$2:$J$1001,AU41),1)))),"* ",""))&AV41 ->  | AY41: =IF(AND(OR(Cull!$C40="Yes",ISERROR(FIND("#"&Spells!$B39&"#",AX$2)),Spells!$B39="",NOT(ISERROR(FIND(LOWER(ForbiddenAlignment),LOWER(Spells!$J39))))),NOT(Spells!$B39=AX$3)),"",$A41) ->  | AZ41: 625 | BB41: =IF(BA41="","",INDEX(Spells!$B$2:$B$1001,'Class List'!BA41)) ->  | BC41: =IF(BB41="","",IF(OR(NOT(ISERROR(FIND(Forbidden1,INDEX(Spells!$J$2:$J$1001,BA41),1))),NOT(ISERROR(FIND(Forbidden2,INDEX(Spells!$J$2:$J$1001,BA41),1)))),"* ",""))&BB41 ->  | BE41: =IF(AND(OR(Cull!$C40="Yes",ISERROR(FIND("#"&Spells!$B39&"#",BD$2)),Spells!$B39="",NOT(ISERROR(FIND(LOWER(ForbiddenAlignment),LOWER(Spells!$J39))))),NOT(Spells!$B39=BD$3)),"",$A41) ->  | BF41: 568 | BH41: =IF(BG41="","",INDEX(Spells!$B$2:$B$1001,'Class List'!BG41)) ->  | BI41: =IF(BH41="","",IF(OR(NOT(ISERROR(FIND(Forbidden1,INDEX(Spells!$J$2:$J$1001,BG41),1))),NOT(ISERROR(FIND(Forbidden2,INDEX(Spells!$J$2:$J$1001,BG41),1)))),"* ",""))&BH41 -> 
A42: 39 | C42: =IF(AND(OR(Cull!$C41="Yes",ISERROR(FIND("#"&Spells!$B40&"#",B$2)),Spells!$B40="",NOT(ISERROR(FIND(LOWER(ForbiddenAlignment),LOWER(Spells!$J40))))),NOT(Spells!$B40=B$3)),"",$A42) ->  | D42: 602 | F42: =IF(E42="","",INDEX(Spells!$B$2:$B$1001,'Class List'!E42)) ->  | G42: =IF(F42="","",IF(OR(NOT(ISERROR(FIND(Forbidden1,INDEX(Spells!$J$2:$J$1001,E42),1))),NOT(ISERROR(FIND(Forbidden2,INDEX(Spells!$J$2:$J$1001,E42),1)))),"* ",""))&F42 ->  | I42: =IF(AND(OR(Cull!$C41="Yes",ISERROR(FIND("#"&Spells!$B40&"#",H$2)),Spells!$B40="",NOT(ISERROR(FIND(LOWER(ForbiddenAlignment),LOWER(Spells!$J40))))),NOT(Spells!$B40=H$3)),"",$A42) ->  | J42: 547 | L42: =IF(K42="","",INDEX(Spells!$B$2:$B$1001,'Class List'!K42)) ->  | M42: =IF(L42="","",IF(OR(NOT(ISERROR(FIND(Forbidden1,INDEX(Spells!$J$2:$J$1001,K42),1))),NOT(ISERROR(FIND(Forbidden2,INDEX(Spells!$J$2:$J$1001,K42),1)))),"* ",""))&L42 ->  | O42: =IF(AND(OR(Cull!$C41="Yes",ISERROR(FIND("#"&Spells!$B40&"#",N$2)),Spells!$B40="",NOT(ISERROR(FIND(LOWER(ForbiddenAlignment),LOWER(Spells!$J40))))),NOT(Spells!$B40=N$3)),"",$A42) ->  | P42: 623 | R42: =IF(Q42="","",INDEX(Spells!$B$2:$B$1001,'Class List'!Q42)) ->  | S42: =IF(R42="","",IF(OR(NOT(ISERROR(FIND(Forbidden1,INDEX(Spells!$J$2:$J$1001,Q42),1))),NOT(ISERROR(FIND(Forbidden2,INDEX(Spells!$J$2:$J$1001,Q42),1)))),"* ",""))&R42 ->  | U42: =IF(AND(OR(Cull!$C41="Yes",ISERROR(FIND("#"&Spells!$B40&"#",T$2)),Spells!$B40="",NOT(ISERROR(FIND(LOWER(ForbiddenAlignment),LOWER(Spells!$J40))))),NOT(Spells!$B40=T$3)),"",$A42) ->  | V42: 621 | X42: =IF(W42="","",INDEX(Spells!$B$2:$B$1001,'Class List'!W42)) ->  | Y42: =IF(X42="","",IF(OR(NOT(ISERROR(FIND(Forbidden1,INDEX(Spells!$J$2:$J$1001,W42),1))),NOT(ISERROR(FIND(Forbidden2,INDEX(Spells!$J$2:$J$1001,W42),1)))),"* ",""))&X42 ->  | AA42: =IF(AND(OR(Cull!$C41="Yes",ISERROR(FIND("#"&Spells!$B40&"#",Z$2)),Spells!$B40="",NOT(ISERROR(FIND(LOWER(ForbiddenAlignment),LOWER(Spells!$J40))))),NOT(Spells!$B40=Z$3)),"",$A42) ->  | AB42: 550 | AD42: =IF(AC42="","",INDEX(Spells!$B$2:$B$1001,'Class List'!AC42)) ->  | AE42: =IF(AD42="","",IF(OR(NOT(ISERROR(FIND(Forbidden1,INDEX(Spells!$J$2:$J$1001,AC42),1))),NOT(ISERROR(FIND(Forbidden2,INDEX(Spells!$J$2:$J$1001,AC42),1)))),"* ",""))&AD42 ->  | AG42: =IF(AND(OR(Cull!$C41="Yes",ISERROR(FIND("#"&Spells!$B40&"#",AF$2)),Spells!$B40="",NOT(ISERROR(FIND(LOWER(ForbiddenAlignment),LOWER(Spells!$J40))))),NOT(Spells!$B40=AF$3)),"",$A42) ->  | AH42: 610 | AJ42: =IF(AI42="","",INDEX(Spells!$B$2:$B$1001,'Class List'!AI42)) ->  | AK42: =IF(AJ42="","",IF(OR(NOT(ISERROR(FIND(Forbidden1,INDEX(Spells!$J$2:$J$1001,AI42),1))),NOT(ISERROR(FIND(Forbidden2,INDEX(Spells!$J$2:$J$1001,AI42),1)))),"* ",""))&AJ42 ->  | AM42: =IF(AND(OR(Cull!$C41="Yes",ISERROR(FIND("#"&Spells!$B40&"#",AL$2)),Spells!$B40="",NOT(ISERROR(FIND(LOWER(ForbiddenAlignment),LOWER(Spells!$J40))))),NOT(Spells!$B40=AL$3)),"",$A42) ->  | AN42: 609 | AP42: =IF(AO42="","",INDEX(Spells!$B$2:$B$1001,'Class List'!AO42)) ->  | AQ42: =IF(AP42="","",IF(OR(NOT(ISERROR(FIND(Forbidden1,INDEX(Spells!$J$2:$J$1001,AO42),1))),NOT(ISERROR(FIND(Forbidden2,INDEX(Spells!$J$2:$J$1001,AO42),1)))),"* ",""))&AP42 ->  | AS42: =IF(AND(OR(Cull!$C41="Yes",ISERROR(FIND("#"&Spells!$B40&"#",AR$2)),Spells!$B40="",NOT(ISERROR(FIND(LOWER(ForbiddenAlignment),LOWER(Spells!$J40))))),NOT(Spells!$B40=AR$3)),"",$A42) ->  | AT42: 620 | AV42: =IF(AU42="","",INDEX(Spells!$B$2:$B$1001,'Class List'!AU42)) ->  | AW42: =IF(AV42="","",IF(OR(NOT(ISERROR(FIND(Forbidden1,INDEX(Spells!$J$2:$J$1001,AU42),1))),NOT(ISERROR(FIND(Forbidden2,INDEX(Spells!$J$2:$J$1001,AU42),1)))),"* ",""))&AV42 ->  | AY42: =IF(AND(OR(Cull!$C41="Yes",ISERROR(FIND("#"&Spells!$B40&"#",AX$2)),Spells!$B40="",NOT(ISERROR(FIND(LOWER(ForbiddenAlignment),LOWER(Spells!$J40))))),NOT(Spells!$B40=AX$3)),"",$A42) ->  | AZ42: 625 | BB42: =IF(BA42="","",INDEX(Spells!$B$2:$B$1001,'Class List'!BA42)) ->  | BC42: =IF(BB42="","",IF(OR(NOT(ISERROR(FIND(Forbidden1,INDEX(Spells!$J$2:$J$1001,BA42),1))),NOT(ISERROR(FIND(Forbidden2,INDEX(Spells!$J$2:$J$1001,BA42),1)))),"* ",""))&BB42 ->  | BE42: =IF(AND(OR(Cull!$C41="Yes",ISERROR(FIND("#"&Spells!$B40&"#",BD$2)),Spells!$B40="",NOT(ISERROR(FIND(LOWER(ForbiddenAlignment),LOWER(Spells!$J40))))),NOT(Spells!$B40=BD$3)),"",$A42) ->  | BF42: 568 | BH42: =IF(BG42="","",INDEX(Spells!$B$2:$B$1001,'Class List'!BG42)) ->  | BI42: =IF(BH42="","",IF(OR(NOT(ISERROR(FIND(Forbidden1,INDEX(Spells!$J$2:$J$1001,BG42),1))),NOT(ISERROR(FIND(Forbidden2,INDEX(Spells!$J$2:$J$1001,BG42),1)))),"* ",""))&BH42 -> 
A43: 40 | C43: =IF(AND(OR(Cull!$C42="Yes",ISERROR(FIND("#"&Spells!$B41&"#",B$2)),Spells!$B41="",NOT(ISERROR(FIND(LOWER(ForbiddenAlignment),LOWER(Spells!$J41))))),NOT(Spells!$B41=B$3)),"",$A43) ->  | D43: 602 | F43: =IF(E43="","",INDEX(Spells!$B$2:$B$1001,'Class List'!E43)) ->  | G43: =IF(F43="","",IF(OR(NOT(ISERROR(FIND(Forbidden1,INDEX(Spells!$J$2:$J$1001,E43),1))),NOT(ISERROR(FIND(Forbidden2,INDEX(Spells!$J$2:$J$1001,E43),1)))),"* ",""))&F43 ->  | I43: =IF(AND(OR(Cull!$C42="Yes",ISERROR(FIND("#"&Spells!$B41&"#",H$2)),Spells!$B41="",NOT(ISERROR(FIND(LOWER(ForbiddenAlignment),LOWER(Spells!$J41))))),NOT(Spells!$B41=H$3)),"",$A43) ->  | J43: 547 | L43: =IF(K43="","",INDEX(Spells!$B$2:$B$1001,'Class List'!K43)) ->  | M43: =IF(L43="","",IF(OR(NOT(ISERROR(FIND(Forbidden1,INDEX(Spells!$J$2:$J$1001,K43),1))),NOT(ISERROR(FIND(Forbidden2,INDEX(Spells!$J$2:$J$1001,K43),1)))),"* ",""))&L43 ->  | O43: =IF(AND(OR(Cull!$C42="Yes",ISERROR(FIND("#"&Spells!$B41&"#",N$2)),Spells!$B41="",NOT(ISERROR(FIND(LOWER(ForbiddenAlignment),LOWER(Spells!$J41))))),NOT(Spells!$B41=N$3)),"",$A43) ->  | P43: 623 | R43: =IF(Q43="","",INDEX(Spells!$B$2:$B$1001,'Class List'!Q43)) ->  | S43: =IF(R43="","",IF(OR(NOT(ISERROR(FIND(Forbidden1,INDEX(Spells!$J$2:$J$1001,Q43),1))),NOT(ISERROR(FIND(Forbidden2,INDEX(Spells!$J$2:$J$1001,Q43),1)))),"* ",""))&R43 ->  | U43: =IF(AND(OR(Cull!$C42="Yes",ISERROR(FIND("#"&Spells!$B41&"#",T$2)),Spells!$B41="",NOT(ISERROR(FIND(LOWER(ForbiddenAlignment),LOWER(Spells!$J41))))),NOT(Spells!$B41=T$3)),"",$A43) ->  | V43: 621 | X43: =IF(W43="","",INDEX(Spells!$B$2:$B$1001,'Class List'!W43)) ->  | Y43: =IF(X43="","",IF(OR(NOT(ISERROR(FIND(Forbidden1,INDEX(Spells!$J$2:$J$1001,W43),1))),NOT(ISERROR(FIND(Forbidden2,INDEX(Spells!$J$2:$J$1001,W43),1)))),"* ",""))&X43 ->  | AA43: =IF(AND(OR(Cull!$C42="Yes",ISERROR(FIND("#"&Spells!$B41&"#",Z$2)),Spells!$B41="",NOT(ISERROR(FIND(LOWER(ForbiddenAlignment),LOWER(Spells!$J41))))),NOT(Spells!$B41=Z$3)),"",$A43) ->  | AB43: 550 | AD43: =IF(AC43="","",INDEX(Spells!$B$2:$B$1001,'Class List'!AC43)) ->  | AE43: =IF(AD43="","",IF(OR(NOT(ISERROR(FIND(Forbidden1,INDEX(Spells!$J$2:$J$1001,AC43),1))),NOT(ISERROR(FIND(Forbidden2,INDEX(Spells!$J$2:$J$1001,AC43),1)))),"* ",""))&AD43 ->  | AG43: =IF(AND(OR(Cull!$C42="Yes",ISERROR(FIND("#"&Spells!$B41&"#",AF$2)),Spells!$B41="",NOT(ISERROR(FIND(LOWER(ForbiddenAlignment),LOWER(Spells!$J41))))),NOT(Spells!$B41=AF$3)),"",$A43) ->  | AH43: 610 | AJ43: =IF(AI43="","",INDEX(Spells!$B$2:$B$1001,'Class List'!AI43)) ->  | AK43: =IF(AJ43="","",IF(OR(NOT(ISERROR(FIND(Forbidden1,INDEX(Spells!$J$2:$J$1001,AI43),1))),NOT(ISERROR(FIND(Forbidden2,INDEX(Spells!$J$2:$J$1001,AI43),1)))),"* ",""))&AJ43 ->  | AM43: =IF(AND(OR(Cull!$C42="Yes",ISERROR(FIND("#"&Spells!$B41&"#",AL$2)),Spells!$B41="",NOT(ISERROR(FIND(LOWER(ForbiddenAlignment),LOWER(Spells!$J41))))),NOT(Spells!$B41=AL$3)),"",$A43) ->  | AN43: 609 | AP43: =IF(AO43="","",INDEX(Spells!$B$2:$B$1001,'Class List'!AO43)) ->  | AQ43: =IF(AP43="","",IF(OR(NOT(ISERROR(FIND(Forbidden1,INDEX(Spells!$J$2:$J$1001,AO43),1))),NOT(ISERROR(FIND(Forbidden2,INDEX(Spells!$J$2:$J$1001,AO43),1)))),"* ",""))&AP43 ->  | AS43: =IF(AND(OR(Cull!$C42="Yes",ISERROR(FIND("#"&Spells!$B41&"#",AR$2)),Spells!$B41="",NOT(ISERROR(FIND(LOWER(ForbiddenAlignment),LOWER(Spells!$J41))))),NOT(Spells!$B41=AR$3)),"",$A43) ->  | AT43: 620 | AV43: =IF(AU43="","",INDEX(Spells!$B$2:$B$1001,'Class List'!AU43)) ->  | AW43: =IF(AV43="","",IF(OR(NOT(ISERROR(FIND(Forbidden1,INDEX(Spells!$J$2:$J$1001,AU43),1))),NOT(ISERROR(FIND(Forbidden2,INDEX(Spells!$J$2:$J$1001,AU43),1)))),"* ",""))&AV43 ->  | AY43: =IF(AND(OR(Cull!$C42="Yes",ISERROR(FIND("#"&Spells!$B41&"#",AX$2)),Spells!$B41="",NOT(ISERROR(FIND(LOWER(ForbiddenAlignment),LOWER(Spells!$J41))))),NOT(Spells!$B41=AX$3)),"",$A43) ->  | AZ43: 625 | BB43: =IF(BA43="","",INDEX(Spells!$B$2:$B$1001,'Class List'!BA43)) ->  | BC43: =IF(BB43="","",IF(OR(NOT(ISERROR(FIND(Forbidden1,INDEX(Spells!$J$2:$J$1001,BA43),1))),NOT(ISERROR(FIND(Forbidden2,INDEX(Spells!$J$2:$J$1001,BA43),1)))),"* ",""))&BB43 ->  | BE43: =IF(AND(OR(Cull!$C42="Yes",ISERROR(FIND("#"&Spells!$B41&"#",BD$2)),Spells!$B41="",NOT(ISERROR(FIND(LOWER(ForbiddenAlignment),LOWER(Spells!$J41))))),NOT(Spells!$B41=BD$3)),"",$A43) ->  | BF43: 568 | BH43: =IF(BG43="","",INDEX(Spells!$B$2:$B$1001,'Class List'!BG43)) ->  | BI43: =IF(BH43="","",IF(OR(NOT(ISERROR(FIND(Forbidden1,INDEX(Spells!$J$2:$J$1001,BG43),1))),NOT(ISERROR(FIND(Forbidden2,INDEX(Spells!$J$2:$J$1001,BG43),1)))),"* ",""))&BH43 -> 
A44: 41 | C44: =IF(AND(OR(Cull!$C43="Yes",ISERROR(FIND("#"&Spells!$B42&"#",B$2)),Spells!$B42="",NOT(ISERROR(FIND(LOWER(ForbiddenAlignment),LOWER(Spells!$J42))))),NOT(Spells!$B42=B$3)),"",$A44) ->  | D44: 602 | F44: =IF(E44="","",INDEX(Spells!$B$2:$B$1001,'Class List'!E44)) ->  | G44: =IF(F44="","",IF(OR(NOT(ISERROR(FIND(Forbidden1,INDEX(Spells!$J$2:$J$1001,E44),1))),NOT(ISERROR(FIND(Forbidden2,INDEX(Spells!$J$2:$J$1001,E44),1)))),"* ",""))&F44 ->  | I44: =IF(AND(OR(Cull!$C43="Yes",ISERROR(FIND("#"&Spells!$B42&"#",H$2)),Spells!$B42="",NOT(ISERROR(FIND(LOWER(ForbiddenAlignment),LOWER(Spells!$J42))))),NOT(Spells!$B42=H$3)),"",$A44) ->  | J44: 547 | L44: =IF(K44="","",INDEX(Spells!$B$2:$B$1001,'Class List'!K44)) ->  | M44: =IF(L44="","",IF(OR(NOT(ISERROR(FIND(Forbidden1,INDEX(Spells!$J$2:$J$1001,K44),1))),NOT(ISERROR(FIND(Forbidden2,INDEX(Spells!$J$2:$J$1001,K44),1)))),"* ",""))&L44 ->  | O44: =IF(AND(OR(Cull!$C43="Yes",ISERROR(FIND("#"&Spells!$B42&"#",N$2)),Spells!$B42="",NOT(ISERROR(FIND(LOWER(ForbiddenAlignment),LOWER(Spells!$J42))))),NOT(Spells!$B42=N$3)),"",$A44) ->  | P44: 623 | R44: =IF(Q44="","",INDEX(Spells!$B$2:$B$1001,'Class List'!Q44)) ->  | S44: =IF(R44="","",IF(OR(NOT(ISERROR(FIND(Forbidden1,INDEX(Spells!$J$2:$J$1001,Q44),1))),NOT(ISERROR(FIND(Forbidden2,INDEX(Spells!$J$2:$J$1001,Q44),1)))),"* ",""))&R44 ->  | U44: =IF(AND(OR(Cull!$C43="Yes",ISERROR(FIND("#"&Spells!$B42&"#",T$2)),Spells!$B42="",NOT(ISERROR(FIND(LOWER(ForbiddenAlignment),LOWER(Spells!$J42))))),NOT(Spells!$B42=T$3)),"",$A44) ->  | V44: 621 | X44: =IF(W44="","",INDEX(Spells!$B$2:$B$1001,'Class List'!W44)) ->  | Y44: =IF(X44="","",IF(OR(NOT(ISERROR(FIND(Forbidden1,INDEX(Spells!$J$2:$J$1001,W44),1))),NOT(ISERROR(FIND(Forbidden2,INDEX(Spells!$J$2:$J$1001,W44),1)))),"* ",""))&X44 ->  | AA44: =IF(AND(OR(Cull!$C43="Yes",ISERROR(FIND("#"&Spells!$B42&"#",Z$2)),Spells!$B42="",NOT(ISERROR(FIND(LOWER(ForbiddenAlignment),LOWER(Spells!$J42))))),NOT(Spells!$B42=Z$3)),"",$A44) ->  | AB44: 550 | AD44: =IF(AC44="","",INDEX(Spells!$B$2:$B$1001,'Class List'!AC44)) ->  | AE44: =IF(AD44="","",IF(OR(NOT(ISERROR(FIND(Forbidden1,INDEX(Spells!$J$2:$J$1001,AC44),1))),NOT(ISERROR(FIND(Forbidden2,INDEX(Spells!$J$2:$J$1001,AC44),1)))),"* ",""))&AD44 ->  | AG44: =IF(AND(OR(Cull!$C43="Yes",ISERROR(FIND("#"&Spells!$B42&"#",AF$2)),Spells!$B42="",NOT(ISERROR(FIND(LOWER(ForbiddenAlignment),LOWER(Spells!$J42))))),NOT(Spells!$B42=AF$3)),"",$A44) ->  | AH44: 610 | AJ44: =IF(AI44="","",INDEX(Spells!$B$2:$B$1001,'Class List'!AI44)) ->  | AK44: =IF(AJ44="","",IF(OR(NOT(ISERROR(FIND(Forbidden1,INDEX(Spells!$J$2:$J$1001,AI44),1))),NOT(ISERROR(FIND(Forbidden2,INDEX(Spells!$J$2:$J$1001,AI44),1)))),"* ",""))&AJ44 ->  | AM44: =IF(AND(OR(Cull!$C43="Yes",ISERROR(FIND("#"&Spells!$B42&"#",AL$2)),Spells!$B42="",NOT(ISERROR(FIND(LOWER(ForbiddenAlignment),LOWER(Spells!$J42))))),NOT(Spells!$B42=AL$3)),"",$A44) ->  | AN44: 609 | AP44: =IF(AO44="","",INDEX(Spells!$B$2:$B$1001,'Class List'!AO44)) ->  | AQ44: =IF(AP44="","",IF(OR(NOT(ISERROR(FIND(Forbidden1,INDEX(Spells!$J$2:$J$1001,AO44),1))),NOT(ISERROR(FIND(Forbidden2,INDEX(Spells!$J$2:$J$1001,AO44),1)))),"* ",""))&AP44 ->  | AS44: =IF(AND(OR(Cull!$C43="Yes",ISERROR(FIND("#"&Spells!$B42&"#",AR$2)),Spells!$B42="",NOT(ISERROR(FIND(LOWER(ForbiddenAlignment),LOWER(Spells!$J42))))),NOT(Spells!$B42=AR$3)),"",$A44) ->  | AT44: 620 | AV44: =IF(AU44="","",INDEX(Spells!$B$2:$B$1001,'Class List'!AU44)) ->  | AW44: =IF(AV44="","",IF(OR(NOT(ISERROR(FIND(Forbidden1,INDEX(Spells!$J$2:$J$1001,AU44),1))),NOT(ISERROR(FIND(Forbidden2,INDEX(Spells!$J$2:$J$1001,AU44),1)))),"* ",""))&AV44 ->  | AY44: =IF(AND(OR(Cull!$C43="Yes",ISERROR(FIND("#"&Spells!$B42&"#",AX$2)),Spells!$B42="",NOT(ISERROR(FIND(LOWER(ForbiddenAlignment),LOWER(Spells!$J42))))),NOT(Spells!$B42=AX$3)),"",$A44) ->  | AZ44: 625 | BB44: =IF(BA44="","",INDEX(Spells!$B$2:$B$1001,'Class List'!BA44)) ->  | BC44: =IF(BB44="","",IF(OR(NOT(ISERROR(FIND(Forbidden1,INDEX(Spells!$J$2:$J$1001,BA44),1))),NOT(ISERROR(FIND(Forbidden2,INDEX(Spells!$J$2:$J$1001,BA44),1)))),"* ",""))&BB44 ->  | BE44: =IF(AND(OR(Cull!$C43="Yes",ISERROR(FIND("#"&Spells!$B42&"#",BD$2)),Spells!$B42="",NOT(ISERROR(FIND(LOWER(ForbiddenAlignment),LOWER(Spells!$J42))))),NOT(Spells!$B42=BD$3)),"",$A44) ->  | BF44: 568 | BH44: =IF(BG44="","",INDEX(Spells!$B$2:$B$1001,'Class List'!BG44)) ->  | BI44: =IF(BH44="","",IF(OR(NOT(ISERROR(FIND(Forbidden1,INDEX(Spells!$J$2:$J$1001,BG44),1))),NOT(ISERROR(FIND(Forbidden2,INDEX(Spells!$J$2:$J$1001,BG44),1)))),"* ",""))&BH44 -> 
A45: 42 | C45: =IF(AND(OR(Cull!$C44="Yes",ISERROR(FIND("#"&Spells!$B43&"#",B$2)),Spells!$B43="",NOT(ISERROR(FIND(LOWER(ForbiddenAlignment),LOWER(Spells!$J43))))),NOT(Spells!$B43=B$3)),"",$A45) ->  | D45: 602 | F45: =IF(E45="","",INDEX(Spells!$B$2:$B$1001,'Class List'!E45)) ->  | G45: =IF(F45="","",IF(OR(NOT(ISERROR(FIND(Forbidden1,INDEX(Spells!$J$2:$J$1001,E45),1))),NOT(ISERROR(FIND(Forbidden2,INDEX(Spells!$J$2:$J$1001,E45),1)))),"* ",""))&F45 ->  | I45: =IF(AND(OR(Cull!$C44="Yes",ISERROR(FIND("#"&Spells!$B43&"#",H$2)),Spells!$B43="",NOT(ISERROR(FIND(LOWER(ForbiddenAlignment),LOWER(Spells!$J43))))),NOT(Spells!$B43=H$3)),"",$A45) ->  | J45: 547 | L45: =IF(K45="","",INDEX(Spells!$B$2:$B$1001,'Class List'!K45)) ->  | M45: =IF(L45="","",IF(OR(NOT(ISERROR(FIND(Forbidden1,INDEX(Spells!$J$2:$J$1001,K45),1))),NOT(ISERROR(FIND(Forbidden2,INDEX(Spells!$J$2:$J$1001,K45),1)))),"* ",""))&L45 ->  | O45: =IF(AND(OR(Cull!$C44="Yes",ISERROR(FIND("#"&Spells!$B43&"#",N$2)),Spells!$B43="",NOT(ISERROR(FIND(LOWER(ForbiddenAlignment),LOWER(Spells!$J43))))),NOT(Spells!$B43=N$3)),"",$A45) ->  | P45: 623 | R45: =IF(Q45="","",INDEX(Spells!$B$2:$B$1001,'Class List'!Q45)) ->  | S45: =IF(R45="","",IF(OR(NOT(ISERROR(FIND(Forbidden1,INDEX(Spells!$J$2:$J$1001,Q45),1))),NOT(ISERROR(FIND(Forbidden2,INDEX(Spells!$J$2:$J$1001,Q45),1)))),"* ",""))&R45 ->  | U45: =IF(AND(OR(Cull!$C44="Yes",ISERROR(FIND("#"&Spells!$B43&"#",T$2)),Spells!$B43="",NOT(ISERROR(FIND(LOWER(ForbiddenAlignment),LOWER(Spells!$J43))))),NOT(Spells!$B43=T$3)),"",$A45) ->  | V45: 621 | X45: =IF(W45="","",INDEX(Spells!$B$2:$B$1001,'Class List'!W45)) ->  | Y45: =IF(X45="","",IF(OR(NOT(ISERROR(FIND(Forbidden1,INDEX(Spells!$J$2:$J$1001,W45),1))),NOT(ISERROR(FIND(Forbidden2,INDEX(Spells!$J$2:$J$1001,W45),1)))),"* ",""))&X45 ->  | AA45: =IF(AND(OR(Cull!$C44="Yes",ISERROR(FIND("#"&Spells!$B43&"#",Z$2)),Spells!$B43="",NOT(ISERROR(FIND(LOWER(ForbiddenAlignment),LOWER(Spells!$J43))))),NOT(Spells!$B43=Z$3)),"",$A45) ->  | AB45: 550 | AD45: =IF(AC45="","",INDEX(Spells!$B$2:$B$1001,'Class List'!AC45)) ->  | AE45: =IF(AD45="","",IF(OR(NOT(ISERROR(FIND(Forbidden1,INDEX(Spells!$J$2:$J$1001,AC45),1))),NOT(ISERROR(FIND(Forbidden2,INDEX(Spells!$J$2:$J$1001,AC45),1)))),"* ",""))&AD45 ->  | AG45: =IF(AND(OR(Cull!$C44="Yes",ISERROR(FIND("#"&Spells!$B43&"#",AF$2)),Spells!$B43="",NOT(ISERROR(FIND(LOWER(ForbiddenAlignment),LOWER(Spells!$J43))))),NOT(Spells!$B43=AF$3)),"",$A45) ->  | AH45: 610 | AJ45: =IF(AI45="","",INDEX(Spells!$B$2:$B$1001,'Class List'!AI45)) ->  | AK45: =IF(AJ45="","",IF(OR(NOT(ISERROR(FIND(Forbidden1,INDEX(Spells!$J$2:$J$1001,AI45),1))),NOT(ISERROR(FIND(Forbidden2,INDEX(Spells!$J$2:$J$1001,AI45),1)))),"* ",""))&AJ45 ->  | AM45: =IF(AND(OR(Cull!$C44="Yes",ISERROR(FIND("#"&Spells!$B43&"#",AL$2)),Spells!$B43="",NOT(ISERROR(FIND(LOWER(ForbiddenAlignment),LOWER(Spells!$J43))))),NOT(Spells!$B43=AL$3)),"",$A45) ->  | AN45: 609 | AP45: =IF(AO45="","",INDEX(Spells!$B$2:$B$1001,'Class List'!AO45)) ->  | AQ45: =IF(AP45="","",IF(OR(NOT(ISERROR(FIND(Forbidden1,INDEX(Spells!$J$2:$J$1001,AO45),1))),NOT(ISERROR(FIND(Forbidden2,INDEX(Spells!$J$2:$J$1001,AO45),1)))),"* ",""))&AP45 ->  | AS45: =IF(AND(OR(Cull!$C44="Yes",ISERROR(FIND("#"&Spells!$B43&"#",AR$2)),Spells!$B43="",NOT(ISERROR(FIND(LOWER(ForbiddenAlignment),LOWER(Spells!$J43))))),NOT(Spells!$B43=AR$3)),"",$A45) ->  | AT45: 620 | AV45: =IF(AU45="","",INDEX(Spells!$B$2:$B$1001,'Class List'!AU45)) ->  | AW45: =IF(AV45="","",IF(OR(NOT(ISERROR(FIND(Forbidden1,INDEX(Spells!$J$2:$J$1001,AU45),1))),NOT(ISERROR(FIND(Forbidden2,INDEX(Spells!$J$2:$J$1001,AU45),1)))),"* ",""))&AV45 ->  | AY45: =IF(AND(OR(Cull!$C44="Yes",ISERROR(FIND("#"&Spells!$B43&"#",AX$2)),Spells!$B43="",NOT(ISERROR(FIND(LOWER(ForbiddenAlignment),LOWER(Spells!$J43))))),NOT(Spells!$B43=AX$3)),"",$A45) ->  | AZ45: 625 | BB45: =IF(BA45="","",INDEX(Spells!$B$2:$B$1001,'Class List'!BA45)) ->  | BC45: =IF(BB45="","",IF(OR(NOT(ISERROR(FIND(Forbidden1,INDEX(Spells!$J$2:$J$1001,BA45),1))),NOT(ISERROR(FIND(Forbidden2,INDEX(Spells!$J$2:$J$1001,BA45),1)))),"* ",""))&BB45 ->  | BE45: =IF(AND(OR(Cull!$C44="Yes",ISERROR(FIND("#"&Spells!$B43&"#",BD$2)),Spells!$B43="",NOT(ISERROR(FIND(LOWER(ForbiddenAlignment),LOWER(Spells!$J43))))),NOT(Spells!$B43=BD$3)),"",$A45) ->  | BF45: 568 | BH45: =IF(BG45="","",INDEX(Spells!$B$2:$B$1001,'Class List'!BG45)) ->  | BI45: =IF(BH45="","",IF(OR(NOT(ISERROR(FIND(Forbidden1,INDEX(Spells!$J$2:$J$1001,BG45),1))),NOT(ISERROR(FIND(Forbidden2,INDEX(Spells!$J$2:$J$1001,BG45),1)))),"* ",""))&BH45 -> 
A46: 43 | C46: =IF(AND(OR(Cull!$C45="Yes",ISERROR(FIND("#"&Spells!$B44&"#",B$2)),Spells!$B44="",NOT(ISERROR(FIND(LOWER(ForbiddenAlignment),LOWER(Spells!$J44))))),NOT(Spells!$B44=B$3)),"",$A46) ->  | D46: 602 | F46: =IF(E46="","",INDEX(Spells!$B$2:$B$1001,'Class List'!E46)) ->  | G46: =IF(F46="","",IF(OR(NOT(ISERROR(FIND(Forbidden1,INDEX(Spells!$J$2:$J$1001,E46),1))),NOT(ISERROR(FIND(Forbidden2,INDEX(Spells!$J$2:$J$1001,E46),1)))),"* ",""))&F46 ->  | I46: =IF(AND(OR(Cull!$C45="Yes",ISERROR(FIND("#"&Spells!$B44&"#",H$2)),Spells!$B44="",NOT(ISERROR(FIND(LOWER(ForbiddenAlignment),LOWER(Spells!$J44))))),NOT(Spells!$B44=H$3)),"",$A46) ->  | J46: 547 | L46: =IF(K46="","",INDEX(Spells!$B$2:$B$1001,'Class List'!K46)) ->  | M46: =IF(L46="","",IF(OR(NOT(ISERROR(FIND(Forbidden1,INDEX(Spells!$J$2:$J$1001,K46),1))),NOT(ISERROR(FIND(Forbidden2,INDEX(Spells!$J$2:$J$1001,K46),1)))),"* ",""))&L46 ->  | O46: =IF(AND(OR(Cull!$C45="Yes",ISERROR(FIND("#"&Spells!$B44&"#",N$2)),Spells!$B44="",NOT(ISERROR(FIND(LOWER(ForbiddenAlignment),LOWER(Spells!$J44))))),NOT(Spells!$B44=N$3)),"",$A46) ->  | P46: 623 | R46: =IF(Q46="","",INDEX(Spells!$B$2:$B$1001,'Class List'!Q46)) ->  | S46: =IF(R46="","",IF(OR(NOT(ISERROR(FIND(Forbidden1,INDEX(Spells!$J$2:$J$1001,Q46),1))),NOT(ISERROR(FIND(Forbidden2,INDEX(Spells!$J$2:$J$1001,Q46),1)))),"* ",""))&R46 ->  | U46: =IF(AND(OR(Cull!$C45="Yes",ISERROR(FIND("#"&Spells!$B44&"#",T$2)),Spells!$B44="",NOT(ISERROR(FIND(LOWER(ForbiddenAlignment),LOWER(Spells!$J44))))),NOT(Spells!$B44=T$3)),"",$A46) ->  | V46: 621 | X46: =IF(W46="","",INDEX(Spells!$B$2:$B$1001,'Class List'!W46)) ->  | Y46: =IF(X46="","",IF(OR(NOT(ISERROR(FIND(Forbidden1,INDEX(Spells!$J$2:$J$1001,W46),1))),NOT(ISERROR(FIND(Forbidden2,INDEX(Spells!$J$2:$J$1001,W46),1)))),"* ",""))&X46 ->  | AA46: =IF(AND(OR(Cull!$C45="Yes",ISERROR(FIND("#"&Spells!$B44&"#",Z$2)),Spells!$B44="",NOT(ISERROR(FIND(LOWER(ForbiddenAlignment),LOWER(Spells!$J44))))),NOT(Spells!$B44=Z$3)),"",$A46) ->  | AB46: 550 | AD46: =IF(AC46="","",INDEX(Spells!$B$2:$B$1001,'Class List'!AC46)) ->  | AE46: =IF(AD46="","",IF(OR(NOT(ISERROR(FIND(Forbidden1,INDEX(Spells!$J$2:$J$1001,AC46),1))),NOT(ISERROR(FIND(Forbidden2,INDEX(Spells!$J$2:$J$1001,AC46),1)))),"* ",""))&AD46 ->  | AG46: =IF(AND(OR(Cull!$C45="Yes",ISERROR(FIND("#"&Spells!$B44&"#",AF$2)),Spells!$B44="",NOT(ISERROR(FIND(LOWER(ForbiddenAlignment),LOWER(Spells!$J44))))),NOT(Spells!$B44=AF$3)),"",$A46) ->  | AH46: 610 | AJ46: =IF(AI46="","",INDEX(Spells!$B$2:$B$1001,'Class List'!AI46)) ->  | AK46: =IF(AJ46="","",IF(OR(NOT(ISERROR(FIND(Forbidden1,INDEX(Spells!$J$2:$J$1001,AI46),1))),NOT(ISERROR(FIND(Forbidden2,INDEX(Spells!$J$2:$J$1001,AI46),1)))),"* ",""))&AJ46 ->  | AM46: =IF(AND(OR(Cull!$C45="Yes",ISERROR(FIND("#"&Spells!$B44&"#",AL$2)),Spells!$B44="",NOT(ISERROR(FIND(LOWER(ForbiddenAlignment),LOWER(Spells!$J44))))),NOT(Spells!$B44=AL$3)),"",$A46) ->  | AN46: 609 | AP46: =IF(AO46="","",INDEX(Spells!$B$2:$B$1001,'Class List'!AO46)) ->  | AQ46: =IF(AP46="","",IF(OR(NOT(ISERROR(FIND(Forbidden1,INDEX(Spells!$J$2:$J$1001,AO46),1))),NOT(ISERROR(FIND(Forbidden2,INDEX(Spells!$J$2:$J$1001,AO46),1)))),"* ",""))&AP46 ->  | AS46: =IF(AND(OR(Cull!$C45="Yes",ISERROR(FIND("#"&Spells!$B44&"#",AR$2)),Spells!$B44="",NOT(ISERROR(FIND(LOWER(ForbiddenAlignment),LOWER(Spells!$J44))))),NOT(Spells!$B44=AR$3)),"",$A46) ->  | AT46: 620 | AV46: =IF(AU46="","",INDEX(Spells!$B$2:$B$1001,'Class List'!AU46)) ->  | AW46: =IF(AV46="","",IF(OR(NOT(ISERROR(FIND(Forbidden1,INDEX(Spells!$J$2:$J$1001,AU46),1))),NOT(ISERROR(FIND(Forbidden2,INDEX(Spells!$J$2:$J$1001,AU46),1)))),"* ",""))&AV46 ->  | AY46: =IF(AND(OR(Cull!$C45="Yes",ISERROR(FIND("#"&Spells!$B44&"#",AX$2)),Spells!$B44="",NOT(ISERROR(FIND(LOWER(ForbiddenAlignment),LOWER(Spells!$J44))))),NOT(Spells!$B44=AX$3)),"",$A46) ->  | AZ46: 625 | BB46: =IF(BA46="","",INDEX(Spells!$B$2:$B$1001,'Class List'!BA46)) ->  | BC46: =IF(BB46="","",IF(OR(NOT(ISERROR(FIND(Forbidden1,INDEX(Spells!$J$2:$J$1001,BA46),1))),NOT(ISERROR(FIND(Forbidden2,INDEX(Spells!$J$2:$J$1001,BA46),1)))),"* ",""))&BB46 ->  | BE46: =IF(AND(OR(Cull!$C45="Yes",ISERROR(FIND("#"&Spells!$B44&"#",BD$2)),Spells!$B44="",NOT(ISERROR(FIND(LOWER(ForbiddenAlignment),LOWER(Spells!$J44))))),NOT(Spells!$B44=BD$3)),"",$A46) ->  | BF46: 568 | BH46: =IF(BG46="","",INDEX(Spells!$B$2:$B$1001,'Class List'!BG46)) ->  | BI46: =IF(BH46="","",IF(OR(NOT(ISERROR(FIND(Forbidden1,INDEX(Spells!$J$2:$J$1001,BG46),1))),NOT(ISERROR(FIND(Forbidden2,INDEX(Spells!$J$2:$J$1001,BG46),1)))),"* ",""))&BH46 -> 
A47: 44 | C47: =IF(AND(OR(Cull!$C46="Yes",ISERROR(FIND("#"&Spells!$B45&"#",B$2)),Spells!$B45="",NOT(ISERROR(FIND(LOWER(ForbiddenAlignment),LOWER(Spells!$J45))))),NOT(Spells!$B45=B$3)),"",$A47) ->  | D47: 602 | F47: =IF(E47="","",INDEX(Spells!$B$2:$B$1001,'Class List'!E47)) ->  | G47: =IF(F47="","",IF(OR(NOT(ISERROR(FIND(Forbidden1,INDEX(Spells!$J$2:$J$1001,E47),1))),NOT(ISERROR(FIND(Forbidden2,INDEX(Spells!$J$2:$J$1001,E47),1)))),"* ",""))&F47 ->  | I47: =IF(AND(OR(Cull!$C46="Yes",ISERROR(FIND("#"&Spells!$B45&"#",H$2)),Spells!$B45="",NOT(ISERROR(FIND(LOWER(ForbiddenAlignment),LOWER(Spells!$J45))))),NOT(Spells!$B45=H$3)),"",$A47) ->  | J47: 547 | L47: =IF(K47="","",INDEX(Spells!$B$2:$B$1001,'Class List'!K47)) ->  | M47: =IF(L47="","",IF(OR(NOT(ISERROR(FIND(Forbidden1,INDEX(Spells!$J$2:$J$1001,K47),1))),NOT(ISERROR(FIND(Forbidden2,INDEX(Spells!$J$2:$J$1001,K47),1)))),"* ",""))&L47 ->  | O47: =IF(AND(OR(Cull!$C46="Yes",ISERROR(FIND("#"&Spells!$B45&"#",N$2)),Spells!$B45="",NOT(ISERROR(FIND(LOWER(ForbiddenAlignment),LOWER(Spells!$J45))))),NOT(Spells!$B45=N$3)),"",$A47) ->  | P47: 623 | R47: =IF(Q47="","",INDEX(Spells!$B$2:$B$1001,'Class List'!Q47)) ->  | S47: =IF(R47="","",IF(OR(NOT(ISERROR(FIND(Forbidden1,INDEX(Spells!$J$2:$J$1001,Q47),1))),NOT(ISERROR(FIND(Forbidden2,INDEX(Spells!$J$2:$J$1001,Q47),1)))),"* ",""))&R47 ->  | U47: =IF(AND(OR(Cull!$C46="Yes",ISERROR(FIND("#"&Spells!$B45&"#",T$2)),Spells!$B45="",NOT(ISERROR(FIND(LOWER(ForbiddenAlignment),LOWER(Spells!$J45))))),NOT(Spells!$B45=T$3)),"",$A47) ->  | V47: 621 | X47: =IF(W47="","",INDEX(Spells!$B$2:$B$1001,'Class List'!W47)) ->  | Y47: =IF(X47="","",IF(OR(NOT(ISERROR(FIND(Forbidden1,INDEX(Spells!$J$2:$J$1001,W47),1))),NOT(ISERROR(FIND(Forbidden2,INDEX(Spells!$J$2:$J$1001,W47),1)))),"* ",""))&X47 ->  | AA47: =IF(AND(OR(Cull!$C46="Yes",ISERROR(FIND("#"&Spells!$B45&"#",Z$2)),Spells!$B45="",NOT(ISERROR(FIND(LOWER(ForbiddenAlignment),LOWER(Spells!$J45))))),NOT(Spells!$B45=Z$3)),"",$A47) ->  | AB47: 550 | AD47: =IF(AC47="","",INDEX(Spells!$B$2:$B$1001,'Class List'!AC47)) ->  | AE47: =IF(AD47="","",IF(OR(NOT(ISERROR(FIND(Forbidden1,INDEX(Spells!$J$2:$J$1001,AC47),1))),NOT(ISERROR(FIND(Forbidden2,INDEX(Spells!$J$2:$J$1001,AC47),1)))),"* ",""))&AD47 ->  | AG47: =IF(AND(OR(Cull!$C46="Yes",ISERROR(FIND("#"&Spells!$B45&"#",AF$2)),Spells!$B45="",NOT(ISERROR(FIND(LOWER(ForbiddenAlignment),LOWER(Spells!$J45))))),NOT(Spells!$B45=AF$3)),"",$A47) ->  | AH47: 610 | AJ47: =IF(AI47="","",INDEX(Spells!$B$2:$B$1001,'Class List'!AI47)) ->  | AK47: =IF(AJ47="","",IF(OR(NOT(ISERROR(FIND(Forbidden1,INDEX(Spells!$J$2:$J$1001,AI47),1))),NOT(ISERROR(FIND(Forbidden2,INDEX(Spells!$J$2:$J$1001,AI47),1)))),"* ",""))&AJ47 ->  | AM47: =IF(AND(OR(Cull!$C46="Yes",ISERROR(FIND("#"&Spells!$B45&"#",AL$2)),Spells!$B45="",NOT(ISERROR(FIND(LOWER(ForbiddenAlignment),LOWER(Spells!$J45))))),NOT(Spells!$B45=AL$3)),"",$A47) ->  | AN47: 609 | AP47: =IF(AO47="","",INDEX(Spells!$B$2:$B$1001,'Class List'!AO47)) ->  | AQ47: =IF(AP47="","",IF(OR(NOT(ISERROR(FIND(Forbidden1,INDEX(Spells!$J$2:$J$1001,AO47),1))),NOT(ISERROR(FIND(Forbidden2,INDEX(Spells!$J$2:$J$1001,AO47),1)))),"* ",""))&AP47 ->  | AS47: =IF(AND(OR(Cull!$C46="Yes",ISERROR(FIND("#"&Spells!$B45&"#",AR$2)),Spells!$B45="",NOT(ISERROR(FIND(LOWER(ForbiddenAlignment),LOWER(Spells!$J45))))),NOT(Spells!$B45=AR$3)),"",$A47) ->  | AT47: 620 | AV47: =IF(AU47="","",INDEX(Spells!$B$2:$B$1001,'Class List'!AU47)) ->  | AW47: =IF(AV47="","",IF(OR(NOT(ISERROR(FIND(Forbidden1,INDEX(Spells!$J$2:$J$1001,AU47),1))),NOT(ISERROR(FIND(Forbidden2,INDEX(Spells!$J$2:$J$1001,AU47),1)))),"* ",""))&AV47 ->  | AY47: =IF(AND(OR(Cull!$C46="Yes",ISERROR(FIND("#"&Spells!$B45&"#",AX$2)),Spells!$B45="",NOT(ISERROR(FIND(LOWER(ForbiddenAlignment),LOWER(Spells!$J45))))),NOT(Spells!$B45=AX$3)),"",$A47) ->  | AZ47: 625 | BB47: =IF(BA47="","",INDEX(Spells!$B$2:$B$1001,'Class List'!BA47)) ->  | BC47: =IF(BB47="","",IF(OR(NOT(ISERROR(FIND(Forbidden1,INDEX(Spells!$J$2:$J$1001,BA47),1))),NOT(ISERROR(FIND(Forbidden2,INDEX(Spells!$J$2:$J$1001,BA47),1)))),"* ",""))&BB47 ->  | BE47: =IF(AND(OR(Cull!$C46="Yes",ISERROR(FIND("#"&Spells!$B45&"#",BD$2)),Spells!$B45="",NOT(ISERROR(FIND(LOWER(ForbiddenAlignment),LOWER(Spells!$J45))))),NOT(Spells!$B45=BD$3)),"",$A47) ->  | BF47: 568 | BH47: =IF(BG47="","",INDEX(Spells!$B$2:$B$1001,'Class List'!BG47)) ->  | BI47: =IF(BH47="","",IF(OR(NOT(ISERROR(FIND(Forbidden1,INDEX(Spells!$J$2:$J$1001,BG47),1))),NOT(ISERROR(FIND(Forbidden2,INDEX(Spells!$J$2:$J$1001,BG47),1)))),"* ",""))&BH47 -> 
A48: 45 | C48: =IF(AND(OR(Cull!$C47="Yes",ISERROR(FIND("#"&Spells!$B46&"#",B$2)),Spells!$B46="",NOT(ISERROR(FIND(LOWER(ForbiddenAlignment),LOWER(Spells!$J46))))),NOT(Spells!$B46=B$3)),"",$A48) ->  | D48: 602 | F48: =IF(E48="","",INDEX(Spells!$B$2:$B$1001,'Class List'!E48)) ->  | G48: =IF(F48="","",IF(OR(NOT(ISERROR(FIND(Forbidden1,INDEX(Spells!$J$2:$J$1001,E48),1))),NOT(ISERROR(FIND(Forbidden2,INDEX(Spells!$J$2:$J$1001,E48),1)))),"* ",""))&F48 ->  | I48: =IF(AND(OR(Cull!$C47="Yes",ISERROR(FIND("#"&Spells!$B46&"#",H$2)),Spells!$B46="",NOT(ISERROR(FIND(LOWER(ForbiddenAlignment),LOWER(Spells!$J46))))),NOT(Spells!$B46=H$3)),"",$A48) ->  | J48: 547 | L48: =IF(K48="","",INDEX(Spells!$B$2:$B$1001,'Class List'!K48)) ->  | M48: =IF(L48="","",IF(OR(NOT(ISERROR(FIND(Forbidden1,INDEX(Spells!$J$2:$J$1001,K48),1))),NOT(ISERROR(FIND(Forbidden2,INDEX(Spells!$J$2:$J$1001,K48),1)))),"* ",""))&L48 ->  | O48: =IF(AND(OR(Cull!$C47="Yes",ISERROR(FIND("#"&Spells!$B46&"#",N$2)),Spells!$B46="",NOT(ISERROR(FIND(LOWER(ForbiddenAlignment),LOWER(Spells!$J46))))),NOT(Spells!$B46=N$3)),"",$A48) ->  | P48: 623 | R48: =IF(Q48="","",INDEX(Spells!$B$2:$B$1001,'Class List'!Q48)) ->  | S48: =IF(R48="","",IF(OR(NOT(ISERROR(FIND(Forbidden1,INDEX(Spells!$J$2:$J$1001,Q48),1))),NOT(ISERROR(FIND(Forbidden2,INDEX(Spells!$J$2:$J$1001,Q48),1)))),"* ",""))&R48 ->  | U48: =IF(AND(OR(Cull!$C47="Yes",ISERROR(FIND("#"&Spells!$B46&"#",T$2)),Spells!$B46="",NOT(ISERROR(FIND(LOWER(ForbiddenAlignment),LOWER(Spells!$J46))))),NOT(Spells!$B46=T$3)),"",$A48) ->  | V48: 621 | X48: =IF(W48="","",INDEX(Spells!$B$2:$B$1001,'Class List'!W48)) ->  | Y48: =IF(X48="","",IF(OR(NOT(ISERROR(FIND(Forbidden1,INDEX(Spells!$J$2:$J$1001,W48),1))),NOT(ISERROR(FIND(Forbidden2,INDEX(Spells!$J$2:$J$1001,W48),1)))),"* ",""))&X48 ->  | AA48: =IF(AND(OR(Cull!$C47="Yes",ISERROR(FIND("#"&Spells!$B46&"#",Z$2)),Spells!$B46="",NOT(ISERROR(FIND(LOWER(ForbiddenAlignment),LOWER(Spells!$J46))))),NOT(Spells!$B46=Z$3)),"",$A48) ->  | AB48: 550 | AD48: =IF(AC48="","",INDEX(Spells!$B$2:$B$1001,'Class List'!AC48)) ->  | AE48: =IF(AD48="","",IF(OR(NOT(ISERROR(FIND(Forbidden1,INDEX(Spells!$J$2:$J$1001,AC48),1))),NOT(ISERROR(FIND(Forbidden2,INDEX(Spells!$J$2:$J$1001,AC48),1)))),"* ",""))&AD48 ->  | AG48: =IF(AND(OR(Cull!$C47="Yes",ISERROR(FIND("#"&Spells!$B46&"#",AF$2)),Spells!$B46="",NOT(ISERROR(FIND(LOWER(ForbiddenAlignment),LOWER(Spells!$J46))))),NOT(Spells!$B46=AF$3)),"",$A48) ->  | AH48: 610 | AJ48: =IF(AI48="","",INDEX(Spells!$B$2:$B$1001,'Class List'!AI48)) ->  | AK48: =IF(AJ48="","",IF(OR(NOT(ISERROR(FIND(Forbidden1,INDEX(Spells!$J$2:$J$1001,AI48),1))),NOT(ISERROR(FIND(Forbidden2,INDEX(Spells!$J$2:$J$1001,AI48),1)))),"* ",""))&AJ48 ->  | AM48: =IF(AND(OR(Cull!$C47="Yes",ISERROR(FIND("#"&Spells!$B46&"#",AL$2)),Spells!$B46="",NOT(ISERROR(FIND(LOWER(ForbiddenAlignment),LOWER(Spells!$J46))))),NOT(Spells!$B46=AL$3)),"",$A48) ->  | AN48: 609 | AP48: =IF(AO48="","",INDEX(Spells!$B$2:$B$1001,'Class List'!AO48)) ->  | AQ48: =IF(AP48="","",IF(OR(NOT(ISERROR(FIND(Forbidden1,INDEX(Spells!$J$2:$J$1001,AO48),1))),NOT(ISERROR(FIND(Forbidden2,INDEX(Spells!$J$2:$J$1001,AO48),1)))),"* ",""))&AP48 ->  | AS48: =IF(AND(OR(Cull!$C47="Yes",ISERROR(FIND("#"&Spells!$B46&"#",AR$2)),Spells!$B46="",NOT(ISERROR(FIND(LOWER(ForbiddenAlignment),LOWER(Spells!$J46))))),NOT(Spells!$B46=AR$3)),"",$A48) ->  | AT48: 620 | AV48: =IF(AU48="","",INDEX(Spells!$B$2:$B$1001,'Class List'!AU48)) ->  | AW48: =IF(AV48="","",IF(OR(NOT(ISERROR(FIND(Forbidden1,INDEX(Spells!$J$2:$J$1001,AU48),1))),NOT(ISERROR(FIND(Forbidden2,INDEX(Spells!$J$2:$J$1001,AU48),1)))),"* ",""))&AV48 ->  | AY48: =IF(AND(OR(Cull!$C47="Yes",ISERROR(FIND("#"&Spells!$B46&"#",AX$2)),Spells!$B46="",NOT(ISERROR(FIND(LOWER(ForbiddenAlignment),LOWER(Spells!$J46))))),NOT(Spells!$B46=AX$3)),"",$A48) ->  | AZ48: 625 | BB48: =IF(BA48="","",INDEX(Spells!$B$2:$B$1001,'Class List'!BA48)) ->  | BC48: =IF(BB48="","",IF(OR(NOT(ISERROR(FIND(Forbidden1,INDEX(Spells!$J$2:$J$1001,BA48),1))),NOT(ISERROR(FIND(Forbidden2,INDEX(Spells!$J$2:$J$1001,BA48),1)))),"* ",""))&BB48 ->  | BE48: =IF(AND(OR(Cull!$C47="Yes",ISERROR(FIND("#"&Spells!$B46&"#",BD$2)),Spells!$B46="",NOT(ISERROR(FIND(LOWER(ForbiddenAlignment),LOWER(Spells!$J46))))),NOT(Spells!$B46=BD$3)),"",$A48) ->  | BF48: 568 | BH48: =IF(BG48="","",INDEX(Spells!$B$2:$B$1001,'Class List'!BG48)) ->  | BI48: =IF(BH48="","",IF(OR(NOT(ISERROR(FIND(Forbidden1,INDEX(Spells!$J$2:$J$1001,BG48),1))),NOT(ISERROR(FIND(Forbidden2,INDEX(Spells!$J$2:$J$1001,BG48),1)))),"* ",""))&BH48 -> 
A49: 46 | C49: =IF(AND(OR(Cull!$C48="Yes",ISERROR(FIND("#"&Spells!$B47&"#",B$2)),Spells!$B47="",NOT(ISERROR(FIND(LOWER(ForbiddenAlignment),LOWER(Spells!$J47))))),NOT(Spells!$B47=B$3)),"",$A49) ->  | D49: 602 | F49: =IF(E49="","",INDEX(Spells!$B$2:$B$1001,'Class List'!E49)) ->  | G49: =IF(F49="","",IF(OR(NOT(ISERROR(FIND(Forbidden1,INDEX(Spells!$J$2:$J$1001,E49),1))),NOT(ISERROR(FIND(Forbidden2,INDEX(Spells!$J$2:$J$1001,E49),1)))),"* ",""))&F49 ->  | I49: =IF(AND(OR(Cull!$C48="Yes",ISERROR(FIND("#"&Spells!$B47&"#",H$2)),Spells!$B47="",NOT(ISERROR(FIND(LOWER(ForbiddenAlignment),LOWER(Spells!$J47))))),NOT(Spells!$B47=H$3)),"",$A49) ->  | J49: 547 | L49: =IF(K49="","",INDEX(Spells!$B$2:$B$1001,'Class List'!K49)) ->  | M49: =IF(L49="","",IF(OR(NOT(ISERROR(FIND(Forbidden1,INDEX(Spells!$J$2:$J$1001,K49),1))),NOT(ISERROR(FIND(Forbidden2,INDEX(Spells!$J$2:$J$1001,K49),1)))),"* ",""))&L49 ->  | O49: =IF(AND(OR(Cull!$C48="Yes",ISERROR(FIND("#"&Spells!$B47&"#",N$2)),Spells!$B47="",NOT(ISERROR(FIND(LOWER(ForbiddenAlignment),LOWER(Spells!$J47))))),NOT(Spells!$B47=N$3)),"",$A49) ->  | P49: 623 | R49: =IF(Q49="","",INDEX(Spells!$B$2:$B$1001,'Class List'!Q49)) ->  | S49: =IF(R49="","",IF(OR(NOT(ISERROR(FIND(Forbidden1,INDEX(Spells!$J$2:$J$1001,Q49),1))),NOT(ISERROR(FIND(Forbidden2,INDEX(Spells!$J$2:$J$1001,Q49),1)))),"* ",""))&R49 ->  | U49: =IF(AND(OR(Cull!$C48="Yes",ISERROR(FIND("#"&Spells!$B47&"#",T$2)),Spells!$B47="",NOT(ISERROR(FIND(LOWER(ForbiddenAlignment),LOWER(Spells!$J47))))),NOT(Spells!$B47=T$3)),"",$A49) ->  | V49: 621 | X49: =IF(W49="","",INDEX(Spells!$B$2:$B$1001,'Class List'!W49)) ->  | Y49: =IF(X49="","",IF(OR(NOT(ISERROR(FIND(Forbidden1,INDEX(Spells!$J$2:$J$1001,W49),1))),NOT(ISERROR(FIND(Forbidden2,INDEX(Spells!$J$2:$J$1001,W49),1)))),"* ",""))&X49 ->  | AA49: =IF(AND(OR(Cull!$C48="Yes",ISERROR(FIND("#"&Spells!$B47&"#",Z$2)),Spells!$B47="",NOT(ISERROR(FIND(LOWER(ForbiddenAlignment),LOWER(Spells!$J47))))),NOT(Spells!$B47=Z$3)),"",$A49) ->  | AB49: 550 | AD49: =IF(AC49="","",INDEX(Spells!$B$2:$B$1001,'Class List'!AC49)) ->  | AE49: =IF(AD49="","",IF(OR(NOT(ISERROR(FIND(Forbidden1,INDEX(Spells!$J$2:$J$1001,AC49),1))),NOT(ISERROR(FIND(Forbidden2,INDEX(Spells!$J$2:$J$1001,AC49),1)))),"* ",""))&AD49 ->  | AG49: =IF(AND(OR(Cull!$C48="Yes",ISERROR(FIND("#"&Spells!$B47&"#",AF$2)),Spells!$B47="",NOT(ISERROR(FIND(LOWER(ForbiddenAlignment),LOWER(Spells!$J47))))),NOT(Spells!$B47=AF$3)),"",$A49) ->  | AH49: 610 | AJ49: =IF(AI49="","",INDEX(Spells!$B$2:$B$1001,'Class List'!AI49)) ->  | AK49: =IF(AJ49="","",IF(OR(NOT(ISERROR(FIND(Forbidden1,INDEX(Spells!$J$2:$J$1001,AI49),1))),NOT(ISERROR(FIND(Forbidden2,INDEX(Spells!$J$2:$J$1001,AI49),1)))),"* ",""))&AJ49 ->  | AM49: =IF(AND(OR(Cull!$C48="Yes",ISERROR(FIND("#"&Spells!$B47&"#",AL$2)),Spells!$B47="",NOT(ISERROR(FIND(LOWER(ForbiddenAlignment),LOWER(Spells!$J47))))),NOT(Spells!$B47=AL$3)),"",$A49) ->  | AN49: 609 | AP49: =IF(AO49="","",INDEX(Spells!$B$2:$B$1001,'Class List'!AO49)) ->  | AQ49: =IF(AP49="","",IF(OR(NOT(ISERROR(FIND(Forbidden1,INDEX(Spells!$J$2:$J$1001,AO49),1))),NOT(ISERROR(FIND(Forbidden2,INDEX(Spells!$J$2:$J$1001,AO49),1)))),"* ",""))&AP49 ->  | AS49: =IF(AND(OR(Cull!$C48="Yes",ISERROR(FIND("#"&Spells!$B47&"#",AR$2)),Spells!$B47="",NOT(ISERROR(FIND(LOWER(ForbiddenAlignment),LOWER(Spells!$J47))))),NOT(Spells!$B47=AR$3)),"",$A49) ->  | AT49: 620 | AV49: =IF(AU49="","",INDEX(Spells!$B$2:$B$1001,'Class List'!AU49)) ->  | AW49: =IF(AV49="","",IF(OR(NOT(ISERROR(FIND(Forbidden1,INDEX(Spells!$J$2:$J$1001,AU49),1))),NOT(ISERROR(FIND(Forbidden2,INDEX(Spells!$J$2:$J$1001,AU49),1)))),"* ",""))&AV49 ->  | AY49: =IF(AND(OR(Cull!$C48="Yes",ISERROR(FIND("#"&Spells!$B47&"#",AX$2)),Spells!$B47="",NOT(ISERROR(FIND(LOWER(ForbiddenAlignment),LOWER(Spells!$J47))))),NOT(Spells!$B47=AX$3)),"",$A49) ->  | AZ49: 625 | BB49: =IF(BA49="","",INDEX(Spells!$B$2:$B$1001,'Class List'!BA49)) ->  | BC49: =IF(BB49="","",IF(OR(NOT(ISERROR(FIND(Forbidden1,INDEX(Spells!$J$2:$J$1001,BA49),1))),NOT(ISERROR(FIND(Forbidden2,INDEX(Spells!$J$2:$J$1001,BA49),1)))),"* ",""))&BB49 ->  | BE49: =IF(AND(OR(Cull!$C48="Yes",ISERROR(FIND("#"&Spells!$B47&"#",BD$2)),Spells!$B47="",NOT(ISERROR(FIND(LOWER(ForbiddenAlignment),LOWER(Spells!$J47))))),NOT(Spells!$B47=BD$3)),"",$A49) ->  | BF49: 568 | BH49: =IF(BG49="","",INDEX(Spells!$B$2:$B$1001,'Class List'!BG49)) ->  | BI49: =IF(BH49="","",IF(OR(NOT(ISERROR(FIND(Forbidden1,INDEX(Spells!$J$2:$J$1001,BG49),1))),NOT(ISERROR(FIND(Forbidden2,INDEX(Spells!$J$2:$J$1001,BG49),1)))),"* ",""))&BH49 -> 
A50: 47 | C50: =IF(AND(OR(Cull!$C49="Yes",ISERROR(FIND("#"&Spells!$B48&"#",B$2)),Spells!$B48="",NOT(ISERROR(FIND(LOWER(ForbiddenAlignment),LOWER(Spells!$J48))))),NOT(Spells!$B48=B$3)),"",$A50) ->  | D50: 602 | F50: =IF(E50="","",INDEX(Spells!$B$2:$B$1001,'Class List'!E50)) ->  | G50: =IF(F50="","",IF(OR(NOT(ISERROR(FIND(Forbidden1,INDEX(Spells!$J$2:$J$1001,E50),1))),NOT(ISERROR(FIND(Forbidden2,INDEX(Spells!$J$2:$J$1001,E50),1)))),"* ",""))&F50 ->  | I50: =IF(AND(OR(Cull!$C49="Yes",ISERROR(FIND("#"&Spells!$B48&"#",H$2)),Spells!$B48="",NOT(ISERROR(FIND(LOWER(ForbiddenAlignment),LOWER(Spells!$J48))))),NOT(Spells!$B48=H$3)),"",$A50) ->  | J50: 547 | L50: =IF(K50="","",INDEX(Spells!$B$2:$B$1001,'Class List'!K50)) ->  | M50: =IF(L50="","",IF(OR(NOT(ISERROR(FIND(Forbidden1,INDEX(Spells!$J$2:$J$1001,K50),1))),NOT(ISERROR(FIND(Forbidden2,INDEX(Spells!$J$2:$J$1001,K50),1)))),"* ",""))&L50 ->  | O50: =IF(AND(OR(Cull!$C49="Yes",ISERROR(FIND("#"&Spells!$B48&"#",N$2)),Spells!$B48="",NOT(ISERROR(FIND(LOWER(ForbiddenAlignment),LOWER(Spells!$J48))))),NOT(Spells!$B48=N$3)),"",$A50) ->  | P50: 623 | R50: =IF(Q50="","",INDEX(Spells!$B$2:$B$1001,'Class List'!Q50)) ->  | S50: =IF(R50="","",IF(OR(NOT(ISERROR(FIND(Forbidden1,INDEX(Spells!$J$2:$J$1001,Q50),1))),NOT(ISERROR(FIND(Forbidden2,INDEX(Spells!$J$2:$J$1001,Q50),1)))),"* ",""))&R50 ->  | U50: =IF(AND(OR(Cull!$C49="Yes",ISERROR(FIND("#"&Spells!$B48&"#",T$2)),Spells!$B48="",NOT(ISERROR(FIND(LOWER(ForbiddenAlignment),LOWER(Spells!$J48))))),NOT(Spells!$B48=T$3)),"",$A50) ->  | V50: 621 | X50: =IF(W50="","",INDEX(Spells!$B$2:$B$1001,'Class List'!W50)) ->  | Y50: =IF(X50="","",IF(OR(NOT(ISERROR(FIND(Forbidden1,INDEX(Spells!$J$2:$J$1001,W50),1))),NOT(ISERROR(FIND(Forbidden2,INDEX(Spells!$J$2:$J$1001,W50),1)))),"* ",""))&X50 ->  | AA50: =IF(AND(OR(Cull!$C49="Yes",ISERROR(FIND("#"&Spells!$B48&"#",Z$2)),Spells!$B48="",NOT(ISERROR(FIND(LOWER(ForbiddenAlignment),LOWER(Spells!$J48))))),NOT(Spells!$B48=Z$3)),"",$A50) ->  | AB50: 550 | AD50: =IF(AC50="","",INDEX(Spells!$B$2:$B$1001,'Class List'!AC50)) ->  | AE50: =IF(AD50="","",IF(OR(NOT(ISERROR(FIND(Forbidden1,INDEX(Spells!$J$2:$J$1001,AC50),1))),NOT(ISERROR(FIND(Forbidden2,INDEX(Spells!$J$2:$J$1001,AC50),1)))),"* ",""))&AD50 ->  | AG50: =IF(AND(OR(Cull!$C49="Yes",ISERROR(FIND("#"&Spells!$B48&"#",AF$2)),Spells!$B48="",NOT(ISERROR(FIND(LOWER(ForbiddenAlignment),LOWER(Spells!$J48))))),NOT(Spells!$B48=AF$3)),"",$A50) ->  | AH50: 610 | AJ50: =IF(AI50="","",INDEX(Spells!$B$2:$B$1001,'Class List'!AI50)) ->  | AK50: =IF(AJ50="","",IF(OR(NOT(ISERROR(FIND(Forbidden1,INDEX(Spells!$J$2:$J$1001,AI50),1))),NOT(ISERROR(FIND(Forbidden2,INDEX(Spells!$J$2:$J$1001,AI50),1)))),"* ",""))&AJ50 ->  | AM50: =IF(AND(OR(Cull!$C49="Yes",ISERROR(FIND("#"&Spells!$B48&"#",AL$2)),Spells!$B48="",NOT(ISERROR(FIND(LOWER(ForbiddenAlignment),LOWER(Spells!$J48))))),NOT(Spells!$B48=AL$3)),"",$A50) ->  | AN50: 609 | AP50: =IF(AO50="","",INDEX(Spells!$B$2:$B$1001,'Class List'!AO50)) ->  | AQ50: =IF(AP50="","",IF(OR(NOT(ISERROR(FIND(Forbidden1,INDEX(Spells!$J$2:$J$1001,AO50),1))),NOT(ISERROR(FIND(Forbidden2,INDEX(Spells!$J$2:$J$1001,AO50),1)))),"* ",""))&AP50 ->  | AS50: =IF(AND(OR(Cull!$C49="Yes",ISERROR(FIND("#"&Spells!$B48&"#",AR$2)),Spells!$B48="",NOT(ISERROR(FIND(LOWER(ForbiddenAlignment),LOWER(Spells!$J48))))),NOT(Spells!$B48=AR$3)),"",$A50) ->  | AT50: 620 | AV50: =IF(AU50="","",INDEX(Spells!$B$2:$B$1001,'Class List'!AU50)) ->  | AW50: =IF(AV50="","",IF(OR(NOT(ISERROR(FIND(Forbidden1,INDEX(Spells!$J$2:$J$1001,AU50),1))),NOT(ISERROR(FIND(Forbidden2,INDEX(Spells!$J$2:$J$1001,AU50),1)))),"* ",""))&AV50 ->  | AY50: =IF(AND(OR(Cull!$C49="Yes",ISERROR(FIND("#"&Spells!$B48&"#",AX$2)),Spells!$B48="",NOT(ISERROR(FIND(LOWER(ForbiddenAlignment),LOWER(Spells!$J48))))),NOT(Spells!$B48=AX$3)),"",$A50) ->  | AZ50: 625 | BB50: =IF(BA50="","",INDEX(Spells!$B$2:$B$1001,'Class List'!BA50)) ->  | BC50: =IF(BB50="","",IF(OR(NOT(ISERROR(FIND(Forbidden1,INDEX(Spells!$J$2:$J$1001,BA50),1))),NOT(ISERROR(FIND(Forbidden2,INDEX(Spells!$J$2:$J$1001,BA50),1)))),"* ",""))&BB50 ->  | BE50: =IF(AND(OR(Cull!$C49="Yes",ISERROR(FIND("#"&Spells!$B48&"#",BD$2)),Spells!$B48="",NOT(ISERROR(FIND(LOWER(ForbiddenAlignment),LOWER(Spells!$J48))))),NOT(Spells!$B48=BD$3)),"",$A50) ->  | BF50: 568 | BH50: =IF(BG50="","",INDEX(Spells!$B$2:$B$1001,'Class List'!BG50)) ->  | BI50: =IF(BH50="","",IF(OR(NOT(ISERROR(FIND(Forbidden1,INDEX(Spells!$J$2:$J$1001,BG50),1))),NOT(ISERROR(FIND(Forbidden2,INDEX(Spells!$J$2:$J$1001,BG50),1)))),"* ",""))&BH50 -> 
A51: 48 | C51: =IF(AND(OR(Cull!$C50="Yes",ISERROR(FIND("#"&Spells!$B49&"#",B$2)),Spells!$B49="",NOT(ISERROR(FIND(LOWER(ForbiddenAlignment),LOWER(Spells!$J49))))),NOT(Spells!$B49=B$3)),"",$A51) ->  | D51: 602 | F51: =IF(E51="","",INDEX(Spells!$B$2:$B$1001,'Class List'!E51)) ->  | G51: =IF(F51="","",IF(OR(NOT(ISERROR(FIND(Forbidden1,INDEX(Spells!$J$2:$J$1001,E51),1))),NOT(ISERROR(FIND(Forbidden2,INDEX(Spells!$J$2:$J$1001,E51),1)))),"* ",""))&F51 ->  | I51: =IF(AND(OR(Cull!$C50="Yes",ISERROR(FIND("#"&Spells!$B49&"#",H$2)),Spells!$B49="",NOT(ISERROR(FIND(LOWER(ForbiddenAlignment),LOWER(Spells!$J49))))),NOT(Spells!$B49=H$3)),"",$A51) ->  | J51: 547 | L51: =IF(K51="","",INDEX(Spells!$B$2:$B$1001,'Class List'!K51)) ->  | M51: =IF(L51="","",IF(OR(NOT(ISERROR(FIND(Forbidden1,INDEX(Spells!$J$2:$J$1001,K51),1))),NOT(ISERROR(FIND(Forbidden2,INDEX(Spells!$J$2:$J$1001,K51),1)))),"* ",""))&L51 ->  | O51: =IF(AND(OR(Cull!$C50="Yes",ISERROR(FIND("#"&Spells!$B49&"#",N$2)),Spells!$B49="",NOT(ISERROR(FIND(LOWER(ForbiddenAlignment),LOWER(Spells!$J49))))),NOT(Spells!$B49=N$3)),"",$A51) ->  | P51: 623 | R51: =IF(Q51="","",INDEX(Spells!$B$2:$B$1001,'Class List'!Q51)) ->  | S51: =IF(R51="","",IF(OR(NOT(ISERROR(FIND(Forbidden1,INDEX(Spells!$J$2:$J$1001,Q51),1))),NOT(ISERROR(FIND(Forbidden2,INDEX(Spells!$J$2:$J$1001,Q51),1)))),"* ",""))&R51 ->  | U51: =IF(AND(OR(Cull!$C50="Yes",ISERROR(FIND("#"&Spells!$B49&"#",T$2)),Spells!$B49="",NOT(ISERROR(FIND(LOWER(ForbiddenAlignment),LOWER(Spells!$J49))))),NOT(Spells!$B49=T$3)),"",$A51) ->  | V51: 621 | X51: =IF(W51="","",INDEX(Spells!$B$2:$B$1001,'Class List'!W51)) ->  | Y51: =IF(X51="","",IF(OR(NOT(ISERROR(FIND(Forbidden1,INDEX(Spells!$J$2:$J$1001,W51),1))),NOT(ISERROR(FIND(Forbidden2,INDEX(Spells!$J$2:$J$1001,W51),1)))),"* ",""))&X51 ->  | AA51: =IF(AND(OR(Cull!$C50="Yes",ISERROR(FIND("#"&Spells!$B49&"#",Z$2)),Spells!$B49="",NOT(ISERROR(FIND(LOWER(ForbiddenAlignment),LOWER(Spells!$J49))))),NOT(Spells!$B49=Z$3)),"",$A51) ->  | AB51: 550 | AD51: =IF(AC51="","",INDEX(Spells!$B$2:$B$1001,'Class List'!AC51)) ->  | AE51: =IF(AD51="","",IF(OR(NOT(ISERROR(FIND(Forbidden1,INDEX(Spells!$J$2:$J$1001,AC51),1))),NOT(ISERROR(FIND(Forbidden2,INDEX(Spells!$J$2:$J$1001,AC51),1)))),"* ",""))&AD51 ->  | AG51: =IF(AND(OR(Cull!$C50="Yes",ISERROR(FIND("#"&Spells!$B49&"#",AF$2)),Spells!$B49="",NOT(ISERROR(FIND(LOWER(ForbiddenAlignment),LOWER(Spells!$J49))))),NOT(Spells!$B49=AF$3)),"",$A51) ->  | AH51: 610 | AJ51: =IF(AI51="","",INDEX(Spells!$B$2:$B$1001,'Class List'!AI51)) ->  | AK51: =IF(AJ51="","",IF(OR(NOT(ISERROR(FIND(Forbidden1,INDEX(Spells!$J$2:$J$1001,AI51),1))),NOT(ISERROR(FIND(Forbidden2,INDEX(Spells!$J$2:$J$1001,AI51),1)))),"* ",""))&AJ51 ->  | AM51: =IF(AND(OR(Cull!$C50="Yes",ISERROR(FIND("#"&Spells!$B49&"#",AL$2)),Spells!$B49="",NOT(ISERROR(FIND(LOWER(ForbiddenAlignment),LOWER(Spells!$J49))))),NOT(Spells!$B49=AL$3)),"",$A51) ->  | AN51: 609 | AP51: =IF(AO51="","",INDEX(Spells!$B$2:$B$1001,'Class List'!AO51)) ->  | AQ51: =IF(AP51="","",IF(OR(NOT(ISERROR(FIND(Forbidden1,INDEX(Spells!$J$2:$J$1001,AO51),1))),NOT(ISERROR(FIND(Forbidden2,INDEX(Spells!$J$2:$J$1001,AO51),1)))),"* ",""))&AP51 ->  | AS51: =IF(AND(OR(Cull!$C50="Yes",ISERROR(FIND("#"&Spells!$B49&"#",AR$2)),Spells!$B49="",NOT(ISERROR(FIND(LOWER(ForbiddenAlignment),LOWER(Spells!$J49))))),NOT(Spells!$B49=AR$3)),"",$A51) ->  | AT51: 620 | AV51: =IF(AU51="","",INDEX(Spells!$B$2:$B$1001,'Class List'!AU51)) ->  | AW51: =IF(AV51="","",IF(OR(NOT(ISERROR(FIND(Forbidden1,INDEX(Spells!$J$2:$J$1001,AU51),1))),NOT(ISERROR(FIND(Forbidden2,INDEX(Spells!$J$2:$J$1001,AU51),1)))),"* ",""))&AV51 ->  | AY51: =IF(AND(OR(Cull!$C50="Yes",ISERROR(FIND("#"&Spells!$B49&"#",AX$2)),Spells!$B49="",NOT(ISERROR(FIND(LOWER(ForbiddenAlignment),LOWER(Spells!$J49))))),NOT(Spells!$B49=AX$3)),"",$A51) ->  | AZ51: 625 | BB51: =IF(BA51="","",INDEX(Spells!$B$2:$B$1001,'Class List'!BA51)) ->  | BC51: =IF(BB51="","",IF(OR(NOT(ISERROR(FIND(Forbidden1,INDEX(Spells!$J$2:$J$1001,BA51),1))),NOT(ISERROR(FIND(Forbidden2,INDEX(Spells!$J$2:$J$1001,BA51),1)))),"* ",""))&BB51 ->  | BE51: =IF(AND(OR(Cull!$C50="Yes",ISERROR(FIND("#"&Spells!$B49&"#",BD$2)),Spells!$B49="",NOT(ISERROR(FIND(LOWER(ForbiddenAlignment),LOWER(Spells!$J49))))),NOT(Spells!$B49=BD$3)),"",$A51) ->  | BF51: 568 | BH51: =IF(BG51="","",INDEX(Spells!$B$2:$B$1001,'Class List'!BG51)) ->  | BI51: =IF(BH51="","",IF(OR(NOT(ISERROR(FIND(Forbidden1,INDEX(Spells!$J$2:$J$1001,BG51),1))),NOT(ISERROR(FIND(Forbidden2,INDEX(Spells!$J$2:$J$1001,BG51),1)))),"* ",""))&BH51 -> 
A52: 49 | C52: =IF(AND(OR(Cull!$C51="Yes",ISERROR(FIND("#"&Spells!$B50&"#",B$2)),Spells!$B50="",NOT(ISERROR(FIND(LOWER(ForbiddenAlignment),LOWER(Spells!$J50))))),NOT(Spells!$B50=B$3)),"",$A52) ->  | D52: 602 | F52: =IF(E52="","",INDEX(Spells!$B$2:$B$1001,'Class List'!E52)) ->  | G52: =IF(F52="","",IF(OR(NOT(ISERROR(FIND(Forbidden1,INDEX(Spells!$J$2:$J$1001,E52),1))),NOT(ISERROR(FIND(Forbidden2,INDEX(Spells!$J$2:$J$1001,E52),1)))),"* ",""))&F52 ->  | I52: =IF(AND(OR(Cull!$C51="Yes",ISERROR(FIND("#"&Spells!$B50&"#",H$2)),Spells!$B50="",NOT(ISERROR(FIND(LOWER(ForbiddenAlignment),LOWER(Spells!$J50))))),NOT(Spells!$B50=H$3)),"",$A52) ->  | J52: 547 | L52: =IF(K52="","",INDEX(Spells!$B$2:$B$1001,'Class List'!K52)) ->  | M52: =IF(L52="","",IF(OR(NOT(ISERROR(FIND(Forbidden1,INDEX(Spells!$J$2:$J$1001,K52),1))),NOT(ISERROR(FIND(Forbidden2,INDEX(Spells!$J$2:$J$1001,K52),1)))),"* ",""))&L52 ->  | O52: =IF(AND(OR(Cull!$C51="Yes",ISERROR(FIND("#"&Spells!$B50&"#",N$2)),Spells!$B50="",NOT(ISERROR(FIND(LOWER(ForbiddenAlignment),LOWER(Spells!$J50))))),NOT(Spells!$B50=N$3)),"",$A52) ->  | P52: 623 | R52: =IF(Q52="","",INDEX(Spells!$B$2:$B$1001,'Class List'!Q52)) ->  | S52: =IF(R52="","",IF(OR(NOT(ISERROR(FIND(Forbidden1,INDEX(Spells!$J$2:$J$1001,Q52),1))),NOT(ISERROR(FIND(Forbidden2,INDEX(Spells!$J$2:$J$1001,Q52),1)))),"* ",""))&R52 ->  | U52: =IF(AND(OR(Cull!$C51="Yes",ISERROR(FIND("#"&Spells!$B50&"#",T$2)),Spells!$B50="",NOT(ISERROR(FIND(LOWER(ForbiddenAlignment),LOWER(Spells!$J50))))),NOT(Spells!$B50=T$3)),"",$A52) ->  | V52: 621 | X52: =IF(W52="","",INDEX(Spells!$B$2:$B$1001,'Class List'!W52)) ->  | Y52: =IF(X52="","",IF(OR(NOT(ISERROR(FIND(Forbidden1,INDEX(Spells!$J$2:$J$1001,W52),1))),NOT(ISERROR(FIND(Forbidden2,INDEX(Spells!$J$2:$J$1001,W52),1)))),"* ",""))&X52 ->  | AA52: =IF(AND(OR(Cull!$C51="Yes",ISERROR(FIND("#"&Spells!$B50&"#",Z$2)),Spells!$B50="",NOT(ISERROR(FIND(LOWER(ForbiddenAlignment),LOWER(Spells!$J50))))),NOT(Spells!$B50=Z$3)),"",$A52) ->  | AB52: 550 | AD52: =IF(AC52="","",INDEX(Spells!$B$2:$B$1001,'Class List'!AC52)) ->  | AE52: =IF(AD52="","",IF(OR(NOT(ISERROR(FIND(Forbidden1,INDEX(Spells!$J$2:$J$1001,AC52),1))),NOT(ISERROR(FIND(Forbidden2,INDEX(Spells!$J$2:$J$1001,AC52),1)))),"* ",""))&AD52 ->  | AG52: =IF(AND(OR(Cull!$C51="Yes",ISERROR(FIND("#"&Spells!$B50&"#",AF$2)),Spells!$B50="",NOT(ISERROR(FIND(LOWER(ForbiddenAlignment),LOWER(Spells!$J50))))),NOT(Spells!$B50=AF$3)),"",$A52) ->  | AH52: 610 | AJ52: =IF(AI52="","",INDEX(Spells!$B$2:$B$1001,'Class List'!AI52)) ->  | AK52: =IF(AJ52="","",IF(OR(NOT(ISERROR(FIND(Forbidden1,INDEX(Spells!$J$2:$J$1001,AI52),1))),NOT(ISERROR(FIND(Forbidden2,INDEX(Spells!$J$2:$J$1001,AI52),1)))),"* ",""))&AJ52 ->  | AM52: =IF(AND(OR(Cull!$C51="Yes",ISERROR(FIND("#"&Spells!$B50&"#",AL$2)),Spells!$B50="",NOT(ISERROR(FIND(LOWER(ForbiddenAlignment),LOWER(Spells!$J50))))),NOT(Spells!$B50=AL$3)),"",$A52) ->  | AN52: 609 | AP52: =IF(AO52="","",INDEX(Spells!$B$2:$B$1001,'Class List'!AO52)) ->  | AQ52: =IF(AP52="","",IF(OR(NOT(ISERROR(FIND(Forbidden1,INDEX(Spells!$J$2:$J$1001,AO52),1))),NOT(ISERROR(FIND(Forbidden2,INDEX(Spells!$J$2:$J$1001,AO52),1)))),"* ",""))&AP52 ->  | AS52: =IF(AND(OR(Cull!$C51="Yes",ISERROR(FIND("#"&Spells!$B50&"#",AR$2)),Spells!$B50="",NOT(ISERROR(FIND(LOWER(ForbiddenAlignment),LOWER(Spells!$J50))))),NOT(Spells!$B50=AR$3)),"",$A52) ->  | AT52: 620 | AV52: =IF(AU52="","",INDEX(Spells!$B$2:$B$1001,'Class List'!AU52)) ->  | AW52: =IF(AV52="","",IF(OR(NOT(ISERROR(FIND(Forbidden1,INDEX(Spells!$J$2:$J$1001,AU52),1))),NOT(ISERROR(FIND(Forbidden2,INDEX(Spells!$J$2:$J$1001,AU52),1)))),"* ",""))&AV52 ->  | AY52: =IF(AND(OR(Cull!$C51="Yes",ISERROR(FIND("#"&Spells!$B50&"#",AX$2)),Spells!$B50="",NOT(ISERROR(FIND(LOWER(ForbiddenAlignment),LOWER(Spells!$J50))))),NOT(Spells!$B50=AX$3)),"",$A52) ->  | AZ52: 625 | BB52: =IF(BA52="","",INDEX(Spells!$B$2:$B$1001,'Class List'!BA52)) ->  | BC52: =IF(BB52="","",IF(OR(NOT(ISERROR(FIND(Forbidden1,INDEX(Spells!$J$2:$J$1001,BA52),1))),NOT(ISERROR(FIND(Forbidden2,INDEX(Spells!$J$2:$J$1001,BA52),1)))),"* ",""))&BB52 ->  | BE52: =IF(AND(OR(Cull!$C51="Yes",ISERROR(FIND("#"&Spells!$B50&"#",BD$2)),Spells!$B50="",NOT(ISERROR(FIND(LOWER(ForbiddenAlignment),LOWER(Spells!$J50))))),NOT(Spells!$B50=BD$3)),"",$A52) ->  | BF52: 568 | BH52: =IF(BG52="","",INDEX(Spells!$B$2:$B$1001,'Class List'!BG52)) ->  | BI52: =IF(BH52="","",IF(OR(NOT(ISERROR(FIND(Forbidden1,INDEX(Spells!$J$2:$J$1001,BG52),1))),NOT(ISERROR(FIND(Forbidden2,INDEX(Spells!$J$2:$J$1001,BG52),1)))),"* ",""))&BH52 -> 
